Workbook

Sheet Vendor
A2: Ven - Code | B2: Main Acc | C2: Vendor Name | D2: Contact | E2: Address | F2: Balance | G2: Age 01:30 | H2: Age 30:60 | I2: Age 60:90 | J2: Confirmed
A3: 2110001 | B3: 211 | C3: Dallah Trading Co | D3: Eng.Naim | E3: Dammam
A10: VedCode | B10: =Vendors_Table[[#Data],[Ven - Code]] -> 

Sheet P.O Details
A2: Order Number | B2: Order Date | C2: Ven - Code | D2: Partner | E2: Shipp To | F2: Item # | G2: Product Name | H2: Unit | I2: Quantity | J2: Price Pefor Tax | K2: Tax | L2: Unit Price | M2: Total without tax | N2: Totao with Tax | O2: Tax Amount | P2: Column12 | Q2: Column13
A3: P.O#10001 | B3: 2018-04-09 | C3: 2110001 | D3: =VLOOKUP(PO_Details[[#This Row],[Ven - Code]],Vendors_Table[],3,FALSE) -> Dallah Trading Co | E3: OMARCO main warhouse | F3: AC0001 | G3: AC. CONSILD 5 TON OUTDOOR | H3: Pcs | I3: 15 | J3: 2700 | K3: 0.05 | L3: =PO_Details[[#This Row],[Price Pefor Tax]]*1.05 -> 2835 | M3: =PO_Details[[#This Row],[Quantity]]*PO_Details[[#This Row],[Price Pefor Tax]] -> 40500 | N3: =PO_Details[[#This Row],[Quantity]]*PO_Details[[#This Row],[Unit Price]] -> 42525 | O3: =PO_Details[[#This Row],[Totao with Tax]]-PO_Details[[#This Row],[Total without tax]] -> 2025
A4: P.O#10001 | B4: 2018-04-10 | C4: 2110001 | D4: =VLOOKUP(PO_Details[[#This Row],[Ven - Code]],Vendors_Table[],3,FALSE) -> Dallah Trading Co | E4: OMARCO main warhouse | F4: AC0002 | G4: AC. CONSILD 5 TON INDOOR | H4: Pcs | I4: 15 | J4: 1600 | K4: 0.05 | L4: =PO_Details[[#This Row],[Price Pefor Tax]]*1.05 -> 1680 | M4: =PO_Details[[#This Row],[Quantity]]*PO_Details[[#This Row],[Price Pefor Tax]] -> 24000 | N4: =PO_Details[[#This Row],[Quantity]]*PO_Details[[#This Row],[Unit Price]] -> 25200 | O4: =PO_Details[[#This Row],[Totao with Tax]]-PO_Details[[#This Row],[Total without tax]] -> 1200
A5: P.O#10001 | B5: 2018-04-11 | C5: 2110001 | D5: =VLOOKUP(PO_Details[[#This Row],[Ven - Code]],Vendors_Table[],3,FALSE) -> Dallah Trading Co | E5: OMARCO main warhouse | F5: AC0003 | G5: AC. CONTACTOR | H5: Pcs | I5: 15 | J5: 400 | K5: 0.05 | L5: =PO_Details[[#This Row],[Price Pefor Tax]]*1.05 -> 420 | M5: =PO_Details[[#This Row],[Quantity]]*PO_Details[[#This Row],[Price Pefor Tax]] -> 6000 | N5: =PO_Details[[#This Row],[Quantity]]*PO_Details[[#This Row],[Unit Price]] -> 6300 | O5: =PO_Details[[#This Row],[Totao with Tax]]-PO_Details[[#This Row],[Total without tax]] -> 300
A6: P.O#10001 | B6: 2018-04-12 | C6: 2110001 | D6: =VLOOKUP(PO_Details[[#This Row],[Ven - Code]],Vendors_Table[],3,FALSE) -> Dallah Trading Co | E6: OMARCO main warhouse | F6: AC0004 | G6: AC. THERMOSTATE | H6: Pcs | I6: 15 | J6: 50 | K6: 0.05 | L6: =PO_Details[[#This Row],[Price Pefor Tax]]*1.05 -> 52.5 | M6: =PO_Details[[#This Row],[Quantity]]*PO_Details[[#This Row],[Price Pefor Tax]] -> 750 | N6: =PO_Details[[#This Row],[Quantity]]*PO_Details[[#This Row],[Unit Price]] -> 787.5 | O6: =PO_Details[[#This Row],[Totao with Tax]]-PO_Details[[#This Row],[Total without tax]] -> 37.5
D7: =VLOOKUP(PO_Details[[#This Row],[Ven - Code]],Vendors_Table[],3,FALSE) ->  | L7: =PO_Details[[#This Row],[Price Pefor Tax]]*1.05 -> 0 | M7: =PO_Details[[#This Row],[Quantity]]*PO_Details[[#This Row],[Price Pefor Tax]] -> 0 | N7: =PO_Details[[#This Row],[Quantity]]*PO_Details[[#This Row],[Unit Price]] -> 0 | O7: =PO_Details[[#This Row],[Totao with Tax]]-PO_Details[[#This Row],[Total without tax]] -> 0
D8: =VLOOKUP(PO_Details[[#This Row],[Ven - Code]],Vendors_Table[],3,FALSE) ->  | L8: =PO_Details[[#This Row],[Price Pefor Tax]]*1.05 -> 0 | M8: =PO_Details[[#This Row],[Quantity]]*PO_Details[[#This Row],[Price Pefor Tax]] -> 0 | N8: =PO_Details[[#This Row],[Quantity]]*PO_Details[[#This Row],[Unit Price]] -> 0 | O8: =PO_Details[[#This Row],[Totao with Tax]]-PO_Details[[#This Row],[Total without tax]] -> 0
D9: =VLOOKUP(PO_Details[[#This Row],[Ven - Code]],Vendors_Table[],3,FALSE) ->  | L9: =PO_Details[[#This Row],[Price Pefor Tax]]*1.05 -> 0 | M9: =PO_Details[[#This Row],[Quantity]]*PO_Details[[#This Row],[Price Pefor Tax]] -> 0 | N9: =PO_Details[[#This Row],[Quantity]]*PO_Details[[#This Row],[Unit Price]] -> 0 | O9: =PO_Details[[#This Row],[Totao with Tax]]-PO_Details[[#This Row],[Total without tax]] -> 0
D10: =VLOOKUP(PO_Details[[#This Row],[Ven - Code]],Vendors_Table[],3,FALSE) ->  | L10: =PO_Details[[#This Row],[Price Pefor Tax]]*1.05 -> 0 | M10: =PO_Details[[#This Row],[Quantity]]*PO_Details[[#This Row],[Price Pefor Tax]] -> 0 | N10: =PO_Details[[#This Row],[Quantity]]*PO_Details[[#This Row],[Unit Price]] -> 0 | O10: =PO_Details[[#This Row],[Totao with Tax]]-PO_Details[[#This Row],[Total without tax]] -> 0
A11: Total | N11: =SUBTOTAL(109,PO_Details[Totao with Tax]) -> 74812.5 | O11: =SUBTOTAL(109,PO_Details[Tax Amount]) -> 3562.5 | Q11: =SUBTOTAL(103,PO_Details[Column13]) -> 0
J14: Quantity | K14: Unit Price
D16: =SUMIFS(Vendors_Table[[#Data],[Vendor Name]],Vendors_Table[[#Data],[Ven - Code]],C16) -> 0
E18: Po# | G18: =PO_Details[[#Data],[Order Number]] -> 

Sheet P.O
A1: [OMARCO] | D1: Purchase Order
H3: Date: | I3: =VLOOKUP($I$4,PO_Details[],2,FALSE) -> 2018-04-09
H4: Order Number | I4: P.O#10001
B8: Partner | D8: =VLOOKUP($I$4,PO_Details[],4,FALSE) -> Dallah Trading Co | G8: Shipp To | H8: =VLOOKUP($I$4,PO_Details[],5,FALSE) -> OMARCO main warhouse
B9: Ven - Code | D9: =VLOOKUP($I$4,PO_Details[],3,FALSE) -> 2110001 | H9: =A1 -> [OMARCO]
B14: Sl | C14: Item # | D14: Product Name | E14: Unit | F14: Tax | G14: Quantity | H14: Unit Price | I14: Total without tax
B15: 1 | C15: =IFERROR(INDEX(PO_Details[],SMALL(IF(PO_Details[Order Number]=PoNu,ROW(PO_Details[])-ROW(PO_Details[#Headers])),ROW(1:1)),MATCH($C$14,PO_Details[#Headers],0)),"") -> AC0001 | D15: =IFERROR(INDEX(PO_Details[],SMALL(IF(PO_Details[Order Number]=PoNu,ROW(PO_Details[])-ROW(PO_Details[#Headers])),ROW(1:1)),MATCH($D$14,PO_Details[#Headers],0)),"") -> AC. CONSILD 5 TON OUTDOOR | E15: =IFERROR(INDEX(PO_Details[],SMALL(IF(PO_Details[Order Number]=PoNu,ROW(PO_Details[])-ROW(PO_Details[#Headers])),ROW(1:1)),MATCH($E$14,PO_Details[#Headers],0)),"") -> Pcs | F15: =IFERROR(INDEX(PO_Details[],SMALL(IF(PO_Details[Order Number]=PoNu,ROW(PO_Details[])-ROW(PO_Details[#Headers])),ROW(1:1)),MATCH($F$14,PO_Details[#Headers],0)),"") -> 0.05 | G15: =IFERROR(INDEX(PO_Details[],SMALL(IF(PO_Details[Order Number]=PoNu,ROW(PO_Details[])-ROW(PO_Details[#Headers])),ROW(1:1)),MATCH($G$14,PO_Details[#Headers],0)),"") -> 15 | H15: =IFERROR(INDEX(PO_Details[],SMALL(IF(PO_Details[Order Number]=PoNu,ROW(PO_Details[])-ROW(PO_Details[#Headers])),ROW(1:1)),MATCH($H$14,PO_Details[#Headers],0)),"") -> 2835 | I15: =IFERROR(INDEX(PO_Details[],SMALL(IF(PO_Details[Order Number]=PoNu,ROW(PO_Details[])-ROW(PO_Details[#Headers])),ROW(1:1)),MATCH($I$14,PO_Details[#Headers],0)),"") -> 40500
B16: 2 | C16: =IFERROR(INDEX(PO_Details[],SMALL(IF(PO_Details[Order Number]=PoNu,ROW(PO_Details[])-ROW(PO_Details[#Headers])),ROW(2:2)),MATCH($C$14,PO_Details[#Headers],0)),"") -> AC0002 | D16: =IFERROR(INDEX(PO_Details[],SMALL(IF(PO_Details[Order Number]=PoNu,ROW(PO_Details[])-ROW(PO_Details[#Headers])),ROW(2:2)),MATCH($D$14,PO_Details[#Headers],0)),"") -> AC. CONSILD 5 TON INDOOR | E16: =IFERROR(INDEX(PO_Details[],SMALL(IF(PO_Details[Order Number]=PoNu,ROW(PO_Details[])-ROW(PO_Details[#Headers])),ROW(2:2)),MATCH($E$14,PO_Details[#Headers],0)),"") -> Pcs | F16: =IFERROR(INDEX(PO_Details[],SMALL(IF(PO_Details[Order Number]=PoNu,ROW(PO_Details[])-ROW(PO_Details[#Headers])),ROW(2:2)),MATCH($F$14,PO_Details[#Headers],0)),"") -> 0.05 | G16: =IFERROR(INDEX(PO_Details[],SMALL(IF(PO_Details[Order Number]=PoNu,ROW(PO_Details[])-ROW(PO_Details[#Headers])),ROW(2:2)),MATCH($G$14,PO_Details[#Headers],0)),"") -> 15 | H16: =IFERROR(INDEX(PO_Details[],SMALL(IF(PO_Details[Order Number]=PoNu,ROW(PO_Details[])-ROW(PO_Details[#Headers])),ROW(2:2)),MATCH($H$14,PO_Details[#Headers],0)),"") -> 1680 | I16: =IFERROR(INDEX(PO_Details[],SMALL(IF(PO_Details[Order Number]=PoNu,ROW(PO_Details[])-ROW(PO_Details[#Headers])),ROW(2:2)),MATCH($I$14,PO_Details[#Headers],0)),"") -> 24000
B17: 3 | C17: =IFERROR(INDEX(PO_Details[],SMALL(IF(PO_Details[Order Number]=PoNu,ROW(PO_Details[])-ROW(PO_Details[#Headers])),ROW(3:3)),MATCH($C$14,PO_Details[#Headers],0)),"") -> AC0003 | D17: =IFERROR(INDEX(PO_Details[],SMALL(IF(PO_Details[Order Number]=PoNu,ROW(PO_Details[])-ROW(PO_Details[#Headers])),ROW(3:3)),MATCH($D$14,PO_Details[#Headers],0)),"") -> AC. CONTACTOR | E17: =IFERROR(INDEX(PO_Details[],SMALL(IF(PO_Details[Order Number]=PoNu,ROW(PO_Details[])-ROW(PO_Details[#Headers])),ROW(3:3)),MATCH($E$14,PO_Details[#Headers],0)),"") -> Pcs | F17: =IFERROR(INDEX(PO_Details[],SMALL(IF(PO_Details[Order Number]=PoNu,ROW(PO_Details[])-ROW(PO_Details[#Headers])),ROW(3:3)),MATCH($F$14,PO_Details[#Headers],0)),"") -> 0.05 | G17: =IFERROR(INDEX(PO_Details[],SMALL(IF(PO_Details[Order Number]=PoNu,ROW(PO_Details[])-ROW(PO_Details[#Headers])),ROW(3:3)),MATCH($G$14,PO_Details[#Headers],0)),"") -> 15 | H17: =IFERROR(INDEX(PO_Details[],SMALL(IF(PO_Details[Order Number]=PoNu,ROW(PO_Details[])-ROW(PO_Details[#Headers])),ROW(3:3)),MATCH($H$14,PO_Details[#Headers],0)),"") -> 420 | I17: =IFERROR(INDEX(PO_Details[],SMALL(IF(PO_Details[Order Number]=PoNu,ROW(PO_Details[])-ROW(PO_Details[#Headers])),ROW(3:3)),MATCH($I$14,PO_Details[#Headers],0)),"") -> 6000
B18: 4 | C18: =IFERROR(INDEX(PO_Details[],SMALL(IF(PO_Details[Order Number]=PoNu,ROW(PO_Details[])-ROW(PO_Details[#Headers])),ROW(4:4)),MATCH($C$14,PO_Details[#Headers],0)),"") -> AC0004 | D18: =IFERROR(INDEX(PO_Details[],SMALL(IF(PO_Details[Order Number]=PoNu,ROW(PO_Details[])-ROW(PO_Details[#Headers])),ROW(4:4)),MATCH($D$14,PO_Details[#Headers],0)),"") -> AC. THERMOSTATE | E18: =IFERROR(INDEX(PO_Details[],SMALL(IF(PO_Details[Order Number]=PoNu,ROW(PO_Details[])-ROW(PO_Details[#Headers])),ROW(4:4)),MATCH($E$14,PO_Details[#Headers],0)),"") -> Pcs | F18: =IFERROR(INDEX(PO_Details[],SMALL(IF(PO_Details[Order Number]=PoNu,ROW(PO_Details[])-ROW(PO_Details[#Headers])),ROW(4:4)),MATCH($F$14,PO_Details[#Headers],0)),"") -> 0.05 | G18: =IFERROR(INDEX(PO_Details[],SMALL(IF(PO_Details[Order Number]=PoNu,ROW(PO_Details[])-ROW(PO_Details[#Headers])),ROW(4:4)),MATCH($G$14,PO_Details[#Headers],0)),"") -> 15 | H18: =IFERROR(INDEX(PO_Details[],SMALL(IF(PO_Details[Order Number]=PoNu,ROW(PO_Details[])-ROW(PO_Details[#Headers])),ROW(4:4)),MATCH($H$14,PO_Details[#Headers],0)),"") -> 52.5 | I18: =IFERROR(INDEX(PO_Details[],SMALL(IF(PO_Details[Order Number]=PoNu,ROW(PO_Details[])-ROW(PO_Details[#Headers])),ROW(4:4)),MATCH($I$14,PO_Details[#Headers],0)),"") -> 750
C19: =IFERROR(INDEX(PO_Details[],SMALL(IF(PO_Details[Order Number]=PoNu,ROW(PO_Details[])-ROW(PO_Details[#Headers])),ROW(5:5)),MATCH($C$14,PO_Details[#Headers],0)),"") -> 0 | D19: =IFERROR(INDEX(PO_Details[],SMALL(IF(PO_Details[Order Number]=PoNu,ROW(PO_Details[])-ROW(PO_Details[#Headers])),ROW(5:5)),MATCH($D$14,PO_Details[#Headers],0)),"") -> 0 | E19: =IFERROR(INDEX(PO_Details[],SMALL(IF(PO_Details[Order Number]=PoNu,ROW(PO_Details[])-ROW(PO_Details[#Headers])),ROW(5:5)),MATCH($E$14,PO_Details[#Headers],0)),"") -> 0 | F19: =IFERROR(INDEX(PO_Details[],SMALL(IF(PO_Details[Order Number]=PoNu,ROW(PO_Details[])-ROW(PO_Details[#Headers])),ROW(5:5)),MATCH($F$14,PO_Details[#Headers],0)),"") -> 0 | G19: =IFERROR(INDEX(PO_Details[],SMALL(IF(PO_Details[Order Number]=PoNu,ROW(PO_Details[])-ROW(PO_Details[#Headers])),ROW(5:5)),MATCH($G$14,PO_Details[#Headers],0)),"") -> 0 | H19: =IFERROR(INDEX(PO_Details[],SMALL(IF(PO_Details[Order Number]=PoNu,ROW(PO_Details[])-ROW(PO_Details[#Headers])),ROW(5:5)),MATCH($H$14,PO_Details[#Headers],0)),"") -> 0 | I19: =IFERROR(INDEX(PO_Details[],SMALL(IF(PO_Details[Order Number]=PoNu,ROW(PO_Details[])-ROW(PO_Details[#Headers])),ROW(5:5)),MATCH($I$14,PO_Details[#Headers],0)),"") -> 0
C20: =IFERROR(INDEX(PO_Details[],SMALL(IF(PO_Details[Order Number]=PoNu,ROW(PO_Details[])-ROW(PO_Details[#Headers])),ROW(6:6)),MATCH($C$14,PO_Details[#Headers],0)),"") -> 0 | D20: =IFERROR(INDEX(PO_Details[],SMALL(IF(PO_Details[Order Number]=PoNu,ROW(PO_Details[])-ROW(PO_Details[#Headers])),ROW(6:6)),MATCH($D$14,PO_Details[#Headers],0)),"") -> 0 | E20: =IFERROR(INDEX(PO_Details[],SMALL(IF(PO_Details[Order Number]=PoNu,ROW(PO_Details[])-ROW(PO_Details[#Headers])),ROW(6:6)),MATCH($E$14,PO_Details[#Headers],0)),"") -> 0 | F20: =IFERROR(INDEX(PO_Details[],SMALL(IF(PO_Details[Order Number]=PoNu,ROW(PO_Details[])-ROW(PO_Details[#Headers])),ROW(6:6)),MATCH($F$14,PO_Details[#Headers],0)),"") -> 0 | G20: =IFERROR(INDEX(PO_Details[],SMALL(IF(PO_Details[Order Number]=PoNu,ROW(PO_Details[])-ROW(PO_Details[#Headers])),ROW(6:6)),MATCH($G$14,PO_Details[#Headers],0)),"") -> 0 | H20: =IFERROR(INDEX(PO_Details[],SMALL(IF(PO_Details[Order Number]=PoNu,ROW(PO_Details[])-ROW(PO_Details[#Headers])),ROW(6:6)),MATCH($H$14,PO_Details[#Headers],0)),"") -> 0 | I20: =IFERROR(INDEX(PO_Details[],SMALL(IF(PO_Details[Order Number]=PoNu,ROW(PO_Details[])-ROW(PO_Details[#Headers])),ROW(6:6)),MATCH($I$14,PO_Details[#Headers],0)),"") -> 0
C21: =IFERROR(INDEX(PO_Details[],SMALL(IF(PO_Details[Order Number]=PoNu,ROW(PO_Details[])-ROW(PO_Details[#Headers])),ROW(7:7)),MATCH($C$14,PO_Details[#Headers],0)),"") -> 0 | D21: =IFERROR(INDEX(PO_Details[],SMALL(IF(PO_Details[Order Number]=PoNu,ROW(PO_Details[])-ROW(PO_Details[#Headers])),ROW(7:7)),MATCH($D$14,PO_Details[#Headers],0)),"") -> 0 | E21: =IFERROR(INDEX(PO_Details[],SMALL(IF(PO_Details[Order Number]=PoNu,ROW(PO_Details[])-ROW(PO_Details[#Headers])),ROW(7:7)),MATCH($E$14,PO_Details[#Headers],0)),"") -> 0 | F21: =IFERROR(INDEX(PO_Details[],SMALL(IF(PO_Details[Order Number]=PoNu,ROW(PO_Details[])-ROW(PO_Details[#Headers])),ROW(7:7)),MATCH($F$14,PO_Details[#Headers],0)),"") -> 0 | G21: =IFERROR(INDEX(PO_Details[],SMALL(IF(PO_Details[Order Number]=PoNu,ROW(PO_Details[])-ROW(PO_Details[#Headers])),ROW(7:7)),MATCH($G$14,PO_Details[#Headers],0)),"") -> 0 | H21: =IFERROR(INDEX(PO_Details[],SMALL(IF(PO_Details[Order Number]=PoNu,ROW(PO_Details[])-ROW(PO_Details[#Headers])),ROW(7:7)),MATCH($H$14,PO_Details[#Headers],0)),"") -> 0 | I21: =IFERROR(INDEX(PO_Details[],SMALL(IF(PO_Details[Order Number]=PoNu,ROW(PO_Details[])-ROW(PO_Details[#Headers])),ROW(7:7)),MATCH($I$14,PO_Details[#Headers],0)),"") -> 0
C22: =IFERROR(INDEX(PO_Details[],SMALL(IF(PO_Details[Order Number]=PoNu,ROW(PO_Details[])-ROW(PO_Details[#Headers])),ROW(8:8)),MATCH($C$14,PO_Details[#Headers],0)),"") -> 0 | D22: =IFERROR(INDEX(PO_Details[],SMALL(IF(PO_Details[Order Number]=PoNu,ROW(PO_Details[])-ROW(PO_Details[#Headers])),ROW(8:8)),MATCH($D$14,PO_Details[#Headers],0)),"") -> 0 | E22: =IFERROR(INDEX(PO_Details[],SMALL(IF(PO_Details[Order Number]=PoNu,ROW(PO_Details[])-ROW(PO_Details[#Headers])),ROW(8:8)),MATCH($E$14,PO_Details[#Headers],0)),"") -> 0 | F22: =IFERROR(INDEX(PO_Details[],SMALL(IF(PO_Details[Order Number]=PoNu,ROW(PO_Details[])-ROW(PO_Details[#Headers])),ROW(8:8)),MATCH($F$14,PO_Details[#Headers],0)),"") -> 0 | G22: =IFERROR(INDEX(PO_Details[],SMALL(IF(PO_Details[Order Number]=PoNu,ROW(PO_Details[])-ROW(PO_Details[#Headers])),ROW(8:8)),MATCH($G$14,PO_Details[#Headers],0)),"") -> 0 | H22: =IFERROR(INDEX(PO_Details[],SMALL(IF(PO_Details[Order Number]=PoNu,ROW(PO_Details[])-ROW(PO_Details[#Headers])),ROW(8:8)),MATCH($H$14,PO_Details[#Headers],0)),"") -> 0 | I22: =IFERROR(INDEX(PO_Details[],SMALL(IF(PO_Details[Order Number]=PoNu,ROW(PO_Details[])-ROW(PO_Details[#Headers])),ROW(8:8)),MATCH($I$14,PO_Details[#Headers],0)),"") -> 0
C23: =IFERROR(INDEX(PO_Details[],SMALL(IF(PO_Details[Order Number]=PoNu,ROW(PO_Details[])-ROW(PO_Details[#Headers])),ROW(9:9)),MATCH($C$14,PO_Details[#Headers],0)),"") ->  | D23: =IFERROR(INDEX(PO_Details[],SMALL(IF(PO_Details[Order Number]=PoNu,ROW(PO_Details[])-ROW(PO_Details[#Headers])),ROW(9:9)),MATCH($D$14,PO_Details[#Headers],0)),"") ->  | E23: =IFERROR(INDEX(PO_Details[],SMALL(IF(PO_Details[Order Number]=PoNu,ROW(PO_Details[])-ROW(PO_Details[#Headers])),ROW(9:9)),MATCH($E$14,PO_Details[#Headers],0)),"") ->  | F23: =IFERROR(INDEX(PO_Details[],SMALL(IF(PO_Details[Order Number]=PoNu,ROW(PO_Details[])-ROW(PO_Details[#Headers])),ROW(9:9)),MATCH($F$14,PO_Details[#Headers],0)),"") ->  | G23: =IFERROR(INDEX(PO_Details[],SMALL(IF(PO_Details[Order Number]=PoNu,ROW(PO_Details[])-ROW(PO_Details[#Headers])),ROW(9:9)),MATCH($G$14,PO_Details[#Headers],0)),"") ->  | H23: =IFERROR(INDEX(PO_Details[],SMALL(IF(PO_Details[Order Number]=PoNu,ROW(PO_Details[])-ROW(PO_Details[#Headers])),ROW(9:9)),MATCH($H$14,PO_Details[#Headers],0)),"") ->  | I23: =IFERROR(INDEX(PO_Details[],SMALL(IF(PO_Details[Order Number]=PoNu,ROW(PO_Details[])-ROW(PO_Details[#Headers])),ROW(9:9)),MATCH($I$14,PO_Details[#Headers],0)),"") -> 
C24: =IFERROR(INDEX(PO_Details[],SMALL(IF(PO_Details[Order Number]=PoNu,ROW(PO_Details[])-ROW(PO_Details[#Headers])),ROW(10:10)),MATCH($C$14,PO_Details[#Headers],0)),"") ->  | D24: =IFERROR(INDEX(PO_Details[],SMALL(IF(PO_Details[Order Number]=PoNu,ROW(PO_Details[])-ROW(PO_Details[#Headers])),ROW(10:10)),MATCH($D$14,PO_Details[#Headers],0)),"") ->  | E24: =IFERROR(INDEX(PO_Details[],SMALL(IF(PO_Details[Order Number]=PoNu,ROW(PO_Details[])-ROW(PO_Details[#Headers])),ROW(10:10)),MATCH($E$14,PO_Details[#Headers],0)),"") ->  | F24: =IFERROR(INDEX(PO_Details[],SMALL(IF(PO_Details[Order Number]=PoNu,ROW(PO_Details[])-ROW(PO_Details[#Headers])),ROW(10:10)),MATCH($F$14,PO_Details[#Headers],0)),"") ->  | G24: =IFERROR(INDEX(PO_Details[],SMALL(IF(PO_Details[Order Number]=PoNu,ROW(PO_Details[])-ROW(PO_Details[#Headers])),ROW(10:10)),MATCH($G$14,PO_Details[#Headers],0)),"") ->  | H24: =IFERROR(INDEX(PO_Details[],SMALL(IF(PO_Details[Order Number]=PoNu,ROW(PO_Details[])-ROW(PO_Details[#Headers])),ROW(10:10)),MATCH($H$14,PO_Details[#Headers],0)),"") ->  | I24: =IFERROR(INDEX(PO_Details[],SMALL(IF(PO_Details[Order Number]=PoNu,ROW(PO_Details[])-ROW(PO_Details[#Headers])),ROW(10:10)),MATCH($I$14,PO_Details[#Headers],0)),"") -> 
C25: =IFERROR(INDEX(PO_Details[],SMALL(IF(PO_Details[Order Number]=PoNu,ROW(PO_Details[])-ROW(PO_Details[#Headers])),ROW(11:11)),MATCH($C$14,PO_Details[#Headers],0)),"") ->  | D25: =IFERROR(INDEX(PO_Details[],SMALL(IF(PO_Details[Order Number]=PoNu,ROW(PO_Details[])-ROW(PO_Details[#Headers])),ROW(11:11)),MATCH($D$14,PO_Details[#Headers],0)),"") ->  | E25: =IFERROR(INDEX(PO_Details[],SMALL(IF(PO_Details[Order Number]=PoNu,ROW(PO_Details[])-ROW(PO_Details[#Headers])),ROW(11:11)),MATCH($E$14,PO_Details[#Headers],0)),"") ->  | F25: =IFERROR(INDEX(PO_Details[],SMALL(IF(PO_Details[Order Number]=PoNu,ROW(PO_Details[])-ROW(PO_Details[#Headers])),ROW(11:11)),MATCH($F$14,PO_Details[#Headers],0)),"") ->  | G25: =IFERROR(INDEX(PO_Details[],SMALL(IF(PO_Details[Order Number]=PoNu,ROW(PO_Details[])-ROW(PO_Details[#Headers])),ROW(11:11)),MATCH($G$14,PO_Details[#Headers],0)),"") ->  | H25: =IFERROR(INDEX(PO_Details[],SMALL(IF(PO_Details[Order Number]=PoNu,ROW(PO_Details[])-ROW(PO_Details[#Headers])),ROW(11:11)),MATCH($H$14,PO_Details[#Headers],0)),"") ->  | I25: =IFERROR(INDEX(PO_Details[],SMALL(IF(PO_Details[Order Number]=PoNu,ROW(PO_Details[])-ROW(PO_Details[#Headers])),ROW(11:11)),MATCH($I$14,PO_Details[#Headers],0)),"") -> 
C26: =IFERROR(INDEX(PO_Details[],SMALL(IF(PO_Details[Order Number]=PoNu,ROW(PO_Details[])-ROW(PO_Details[#Headers])),ROW(12:12)),MATCH($C$14,PO_Details[#Headers],0)),"") ->  | D26: =IFERROR(INDEX(PO_Details[],SMALL(IF(PO_Details[Order Number]=PoNu,ROW(PO_Details[])-ROW(PO_Details[#Headers])),ROW(12:12)),MATCH($D$14,PO_Details[#Headers],0)),"") ->  | E26: =IFERROR(INDEX(PO_Details[],SMALL(IF(PO_Details[Order Number]=PoNu,ROW(PO_Details[])-ROW(PO_Details[#Headers])),ROW(12:12)),MATCH($E$14,PO_Details[#Headers],0)),"") ->  | F26: =IFERROR(INDEX(PO_Details[],SMALL(IF(PO_Details[Order Number]=PoNu,ROW(PO_Details[])-ROW(PO_Details[#Headers])),ROW(12:12)),MATCH($F$14,PO_Details[#Headers],0)),"") ->  | G26: =IFERROR(INDEX(PO_Details[],SMALL(IF(PO_Details[Order Number]=PoNu,ROW(PO_Details[])-ROW(PO_Details[#Headers])),ROW(12:12)),MATCH($G$14,PO_Details[#Headers],0)),"") ->  | H26: =IFERROR(INDEX(PO_Details[],SMALL(IF(PO_Details[Order Number]=PoNu,ROW(PO_Details[])-ROW(PO_Details[#Headers])),ROW(12:12)),MATCH($H$14,PO_Details[#Headers],0)),"") ->  | I26: =IFERROR(INDEX(PO_Details[],SMALL(IF(PO_Details[Order Number]=PoNu,ROW(PO_Details[])-ROW(PO_Details[#Headers])),ROW(12:12)),MATCH($I$14,PO_Details[#Headers],0)),"") -> 
C27: =IFERROR(INDEX(PO_Details[],SMALL(IF(PO_Details[Order Number]=PoNu,ROW(PO_Details[])-ROW(PO_Details[#Headers])),ROW(13:13)),MATCH($C$14,PO_Details[#Headers],0)),"") ->  | D27: =IFERROR(INDEX(PO_Details[],SMALL(IF(PO_Details[Order Number]=PoNu,ROW(PO_Details[])-ROW(PO_Details[#Headers])),ROW(13:13)),MATCH($D$14,PO_Details[#Headers],0)),"") ->  | E27: =IFERROR(INDEX(PO_Details[],SMALL(IF(PO_Details[Order Number]=PoNu,ROW(PO_Details[])-ROW(PO_Details[#Headers])),ROW(13:13)),MATCH($E$14,PO_Details[#Headers],0)),"") ->  | F27: =IFERROR(INDEX(PO_Details[],SMALL(IF(PO_Details[Order Number]=PoNu,ROW(PO_Details[])-ROW(PO_Details[#Headers])),ROW(13:13)),MATCH($F$14,PO_Details[#Headers],0)),"") ->  | G27: =IFERROR(INDEX(PO_Details[],SMALL(IF(PO_Details[Order Number]=PoNu,ROW(PO_Details[])-ROW(PO_Details[#Headers])),ROW(13:13)),MATCH($G$14,PO_Details[#Headers],0)),"") ->  | H27: =IFERROR(INDEX(PO_Details[],SMALL(IF(PO_Details[Order Number]=PoNu,ROW(PO_Details[])-ROW(PO_Details[#Headers])),ROW(13:13)),MATCH($H$14,PO_Details[#Headers],0)),"") ->  | I27: =IFERROR(INDEX(PO_Details[],SMALL(IF(PO_Details[Order Number]=PoNu,ROW(PO_Details[])-ROW(PO_Details[#Headers])),ROW(13:13)),MATCH($I$14,PO_Details[#Headers],0)),"") -> 
C28: =IFERROR(INDEX(PO_Details[],SMALL(IF(PO_Details[Order Number]=PoNu,ROW(PO_Details[])-ROW(PO_Details[#Headers])),ROW(14:14)),MATCH($C$14,PO_Details[#Headers],0)),"") ->  | D28: =IFERROR(INDEX(PO_Details[],SMALL(IF(PO_Details[Order Number]=PoNu,ROW(PO_Details[])-ROW(PO_Details[#Headers])),ROW(14:14)),MATCH($D$14,PO_Details[#Headers],0)),"") ->  | E28: =IFERROR(INDEX(PO_Details[],SMALL(IF(PO_Details[Order Number]=PoNu,ROW(PO_Details[])-ROW(PO_Details[#Headers])),ROW(14:14)),MATCH($E$14,PO_Details[#Headers],0)),"") ->  | F28: =IFERROR(INDEX(PO_Details[],SMALL(IF(PO_Details[Order Number]=PoNu,ROW(PO_Details[])-ROW(PO_Details[#Headers])),ROW(14:14)),MATCH($F$14,PO_Details[#Headers],0)),"") ->  | G28: =IFERROR(INDEX(PO_Details[],SMALL(IF(PO_Details[Order Number]=PoNu,ROW(PO_Details[])-ROW(PO_Details[#Headers])),ROW(14:14)),MATCH($G$14,PO_Details[#Headers],0)),"") ->  | H28: =IFERROR(INDEX(PO_Details[],SMALL(IF(PO_Details[Order Number]=PoNu,ROW(PO_Details[])-ROW(PO_Details[#Headers])),ROW(14:14)),MATCH($H$14,PO_Details[#Headers],0)),"") ->  | I28: =IFERROR(INDEX(PO_Details[],SMALL(IF(PO_Details[Order Number]=PoNu,ROW(PO_Details[])-ROW(PO_Details[#Headers])),ROW(14:14)),MATCH($I$14,PO_Details[#Headers],0)),"") -> 
H29: Subtotal | I29: =SUBTOTAL(109,Table4[Total without tax]) -> 71250
H30: Sales Tax | I30: =(SUBTOTAL(109,Table4[Total without tax])*0.05) -> 3562.5
H31: Total | I31: =I29+I30 -> 74812.5
C32: =IF(SUM(H31)>0,SUM((H31*H32)+H31),"") -> 
G34: Authorized by | I34: Date
C38: [Street Address], [City, ST ZIP Code] [Phone] [Fax] [E-mail]

Sheet Customers
A3: Cus-Code | B3: Main Account | C3: Cust - Name | D3: Contact | E3: Address | F3: Balance | G3: Age 01:30 | H3: Age 30:60 | I3: Age 60:90 | J3: Confirmed
A4: 122010001 | B4: 12201 | C4: Al-Dawaa Medical Service | D4: Dr.Ahmed | E4: Khobar
A13: CusDetails | B13: =Customers_Table[Cus-Code] -> 

Sheet S.O
A2: Order Number | B2: Order Date | C2: Cust - Code | D2: Partner | E2: Project Code | F2: Pro - Name | G2: Item # | H2: Product Name | I2: Unit | J2: Quantity | K2: Price | L2: Tax | M2: Unit Price | N2: Tax Amount | O2: Total without tax | P2: Totao with Tax
A3: S.O #10001 | B3: 2018-04-09 | C3: 122010001 | D3: =IFERROR(VLOOKUP(S.O[[#This Row],[Cust - Code]],Customers_Table[],3,FALSE),"") -> Al-Dawaa Medical Service | E3: PHD | F3: PH-124 | G3: AC0001 | H3: AC. CONSILD 5 TON OUTDOOR | I3: PCS | J3: 10 | K3: 2700 | L3: 0.05 | M3: =S.O[[#This Row],[Price]]*1.05 -> 2835 | N3: =S.O[[#This Row],[Price]]*S.O[[#This Row],[Tax]] -> 135 | O3: =S.O[[#This Row],[Quantity]]*(S.O[[#This Row],[Price]]+S.O[[#This Row],[Tax Amount]]) -> 28350 | P3: =S.O[[#This Row],[Tax Amount]]*S.O[[#This Row],[Quantity]] -> 1350
A4: S.O #10001 | B4: 2018-04-10 | C4: 122010001 | D4: =IFERROR(VLOOKUP(S.O[[#This Row],[Cust - Code]],Customers_Table[],3,FALSE),"") -> Al-Dawaa Medical Service | E4: PHD | F4: PH-124 | G4: AC0002 | H4: AC. CONSILD 5 TON INDOOR | I4: PCS | J4: 10 | K4: 1600 | L4: 0.05 | M4: =S.O[[#This Row],[Price]]*1.05 -> 1680 | N4: =S.O[[#This Row],[Price]]*S.O[[#This Row],[Tax]] -> 80 | O4: =S.O[[#This Row],[Quantity]]*(S.O[[#This Row],[Price]]+S.O[[#This Row],[Tax Amount]]) -> 16800 | P4: =S.O[[#This Row],[Tax Amount]]*S.O[[#This Row],[Quantity]] -> 800
A5: S.O #10001 | B5: 2018-04-11 | C5: 122010001 | D5: =IFERROR(VLOOKUP(S.O[[#This Row],[Cust - Code]],Customers_Table[],3,FALSE),"") -> Al-Dawaa Medical Service | E5: PHD | F5: PH-124 | G5: AC0003 | H5: AC. CONTACTOR | I5: PCS | J5: 10 | K5: 400 | L5: 0.05 | M5: =S.O[[#This Row],[Price]]*1.05 -> 420 | N5: =S.O[[#This Row],[Price]]*S.O[[#This Row],[Tax]] -> 20 | O5: =S.O[[#This Row],[Quantity]]*(S.O[[#This Row],[Price]]+S.O[[#This Row],[Tax Amount]]) -> 4200 | P5: =S.O[[#This Row],[Tax Amount]]*S.O[[#This Row],[Quantity]] -> 200
A6: S.O #10001 | B6: 2018-04-12 | C6: 122010001 | D6: =IFERROR(VLOOKUP(S.O[[#This Row],[Cust - Code]],Customers_Table[],3,FALSE),"") -> Al-Dawaa Medical Service | E6: PHD | F6: PH-124 | G6: AC0004 | H6: AC. THERMOSTATE | I6: PCS | J6: 10 | K6: 50 | L6: 0.05 | M6: =S.O[[#This Row],[Price]]*1.05 -> 52.5 | N6: =S.O[[#This Row],[Price]]*S.O[[#This Row],[Tax]] -> 2.5 | O6: =S.O[[#This Row],[Quantity]]*(S.O[[#This Row],[Price]]+S.O[[#This Row],[Tax Amount]]) -> 525 | P6: =S.O[[#This Row],[Tax Amount]]*S.O[[#This Row],[Quantity]] -> 25
D7: =IFERROR(VLOOKUP(S.O[[#This Row],[Cust - Code]],Customers_Table[],3,FALSE),"") ->  | M7: =S.O[[#This Row],[Price]]*1.05 -> 0 | N7: =S.O[[#This Row],[Price]]*S.O[[#This Row],[Tax]] -> 0 | O7: =S.O[[#This Row],[Quantity]]*(S.O[[#This Row],[Price]]+S.O[[#This Row],[Tax Amount]]) -> 0 | P7: =S.O[[#This Row],[Tax Amount]]*S.O[[#This Row],[Quantity]] -> 0
A8: Total | O8: =SUBTOTAL(109,S.O[Total without tax]) -> 49875 | P8: =SUBTOTAL(109,S.O[Totao with Tax]) -> 2375
B10: S.O.# | C10: =S.O[Order Number] -> 
J12: Quantity | K12: Unit Price

Sheet Invoice
E1: INVOICE
A2: [Street Address]
A3: [City, ST ZIP]
A4: Phone: (000) 000-0000 | D4: INVOICE # | F4: DATE
D5: S.O #10001 | F5: 2018-02-21
A7: BILL TO | D7: Partner | F7: TERMS
A8: [Name] | D8: 564 | F8: Due Upon Receipt
A9: [Company Name]
A10: [Street Address]
A11: [City, ST ZIP]
A12: [Phone]
A13: [Email Address]
A15: SL | B15: Item # | C15: Product Name | D15: Quantity | E15: Unit Price | F15: AMOUNT
A16: 1 | B16: =IFERROR(INDEX(S.O[],SMALL(IF(S.O[Order Number]=S.Order,ROW(S.O[])-ROW(S.O[#Headers])),ROW(1:1)),MATCH($B$15,S.O[#Headers],0)),"") -> AC0001 | C16: =IFERROR(INDEX(S.O[],SMALL(IF(S.O[Order Number]=S.Order,ROW(S.O[])-ROW(S.O[#Headers])),ROW(1:1)),MATCH($C$15,S.O[#Headers],0)),"") -> AC. CONSILD 5 TON OUTDOOR | D16: =IFERROR(INDEX(S.O[],SMALL(IF(S.O[Order Number]=S.Order,ROW(S.O[])-ROW(S.O[#Headers])),ROW(1:1)),MATCH($D$15,S.O[#Headers],0)),"") -> 10 | E16: =IFERROR(INDEX(S.O[],SMALL(IF(S.O[Order Number]=S.Order,ROW(S.O[])-ROW(S.O[#Headers])),ROW(1:1)),MATCH($E$15,S.O[#Headers],0)),"") -> 2835 | F16: =IFERROR(IF(D16="",ROUND(1*E16,2),ROUND(D16*E16,2)),"") -> 28350
A17: 2 | B17: =IFERROR(INDEX(S.O[],SMALL(IF(S.O[Order Number]=S.Order,ROW(S.O[])-ROW(S.O[#Headers])),ROW(2:2)),MATCH($B$15,S.O[#Headers],0)),"") -> AC0002 | C17: =IFERROR(INDEX(S.O[],SMALL(IF(S.O[Order Number]=S.Order,ROW(S.O[])-ROW(S.O[#Headers])),ROW(2:2)),MATCH($C$15,S.O[#Headers],0)),"") -> AC. CONSILD 5 TON INDOOR | D17: =IFERROR(INDEX(S.O[],SMALL(IF(S.O[Order Number]=S.Order,ROW(S.O[])-ROW(S.O[#Headers])),ROW(2:2)),MATCH($D$15,S.O[#Headers],0)),"") -> 10 | E17: =IFERROR(INDEX(S.O[],SMALL(IF(S.O[Order Number]=S.Order,ROW(S.O[])-ROW(S.O[#Headers])),ROW(2:2)),MATCH($E$15,S.O[#Headers],0)),"") -> 1680 | F17: 16800
A18: 3 | B18: =IFERROR(INDEX(S.O[],SMALL(IF(S.O[Order Number]=S.Order,ROW(S.O[])-ROW(S.O[#Headers])),ROW(3:3)),MATCH($B$15,S.O[#Headers],0)),"") -> AC0003 | C18: =IFERROR(INDEX(S.O[],SMALL(IF(S.O[Order Number]=S.Order,ROW(S.O[])-ROW(S.O[#Headers])),ROW(3:3)),MATCH($C$15,S.O[#Headers],0)),"") -> AC. CONTACTOR | D18: =IFERROR(INDEX(S.O[],SMALL(IF(S.O[Order Number]=S.Order,ROW(S.O[])-ROW(S.O[#Headers])),ROW(3:3)),MATCH($D$15,S.O[#Headers],0)),"") -> 10 | E18: =IFERROR(INDEX(S.O[],SMALL(IF(S.O[Order Number]=S.Order,ROW(S.O[])-ROW(S.O[#Headers])),ROW(3:3)),MATCH($E$15,S.O[#Headers],0)),"") -> 420 | F18: 4200
A19: 4 | B19: =IFERROR(INDEX(S.O[],SMALL(IF(S.O[Order Number]=S.Order,ROW(S.O[])-ROW(S.O[#Headers])),ROW(4:4)),MATCH($B$15,S.O[#Headers],0)),"") -> AC0004 | C19: =IFERROR(INDEX(S.O[],SMALL(IF(S.O[Order Number]=S.Order,ROW(S.O[])-ROW(S.O[#Headers])),ROW(4:4)),MATCH($C$15,S.O[#Headers],0)),"") -> AC. THERMOSTATE | D19: =IFERROR(INDEX(S.O[],SMALL(IF(S.O[Order Number]=S.Order,ROW(S.O[])-ROW(S.O[#Headers])),ROW(4:4)),MATCH($D$15,S.O[#Headers],0)),"") -> 10 | E19: =IFERROR(INDEX(S.O[],SMALL(IF(S.O[Order Number]=S.Order,ROW(S.O[])-ROW(S.O[#Headers])),ROW(4:4)),MATCH($E$15,S.O[#Headers],0)),"") -> 52.5 | F19: 525
B20: =IFERROR(INDEX(S.O[],SMALL(IF(S.O[Order Number]=S.Order,ROW(S.O[])-ROW(S.O[#Headers])),ROW(5:5)),MATCH($B$15,S.O[#Headers],0)),"") -> 0 | C20: =IFERROR(INDEX(S.O[],SMALL(IF(S.O[Order Number]=S.Order,ROW(S.O[])-ROW(S.O[#Headers])),ROW(5:5)),MATCH($C$15,S.O[#Headers],0)),"") -> 0 | D20: =IFERROR(INDEX(S.O[],SMALL(IF(S.O[Order Number]=S.Order,ROW(S.O[])-ROW(S.O[#Headers])),ROW(5:5)),MATCH($D$15,S.O[#Headers],0)),"") -> 0 | E20: =IFERROR(INDEX(S.O[],SMALL(IF(S.O[Order Number]=S.Order,ROW(S.O[])-ROW(S.O[#Headers])),ROW(5:5)),MATCH($E$15,S.O[#Headers],0)),"") -> 0 | F20: 0
B21: =IFERROR(INDEX(S.O[],SMALL(IF(S.O[Order Number]=S.Order,ROW(S.O[])-ROW(S.O[#Headers])),ROW(6:6)),MATCH($B$15,S.O[#Headers],0)),"") ->  | C21: =IFERROR(INDEX(S.O[],SMALL(IF(S.O[Order Number]=S.Order,ROW(S.O[])-ROW(S.O[#Headers])),ROW(6:6)),MATCH($C$15,S.O[#Headers],0)),"") ->  | D21: =IFERROR(INDEX(S.O[],SMALL(IF(S.O[Order Number]=S.Order,ROW(S.O[])-ROW(S.O[#Headers])),ROW(6:6)),MATCH($D$15,S.O[#Headers],0)),"") ->  | E21: =IFERROR(INDEX(S.O[],SMALL(IF(S.O[Order Number]=S.Order,ROW(S.O[])-ROW(S.O[#Headers])),ROW(6:6)),MATCH($E$15,S.O[#Headers],0)),"") -> 
B22: =IFERROR(INDEX(S.O[],SMALL(IF(S.O[Order Number]=S.Order,ROW(S.O[])-ROW(S.O[#Headers])),ROW(7:7)),MATCH($B$15,S.O[#Headers],0)),"") ->  | C22: =IFERROR(INDEX(S.O[],SMALL(IF(S.O[Order Number]=S.Order,ROW(S.O[])-ROW(S.O[#Headers])),ROW(7:7)),MATCH($C$15,S.O[#Headers],0)),"") ->  | D22: =IFERROR(INDEX(S.O[],SMALL(IF(S.O[Order Number]=S.Order,ROW(S.O[])-ROW(S.O[#Headers])),ROW(7:7)),MATCH($D$15,S.O[#Headers],0)),"") ->  | E22: =IFERROR(INDEX(S.O[],SMALL(IF(S.O[Order Number]=S.Order,ROW(S.O[])-ROW(S.O[#Headers])),ROW(7:7)),MATCH($E$15,S.O[#Headers],0)),"") -> 
B23: =IFERROR(INDEX(S.O[],SMALL(IF(S.O[Order Number]=S.Order,ROW(S.O[])-ROW(S.O[#Headers])),ROW(8:8)),MATCH($B$15,S.O[#Headers],0)),"") ->  | C23: =IFERROR(INDEX(S.O[],SMALL(IF(S.O[Order Number]=S.Order,ROW(S.O[])-ROW(S.O[#Headers])),ROW(8:8)),MATCH($C$15,S.O[#Headers],0)),"") ->  | D23: =IFERROR(INDEX(S.O[],SMALL(IF(S.O[Order Number]=S.Order,ROW(S.O[])-ROW(S.O[#Headers])),ROW(8:8)),MATCH($D$15,S.O[#Headers],0)),"") ->  | E23: =IFERROR(INDEX(S.O[],SMALL(IF(S.O[Order Number]=S.Order,ROW(S.O[])-ROW(S.O[#Headers])),ROW(8:8)),MATCH($E$15,S.O[#Headers],0)),"") -> 
B24: =IFERROR(INDEX(S.O[],SMALL(IF(S.O[Order Number]=S.Order,ROW(S.O[])-ROW(S.O[#Headers])),ROW(9:9)),MATCH($B$15,S.O[#Headers],0)),"") ->  | C24: =IFERROR(INDEX(S.O[],SMALL(IF(S.O[Order Number]=S.Order,ROW(S.O[])-ROW(S.O[#Headers])),ROW(9:9)),MATCH($C$15,S.O[#Headers],0)),"") ->  | D24: =IFERROR(INDEX(S.O[],SMALL(IF(S.O[Order Number]=S.Order,ROW(S.O[])-ROW(S.O[#Headers])),ROW(9:9)),MATCH($D$15,S.O[#Headers],0)),"") ->  | E24: =IFERROR(INDEX(S.O[],SMALL(IF(S.O[Order Number]=S.Order,ROW(S.O[])-ROW(S.O[#Headers])),ROW(9:9)),MATCH($E$15,S.O[#Headers],0)),"") -> 
B25: =IFERROR(INDEX(S.O[],SMALL(IF(S.O[Order Number]=S.Order,ROW(S.O[])-ROW(S.O[#Headers])),ROW(10:10)),MATCH($B$15,S.O[#Headers],0)),"") ->  | C25: =IFERROR(INDEX(S.O[],SMALL(IF(S.O[Order Number]=S.Order,ROW(S.O[])-ROW(S.O[#Headers])),ROW(10:10)),MATCH($C$15,S.O[#Headers],0)),"") ->  | D25: =IFERROR(INDEX(S.O[],SMALL(IF(S.O[Order Number]=S.Order,ROW(S.O[])-ROW(S.O[#Headers])),ROW(10:10)),MATCH($D$15,S.O[#Headers],0)),"") ->  | E25: =IFERROR(INDEX(S.O[],SMALL(IF(S.O[Order Number]=S.Order,ROW(S.O[])-ROW(S.O[#Headers])),ROW(10:10)),MATCH($E$15,S.O[#Headers],0)),"") -> 
B26: =IFERROR(INDEX(S.O[],SMALL(IF(S.O[Order Number]=S.Order,ROW(S.O[])-ROW(S.O[#Headers])),ROW(11:11)),MATCH($B$15,S.O[#Headers],0)),"") ->  | C26: =IFERROR(INDEX(S.O[],SMALL(IF(S.O[Order Number]=S.Order,ROW(S.O[])-ROW(S.O[#Headers])),ROW(11:11)),MATCH($C$15,S.O[#Headers],0)),"") ->  | D26: =IFERROR(INDEX(S.O[],SMALL(IF(S.O[Order Number]=S.Order,ROW(S.O[])-ROW(S.O[#Headers])),ROW(11:11)),MATCH($D$15,S.O[#Headers],0)),"") ->  | E26: =IFERROR(INDEX(S.O[],SMALL(IF(S.O[Order Number]=S.Order,ROW(S.O[])-ROW(S.O[#Headers])),ROW(11:11)),MATCH($E$15,S.O[#Headers],0)),"") -> 
B27: =IFERROR(INDEX(S.O[],SMALL(IF(S.O[Order Number]=S.Order,ROW(S.O[])-ROW(S.O[#Headers])),ROW(12:12)),MATCH($B$15,S.O[#Headers],0)),"") ->  | C27: =IFERROR(INDEX(S.O[],SMALL(IF(S.O[Order Number]=S.Order,ROW(S.O[])-ROW(S.O[#Headers])),ROW(12:12)),MATCH($C$15,S.O[#Headers],0)),"") ->  | D27: =IFERROR(INDEX(S.O[],SMALL(IF(S.O[Order Number]=S.Order,ROW(S.O[])-ROW(S.O[#Headers])),ROW(12:12)),MATCH($D$15,S.O[#Headers],0)),"") ->  | E27: =IFERROR(INDEX(S.O[],SMALL(IF(S.O[Order Number]=S.Order,ROW(S.O[])-ROW(S.O[#Headers])),ROW(12:12)),MATCH($E$15,S.O[#Headers],0)),"") -> 
B28: =IFERROR(INDEX(S.O[],SMALL(IF(S.O[Order Number]=S.Order,ROW(S.O[])-ROW(S.O[#Headers])),ROW(13:13)),MATCH($B$15,S.O[#Headers],0)),"") ->  | C28: =IFERROR(INDEX(S.O[],SMALL(IF(S.O[Order Number]=S.Order,ROW(S.O[])-ROW(S.O[#Headers])),ROW(13:13)),MATCH($C$15,S.O[#Headers],0)),"") ->  | D28: =IFERROR(INDEX(S.O[],SMALL(IF(S.O[Order Number]=S.Order,ROW(S.O[])-ROW(S.O[#Headers])),ROW(13:13)),MATCH($D$15,S.O[#Headers],0)),"") ->  | E28: =IFERROR(INDEX(S.O[],SMALL(IF(S.O[Order Number]=S.Order,ROW(S.O[])-ROW(S.O[#Headers])),ROW(13:13)),MATCH($E$15,S.O[#Headers],0)),"") -> 
B29: =IFERROR(INDEX(S.O[],SMALL(IF(S.O[Order Number]=S.Order,ROW(S.O[])-ROW(S.O[#Headers])),ROW(14:14)),MATCH($B$15,S.O[#Headers],0)),"") ->  | C29: =IFERROR(INDEX(S.O[],SMALL(IF(S.O[Order Number]=S.Order,ROW(S.O[])-ROW(S.O[#Headers])),ROW(14:14)),MATCH($C$15,S.O[#Headers],0)),"") ->  | D29: =IFERROR(INDEX(S.O[],SMALL(IF(S.O[Order Number]=S.Order,ROW(S.O[])-ROW(S.O[#Headers])),ROW(14:14)),MATCH($D$15,S.O[#Headers],0)),"") ->  | E29: =IFERROR(INDEX(S.O[],SMALL(IF(S.O[Order Number]=S.Order,ROW(S.O[])-ROW(S.O[#Headers])),ROW(14:14)),MATCH($E$15,S.O[#Headers],0)),"") -> 
B30: =IFERROR(INDEX(S.O[],SMALL(IF(S.O[Order Number]=S.Order,ROW(S.O[])-ROW(S.O[#Headers])),ROW(15:15)),MATCH($B$15,S.O[#Headers],0)),"") ->  | C30: =IFERROR(INDEX(S.O[],SMALL(IF(S.O[Order Number]=S.Order,ROW(S.O[])-ROW(S.O[#Headers])),ROW(15:15)),MATCH($C$15,S.O[#Headers],0)),"") ->  | D30: =IFERROR(INDEX(S.O[],SMALL(IF(S.O[Order Number]=S.Order,ROW(S.O[])-ROW(S.O[#Headers])),ROW(15:15)),MATCH($D$15,S.O[#Headers],0)),"") ->  | E30: =IFERROR(INDEX(S.O[],SMALL(IF(S.O[Order Number]=S.Order,ROW(S.O[])-ROW(S.O[#Headers])),ROW(15:15)),MATCH($E$15,S.O[#Headers],0)),"") -> 
A31: Thank you for your business! | D31: SUBTOTAL | F31: =SUM(F16:F30) -> 49875
D32: TAX RATE | F32: 0.05
D33: TAX | F33: =F31*F32 -> 2493.75
D34: TOTAL | F34: =F31+F33 -> 52368.75

Sheet Products
A1: INVENTORY AND SALES MANAGER | F1: Orders and Inventory
A3: INSTRUCTIONS
A4: 1. Enter Products below
A5: 2. Enter Order details in the Orders and Inventory worksheet
A6: 3. View the report in the Report worksheet.
A8: ENTER PRODUCTS
A9: Product Name | B9: Product Description | C9: Product Category | D9: Re-Order Point
A10: AC. CONSILD 5 TON OUTDOOR | B10: AIR CONDITION 5 TON OUT DOOR UNIT | C10: AC | D10: 5
A11: AC. CONSILD 5 TON INDOOR | B11: AIR CONDITION 5 TON IN DOOR UNIT | C11: AC | D11: 5
A12: AC. CONTACTOR | B12: CONTACTOR FOR AIR CONDITON | C12: AC | D12: 5
A13: AC. THERMOSTATE | B13: THERMOSTATE FOR AIR CONDITON | C13: AC | D13: 5
G21: DATA VALIDATION
G22: =IFERROR(IF(SUM(1/COUNTIF(Tbl_Product[Product Name],Tbl_Product[Product Name]))<COUNTA(Tbl_Product[Product Name]),"Duplicate Product Names","No Errors"),"Check Product Names in Product Table") -> Check Product Names in Product Table
A2010: End of 2000 Products

Sheet Orders_and_Inventory
A1: INVENTORY MANAGER - ORDERS AND INVENTORY | J1: Products
B3: CURRENT INVENTORY LEVEL | F3: CHOOSE PRODUCT
F4: AC. CONSILD 5 TON OUTDOOR
H5: =COUNTIF(C$14:$C14,C14)&":"&COUNTIF(C$14:$C14,C14) -> 1:1 | L5: 30
B6: PRODUCTS AVAILABLE | C6: QUANTITY | D6: PRODUCTS TO RE-ORDER | E6: CURRENT INVENTORY | F6: =IFERROR(INDEX(xxx,MATCH(F4,INDEX(xxx,,1),0),2),"") ->  | H6: =ROW(H5) -> 5
B7: ORDER ITEMS THAT CANNOT BE FULFILLED* | E7: RE-ORDER POINT | F7: =IFERROR(INDEX(xxx,MATCH(F4,INDEX(xxx,,1),0),4),"") -> 
B8: =COUNTIFS(Tbl_Orders[Inventory Availability],"<0",Tbl_Orders[Expected Date],"<="&TODAY(),Tbl_Orders[Order Type],"Sale") -> 0 | C8: =COUNTIFS(Tbl_Orders[Inventory Availability],"<0",Tbl_Orders[Expected Date],">"&TODAY(),Tbl_Orders[Order Type],"Sale") -> 0 | E8: PENDING PURCHASE QUANTITY | F8: =IFERROR(INDEX(xxx,MATCH(F4,INDEX(xxx,,1),0),3),"") -> 
E9: PENDING SALES QUANTITY | F9: =IFERROR(SUMIFS(Tbl_Orders[Quantity],Tbl_Orders[Expected Date],">"&TODAY(),Tbl_Orders[Product Name],F4,Tbl_Orders[Order Type],"SALE"),"") -> 0
B10: CURRENT | C10: FUTURE
B11: *where Sale quantity is higher than Inventory available - highlighted with red border in the table below
A12: ENTER YOUR ORDER DETAILS | I12: these columns are automatically calculated
A13: Order Number | B13: Order Date | C13: Order Type | D13: Expected Date | E13: Partner | F13: Product Name | G13: Quantity | H13: Unit Price | I13: Amount | J13: Product Category | K13: YearMonth | L13: Inventory Availability
A14: =IFERROR(IF(Tbl_Orders[[#This Row],[Order Type]]="Purchase",IF(Tbl_Orders[[#This Row],[Order Type]]="Purchase",INDEX(PO_Details[],SMALL(IF(PO_Details[Order Number]=PoNu,ROW(PO_Details[])-ROW(PO_Details[#Headers])),COUNTIF($C$14:$C14,$C14)),MATCH(A$13,PO_Details[#Headers],0)),""),IF(Tbl_Orders[[#This Row],[Order Type]]="Sale",INDEX(S.O[],SMALL(IF(S.O[Order Number]=S.Order,ROW(S.O[])-ROW(S.O[#Headers])),COUNTIF($C$14:$C14,$C14)),MATCH(A$13,S.O[#Headers],0)),"")),"") -> S.O #10001 | B14: =IFERROR(IF(Tbl_Orders[[#This Row],[Order Type]]="Purchase",IF(Tbl_Orders[[#This Row],[Order Type]]="Purchase",INDEX(PO_Details[],SMALL(IF(PO_Details[Order Number]=PoNu,ROW(PO_Details[])-ROW(PO_Details[#Headers])),COUNTIF($C$14:$C14,$C14)),MATCH(B$13,PO_Details[#Headers],0)),""),IF(Tbl_Orders[[#This Row],[Order Type]]="Sale",INDEX(S.O[],SMALL(IF(S.O[Order Number]=S.Order,ROW(S.O[])-ROW(S.O[#Headers])),COUNTIF($C$14:$C14,$C14)),MATCH(B$13,S.O[#Headers],0)),"")),"") -> 2018-04-09 | C14: Sale | D14: 12-31-18 | E14: =IFERROR(IF(Tbl_Orders[[#This Row],[Order Type]]="Purchase",IF(Tbl_Orders[[#This Row],[Order Type]]="Purchase",INDEX(PO_Details[],SMALL(IF(PO_Details[Order Number]=PoNu,ROW(PO_Details[])-ROW(PO_Details[#Headers])),COUNTIF($C$14:$C14,$C14)),MATCH(E$13,PO_Details[#Headers],0)),""),IF(Tbl_Orders[[#This Row],[Order Type]]="Sale",INDEX(S.O[],SMALL(IF(S.O[Order Number]=S.Order,ROW(S.O[])-ROW(S.O[#Headers])),COUNTIF($C$14:$C14,$C14)),MATCH(E$13,S.O[#Headers],0)),"")),"") -> Al-Dawaa Medical Service | F14: =IFERROR(IF(Tbl_Orders[[#This Row],[Order Type]]="Purchase",IF(Tbl_Orders[[#This Row],[Order Type]]="Purchase",INDEX(PO_Details[],SMALL(IF(PO_Details[Order Number]=PoNu,ROW(PO_Details[])-ROW(PO_Details[#Headers])),COUNTIF($C$14:$C14,$C14)),MATCH(F$13,PO_Details[#Headers],0)),""),IF(Tbl_Orders[[#This Row],[Order Type]]="Sale",INDEX(S.O[],SMALL(IF(S.O[Order Number]=S.Order,ROW(S.O[])-ROW(S.O[#Headers])),COUNTIF($C$14:$C14,$C14)),MATCH(F$13,S.O[#Headers],0)),"")),"") -> AC. CONSILD 5 TON OUTDOOR | G14: =IFERROR(IF(Tbl_Orders[[#This Row],[Order Type]]="Purchase",IF(Tbl_Orders[[#This Row],[Order Type]]="Purchase",INDEX(PO_Details[],SMALL(IF(PO_Details[Order Number]=PoNu,ROW(PO_Details[])-ROW(PO_Details[#Headers])),COUNTIF($C$14:$C14,$C14)),MATCH(G$13,PO_Details[#Headers],0)),""),IF(Tbl_Orders[[#This Row],[Order Type]]="Sale",INDEX(S.O[],SMALL(IF(S.O[Order Number]=S.Order,ROW(S.O[])-ROW(S.O[#Headers])),COUNTIF($C$14:$C14,$C14)),MATCH(G$13,S.O[#Headers],0)),"")),"") -> 10 | H14: =IFERROR(IF(Tbl_Orders[[#This Row],[Order Type]]="Purchase",IF(Tbl_Orders[[#This Row],[Order Type]]="Purchase",INDEX(PO_Details[],SMALL(IF(PO_Details[Order Number]=PoNu,ROW(PO_Details[])-ROW(PO_Details[#Headers])),COUNTIF($C$14:$C14,$C14)),MATCH(H$13,PO_Details[#Headers],0)),""),IF(Tbl_Orders[[#This Row],[Order Type]]="Sale",INDEX(S.O[],SMALL(IF(S.O[Order Number]=S.Order,ROW(S.O[])-ROW(S.O[#Headers])),COUNTIF($C$14:$C14,$C14)),MATCH(H$13,S.O[#Headers],0)),"")),"") -> 2835 | I14: =IFERROR(Tbl_Orders[[#This Row],[Unit Price]]*Tbl_Orders[Quantity],"") -> 28350 | J14: =IF(Tbl_Orders[[#This Row],[Product Name]]="","",IFERROR(INDEX(Tbl_Product[#Data],MATCH(Tbl_Orders[[#This Row],[Product Name]],INDEX(Tbl_Product[#Data],,1),0),3),"")) -> AC | K14: =TEXT(Tbl_Orders[[#This Row],[Order Date]],"yyyy-mmm") -> 2018-Apr | L14: =SUMIFS(Tbl_Orders[Quantity],Tbl_Orders[Expected Date],"<="&Tbl_Orders[[#This Row],[Expected Date]],Tbl_Orders[Product Name],Tbl_Orders[[#This Row],[Product Name]],Tbl_Orders[Order Type],"Purchase")-SUMIFS(Tbl_Orders[Quantity],Tbl_Orders[Expected Date],"<="&Tbl_Orders[[#This Row],[Expected Date]],Tbl_Orders[Product Name],Tbl_Orders[[#This Row],[Product Name]],Tbl_Orders[Order Type],"Sale") -> 5
A15: =IFERROR(IF(Tbl_Orders[[#This Row],[Order Type]]="Purchase",IF(Tbl_Orders[[#This Row],[Order Type]]="Purchase",INDEX(PO_Details[],SMALL(IF(PO_Details[Order Number]=PoNu,ROW(PO_Details[])-ROW(PO_Details[#Headers])),COUNTIF($C$14:$C15,$C15)),MATCH(A$13,PO_Details[#Headers],0)),""),IF(Tbl_Orders[[#This Row],[Order Type]]="Sale",INDEX(S.O[],SMALL(IF(S.O[Order Number]=S.Order,ROW(S.O[])-ROW(S.O[#Headers])),COUNTIF($C$14:$C15,$C15)),MATCH(A$13,S.O[#Headers],0)),"")),"") -> S.O #10001 | B15: =IFERROR(IF(Tbl_Orders[[#This Row],[Order Type]]="Purchase",IF(Tbl_Orders[[#This Row],[Order Type]]="Purchase",INDEX(PO_Details[],SMALL(IF(PO_Details[Order Number]=PoNu,ROW(PO_Details[])-ROW(PO_Details[#Headers])),COUNTIF($C$14:$C15,$C15)),MATCH(B$13,PO_Details[#Headers],0)),""),IF(Tbl_Orders[[#This Row],[Order Type]]="Sale",INDEX(S.O[],SMALL(IF(S.O[Order Number]=S.Order,ROW(S.O[])-ROW(S.O[#Headers])),COUNTIF($C$14:$C15,$C15)),MATCH(B$13,S.O[#Headers],0)),"")),"") -> 2018-04-10 | C15: Sale | D15: 12-31-18 | E15: =IFERROR(IF(Tbl_Orders[[#This Row],[Order Type]]="Purchase",IF(Tbl_Orders[[#This Row],[Order Type]]="Purchase",INDEX(PO_Details[],SMALL(IF(PO_Details[Order Number]=PoNu,ROW(PO_Details[])-ROW(PO_Details[#Headers])),COUNTIF($C$14:$C15,$C15)),MATCH(E$13,PO_Details[#Headers],0)),""),IF(Tbl_Orders[[#This Row],[Order Type]]="Sale",INDEX(S.O[],SMALL(IF(S.O[Order Number]=S.Order,ROW(S.O[])-ROW(S.O[#Headers])),COUNTIF($C$14:$C15,$C15)),MATCH(E$13,S.O[#Headers],0)),"")),"") -> Al-Dawaa Medical Service | F15: =IFERROR(IF(Tbl_Orders[[#This Row],[Order Type]]="Purchase",IF(Tbl_Orders[[#This Row],[Order Type]]="Purchase",INDEX(PO_Details[],SMALL(IF(PO_Details[Order Number]=PoNu,ROW(PO_Details[])-ROW(PO_Details[#Headers])),COUNTIF($C$14:$C15,$C15)),MATCH(F$13,PO_Details[#Headers],0)),""),IF(Tbl_Orders[[#This Row],[Order Type]]="Sale",INDEX(S.O[],SMALL(IF(S.O[Order Number]=S.Order,ROW(S.O[])-ROW(S.O[#Headers])),COUNTIF($C$14:$C15,$C15)),MATCH(F$13,S.O[#Headers],0)),"")),"") -> AC. CONSILD 5 TON INDOOR | G15: =IFERROR(IF(Tbl_Orders[[#This Row],[Order Type]]="Purchase",IF(Tbl_Orders[[#This Row],[Order Type]]="Purchase",INDEX(PO_Details[],SMALL(IF(PO_Details[Order Number]=PoNu,ROW(PO_Details[])-ROW(PO_Details[#Headers])),COUNTIF($C$14:$C15,$C15)),MATCH(G$13,PO_Details[#Headers],0)),""),IF(Tbl_Orders[[#This Row],[Order Type]]="Sale",INDEX(S.O[],SMALL(IF(S.O[Order Number]=S.Order,ROW(S.O[])-ROW(S.O[#Headers])),COUNTIF($C$14:$C15,$C15)),MATCH(G$13,S.O[#Headers],0)),"")),"") -> 10 | H15: =IFERROR(IF(Tbl_Orders[[#This Row],[Order Type]]="Purchase",IF(Tbl_Orders[[#This Row],[Order Type]]="Purchase",INDEX(PO_Details[],SMALL(IF(PO_Details[Order Number]=PoNu,ROW(PO_Details[])-ROW(PO_Details[#Headers])),COUNTIF($C$14:$C15,$C15)),MATCH(H$13,PO_Details[#Headers],0)),""),IF(Tbl_Orders[[#This Row],[Order Type]]="Sale",INDEX(S.O[],SMALL(IF(S.O[Order Number]=S.Order,ROW(S.O[])-ROW(S.O[#Headers])),COUNTIF($C$14:$C15,$C15)),MATCH(H$13,S.O[#Headers],0)),"")),"") -> 1680 | I15: =IFERROR(Tbl_Orders[[#This Row],[Unit Price]]*Tbl_Orders[Quantity],"") -> 16800 | J15: =IF(Tbl_Orders[[#This Row],[Product Name]]="","",IFERROR(INDEX(Tbl_Product[#Data],MATCH(Tbl_Orders[[#This Row],[Product Name]],INDEX(Tbl_Product[#Data],,1),0),3),"")) -> AC | K15: =TEXT(Tbl_Orders[[#This Row],[Order Date]],"yyyy-mmm") -> 2018-Apr | L15: =SUMIFS(Tbl_Orders[Quantity],Tbl_Orders[Expected Date],"<="&Tbl_Orders[[#This Row],[Expected Date]],Tbl_Orders[Product Name],Tbl_Orders[[#This Row],[Product Name]],Tbl_Orders[Order Type],"Purchase")-SUMIFS(Tbl_Orders[Quantity],Tbl_Orders[Expected Date],"<="&Tbl_Orders[[#This Row],[Expected Date]],Tbl_Orders[Product Name],Tbl_Orders[[#This Row],[Product Name]],Tbl_Orders[Order Type],"Sale") -> 5
A16: =IFERROR(IF(Tbl_Orders[[#This Row],[Order Type]]="Purchase",IF(Tbl_Orders[[#This Row],[Order Type]]="Purchase",INDEX(PO_Details[],SMALL(IF(PO_Details[Order Number]=PoNu,ROW(PO_Details[])-ROW(PO_Details[#Headers])),COUNTIF($C$14:$C16,$C16)),MATCH(A$13,PO_Details[#Headers],0)),""),IF(Tbl_Orders[[#This Row],[Order Type]]="Sale",INDEX(S.O[],SMALL(IF(S.O[Order Number]=S.Order,ROW(S.O[])-ROW(S.O[#Headers])),COUNTIF($C$14:$C16,$C16)),MATCH(A$13,S.O[#Headers],0)),"")),"") -> S.O #10001 | B16: =IFERROR(IF(Tbl_Orders[[#This Row],[Order Type]]="Purchase",IF(Tbl_Orders[[#This Row],[Order Type]]="Purchase",INDEX(PO_Details[],SMALL(IF(PO_Details[Order Number]=PoNu,ROW(PO_Details[])-ROW(PO_Details[#Headers])),COUNTIF($C$14:$C16,$C16)),MATCH(B$13,PO_Details[#Headers],0)),""),IF(Tbl_Orders[[#This Row],[Order Type]]="Sale",INDEX(S.O[],SMALL(IF(S.O[Order Number]=S.Order,ROW(S.O[])-ROW(S.O[#Headers])),COUNTIF($C$14:$C16,$C16)),MATCH(B$13,S.O[#Headers],0)),"")),"") -> 2018-04-11 | C16: Sale | D16: 12-31-18 | E16: =IFERROR(IF(Tbl_Orders[[#This Row],[Order Type]]="Purchase",IF(Tbl_Orders[[#This Row],[Order Type]]="Purchase",INDEX(PO_Details[],SMALL(IF(PO_Details[Order Number]=PoNu,ROW(PO_Details[])-ROW(PO_Details[#Headers])),COUNTIF($C$14:$C16,$C16)),MATCH(E$13,PO_Details[#Headers],0)),""),IF(Tbl_Orders[[#This Row],[Order Type]]="Sale",INDEX(S.O[],SMALL(IF(S.O[Order Number]=S.Order,ROW(S.O[])-ROW(S.O[#Headers])),COUNTIF($C$14:$C16,$C16)),MATCH(E$13,S.O[#Headers],0)),"")),"") -> Al-Dawaa Medical Service | F16: =IFERROR(IF(Tbl_Orders[[#This Row],[Order Type]]="Purchase",IF(Tbl_Orders[[#This Row],[Order Type]]="Purchase",INDEX(PO_Details[],SMALL(IF(PO_Details[Order Number]=PoNu,ROW(PO_Details[])-ROW(PO_Details[#Headers])),COUNTIF($C$14:$C16,$C16)),MATCH(F$13,PO_Details[#Headers],0)),""),IF(Tbl_Orders[[#This Row],[Order Type]]="Sale",INDEX(S.O[],SMALL(IF(S.O[Order Number]=S.Order,ROW(S.O[])-ROW(S.O[#Headers])),COUNTIF($C$14:$C16,$C16)),MATCH(F$13,S.O[#Headers],0)),"")),"") -> AC. CONTACTOR | G16: =IFERROR(IF(Tbl_Orders[[#This Row],[Order Type]]="Purchase",IF(Tbl_Orders[[#This Row],[Order Type]]="Purchase",INDEX(PO_Details[],SMALL(IF(PO_Details[Order Number]=PoNu,ROW(PO_Details[])-ROW(PO_Details[#Headers])),COUNTIF($C$14:$C16,$C16)),MATCH(G$13,PO_Details[#Headers],0)),""),IF(Tbl_Orders[[#This Row],[Order Type]]="Sale",INDEX(S.O[],SMALL(IF(S.O[Order Number]=S.Order,ROW(S.O[])-ROW(S.O[#Headers])),COUNTIF($C$14:$C16,$C16)),MATCH(G$13,S.O[#Headers],0)),"")),"") -> 10 | H16: =IFERROR(IF(Tbl_Orders[[#This Row],[Order Type]]="Purchase",IF(Tbl_Orders[[#This Row],[Order Type]]="Purchase",INDEX(PO_Details[],SMALL(IF(PO_Details[Order Number]=PoNu,ROW(PO_Details[])-ROW(PO_Details[#Headers])),COUNTIF($C$14:$C16,$C16)),MATCH(H$13,PO_Details[#Headers],0)),""),IF(Tbl_Orders[[#This Row],[Order Type]]="Sale",INDEX(S.O[],SMALL(IF(S.O[Order Number]=S.Order,ROW(S.O[])-ROW(S.O[#Headers])),COUNTIF($C$14:$C16,$C16)),MATCH(H$13,S.O[#Headers],0)),"")),"") -> 420 | I16: =IFERROR(Tbl_Orders[[#This Row],[Unit Price]]*Tbl_Orders[Quantity],"") -> 4200 | J16: =IF(Tbl_Orders[[#This Row],[Product Name]]="","",IFERROR(INDEX(Tbl_Product[#Data],MATCH(Tbl_Orders[[#This Row],[Product Name]],INDEX(Tbl_Product[#Data],,1),0),3),"")) -> AC | K16: =TEXT(Tbl_Orders[[#This Row],[Order Date]],"yyyy-mmm") -> 2018-Apr | L16: =SUMIFS(Tbl_Orders[Quantity],Tbl_Orders[Expected Date],"<="&Tbl_Orders[[#This Row],[Expected Date]],Tbl_Orders[Product Name],Tbl_Orders[[#This Row],[Product Name]],Tbl_Orders[Order Type],"Purchase")-SUMIFS(Tbl_Orders[Quantity],Tbl_Orders[Expected Date],"<="&Tbl_Orders[[#This Row],[Expected Date]],Tbl_Orders[Product Name],Tbl_Orders[[#This Row],[Product Name]],Tbl_Orders[Order Type],"Sale") -> 5
A17: =IFERROR(IF(Tbl_Orders[[#This Row],[Order Type]]="Purchase",IF(Tbl_Orders[[#This Row],[Order Type]]="Purchase",INDEX(PO_Details[],SMALL(IF(PO_Details[Order Number]=PoNu,ROW(PO_Details[])-ROW(PO_Details[#Headers])),COUNTIF($C$14:$C17,$C17)),MATCH(A$13,PO_Details[#Headers],0)),""),IF(Tbl_Orders[[#This Row],[Order Type]]="Sale",INDEX(S.O[],SMALL(IF(S.O[Order Number]=S.Order,ROW(S.O[])-ROW(S.O[#Headers])),COUNTIF($C$14:$C17,$C17)),MATCH(A$13,S.O[#Headers],0)),"")),"") -> S.O #10001 | B17: =IFERROR(IF(Tbl_Orders[[#This Row],[Order Type]]="Purchase",IF(Tbl_Orders[[#This Row],[Order Type]]="Purchase",INDEX(PO_Details[],SMALL(IF(PO_Details[Order Number]=PoNu,ROW(PO_Details[])-ROW(PO_Details[#Headers])),COUNTIF($C$14:$C17,$C17)),MATCH(B$13,PO_Details[#Headers],0)),""),IF(Tbl_Orders[[#This Row],[Order Type]]="Sale",INDEX(S.O[],SMALL(IF(S.O[Order Number]=S.Order,ROW(S.O[])-ROW(S.O[#Headers])),COUNTIF($C$14:$C17,$C17)),MATCH(B$13,S.O[#Headers],0)),"")),"") -> 2018-04-12 | C17: Sale | D17: 12-31-18 | E17: =IFERROR(IF(Tbl_Orders[[#This Row],[Order Type]]="Purchase",IF(Tbl_Orders[[#This Row],[Order Type]]="Purchase",INDEX(PO_Details[],SMALL(IF(PO_Details[Order Number]=PoNu,ROW(PO_Details[])-ROW(PO_Details[#Headers])),COUNTIF($C$14:$C17,$C17)),MATCH(E$13,PO_Details[#Headers],0)),""),IF(Tbl_Orders[[#This Row],[Order Type]]="Sale",INDEX(S.O[],SMALL(IF(S.O[Order Number]=S.Order,ROW(S.O[])-ROW(S.O[#Headers])),COUNTIF($C$14:$C17,$C17)),MATCH(E$13,S.O[#Headers],0)),"")),"") -> Al-Dawaa Medical Service | F17: =IFERROR(IF(Tbl_Orders[[#This Row],[Order Type]]="Purchase",IF(Tbl_Orders[[#This Row],[Order Type]]="Purchase",INDEX(PO_Details[],SMALL(IF(PO_Details[Order Number]=PoNu,ROW(PO_Details[])-ROW(PO_Details[#Headers])),COUNTIF($C$14:$C17,$C17)),MATCH(F$13,PO_Details[#Headers],0)),""),IF(Tbl_Orders[[#This Row],[Order Type]]="Sale",INDEX(S.O[],SMALL(IF(S.O[Order Number]=S.Order,ROW(S.O[])-ROW(S.O[#Headers])),COUNTIF($C$14:$C17,$C17)),MATCH(F$13,S.O[#Headers],0)),"")),"") -> AC. THERMOSTATE | G17: =IFERROR(IF(Tbl_Orders[[#This Row],[Order Type]]="Purchase",IF(Tbl_Orders[[#This Row],[Order Type]]="Purchase",INDEX(PO_Details[],SMALL(IF(PO_Details[Order Number]=PoNu,ROW(PO_Details[])-ROW(PO_Details[#Headers])),COUNTIF($C$14:$C17,$C17)),MATCH(G$13,PO_Details[#Headers],0)),""),IF(Tbl_Orders[[#This Row],[Order Type]]="Sale",INDEX(S.O[],SMALL(IF(S.O[Order Number]=S.Order,ROW(S.O[])-ROW(S.O[#Headers])),COUNTIF($C$14:$C17,$C17)),MATCH(G$13,S.O[#Headers],0)),"")),"") -> 10 | H17: =IFERROR(IF(Tbl_Orders[[#This Row],[Order Type]]="Purchase",IF(Tbl_Orders[[#This Row],[Order Type]]="Purchase",INDEX(PO_Details[],SMALL(IF(PO_Details[Order Number]=PoNu,ROW(PO_Details[])-ROW(PO_Details[#Headers])),COUNTIF($C$14:$C17,$C17)),MATCH(H$13,PO_Details[#Headers],0)),""),IF(Tbl_Orders[[#This Row],[Order Type]]="Sale",INDEX(S.O[],SMALL(IF(S.O[Order Number]=S.Order,ROW(S.O[])-ROW(S.O[#Headers])),COUNTIF($C$14:$C17,$C17)),MATCH(H$13,S.O[#Headers],0)),"")),"") -> 52.5 | I17: =IFERROR(Tbl_Orders[[#This Row],[Unit Price]]*Tbl_Orders[Quantity],"") -> 525 | J17: =IF(Tbl_Orders[[#This Row],[Product Name]]="","",IFERROR(INDEX(Tbl_Product[#Data],MATCH(Tbl_Orders[[#This Row],[Product Name]],INDEX(Tbl_Product[#Data],,1),0),3),"")) -> AC | K17: =TEXT(Tbl_Orders[[#This Row],[Order Date]],"yyyy-mmm") -> 2018-Apr | L17: =SUMIFS(Tbl_Orders[Quantity],Tbl_Orders[Expected Date],"<="&Tbl_Orders[[#This Row],[Expected Date]],Tbl_Orders[Product Name],Tbl_Orders[[#This Row],[Product Name]],Tbl_Orders[Order Type],"Purchase")-SUMIFS(Tbl_Orders[Quantity],Tbl_Orders[Expected Date],"<="&Tbl_Orders[[#This Row],[Expected Date]],Tbl_Orders[Product Name],Tbl_Orders[[#This Row],[Product Name]],Tbl_Orders[Order Type],"Sale") -> -10
A18: =IFERROR(IF(Tbl_Orders[[#This Row],[Order Type]]="Purchase",IF(Tbl_Orders[[#This Row],[Order Type]]="Purchase",INDEX(PO_Details[],SMALL(IF(PO_Details[Order Number]=PoNu,ROW(PO_Details[])-ROW(PO_Details[#Headers])),COUNTIF($C$14:$C18,$C18)),MATCH(A$13,PO_Details[#Headers],0)),""),IF(Tbl_Orders[[#This Row],[Order Type]]="Sale",INDEX(S.O[],SMALL(IF(S.O[Order Number]=S.Order,ROW(S.O[])-ROW(S.O[#Headers])),COUNTIF($C$14:$C18,$C18)),MATCH(A$13,S.O[#Headers],0)),"")),"") -> P.O#10001 | B18: =IFERROR(IF(Tbl_Orders[[#This Row],[Order Type]]="Purchase",IF(Tbl_Orders[[#This Row],[Order Type]]="Purchase",INDEX(PO_Details[],SMALL(IF(PO_Details[Order Number]=PoNu,ROW(PO_Details[])-ROW(PO_Details[#Headers])),COUNTIF($C$14:$C18,$C18)),MATCH(B$13,PO_Details[#Headers],0)),""),IF(Tbl_Orders[[#This Row],[Order Type]]="Sale",INDEX(S.O[],SMALL(IF(S.O[Order Number]=S.Order,ROW(S.O[])-ROW(S.O[#Headers])),COUNTIF($C$14:$C18,$C18)),MATCH(B$13,S.O[#Headers],0)),"")),"") -> 2018-04-09 | C18: Purchase | D18: 12-31-18 | E18: =IFERROR(IF(Tbl_Orders[[#This Row],[Order Type]]="Purchase",IF(Tbl_Orders[[#This Row],[Order Type]]="Purchase",INDEX(PO_Details[],SMALL(IF(PO_Details[Order Number]=PoNu,ROW(PO_Details[])-ROW(PO_Details[#Headers])),COUNTIF($C$14:$C18,$C18)),MATCH(E$13,PO_Details[#Headers],0)),""),IF(Tbl_Orders[[#This Row],[Order Type]]="Sale",INDEX(S.O[],SMALL(IF(S.O[Order Number]=S.Order,ROW(S.O[])-ROW(S.O[#Headers])),COUNTIF($C$14:$C18,$C18)),MATCH(E$13,S.O[#Headers],0)),"")),"") -> Dallah Trading Co | F18: =IFERROR(IF(Tbl_Orders[[#This Row],[Order Type]]="Purchase",IF(Tbl_Orders[[#This Row],[Order Type]]="Purchase",INDEX(PO_Details[],SMALL(IF(PO_Details[Order Number]=PoNu,ROW(PO_Details[])-ROW(PO_Details[#Headers])),COUNTIF($C$14:$C18,$C18)),MATCH(F$13,PO_Details[#Headers],0)),""),IF(Tbl_Orders[[#This Row],[Order Type]]="Sale",INDEX(S.O[],SMALL(IF(S.O[Order Number]=S.Order,ROW(S.O[])-ROW(S.O[#Headers])),COUNTIF($C$14:$C18,$C18)),MATCH(F$13,S.O[#Headers],0)),"")),"") -> AC. CONSILD 5 TON OUTDOOR | G18: =IFERROR(IF(Tbl_Orders[[#This Row],[Order Type]]="Purchase",IF(Tbl_Orders[[#This Row],[Order Type]]="Purchase",INDEX(PO_Details[],SMALL(IF(PO_Details[Order Number]=PoNu,ROW(PO_Details[])-ROW(PO_Details[#Headers])),COUNTIF($C$14:$C18,$C18)),MATCH(G$13,PO_Details[#Headers],0)),""),IF(Tbl_Orders[[#This Row],[Order Type]]="Sale",INDEX(S.O[],SMALL(IF(S.O[Order Number]=S.Order,ROW(S.O[])-ROW(S.O[#Headers])),COUNTIF($C$14:$C18,$C18)),MATCH(G$13,S.O[#Headers],0)),"")),"") -> 15 | H18: =IFERROR(IF(Tbl_Orders[[#This Row],[Order Type]]="Purchase",IF(Tbl_Orders[[#This Row],[Order Type]]="Purchase",INDEX(PO_Details[],SMALL(IF(PO_Details[Order Number]=PoNu,ROW(PO_Details[])-ROW(PO_Details[#Headers])),COUNTIF($C$14:$C18,$C18)),MATCH(H$13,PO_Details[#Headers],0)),""),IF(Tbl_Orders[[#This Row],[Order Type]]="Sale",INDEX(S.O[],SMALL(IF(S.O[Order Number]=S.Order,ROW(S.O[])-ROW(S.O[#Headers])),COUNTIF($C$14:$C18,$C18)),MATCH(H$13,S.O[#Headers],0)),"")),"") -> 2835 | I18: =IFERROR(Tbl_Orders[[#This Row],[Unit Price]]*Tbl_Orders[Quantity],"") -> 42525 | J18: =IF(Tbl_Orders[[#This Row],[Product Name]]="","",IFERROR(INDEX(Tbl_Product[#Data],MATCH(Tbl_Orders[[#This Row],[Product Name]],INDEX(Tbl_Product[#Data],,1),0),3),"")) -> AC | K18: =TEXT(Tbl_Orders[[#This Row],[Order Date]],"yyyy-mmm") -> 2018-Apr | L18: =SUMIFS(Tbl_Orders[Quantity],Tbl_Orders[Expected Date],"<="&Tbl_Orders[[#This Row],[Expected Date]],Tbl_Orders[Product Name],Tbl_Orders[[#This Row],[Product Name]],Tbl_Orders[Order Type],"Purchase")-SUMIFS(Tbl_Orders[Quantity],Tbl_Orders[Expected Date],"<="&Tbl_Orders[[#This Row],[Expected Date]],Tbl_Orders[Product Name],Tbl_Orders[[#This Row],[Product Name]],Tbl_Orders[Order Type],"Sale") -> 5
A19: =IFERROR(IF(Tbl_Orders[[#This Row],[Order Type]]="Purchase",IF(Tbl_Orders[[#This Row],[Order Type]]="Purchase",INDEX(PO_Details[],SMALL(IF(PO_Details[Order Number]=PoNu,ROW(PO_Details[])-ROW(PO_Details[#Headers])),COUNTIF($C$14:$C19,$C19)),MATCH(A$13,PO_Details[#Headers],0)),""),IF(Tbl_Orders[[#This Row],[Order Type]]="Sale",INDEX(S.O[],SMALL(IF(S.O[Order Number]=S.Order,ROW(S.O[])-ROW(S.O[#Headers])),COUNTIF($C$14:$C19,$C19)),MATCH(A$13,S.O[#Headers],0)),"")),"") -> P.O#10001 | B19: =IFERROR(IF(Tbl_Orders[[#This Row],[Order Type]]="Purchase",IF(Tbl_Orders[[#This Row],[Order Type]]="Purchase",INDEX(PO_Details[],SMALL(IF(PO_Details[Order Number]=PoNu,ROW(PO_Details[])-ROW(PO_Details[#Headers])),COUNTIF($C$14:$C19,$C19)),MATCH(B$13,PO_Details[#Headers],0)),""),IF(Tbl_Orders[[#This Row],[Order Type]]="Sale",INDEX(S.O[],SMALL(IF(S.O[Order Number]=S.Order,ROW(S.O[])-ROW(S.O[#Headers])),COUNTIF($C$14:$C19,$C19)),MATCH(B$13,S.O[#Headers],0)),"")),"") -> 2018-04-10 | C19: Purchase | D19: 12-31-18 | E19: =IFERROR(IF(Tbl_Orders[[#This Row],[Order Type]]="Purchase",IF(Tbl_Orders[[#This Row],[Order Type]]="Purchase",INDEX(PO_Details[],SMALL(IF(PO_Details[Order Number]=PoNu,ROW(PO_Details[])-ROW(PO_Details[#Headers])),COUNTIF($C$14:$C19,$C19)),MATCH(E$13,PO_Details[#Headers],0)),""),IF(Tbl_Orders[[#This Row],[Order Type]]="Sale",INDEX(S.O[],SMALL(IF(S.O[Order Number]=S.Order,ROW(S.O[])-ROW(S.O[#Headers])),COUNTIF($C$14:$C19,$C19)),MATCH(E$13,S.O[#Headers],0)),"")),"") -> Dallah Trading Co | F19: =IFERROR(IF(Tbl_Orders[[#This Row],[Order Type]]="Purchase",IF(Tbl_Orders[[#This Row],[Order Type]]="Purchase",INDEX(PO_Details[],SMALL(IF(PO_Details[Order Number]=PoNu,ROW(PO_Details[])-ROW(PO_Details[#Headers])),COUNTIF($C$14:$C19,$C19)),MATCH(F$13,PO_Details[#Headers],0)),""),IF(Tbl_Orders[[#This Row],[Order Type]]="Sale",INDEX(S.O[],SMALL(IF(S.O[Order Number]=S.Order,ROW(S.O[])-ROW(S.O[#Headers])),COUNTIF($C$14:$C19,$C19)),MATCH(F$13,S.O[#Headers],0)),"")),"") -> AC. CONSILD 5 TON INDOOR | G19: =IFERROR(IF(Tbl_Orders[[#This Row],[Order Type]]="Purchase",IF(Tbl_Orders[[#This Row],[Order Type]]="Purchase",INDEX(PO_Details[],SMALL(IF(PO_Details[Order Number]=PoNu,ROW(PO_Details[])-ROW(PO_Details[#Headers])),COUNTIF($C$14:$C19,$C19)),MATCH(G$13,PO_Details[#Headers],0)),""),IF(Tbl_Orders[[#This Row],[Order Type]]="Sale",INDEX(S.O[],SMALL(IF(S.O[Order Number]=S.Order,ROW(S.O[])-ROW(S.O[#Headers])),COUNTIF($C$14:$C19,$C19)),MATCH(G$13,S.O[#Headers],0)),"")),"") -> 15 | H19: =IFERROR(IF(Tbl_Orders[[#This Row],[Order Type]]="Purchase",IF(Tbl_Orders[[#This Row],[Order Type]]="Purchase",INDEX(PO_Details[],SMALL(IF(PO_Details[Order Number]=PoNu,ROW(PO_Details[])-ROW(PO_Details[#Headers])),COUNTIF($C$14:$C19,$C19)),MATCH(H$13,PO_Details[#Headers],0)),""),IF(Tbl_Orders[[#This Row],[Order Type]]="Sale",INDEX(S.O[],SMALL(IF(S.O[Order Number]=S.Order,ROW(S.O[])-ROW(S.O[#Headers])),COUNTIF($C$14:$C19,$C19)),MATCH(H$13,S.O[#Headers],0)),"")),"") -> 1680 | I19: =IFERROR(Tbl_Orders[[#This Row],[Unit Price]]*Tbl_Orders[Quantity],"") -> 25200 | J19: =IF(Tbl_Orders[[#This Row],[Product Name]]="","",IFERROR(INDEX(Tbl_Product[#Data],MATCH(Tbl_Orders[[#This Row],[Product Name]],INDEX(Tbl_Product[#Data],,1),0),3),"")) -> AC | K19: =TEXT(Tbl_Orders[[#This Row],[Order Date]],"yyyy-mmm") -> 2018-Apr | L19: =SUMIFS(Tbl_Orders[Quantity],Tbl_Orders[Expected Date],"<="&Tbl_Orders[[#This Row],[Expected Date]],Tbl_Orders[Product Name],Tbl_Orders[[#This Row],[Product Name]],Tbl_Orders[Order Type],"Purchase")-SUMIFS(Tbl_Orders[Quantity],Tbl_Orders[Expected Date],"<="&Tbl_Orders[[#This Row],[Expected Date]],Tbl_Orders[Product Name],Tbl_Orders[[#This Row],[Product Name]],Tbl_Orders[Order Type],"Sale") -> 5
A20: =IFERROR(IF(Tbl_Orders[[#This Row],[Order Type]]="Purchase",IF(Tbl_Orders[[#This Row],[Order Type]]="Purchase",INDEX(PO_Details[],SMALL(IF(PO_Details[Order Number]=PoNu,ROW(PO_Details[])-ROW(PO_Details[#Headers])),COUNTIF($C$14:$C20,$C20)),MATCH(A$13,PO_Details[#Headers],0)),""),IF(Tbl_Orders[[#This Row],[Order Type]]="Sale",INDEX(S.O[],SMALL(IF(S.O[Order Number]=S.Order,ROW(S.O[])-ROW(S.O[#Headers])),COUNTIF($C$14:$C20,$C20)),MATCH(A$13,S.O[#Headers],0)),"")),"") -> P.O#10001 | B20: =IFERROR(IF(Tbl_Orders[[#This Row],[Order Type]]="Purchase",IF(Tbl_Orders[[#This Row],[Order Type]]="Purchase",INDEX(PO_Details[],SMALL(IF(PO_Details[Order Number]=PoNu,ROW(PO_Details[])-ROW(PO_Details[#Headers])),COUNTIF($C$14:$C20,$C20)),MATCH(B$13,PO_Details[#Headers],0)),""),IF(Tbl_Orders[[#This Row],[Order Type]]="Sale",INDEX(S.O[],SMALL(IF(S.O[Order Number]=S.Order,ROW(S.O[])-ROW(S.O[#Headers])),COUNTIF($C$14:$C20,$C20)),MATCH(B$13,S.O[#Headers],0)),"")),"") -> 2018-04-11 | C20: Purchase | D20: 12-31-18 | E20: =IFERROR(IF(Tbl_Orders[[#This Row],[Order Type]]="Purchase",IF(Tbl_Orders[[#This Row],[Order Type]]="Purchase",INDEX(PO_Details[],SMALL(IF(PO_Details[Order Number]=PoNu,ROW(PO_Details[])-ROW(PO_Details[#Headers])),COUNTIF($C$14:$C20,$C20)),MATCH(E$13,PO_Details[#Headers],0)),""),IF(Tbl_Orders[[#This Row],[Order Type]]="Sale",INDEX(S.O[],SMALL(IF(S.O[Order Number]=S.Order,ROW(S.O[])-ROW(S.O[#Headers])),COUNTIF($C$14:$C20,$C20)),MATCH(E$13,S.O[#Headers],0)),"")),"") -> Dallah Trading Co | F20: =IFERROR(IF(Tbl_Orders[[#This Row],[Order Type]]="Purchase",IF(Tbl_Orders[[#This Row],[Order Type]]="Purchase",INDEX(PO_Details[],SMALL(IF(PO_Details[Order Number]=PoNu,ROW(PO_Details[])-ROW(PO_Details[#Headers])),COUNTIF($C$14:$C20,$C20)),MATCH(F$13,PO_Details[#Headers],0)),""),IF(Tbl_Orders[[#This Row],[Order Type]]="Sale",INDEX(S.O[],SMALL(IF(S.O[Order Number]=S.Order,ROW(S.O[])-ROW(S.O[#Headers])),COUNTIF($C$14:$C20,$C20)),MATCH(F$13,S.O[#Headers],0)),"")),"") -> AC. CONTACTOR | G20: =IFERROR(IF(Tbl_Orders[[#This Row],[Order Type]]="Purchase",IF(Tbl_Orders[[#This Row],[Order Type]]="Purchase",INDEX(PO_Details[],SMALL(IF(PO_Details[Order Number]=PoNu,ROW(PO_Details[])-ROW(PO_Details[#Headers])),COUNTIF($C$14:$C20,$C20)),MATCH(G$13,PO_Details[#Headers],0)),""),IF(Tbl_Orders[[#This Row],[Order Type]]="Sale",INDEX(S.O[],SMALL(IF(S.O[Order Number]=S.Order,ROW(S.O[])-ROW(S.O[#Headers])),COUNTIF($C$14:$C20,$C20)),MATCH(G$13,S.O[#Headers],0)),"")),"") -> 15 | H20: =IFERROR(IF(Tbl_Orders[[#This Row],[Order Type]]="Purchase",IF(Tbl_Orders[[#This Row],[Order Type]]="Purchase",INDEX(PO_Details[],SMALL(IF(PO_Details[Order Number]=PoNu,ROW(PO_Details[])-ROW(PO_Details[#Headers])),COUNTIF($C$14:$C20,$C20)),MATCH(H$13,PO_Details[#Headers],0)),""),IF(Tbl_Orders[[#This Row],[Order Type]]="Sale",INDEX(S.O[],SMALL(IF(S.O[Order Number]=S.Order,ROW(S.O[])-ROW(S.O[#Headers])),COUNTIF($C$14:$C20,$C20)),MATCH(H$13,S.O[#Headers],0)),"")),"") -> 420 | I20: =IFERROR(Tbl_Orders[[#This Row],[Unit Price]]*Tbl_Orders[Quantity],"") -> 6300 | J20: =IF(Tbl_Orders[[#This Row],[Product Name]]="","",IFERROR(INDEX(Tbl_Product[#Data],MATCH(Tbl_Orders[[#This Row],[Product Name]],INDEX(Tbl_Product[#Data],,1),0),3),"")) -> AC | K20: =TEXT(Tbl_Orders[[#This Row],[Order Date]],"yyyy-mmm") -> 2018-Apr | L20: =SUMIFS(Tbl_Orders[Quantity],Tbl_Orders[Expected Date],"<="&Tbl_Orders[[#This Row],[Expected Date]],Tbl_Orders[Product Name],Tbl_Orders[[#This Row],[Product Name]],Tbl_Orders[Order Type],"Purchase")-SUMIFS(Tbl_Orders[Quantity],Tbl_Orders[Expected Date],"<="&Tbl_Orders[[#This Row],[Expected Date]],Tbl_Orders[Product Name],Tbl_Orders[[#This Row],[Product Name]],Tbl_Orders[Order Type],"Sale") -> 5
A21: =IFERROR(IF(Tbl_Orders[[#This Row],[Order Type]]="Purchase",IF(Tbl_Orders[[#This Row],[Order Type]]="Purchase",INDEX(PO_Details[],SMALL(IF(PO_Details[Order Number]=PoNu,ROW(PO_Details[])-ROW(PO_Details[#Headers])),COUNTIF($C$14:$C21,$C21)),MATCH(A$13,PO_Details[#Headers],0)),""),IF(Tbl_Orders[[#This Row],[Order Type]]="Sale",INDEX(S.O[],SMALL(IF(S.O[Order Number]=S.Order,ROW(S.O[])-ROW(S.O[#Headers])),COUNTIF($C$14:$C21,$C21)),MATCH(A$13,S.O[#Headers],0)),"")),"") ->  | B21: =IFERROR(IF(Tbl_Orders[[#This Row],[Order Type]]="Purchase",IF(Tbl_Orders[[#This Row],[Order Type]]="Purchase",INDEX(PO_Details[],SMALL(IF(PO_Details[Order Number]=PoNu,ROW(PO_Details[])-ROW(PO_Details[#Headers])),COUNTIF($C$14:$C21,$C21)),MATCH(B$13,PO_Details[#Headers],0)),""),IF(Tbl_Orders[[#This Row],[Order Type]]="Sale",INDEX(S.O[],SMALL(IF(S.O[Order Number]=S.Order,ROW(S.O[])-ROW(S.O[#Headers])),COUNTIF($C$14:$C21,$C21)),MATCH(B$13,S.O[#Headers],0)),"")),"") ->  | D21: 12-31-18 | E21: =IFERROR(IF(Tbl_Orders[[#This Row],[Order Type]]="Purchase",IF(Tbl_Orders[[#This Row],[Order Type]]="Purchase",INDEX(PO_Details[],SMALL(IF(PO_Details[Order Number]=PoNu,ROW(PO_Details[])-ROW(PO_Details[#Headers])),COUNTIF($C$14:$C21,$C21)),MATCH(E$13,PO_Details[#Headers],0)),""),IF(Tbl_Orders[[#This Row],[Order Type]]="Sale",INDEX(S.O[],SMALL(IF(S.O[Order Number]=S.Order,ROW(S.O[])-ROW(S.O[#Headers])),COUNTIF($C$14:$C21,$C21)),MATCH(E$13,S.O[#Headers],0)),"")),"") ->  | F21: =IFERROR(IF(Tbl_Orders[[#This Row],[Order Type]]="Purchase",IF(Tbl_Orders[[#This Row],[Order Type]]="Purchase",INDEX(PO_Details[],SMALL(IF(PO_Details[Order Number]=PoNu,ROW(PO_Details[])-ROW(PO_Details[#Headers])),COUNTIF($C$14:$C21,$C21)),MATCH(F$13,PO_Details[#Headers],0)),""),IF(Tbl_Orders[[#This Row],[Order Type]]="Sale",INDEX(S.O[],SMALL(IF(S.O[Order Number]=S.Order,ROW(S.O[])-ROW(S.O[#Headers])),COUNTIF($C$14:$C21,$C21)),MATCH(F$13,S.O[#Headers],0)),"")),"") ->  | G21: =IFERROR(IF(Tbl_Orders[[#This Row],[Order Type]]="Purchase",IF(Tbl_Orders[[#This Row],[Order Type]]="Purchase",INDEX(PO_Details[],SMALL(IF(PO_Details[Order Number]=PoNu,ROW(PO_Details[])-ROW(PO_Details[#Headers])),COUNTIF($C$14:$C21,$C21)),MATCH(G$13,PO_Details[#Headers],0)),""),IF(Tbl_Orders[[#This Row],[Order Type]]="Sale",INDEX(S.O[],SMALL(IF(S.O[Order Number]=S.Order,ROW(S.O[])-ROW(S.O[#Headers])),COUNTIF($C$14:$C21,$C21)),MATCH(G$13,S.O[#Headers],0)),"")),"") ->  | H21: =IFERROR(IF(Tbl_Orders[[#This Row],[Order Type]]="Purchase",IF(Tbl_Orders[[#This Row],[Order Type]]="Purchase",INDEX(PO_Details[],SMALL(IF(PO_Details[Order Number]=PoNu,ROW(PO_Details[])-ROW(PO_Details[#Headers])),COUNTIF($C$14:$C21,$C21)),MATCH(H$13,PO_Details[#Headers],0)),""),IF(Tbl_Orders[[#This Row],[Order Type]]="Sale",INDEX(S.O[],SMALL(IF(S.O[Order Number]=S.Order,ROW(S.O[])-ROW(S.O[#Headers])),COUNTIF($C$14:$C21,$C21)),MATCH(H$13,S.O[#Headers],0)),"")),"") ->  | I21: =IFERROR(Tbl_Orders[[#This Row],[Unit Price]]*Tbl_Orders[Quantity],"") ->  | J21: =IF(Tbl_Orders[[#This Row],[Product Name]]="","",IFERROR(INDEX(Tbl_Product[#Data],MATCH(Tbl_Orders[[#This Row],[Product Name]],INDEX(Tbl_Product[#Data],,1),0),3),"")) ->  | K21: =TEXT(Tbl_Orders[[#This Row],[Order Date]],"yyyy-mmm") ->  | L21: =SUMIFS(Tbl_Orders[Quantity],Tbl_Orders[Expected Date],"<="&Tbl_Orders[[#This Row],[Expected Date]],Tbl_Orders[Product Name],Tbl_Orders[[#This Row],[Product Name]],Tbl_Orders[Order Type],"Purchase")-SUMIFS(Tbl_Orders[Quantity],Tbl_Orders[Expected Date],"<="&Tbl_Orders[[#This Row],[Expected Date]],Tbl_Orders[Product Name],Tbl_Orders[[#This Row],[Product Name]],Tbl_Orders[Order Type],"Sale") -> 0
A22: =IFERROR(IF(Tbl_Orders[[#This Row],[Order Type]]="Purchase",IF(Tbl_Orders[[#This Row],[Order Type]]="Purchase",INDEX(PO_Details[],SMALL(IF(PO_Details[Order Number]=PoNu,ROW(PO_Details[])-ROW(PO_Details[#Headers])),COUNTIF($C$14:$C22,$C22)),MATCH(A$13,PO_Details[#Headers],0)),""),IF(Tbl_Orders[[#This Row],[Order Type]]="Sale",INDEX(S.O[],SMALL(IF(S.O[Order Number]=S.Order,ROW(S.O[])-ROW(S.O[#Headers])),COUNTIF($C$14:$C22,$C22)),MATCH(A$13,S.O[#Headers],0)),"")),"") ->  | B22: =IFERROR(IF(Tbl_Orders[[#This Row],[Order Type]]="Purchase",IF(Tbl_Orders[[#This Row],[Order Type]]="Purchase",INDEX(PO_Details[],SMALL(IF(PO_Details[Order Number]=PoNu,ROW(PO_Details[])-ROW(PO_Details[#Headers])),COUNTIF($C$14:$C22,$C22)),MATCH(B$13,PO_Details[#Headers],0)),""),IF(Tbl_Orders[[#This Row],[Order Type]]="Sale",INDEX(S.O[],SMALL(IF(S.O[Order Number]=S.Order,ROW(S.O[])-ROW(S.O[#Headers])),COUNTIF($C$14:$C22,$C22)),MATCH(B$13,S.O[#Headers],0)),"")),"") ->  | D22: 12-31-18 | E22: =IFERROR(IF(Tbl_Orders[[#This Row],[Order Type]]="Purchase",IF(Tbl_Orders[[#This Row],[Order Type]]="Purchase",INDEX(PO_Details[],SMALL(IF(PO_Details[Order Number]=PoNu,ROW(PO_Details[])-ROW(PO_Details[#Headers])),COUNTIF($C$14:$C22,$C22)),MATCH(E$13,PO_Details[#Headers],0)),""),IF(Tbl_Orders[[#This Row],[Order Type]]="Sale",INDEX(S.O[],SMALL(IF(S.O[Order Number]=S.Order,ROW(S.O[])-ROW(S.O[#Headers])),COUNTIF($C$14:$C22,$C22)),MATCH(E$13,S.O[#Headers],0)),"")),"") ->  | F22: =IFERROR(IF(Tbl_Orders[[#This Row],[Order Type]]="Purchase",IF(Tbl_Orders[[#This Row],[Order Type]]="Purchase",INDEX(PO_Details[],SMALL(IF(PO_Details[Order Number]=PoNu,ROW(PO_Details[])-ROW(PO_Details[#Headers])),COUNTIF($C$14:$C22,$C22)),MATCH(F$13,PO_Details[#Headers],0)),""),IF(Tbl_Orders[[#This Row],[Order Type]]="Sale",INDEX(S.O[],SMALL(IF(S.O[Order Number]=S.Order,ROW(S.O[])-ROW(S.O[#Headers])),COUNTIF($C$14:$C22,$C22)),MATCH(F$13,S.O[#Headers],0)),"")),"") ->  | G22: =IFERROR(IF(Tbl_Orders[[#This Row],[Order Type]]="Purchase",IF(Tbl_Orders[[#This Row],[Order Type]]="Purchase",INDEX(PO_Details[],SMALL(IF(PO_Details[Order Number]=PoNu,ROW(PO_Details[])-ROW(PO_Details[#Headers])),COUNTIF($C$14:$C22,$C22)),MATCH(G$13,PO_Details[#Headers],0)),""),IF(Tbl_Orders[[#This Row],[Order Type]]="Sale",INDEX(S.O[],SMALL(IF(S.O[Order Number]=S.Order,ROW(S.O[])-ROW(S.O[#Headers])),COUNTIF($C$14:$C22,$C22)),MATCH(G$13,S.O[#Headers],0)),"")),"") ->  | H22: =IFERROR(IF(Tbl_Orders[[#This Row],[Order Type]]="Purchase",IF(Tbl_Orders[[#This Row],[Order Type]]="Purchase",INDEX(PO_Details[],SMALL(IF(PO_Details[Order Number]=PoNu,ROW(PO_Details[])-ROW(PO_Details[#Headers])),COUNTIF($C$14:$C22,$C22)),MATCH(H$13,PO_Details[#Headers],0)),""),IF(Tbl_Orders[[#This Row],[Order Type]]="Sale",INDEX(S.O[],SMALL(IF(S.O[Order Number]=S.Order,ROW(S.O[])-ROW(S.O[#Headers])),COUNTIF($C$14:$C22,$C22)),MATCH(H$13,S.O[#Headers],0)),"")),"") ->  | I22: =IFERROR(Tbl_Orders[[#This Row],[Unit Price]]*Tbl_Orders[Quantity],"") ->  | J22: =IF(Tbl_Orders[[#This Row],[Product Name]]="","",IFERROR(INDEX(Tbl_Product[#Data],MATCH(Tbl_Orders[[#This Row],[Product Name]],INDEX(Tbl_Product[#Data],,1),0),3),"")) ->  | K22: =TEXT(Tbl_Orders[[#This Row],[Order Date]],"yyyy-mmm") ->  | L22: =SUMIFS(Tbl_Orders[Quantity],Tbl_Orders[Expected Date],"<="&Tbl_Orders[[#This Row],[Expected Date]],Tbl_Orders[Product Name],Tbl_Orders[[#This Row],[Product Name]],Tbl_Orders[Order Type],"Purchase")-SUMIFS(Tbl_Orders[Quantity],Tbl_Orders[Expected Date],"<="&Tbl_Orders[[#This Row],[Expected Date]],Tbl_Orders[Product Name],Tbl_Orders[[#This Row],[Product Name]],Tbl_Orders[Order Type],"Sale") -> 0
A23: =IFERROR(IF(Tbl_Orders[[#This Row],[Order Type]]="Purchase",IF(Tbl_Orders[[#This Row],[Order Type]]="Purchase",INDEX(PO_Details[],SMALL(IF(PO_Details[Order Number]=PoNu,ROW(PO_Details[])-ROW(PO_Details[#Headers])),COUNTIF($C$14:$C23,$C23)),MATCH(A$13,PO_Details[#Headers],0)),""),IF(Tbl_Orders[[#This Row],[Order Type]]="Sale",INDEX(S.O[],SMALL(IF(S.O[Order Number]=S.Order,ROW(S.O[])-ROW(S.O[#Headers])),COUNTIF($C$14:$C23,$C23)),MATCH(A$13,S.O[#Headers],0)),"")),"") ->  | B23: =IFERROR(IF(Tbl_Orders[[#This Row],[Order Type]]="Purchase",IF(Tbl_Orders[[#This Row],[Order Type]]="Purchase",INDEX(PO_Details[],SMALL(IF(PO_Details[Order Number]=PoNu,ROW(PO_Details[])-ROW(PO_Details[#Headers])),COUNTIF($C$14:$C23,$C23)),MATCH(B$13,PO_Details[#Headers],0)),""),IF(Tbl_Orders[[#This Row],[Order Type]]="Sale",INDEX(S.O[],SMALL(IF(S.O[Order Number]=S.Order,ROW(S.O[])-ROW(S.O[#Headers])),COUNTIF($C$14:$C23,$C23)),MATCH(B$13,S.O[#Headers],0)),"")),"") ->  | D23: 12-31-18 | E23: =IFERROR(IF(Tbl_Orders[[#This Row],[Order Type]]="Purchase",IF(Tbl_Orders[[#This Row],[Order Type]]="Purchase",INDEX(PO_Details[],SMALL(IF(PO_Details[Order Number]=PoNu,ROW(PO_Details[])-ROW(PO_Details[#Headers])),COUNTIF($C$14:$C23,$C23)),MATCH(E$13,PO_Details[#Headers],0)),""),IF(Tbl_Orders[[#This Row],[Order Type]]="Sale",INDEX(S.O[],SMALL(IF(S.O[Order Number]=S.Order,ROW(S.O[])-ROW(S.O[#Headers])),COUNTIF($C$14:$C23,$C23)),MATCH(E$13,S.O[#Headers],0)),"")),"") ->  | F23: =IFERROR(IF(Tbl_Orders[[#This Row],[Order Type]]="Purchase",IF(Tbl_Orders[[#This Row],[Order Type]]="Purchase",INDEX(PO_Details[],SMALL(IF(PO_Details[Order Number]=PoNu,ROW(PO_Details[])-ROW(PO_Details[#Headers])),COUNTIF($C$14:$C23,$C23)),MATCH(F$13,PO_Details[#Headers],0)),""),IF(Tbl_Orders[[#This Row],[Order Type]]="Sale",INDEX(S.O[],SMALL(IF(S.O[Order Number]=S.Order,ROW(S.O[])-ROW(S.O[#Headers])),COUNTIF($C$14:$C23,$C23)),MATCH(F$13,S.O[#Headers],0)),"")),"") ->  | G23: =IFERROR(IF(Tbl_Orders[[#This Row],[Order Type]]="Purchase",IF(Tbl_Orders[[#This Row],[Order Type]]="Purchase",INDEX(PO_Details[],SMALL(IF(PO_Details[Order Number]=PoNu,ROW(PO_Details[])-ROW(PO_Details[#Headers])),COUNTIF($C$14:$C23,$C23)),MATCH(G$13,PO_Details[#Headers],0)),""),IF(Tbl_Orders[[#This Row],[Order Type]]="Sale",INDEX(S.O[],SMALL(IF(S.O[Order Number]=S.Order,ROW(S.O[])-ROW(S.O[#Headers])),COUNTIF($C$14:$C23,$C23)),MATCH(G$13,S.O[#Headers],0)),"")),"") ->  | H23: =IFERROR(IF(Tbl_Orders[[#This Row],[Order Type]]="Purchase",IF(Tbl_Orders[[#This Row],[Order Type]]="Purchase",INDEX(PO_Details[],SMALL(IF(PO_Details[Order Number]=PoNu,ROW(PO_Details[])-ROW(PO_Details[#Headers])),COUNTIF($C$14:$C23,$C23)),MATCH(H$13,PO_Details[#Headers],0)),""),IF(Tbl_Orders[[#This Row],[Order Type]]="Sale",INDEX(S.O[],SMALL(IF(S.O[Order Number]=S.Order,ROW(S.O[])-ROW(S.O[#Headers])),COUNTIF($C$14:$C23,$C23)),MATCH(H$13,S.O[#Headers],0)),"")),"") ->  | I23: =IFERROR(Tbl_Orders[[#This Row],[Unit Price]]*Tbl_Orders[Quantity],"") ->  | J23: =IF(Tbl_Orders[[#This Row],[Product Name]]="","",IFERROR(INDEX(Tbl_Product[#Data],MATCH(Tbl_Orders[[#This Row],[Product Name]],INDEX(Tbl_Product[#Data],,1),0),3),"")) ->  | K23: =TEXT(Tbl_Orders[[#This Row],[Order Date]],"yyyy-mmm") ->  | L23: =SUMIFS(Tbl_Orders[Quantity],Tbl_Orders[Expected Date],"<="&Tbl_Orders[[#This Row],[Expected Date]],Tbl_Orders[Product Name],Tbl_Orders[[#This Row],[Product Name]],Tbl_Orders[Order Type],"Purchase")-SUMIFS(Tbl_Orders[Quantity],Tbl_Orders[Expected Date],"<="&Tbl_Orders[[#This Row],[Expected Date]],Tbl_Orders[Product Name],Tbl_Orders[[#This Row],[Product Name]],Tbl_Orders[Order Type],"Sale") -> 0
A24: =IFERROR(IF(Tbl_Orders[[#This Row],[Order Type]]="Purchase",IF(Tbl_Orders[[#This Row],[Order Type]]="Purchase",INDEX(PO_Details[],SMALL(IF(PO_Details[Order Number]=PoNu,ROW(PO_Details[])-ROW(PO_Details[#Headers])),COUNTIF($C$14:$C24,$C24)),MATCH(A$13,PO_Details[#Headers],0)),""),IF(Tbl_Orders[[#This Row],[Order Type]]="Sale",INDEX(S.O[],SMALL(IF(S.O[Order Number]=S.Order,ROW(S.O[])-ROW(S.O[#Headers])),COUNTIF($C$14:$C24,$C24)),MATCH(A$13,S.O[#Headers],0)),"")),"") ->  | B24: =IFERROR(IF(Tbl_Orders[[#This Row],[Order Type]]="Purchase",IF(Tbl_Orders[[#This Row],[Order Type]]="Purchase",INDEX(PO_Details[],SMALL(IF(PO_Details[Order Number]=PoNu,ROW(PO_Details[])-ROW(PO_Details[#Headers])),COUNTIF($C$14:$C24,$C24)),MATCH(B$13,PO_Details[#Headers],0)),""),IF(Tbl_Orders[[#This Row],[Order Type]]="Sale",INDEX(S.O[],SMALL(IF(S.O[Order Number]=S.Order,ROW(S.O[])-ROW(S.O[#Headers])),COUNTIF($C$14:$C24,$C24)),MATCH(B$13,S.O[#Headers],0)),"")),"") ->  | D24: 12-31-18 | E24: =IFERROR(IF(Tbl_Orders[[#This Row],[Order Type]]="Purchase",IF(Tbl_Orders[[#This Row],[Order Type]]="Purchase",INDEX(PO_Details[],SMALL(IF(PO_Details[Order Number]=PoNu,ROW(PO_Details[])-ROW(PO_Details[#Headers])),COUNTIF($C$14:$C24,$C24)),MATCH(E$13,PO_Details[#Headers],0)),""),IF(Tbl_Orders[[#This Row],[Order Type]]="Sale",INDEX(S.O[],SMALL(IF(S.O[Order Number]=S.Order,ROW(S.O[])-ROW(S.O[#Headers])),COUNTIF($C$14:$C24,$C24)),MATCH(E$13,S.O[#Headers],0)),"")),"") ->  | F24: =IFERROR(IF(Tbl_Orders[[#This Row],[Order Type]]="Purchase",IF(Tbl_Orders[[#This Row],[Order Type]]="Purchase",INDEX(PO_Details[],SMALL(IF(PO_Details[Order Number]=PoNu,ROW(PO_Details[])-ROW(PO_Details[#Headers])),COUNTIF($C$14:$C24,$C24)),MATCH(F$13,PO_Details[#Headers],0)),""),IF(Tbl_Orders[[#This Row],[Order Type]]="Sale",INDEX(S.O[],SMALL(IF(S.O[Order Number]=S.Order,ROW(S.O[])-ROW(S.O[#Headers])),COUNTIF($C$14:$C24,$C24)),MATCH(F$13,S.O[#Headers],0)),"")),"") ->  | G24: =IFERROR(IF(Tbl_Orders[[#This Row],[Order Type]]="Purchase",IF(Tbl_Orders[[#This Row],[Order Type]]="Purchase",INDEX(PO_Details[],SMALL(IF(PO_Details[Order Number]=PoNu,ROW(PO_Details[])-ROW(PO_Details[#Headers])),COUNTIF($C$14:$C24,$C24)),MATCH(G$13,PO_Details[#Headers],0)),""),IF(Tbl_Orders[[#This Row],[Order Type]]="Sale",INDEX(S.O[],SMALL(IF(S.O[Order Number]=S.Order,ROW(S.O[])-ROW(S.O[#Headers])),COUNTIF($C$14:$C24,$C24)),MATCH(G$13,S.O[#Headers],0)),"")),"") ->  | H24: =IFERROR(IF(Tbl_Orders[[#This Row],[Order Type]]="Purchase",IF(Tbl_Orders[[#This Row],[Order Type]]="Purchase",INDEX(PO_Details[],SMALL(IF(PO_Details[Order Number]=PoNu,ROW(PO_Details[])-ROW(PO_Details[#Headers])),COUNTIF($C$14:$C24,$C24)),MATCH(H$13,PO_Details[#Headers],0)),""),IF(Tbl_Orders[[#This Row],[Order Type]]="Sale",INDEX(S.O[],SMALL(IF(S.O[Order Number]=S.Order,ROW(S.O[])-ROW(S.O[#Headers])),COUNTIF($C$14:$C24,$C24)),MATCH(H$13,S.O[#Headers],0)),"")),"") ->  | I24: =IFERROR(Tbl_Orders[[#This Row],[Unit Price]]*Tbl_Orders[Quantity],"") ->  | J24: =IF(Tbl_Orders[[#This Row],[Product Name]]="","",IFERROR(INDEX(Tbl_Product[#Data],MATCH(Tbl_Orders[[#This Row],[Product Name]],INDEX(Tbl_Product[#Data],,1),0),3),"")) ->  | K24: =TEXT(Tbl_Orders[[#This Row],[Order Date]],"yyyy-mmm") ->  | L24: =SUMIFS(Tbl_Orders[Quantity],Tbl_Orders[Expected Date],"<="&Tbl_Orders[[#This Row],[Expected Date]],Tbl_Orders[Product Name],Tbl_Orders[[#This Row],[Product Name]],Tbl_Orders[Order Type],"Purchase")-SUMIFS(Tbl_Orders[Quantity],Tbl_Orders[Expected Date],"<="&Tbl_Orders[[#This Row],[Expected Date]],Tbl_Orders[Product Name],Tbl_Orders[[#This Row],[Product Name]],Tbl_Orders[Order Type],"Sale") -> 0
A25: =IFERROR(IF(Tbl_Orders[[#This Row],[Order Type]]="Purchase",IF(Tbl_Orders[[#This Row],[Order Type]]="Purchase",INDEX(PO_Details[],SMALL(IF(PO_Details[Order Number]=PoNu,ROW(PO_Details[])-ROW(PO_Details[#Headers])),COUNTIF($C$14:$C25,$C25)),MATCH(A$13,PO_Details[#Headers],0)),""),IF(Tbl_Orders[[#This Row],[Order Type]]="Sale",INDEX(S.O[],SMALL(IF(S.O[Order Number]=S.Order,ROW(S.O[])-ROW(S.O[#Headers])),COUNTIF($C$14:$C25,$C25)),MATCH(A$13,S.O[#Headers],0)),"")),"") ->  | B25: =IFERROR(IF(Tbl_Orders[[#This Row],[Order Type]]="Purchase",IF(Tbl_Orders[[#This Row],[Order Type]]="Purchase",INDEX(PO_Details[],SMALL(IF(PO_Details[Order Number]=PoNu,ROW(PO_Details[])-ROW(PO_Details[#Headers])),COUNTIF($C$14:$C25,$C25)),MATCH(B$13,PO_Details[#Headers],0)),""),IF(Tbl_Orders[[#This Row],[Order Type]]="Sale",INDEX(S.O[],SMALL(IF(S.O[Order Number]=S.Order,ROW(S.O[])-ROW(S.O[#Headers])),COUNTIF($C$14:$C25,$C25)),MATCH(B$13,S.O[#Headers],0)),"")),"") ->  | D25: 12-31-18 | E25: =IFERROR(IF(Tbl_Orders[[#This Row],[Order Type]]="Purchase",IF(Tbl_Orders[[#This Row],[Order Type]]="Purchase",INDEX(PO_Details[],SMALL(IF(PO_Details[Order Number]=PoNu,ROW(PO_Details[])-ROW(PO_Details[#Headers])),COUNTIF($C$14:$C25,$C25)),MATCH(E$13,PO_Details[#Headers],0)),""),IF(Tbl_Orders[[#This Row],[Order Type]]="Sale",INDEX(S.O[],SMALL(IF(S.O[Order Number]=S.Order,ROW(S.O[])-ROW(S.O[#Headers])),COUNTIF($C$14:$C25,$C25)),MATCH(E$13,S.O[#Headers],0)),"")),"") ->  | F25: =IFERROR(IF(Tbl_Orders[[#This Row],[Order Type]]="Purchase",IF(Tbl_Orders[[#This Row],[Order Type]]="Purchase",INDEX(PO_Details[],SMALL(IF(PO_Details[Order Number]=PoNu,ROW(PO_Details[])-ROW(PO_Details[#Headers])),COUNTIF($C$14:$C25,$C25)),MATCH(F$13,PO_Details[#Headers],0)),""),IF(Tbl_Orders[[#This Row],[Order Type]]="Sale",INDEX(S.O[],SMALL(IF(S.O[Order Number]=S.Order,ROW(S.O[])-ROW(S.O[#Headers])),COUNTIF($C$14:$C25,$C25)),MATCH(F$13,S.O[#Headers],0)),"")),"") ->  | G25: =IFERROR(IF(Tbl_Orders[[#This Row],[Order Type]]="Purchase",IF(Tbl_Orders[[#This Row],[Order Type]]="Purchase",INDEX(PO_Details[],SMALL(IF(PO_Details[Order Number]=PoNu,ROW(PO_Details[])-ROW(PO_Details[#Headers])),COUNTIF($C$14:$C25,$C25)),MATCH(G$13,PO_Details[#Headers],0)),""),IF(Tbl_Orders[[#This Row],[Order Type]]="Sale",INDEX(S.O[],SMALL(IF(S.O[Order Number]=S.Order,ROW(S.O[])-ROW(S.O[#Headers])),COUNTIF($C$14:$C25,$C25)),MATCH(G$13,S.O[#Headers],0)),"")),"") ->  | H25: =IFERROR(IF(Tbl_Orders[[#This Row],[Order Type]]="Purchase",IF(Tbl_Orders[[#This Row],[Order Type]]="Purchase",INDEX(PO_Details[],SMALL(IF(PO_Details[Order Number]=PoNu,ROW(PO_Details[])-ROW(PO_Details[#Headers])),COUNTIF($C$14:$C25,$C25)),MATCH(H$13,PO_Details[#Headers],0)),""),IF(Tbl_Orders[[#This Row],[Order Type]]="Sale",INDEX(S.O[],SMALL(IF(S.O[Order Number]=S.Order,ROW(S.O[])-ROW(S.O[#Headers])),COUNTIF($C$14:$C25,$C25)),MATCH(H$13,S.O[#Headers],0)),"")),"") ->  | I25: =IFERROR(Tbl_Orders[[#This Row],[Unit Price]]*Tbl_Orders[Quantity],"") ->  | J25: =IF(Tbl_Orders[[#This Row],[Product Name]]="","",IFERROR(INDEX(Tbl_Product[#Data],MATCH(Tbl_Orders[[#This Row],[Product Name]],INDEX(Tbl_Product[#Data],,1),0),3),"")) ->  | K25: =TEXT(Tbl_Orders[[#This Row],[Order Date]],"yyyy-mmm") ->  | L25: =SUMIFS(Tbl_Orders[Quantity],Tbl_Orders[Expected Date],"<="&Tbl_Orders[[#This Row],[Expected Date]],Tbl_Orders[Product Name],Tbl_Orders[[#This Row],[Product Name]],Tbl_Orders[Order Type],"Purchase")-SUMIFS(Tbl_Orders[Quantity],Tbl_Orders[Expected Date],"<="&Tbl_Orders[[#This Row],[Expected Date]],Tbl_Orders[Product Name],Tbl_Orders[[#This Row],[Product Name]],Tbl_Orders[Order Type],"Sale") -> 0
A26: =IFERROR(IF(Tbl_Orders[[#This Row],[Order Type]]="Purchase",IF(Tbl_Orders[[#This Row],[Order Type]]="Purchase",INDEX(PO_Details[],SMALL(IF(PO_Details[Order Number]=PoNu,ROW(PO_Details[])-ROW(PO_Details[#Headers])),COUNTIF($C$14:$C26,$C26)),MATCH(A$13,PO_Details[#Headers],0)),""),IF(Tbl_Orders[[#This Row],[Order Type]]="Sale",INDEX(S.O[],SMALL(IF(S.O[Order Number]=S.Order,ROW(S.O[])-ROW(S.O[#Headers])),COUNTIF($C$14:$C26,$C26)),MATCH(A$13,S.O[#Headers],0)),"")),"") ->  | B26: =IFERROR(IF(Tbl_Orders[[#This Row],[Order Type]]="Purchase",IF(Tbl_Orders[[#This Row],[Order Type]]="Purchase",INDEX(PO_Details[],SMALL(IF(PO_Details[Order Number]=PoNu,ROW(PO_Details[])-ROW(PO_Details[#Headers])),COUNTIF($C$14:$C26,$C26)),MATCH(B$13,PO_Details[#Headers],0)),""),IF(Tbl_Orders[[#This Row],[Order Type]]="Sale",INDEX(S.O[],SMALL(IF(S.O[Order Number]=S.Order,ROW(S.O[])-ROW(S.O[#Headers])),COUNTIF($C$14:$C26,$C26)),MATCH(B$13,S.O[#Headers],0)),"")),"") ->  | D26: 12-31-18 | E26: =IFERROR(IF(Tbl_Orders[[#This Row],[Order Type]]="Purchase",IF(Tbl_Orders[[#This Row],[Order Type]]="Purchase",INDEX(PO_Details[],SMALL(IF(PO_Details[Order Number]=PoNu,ROW(PO_Details[])-ROW(PO_Details[#Headers])),COUNTIF($C$14:$C26,$C26)),MATCH(E$13,PO_Details[#Headers],0)),""),IF(Tbl_Orders[[#This Row],[Order Type]]="Sale",INDEX(S.O[],SMALL(IF(S.O[Order Number]=S.Order,ROW(S.O[])-ROW(S.O[#Headers])),COUNTIF($C$14:$C26,$C26)),MATCH(E$13,S.O[#Headers],0)),"")),"") ->  | F26: =IFERROR(IF(Tbl_Orders[[#This Row],[Order Type]]="Purchase",IF(Tbl_Orders[[#This Row],[Order Type]]="Purchase",INDEX(PO_Details[],SMALL(IF(PO_Details[Order Number]=PoNu,ROW(PO_Details[])-ROW(PO_Details[#Headers])),COUNTIF($C$14:$C26,$C26)),MATCH(F$13,PO_Details[#Headers],0)),""),IF(Tbl_Orders[[#This Row],[Order Type]]="Sale",INDEX(S.O[],SMALL(IF(S.O[Order Number]=S.Order,ROW(S.O[])-ROW(S.O[#Headers])),COUNTIF($C$14:$C26,$C26)),MATCH(F$13,S.O[#Headers],0)),"")),"") ->  | G26: =IFERROR(IF(Tbl_Orders[[#This Row],[Order Type]]="Purchase",IF(Tbl_Orders[[#This Row],[Order Type]]="Purchase",INDEX(PO_Details[],SMALL(IF(PO_Details[Order Number]=PoNu,ROW(PO_Details[])-ROW(PO_Details[#Headers])),COUNTIF($C$14:$C26,$C26)),MATCH(G$13,PO_Details[#Headers],0)),""),IF(Tbl_Orders[[#This Row],[Order Type]]="Sale",INDEX(S.O[],SMALL(IF(S.O[Order Number]=S.Order,ROW(S.O[])-ROW(S.O[#Headers])),COUNTIF($C$14:$C26,$C26)),MATCH(G$13,S.O[#Headers],0)),"")),"") ->  | H26: =IFERROR(IF(Tbl_Orders[[#This Row],[Order Type]]="Purchase",IF(Tbl_Orders[[#This Row],[Order Type]]="Purchase",INDEX(PO_Details[],SMALL(IF(PO_Details[Order Number]=PoNu,ROW(PO_Details[])-ROW(PO_Details[#Headers])),COUNTIF($C$14:$C26,$C26)),MATCH(H$13,PO_Details[#Headers],0)),""),IF(Tbl_Orders[[#This Row],[Order Type]]="Sale",INDEX(S.O[],SMALL(IF(S.O[Order Number]=S.Order,ROW(S.O[])-ROW(S.O[#Headers])),COUNTIF($C$14:$C26,$C26)),MATCH(H$13,S.O[#Headers],0)),"")),"") ->  | I26: =IFERROR(Tbl_Orders[[#This Row],[Unit Price]]*Tbl_Orders[Quantity],"") ->  | J26: =IF(Tbl_Orders[[#This Row],[Product Name]]="","",IFERROR(INDEX(Tbl_Product[#Data],MATCH(Tbl_Orders[[#This Row],[Product Name]],INDEX(Tbl_Product[#Data],,1),0),3),"")) ->  | K26: =TEXT(Tbl_Orders[[#This Row],[Order Date]],"yyyy-mmm") ->  | L26: =SUMIFS(Tbl_Orders[Quantity],Tbl_Orders[Expected Date],"<="&Tbl_Orders[[#This Row],[Expected Date]],Tbl_Orders[Product Name],Tbl_Orders[[#This Row],[Product Name]],Tbl_Orders[Order Type],"Purchase")-SUMIFS(Tbl_Orders[Quantity],Tbl_Orders[Expected Date],"<="&Tbl_Orders[[#This Row],[Expected Date]],Tbl_Orders[Product Name],Tbl_Orders[[#This Row],[Product Name]],Tbl_Orders[Order Type],"Sale") -> 0
A27: =IFERROR(IF(Tbl_Orders[[#This Row],[Order Type]]="Purchase",IF(Tbl_Orders[[#This Row],[Order Type]]="Purchase",INDEX(PO_Details[],SMALL(IF(PO_Details[Order Number]=PoNu,ROW(PO_Details[])-ROW(PO_Details[#Headers])),COUNTIF($C$14:$C27,$C27)),MATCH(A$13,PO_Details[#Headers],0)),""),IF(Tbl_Orders[[#This Row],[Order Type]]="Sale",INDEX(S.O[],SMALL(IF(S.O[Order Number]=S.Order,ROW(S.O[])-ROW(S.O[#Headers])),COUNTIF($C$14:$C27,$C27)),MATCH(A$13,S.O[#Headers],0)),"")),"") ->  | B27: =IFERROR(IF(Tbl_Orders[[#This Row],[Order Type]]="Purchase",IF(Tbl_Orders[[#This Row],[Order Type]]="Purchase",INDEX(PO_Details[],SMALL(IF(PO_Details[Order Number]=PoNu,ROW(PO_Details[])-ROW(PO_Details[#Headers])),COUNTIF($C$14:$C27,$C27)),MATCH(B$13,PO_Details[#Headers],0)),""),IF(Tbl_Orders[[#This Row],[Order Type]]="Sale",INDEX(S.O[],SMALL(IF(S.O[Order Number]=S.Order,ROW(S.O[])-ROW(S.O[#Headers])),COUNTIF($C$14:$C27,$C27)),MATCH(B$13,S.O[#Headers],0)),"")),"") ->  | D27: 12-31-18 | E27: =IFERROR(IF(Tbl_Orders[[#This Row],[Order Type]]="Purchase",IF(Tbl_Orders[[#This Row],[Order Type]]="Purchase",INDEX(PO_Details[],SMALL(IF(PO_Details[Order Number]=PoNu,ROW(PO_Details[])-ROW(PO_Details[#Headers])),COUNTIF($C$14:$C27,$C27)),MATCH(E$13,PO_Details[#Headers],0)),""),IF(Tbl_Orders[[#This Row],[Order Type]]="Sale",INDEX(S.O[],SMALL(IF(S.O[Order Number]=S.Order,ROW(S.O[])-ROW(S.O[#Headers])),COUNTIF($C$14:$C27,$C27)),MATCH(E$13,S.O[#Headers],0)),"")),"") ->  | F27: =IFERROR(IF(Tbl_Orders[[#This Row],[Order Type]]="Purchase",IF(Tbl_Orders[[#This Row],[Order Type]]="Purchase",INDEX(PO_Details[],SMALL(IF(PO_Details[Order Number]=PoNu,ROW(PO_Details[])-ROW(PO_Details[#Headers])),COUNTIF($C$14:$C27,$C27)),MATCH(F$13,PO_Details[#Headers],0)),""),IF(Tbl_Orders[[#This Row],[Order Type]]="Sale",INDEX(S.O[],SMALL(IF(S.O[Order Number]=S.Order,ROW(S.O[])-ROW(S.O[#Headers])),COUNTIF($C$14:$C27,$C27)),MATCH(F$13,S.O[#Headers],0)),"")),"") ->  | G27: =IFERROR(IF(Tbl_Orders[[#This Row],[Order Type]]="Purchase",IF(Tbl_Orders[[#This Row],[Order Type]]="Purchase",INDEX(PO_Details[],SMALL(IF(PO_Details[Order Number]=PoNu,ROW(PO_Details[])-ROW(PO_Details[#Headers])),COUNTIF($C$14:$C27,$C27)),MATCH(G$13,PO_Details[#Headers],0)),""),IF(Tbl_Orders[[#This Row],[Order Type]]="Sale",INDEX(S.O[],SMALL(IF(S.O[Order Number]=S.Order,ROW(S.O[])-ROW(S.O[#Headers])),COUNTIF($C$14:$C27,$C27)),MATCH(G$13,S.O[#Headers],0)),"")),"") ->  | H27: =IFERROR(IF(Tbl_Orders[[#This Row],[Order Type]]="Purchase",IF(Tbl_Orders[[#This Row],[Order Type]]="Purchase",INDEX(PO_Details[],SMALL(IF(PO_Details[Order Number]=PoNu,ROW(PO_Details[])-ROW(PO_Details[#Headers])),COUNTIF($C$14:$C27,$C27)),MATCH(H$13,PO_Details[#Headers],0)),""),IF(Tbl_Orders[[#This Row],[Order Type]]="Sale",INDEX(S.O[],SMALL(IF(S.O[Order Number]=S.Order,ROW(S.O[])-ROW(S.O[#Headers])),COUNTIF($C$14:$C27,$C27)),MATCH(H$13,S.O[#Headers],0)),"")),"") ->  | I27: =IFERROR(Tbl_Orders[[#This Row],[Unit Price]]*Tbl_Orders[Quantity],"") ->  | J27: =IF(Tbl_Orders[[#This Row],[Product Name]]="","",IFERROR(INDEX(Tbl_Product[#Data],MATCH(Tbl_Orders[[#This Row],[Product Name]],INDEX(Tbl_Product[#Data],,1),0),3),"")) ->  | K27: =TEXT(Tbl_Orders[[#This Row],[Order Date]],"yyyy-mmm") ->  | L27: =SUMIFS(Tbl_Orders[Quantity],Tbl_Orders[Expected Date],"<="&Tbl_Orders[[#This Row],[Expected Date]],Tbl_Orders[Product Name],Tbl_Orders[[#This Row],[Product Name]],Tbl_Orders[Order Type],"Purchase")-SUMIFS(Tbl_Orders[Quantity],Tbl_Orders[Expected Date],"<="&Tbl_Orders[[#This Row],[Expected Date]],Tbl_Orders[Product Name],Tbl_Orders[[#This Row],[Product Name]],Tbl_Orders[Order Type],"Sale") -> 0
A28: =IFERROR(IF(Tbl_Orders[[#This Row],[Order Type]]="Purchase",IF(Tbl_Orders[[#This Row],[Order Type]]="Purchase",INDEX(PO_Details[],SMALL(IF(PO_Details[Order Number]=PoNu,ROW(PO_Details[])-ROW(PO_Details[#Headers])),COUNTIF($C$14:$C28,$C28)),MATCH(A$13,PO_Details[#Headers],0)),""),IF(Tbl_Orders[[#This Row],[Order Type]]="Sale",INDEX(S.O[],SMALL(IF(S.O[Order Number]=S.Order,ROW(S.O[])-ROW(S.O[#Headers])),COUNTIF($C$14:$C28,$C28)),MATCH(A$13,S.O[#Headers],0)),"")),"") ->  | B28: =IFERROR(IF(Tbl_Orders[[#This Row],[Order Type]]="Purchase",IF(Tbl_Orders[[#This Row],[Order Type]]="Purchase",INDEX(PO_Details[],SMALL(IF(PO_Details[Order Number]=PoNu,ROW(PO_Details[])-ROW(PO_Details[#Headers])),COUNTIF($C$14:$C28,$C28)),MATCH(B$13,PO_Details[#Headers],0)),""),IF(Tbl_Orders[[#This Row],[Order Type]]="Sale",INDEX(S.O[],SMALL(IF(S.O[Order Number]=S.Order,ROW(S.O[])-ROW(S.O[#Headers])),COUNTIF($C$14:$C28,$C28)),MATCH(B$13,S.O[#Headers],0)),"")),"") ->  | D28: 12-31-18 | E28: =IFERROR(IF(Tbl_Orders[[#This Row],[Order Type]]="Purchase",IF(Tbl_Orders[[#This Row],[Order Type]]="Purchase",INDEX(PO_Details[],SMALL(IF(PO_Details[Order Number]=PoNu,ROW(PO_Details[])-ROW(PO_Details[#Headers])),COUNTIF($C$14:$C28,$C28)),MATCH(E$13,PO_Details[#Headers],0)),""),IF(Tbl_Orders[[#This Row],[Order Type]]="Sale",INDEX(S.O[],SMALL(IF(S.O[Order Number]=S.Order,ROW(S.O[])-ROW(S.O[#Headers])),COUNTIF($C$14:$C28,$C28)),MATCH(E$13,S.O[#Headers],0)),"")),"") ->  | F28: =IFERROR(IF(Tbl_Orders[[#This Row],[Order Type]]="Purchase",IF(Tbl_Orders[[#This Row],[Order Type]]="Purchase",INDEX(PO_Details[],SMALL(IF(PO_Details[Order Number]=PoNu,ROW(PO_Details[])-ROW(PO_Details[#Headers])),COUNTIF($C$14:$C28,$C28)),MATCH(F$13,PO_Details[#Headers],0)),""),IF(Tbl_Orders[[#This Row],[Order Type]]="Sale",INDEX(S.O[],SMALL(IF(S.O[Order Number]=S.Order,ROW(S.O[])-ROW(S.O[#Headers])),COUNTIF($C$14:$C28,$C28)),MATCH(F$13,S.O[#Headers],0)),"")),"") ->  | G28: =IFERROR(IF(Tbl_Orders[[#This Row],[Order Type]]="Purchase",IF(Tbl_Orders[[#This Row],[Order Type]]="Purchase",INDEX(PO_Details[],SMALL(IF(PO_Details[Order Number]=PoNu,ROW(PO_Details[])-ROW(PO_Details[#Headers])),COUNTIF($C$14:$C28,$C28)),MATCH(G$13,PO_Details[#Headers],0)),""),IF(Tbl_Orders[[#This Row],[Order Type]]="Sale",INDEX(S.O[],SMALL(IF(S.O[Order Number]=S.Order,ROW(S.O[])-ROW(S.O[#Headers])),COUNTIF($C$14:$C28,$C28)),MATCH(G$13,S.O[#Headers],0)),"")),"") ->  | H28: =IFERROR(IF(Tbl_Orders[[#This Row],[Order Type]]="Purchase",IF(Tbl_Orders[[#This Row],[Order Type]]="Purchase",INDEX(PO_Details[],SMALL(IF(PO_Details[Order Number]=PoNu,ROW(PO_Details[])-ROW(PO_Details[#Headers])),COUNTIF($C$14:$C28,$C28)),MATCH(H$13,PO_Details[#Headers],0)),""),IF(Tbl_Orders[[#This Row],[Order Type]]="Sale",INDEX(S.O[],SMALL(IF(S.O[Order Number]=S.Order,ROW(S.O[])-ROW(S.O[#Headers])),COUNTIF($C$14:$C28,$C28)),MATCH(H$13,S.O[#Headers],0)),"")),"") ->  | I28: =IFERROR(Tbl_Orders[[#This Row],[Unit Price]]*Tbl_Orders[Quantity],"") ->  | J28: =IF(Tbl_Orders[[#This Row],[Product Name]]="","",IFERROR(INDEX(Tbl_Product[#Data],MATCH(Tbl_Orders[[#This Row],[Product Name]],INDEX(Tbl_Product[#Data],,1),0),3),"")) ->  | K28: =TEXT(Tbl_Orders[[#This Row],[Order Date]],"yyyy-mmm") ->  | L28: =SUMIFS(Tbl_Orders[Quantity],Tbl_Orders[Expected Date],"<="&Tbl_Orders[[#This Row],[Expected Date]],Tbl_Orders[Product Name],Tbl_Orders[[#This Row],[Product Name]],Tbl_Orders[Order Type],"Purchase")-SUMIFS(Tbl_Orders[Quantity],Tbl_Orders[Expected Date],"<="&Tbl_Orders[[#This Row],[Expected Date]],Tbl_Orders[Product Name],Tbl_Orders[[#This Row],[Product Name]],Tbl_Orders[Order Type],"Sale") -> 0
A29: =IFERROR(IF(Tbl_Orders[[#This Row],[Order Type]]="Purchase",IF(Tbl_Orders[[#This Row],[Order Type]]="Purchase",INDEX(PO_Details[],SMALL(IF(PO_Details[Order Number]=PoNu,ROW(PO_Details[])-ROW(PO_Details[#Headers])),COUNTIF($C$14:$C29,$C29)),MATCH(A$13,PO_Details[#Headers],0)),""),IF(Tbl_Orders[[#This Row],[Order Type]]="Sale",INDEX(S.O[],SMALL(IF(S.O[Order Number]=S.Order,ROW(S.O[])-ROW(S.O[#Headers])),COUNTIF($C$14:$C29,$C29)),MATCH(A$13,S.O[#Headers],0)),"")),"") ->  | B29: =IFERROR(IF(Tbl_Orders[[#This Row],[Order Type]]="Purchase",IF(Tbl_Orders[[#This Row],[Order Type]]="Purchase",INDEX(PO_Details[],SMALL(IF(PO_Details[Order Number]=PoNu,ROW(PO_Details[])-ROW(PO_Details[#Headers])),COUNTIF($C$14:$C29,$C29)),MATCH(B$13,PO_Details[#Headers],0)),""),IF(Tbl_Orders[[#This Row],[Order Type]]="Sale",INDEX(S.O[],SMALL(IF(S.O[Order Number]=S.Order,ROW(S.O[])-ROW(S.O[#Headers])),COUNTIF($C$14:$C29,$C29)),MATCH(B$13,S.O[#Headers],0)),"")),"") ->  | D29: 12-31-18 | E29: =IFERROR(IF(Tbl_Orders[[#This Row],[Order Type]]="Purchase",IF(Tbl_Orders[[#This Row],[Order Type]]="Purchase",INDEX(PO_Details[],SMALL(IF(PO_Details[Order Number]=PoNu,ROW(PO_Details[])-ROW(PO_Details[#Headers])),COUNTIF($C$14:$C29,$C29)),MATCH(E$13,PO_Details[#Headers],0)),""),IF(Tbl_Orders[[#This Row],[Order Type]]="Sale",INDEX(S.O[],SMALL(IF(S.O[Order Number]=S.Order,ROW(S.O[])-ROW(S.O[#Headers])),COUNTIF($C$14:$C29,$C29)),MATCH(E$13,S.O[#Headers],0)),"")),"") ->  | F29: =IFERROR(IF(Tbl_Orders[[#This Row],[Order Type]]="Purchase",IF(Tbl_Orders[[#This Row],[Order Type]]="Purchase",INDEX(PO_Details[],SMALL(IF(PO_Details[Order Number]=PoNu,ROW(PO_Details[])-ROW(PO_Details[#Headers])),COUNTIF($C$14:$C29,$C29)),MATCH(F$13,PO_Details[#Headers],0)),""),IF(Tbl_Orders[[#This Row],[Order Type]]="Sale",INDEX(S.O[],SMALL(IF(S.O[Order Number]=S.Order,ROW(S.O[])-ROW(S.O[#Headers])),COUNTIF($C$14:$C29,$C29)),MATCH(F$13,S.O[#Headers],0)),"")),"") ->  | G29: =IFERROR(IF(Tbl_Orders[[#This Row],[Order Type]]="Purchase",IF(Tbl_Orders[[#This Row],[Order Type]]="Purchase",INDEX(PO_Details[],SMALL(IF(PO_Details[Order Number]=PoNu,ROW(PO_Details[])-ROW(PO_Details[#Headers])),COUNTIF($C$14:$C29,$C29)),MATCH(G$13,PO_Details[#Headers],0)),""),IF(Tbl_Orders[[#This Row],[Order Type]]="Sale",INDEX(S.O[],SMALL(IF(S.O[Order Number]=S.Order,ROW(S.O[])-ROW(S.O[#Headers])),COUNTIF($C$14:$C29,$C29)),MATCH(G$13,S.O[#Headers],0)),"")),"") ->  | H29: =IFERROR(IF(Tbl_Orders[[#This Row],[Order Type]]="Purchase",IF(Tbl_Orders[[#This Row],[Order Type]]="Purchase",INDEX(PO_Details[],SMALL(IF(PO_Details[Order Number]=PoNu,ROW(PO_Details[])-ROW(PO_Details[#Headers])),COUNTIF($C$14:$C29,$C29)),MATCH(H$13,PO_Details[#Headers],0)),""),IF(Tbl_Orders[[#This Row],[Order Type]]="Sale",INDEX(S.O[],SMALL(IF(S.O[Order Number]=S.Order,ROW(S.O[])-ROW(S.O[#Headers])),COUNTIF($C$14:$C29,$C29)),MATCH(H$13,S.O[#Headers],0)),"")),"") ->  | I29: =IFERROR(Tbl_Orders[[#This Row],[Unit Price]]*Tbl_Orders[Quantity],"") ->  | J29: =IF(Tbl_Orders[[#This Row],[Product Name]]="","",IFERROR(INDEX(Tbl_Product[#Data],MATCH(Tbl_Orders[[#This Row],[Product Name]],INDEX(Tbl_Product[#Data],,1),0),3),"")) ->  | K29: =TEXT(Tbl_Orders[[#This Row],[Order Date]],"yyyy-mmm") ->  | L29: =SUMIFS(Tbl_Orders[Quantity],Tbl_Orders[Expected Date],"<="&Tbl_Orders[[#This Row],[Expected Date]],Tbl_Orders[Product Name],Tbl_Orders[[#This Row],[Product Name]],Tbl_Orders[Order Type],"Purchase")-SUMIFS(Tbl_Orders[Quantity],Tbl_Orders[Expected Date],"<="&Tbl_Orders[[#This Row],[Expected Date]],Tbl_Orders[Product Name],Tbl_Orders[[#This Row],[Product Name]],Tbl_Orders[Order Type],"Sale") -> 0
A30: =IFERROR(IF(Tbl_Orders[[#This Row],[Order Type]]="Purchase",IF(Tbl_Orders[[#This Row],[Order Type]]="Purchase",INDEX(PO_Details[],SMALL(IF(PO_Details[Order Number]=PoNu,ROW(PO_Details[])-ROW(PO_Details[#Headers])),COUNTIF($C$14:$C30,$C30)),MATCH(A$13,PO_Details[#Headers],0)),""),IF(Tbl_Orders[[#This Row],[Order Type]]="Sale",INDEX(S.O[],SMALL(IF(S.O[Order Number]=S.Order,ROW(S.O[])-ROW(S.O[#Headers])),COUNTIF($C$14:$C30,$C30)),MATCH(A$13,S.O[#Headers],0)),"")),"") ->  | B30: =IFERROR(IF(Tbl_Orders[[#This Row],[Order Type]]="Purchase",IF(Tbl_Orders[[#This Row],[Order Type]]="Purchase",INDEX(PO_Details[],SMALL(IF(PO_Details[Order Number]=PoNu,ROW(PO_Details[])-ROW(PO_Details[#Headers])),COUNTIF($C$14:$C30,$C30)),MATCH(B$13,PO_Details[#Headers],0)),""),IF(Tbl_Orders[[#This Row],[Order Type]]="Sale",INDEX(S.O[],SMALL(IF(S.O[Order Number]=S.Order,ROW(S.O[])-ROW(S.O[#Headers])),COUNTIF($C$14:$C30,$C30)),MATCH(B$13,S.O[#Headers],0)),"")),"") ->  | D30: 12-31-18 | E30: =IFERROR(IF(Tbl_Orders[[#This Row],[Order Type]]="Purchase",IF(Tbl_Orders[[#This Row],[Order Type]]="Purchase",INDEX(PO_Details[],SMALL(IF(PO_Details[Order Number]=PoNu,ROW(PO_Details[])-ROW(PO_Details[#Headers])),COUNTIF($C$14:$C30,$C30)),MATCH(E$13,PO_Details[#Headers],0)),""),IF(Tbl_Orders[[#This Row],[Order Type]]="Sale",INDEX(S.O[],SMALL(IF(S.O[Order Number]=S.Order,ROW(S.O[])-ROW(S.O[#Headers])),COUNTIF($C$14:$C30,$C30)),MATCH(E$13,S.O[#Headers],0)),"")),"") ->  | F30: =IFERROR(IF(Tbl_Orders[[#This Row],[Order Type]]="Purchase",IF(Tbl_Orders[[#This Row],[Order Type]]="Purchase",INDEX(PO_Details[],SMALL(IF(PO_Details[Order Number]=PoNu,ROW(PO_Details[])-ROW(PO_Details[#Headers])),COUNTIF($C$14:$C30,$C30)),MATCH(F$13,PO_Details[#Headers],0)),""),IF(Tbl_Orders[[#This Row],[Order Type]]="Sale",INDEX(S.O[],SMALL(IF(S.O[Order Number]=S.Order,ROW(S.O[])-ROW(S.O[#Headers])),COUNTIF($C$14:$C30,$C30)),MATCH(F$13,S.O[#Headers],0)),"")),"") ->  | G30: =IFERROR(IF(Tbl_Orders[[#This Row],[Order Type]]="Purchase",IF(Tbl_Orders[[#This Row],[Order Type]]="Purchase",INDEX(PO_Details[],SMALL(IF(PO_Details[Order Number]=PoNu,ROW(PO_Details[])-ROW(PO_Details[#Headers])),COUNTIF($C$14:$C30,$C30)),MATCH(G$13,PO_Details[#Headers],0)),""),IF(Tbl_Orders[[#This Row],[Order Type]]="Sale",INDEX(S.O[],SMALL(IF(S.O[Order Number]=S.Order,ROW(S.O[])-ROW(S.O[#Headers])),COUNTIF($C$14:$C30,$C30)),MATCH(G$13,S.O[#Headers],0)),"")),"") ->  | H30: =IFERROR(IF(Tbl_Orders[[#This Row],[Order Type]]="Purchase",IF(Tbl_Orders[[#This Row],[Order Type]]="Purchase",INDEX(PO_Details[],SMALL(IF(PO_Details[Order Number]=PoNu,ROW(PO_Details[])-ROW(PO_Details[#Headers])),COUNTIF($C$14:$C30,$C30)),MATCH(H$13,PO_Details[#Headers],0)),""),IF(Tbl_Orders[[#This Row],[Order Type]]="Sale",INDEX(S.O[],SMALL(IF(S.O[Order Number]=S.Order,ROW(S.O[])-ROW(S.O[#Headers])),COUNTIF($C$14:$C30,$C30)),MATCH(H$13,S.O[#Headers],0)),"")),"") ->  | I30: =IFERROR(Tbl_Orders[[#This Row],[Unit Price]]*Tbl_Orders[Quantity],"") ->  | J30: =IF(Tbl_Orders[[#This Row],[Product Name]]="","",IFERROR(INDEX(Tbl_Product[#Data],MATCH(Tbl_Orders[[#This Row],[Product Name]],INDEX(Tbl_Product[#Data],,1),0),3),"")) ->  | K30: =TEXT(Tbl_Orders[[#This Row],[Order Date]],"yyyy-mmm") ->  | L30: =SUMIFS(Tbl_Orders[Quantity],Tbl_Orders[Expected Date],"<="&Tbl_Orders[[#This Row],[Expected Date]],Tbl_Orders[Product Name],Tbl_Orders[[#This Row],[Product Name]],Tbl_Orders[Order Type],"Purchase")-SUMIFS(Tbl_Orders[Quantity],Tbl_Orders[Expected Date],"<="&Tbl_Orders[[#This Row],[Expected Date]],Tbl_Orders[Product Name],Tbl_Orders[[#This Row],[Product Name]],Tbl_Orders[Order Type],"Sale") -> 0
A31: =IFERROR(IF(Tbl_Orders[[#This Row],[Order Type]]="Purchase",IF(Tbl_Orders[[#This Row],[Order Type]]="Purchase",INDEX(PO_Details[],SMALL(IF(PO_Details[Order Number]=PoNu,ROW(PO_Details[])-ROW(PO_Details[#Headers])),COUNTIF($C$14:$C31,$C31)),MATCH(A$13,PO_Details[#Headers],0)),""),IF(Tbl_Orders[[#This Row],[Order Type]]="Sale",INDEX(S.O[],SMALL(IF(S.O[Order Number]=S.Order,ROW(S.O[])-ROW(S.O[#Headers])),COUNTIF($C$14:$C31,$C31)),MATCH(A$13,S.O[#Headers],0)),"")),"") ->  | B31: =IFERROR(IF(Tbl_Orders[[#This Row],[Order Type]]="Purchase",IF(Tbl_Orders[[#This Row],[Order Type]]="Purchase",INDEX(PO_Details[],SMALL(IF(PO_Details[Order Number]=PoNu,ROW(PO_Details[])-ROW(PO_Details[#Headers])),COUNTIF($C$14:$C31,$C31)),MATCH(B$13,PO_Details[#Headers],0)),""),IF(Tbl_Orders[[#This Row],[Order Type]]="Sale",INDEX(S.O[],SMALL(IF(S.O[Order Number]=S.Order,ROW(S.O[])-ROW(S.O[#Headers])),COUNTIF($C$14:$C31,$C31)),MATCH(B$13,S.O[#Headers],0)),"")),"") ->  | D31: 12-31-18 | E31: =IFERROR(IF(Tbl_Orders[[#This Row],[Order Type]]="Purchase",IF(Tbl_Orders[[#This Row],[Order Type]]="Purchase",INDEX(PO_Details[],SMALL(IF(PO_Details[Order Number]=PoNu,ROW(PO_Details[])-ROW(PO_Details[#Headers])),COUNTIF($C$14:$C31,$C31)),MATCH(E$13,PO_Details[#Headers],0)),""),IF(Tbl_Orders[[#This Row],[Order Type]]="Sale",INDEX(S.O[],SMALL(IF(S.O[Order Number]=S.Order,ROW(S.O[])-ROW(S.O[#Headers])),COUNTIF($C$14:$C31,$C31)),MATCH(E$13,S.O[#Headers],0)),"")),"") ->  | F31: =IFERROR(IF(Tbl_Orders[[#This Row],[Order Type]]="Purchase",IF(Tbl_Orders[[#This Row],[Order Type]]="Purchase",INDEX(PO_Details[],SMALL(IF(PO_Details[Order Number]=PoNu,ROW(PO_Details[])-ROW(PO_Details[#Headers])),COUNTIF($C$14:$C31,$C31)),MATCH(F$13,PO_Details[#Headers],0)),""),IF(Tbl_Orders[[#This Row],[Order Type]]="Sale",INDEX(S.O[],SMALL(IF(S.O[Order Number]=S.Order,ROW(S.O[])-ROW(S.O[#Headers])),COUNTIF($C$14:$C31,$C31)),MATCH(F$13,S.O[#Headers],0)),"")),"") ->  | G31: =IFERROR(IF(Tbl_Orders[[#This Row],[Order Type]]="Purchase",IF(Tbl_Orders[[#This Row],[Order Type]]="Purchase",INDEX(PO_Details[],SMALL(IF(PO_Details[Order Number]=PoNu,ROW(PO_Details[])-ROW(PO_Details[#Headers])),COUNTIF($C$14:$C31,$C31)),MATCH(G$13,PO_Details[#Headers],0)),""),IF(Tbl_Orders[[#This Row],[Order Type]]="Sale",INDEX(S.O[],SMALL(IF(S.O[Order Number]=S.Order,ROW(S.O[])-ROW(S.O[#Headers])),COUNTIF($C$14:$C31,$C31)),MATCH(G$13,S.O[#Headers],0)),"")),"") ->  | H31: =IFERROR(IF(Tbl_Orders[[#This Row],[Order Type]]="Purchase",IF(Tbl_Orders[[#This Row],[Order Type]]="Purchase",INDEX(PO_Details[],SMALL(IF(PO_Details[Order Number]=PoNu,ROW(PO_Details[])-ROW(PO_Details[#Headers])),COUNTIF($C$14:$C31,$C31)),MATCH(H$13,PO_Details[#Headers],0)),""),IF(Tbl_Orders[[#This Row],[Order Type]]="Sale",INDEX(S.O[],SMALL(IF(S.O[Order Number]=S.Order,ROW(S.O[])-ROW(S.O[#Headers])),COUNTIF($C$14:$C31,$C31)),MATCH(H$13,S.O[#Headers],0)),"")),"") ->  | I31: =IFERROR(Tbl_Orders[[#This Row],[Unit Price]]*Tbl_Orders[Quantity],"") ->  | J31: =IF(Tbl_Orders[[#This Row],[Product Name]]="","",IFERROR(INDEX(Tbl_Product[#Data],MATCH(Tbl_Orders[[#This Row],[Product Name]],INDEX(Tbl_Product[#Data],,1),0),3),"")) ->  | K31: =TEXT(Tbl_Orders[[#This Row],[Order Date]],"yyyy-mmm") ->  | L31: =SUMIFS(Tbl_Orders[Quantity],Tbl_Orders[Expected Date],"<="&Tbl_Orders[[#This Row],[Expected Date]],Tbl_Orders[Product Name],Tbl_Orders[[#This Row],[Product Name]],Tbl_Orders[Order Type],"Purchase")-SUMIFS(Tbl_Orders[Quantity],Tbl_Orders[Expected Date],"<="&Tbl_Orders[[#This Row],[Expected Date]],Tbl_Orders[Product Name],Tbl_Orders[[#This Row],[Product Name]],Tbl_Orders[Order Type],"Sale") -> 0
A32: =IFERROR(IF(Tbl_Orders[[#This Row],[Order Type]]="Purchase",IF(Tbl_Orders[[#This Row],[Order Type]]="Purchase",INDEX(PO_Details[],SMALL(IF(PO_Details[Order Number]=PoNu,ROW(PO_Details[])-ROW(PO_Details[#Headers])),COUNTIF($C$14:$C32,$C32)),MATCH(A$13,PO_Details[#Headers],0)),""),IF(Tbl_Orders[[#This Row],[Order Type]]="Sale",INDEX(S.O[],SMALL(IF(S.O[Order Number]=S.Order,ROW(S.O[])-ROW(S.O[#Headers])),COUNTIF($C$14:$C32,$C32)),MATCH(A$13,S.O[#Headers],0)),"")),"") ->  | B32: =IFERROR(IF(Tbl_Orders[[#This Row],[Order Type]]="Purchase",IF(Tbl_Orders[[#This Row],[Order Type]]="Purchase",INDEX(PO_Details[],SMALL(IF(PO_Details[Order Number]=PoNu,ROW(PO_Details[])-ROW(PO_Details[#Headers])),COUNTIF($C$14:$C32,$C32)),MATCH(B$13,PO_Details[#Headers],0)),""),IF(Tbl_Orders[[#This Row],[Order Type]]="Sale",INDEX(S.O[],SMALL(IF(S.O[Order Number]=S.Order,ROW(S.O[])-ROW(S.O[#Headers])),COUNTIF($C$14:$C32,$C32)),MATCH(B$13,S.O[#Headers],0)),"")),"") ->  | D32: 12-31-18 | E32: =IFERROR(IF(Tbl_Orders[[#This Row],[Order Type]]="Purchase",IF(Tbl_Orders[[#This Row],[Order Type]]="Purchase",INDEX(PO_Details[],SMALL(IF(PO_Details[Order Number]=PoNu,ROW(PO_Details[])-ROW(PO_Details[#Headers])),COUNTIF($C$14:$C32,$C32)),MATCH(E$13,PO_Details[#Headers],0)),""),IF(Tbl_Orders[[#This Row],[Order Type]]="Sale",INDEX(S.O[],SMALL(IF(S.O[Order Number]=S.Order,ROW(S.O[])-ROW(S.O[#Headers])),COUNTIF($C$14:$C32,$C32)),MATCH(E$13,S.O[#Headers],0)),"")),"") ->  | F32: =IFERROR(IF(Tbl_Orders[[#This Row],[Order Type]]="Purchase",IF(Tbl_Orders[[#This Row],[Order Type]]="Purchase",INDEX(PO_Details[],SMALL(IF(PO_Details[Order Number]=PoNu,ROW(PO_Details[])-ROW(PO_Details[#Headers])),COUNTIF($C$14:$C32,$C32)),MATCH(F$13,PO_Details[#Headers],0)),""),IF(Tbl_Orders[[#This Row],[Order Type]]="Sale",INDEX(S.O[],SMALL(IF(S.O[Order Number]=S.Order,ROW(S.O[])-ROW(S.O[#Headers])),COUNTIF($C$14:$C32,$C32)),MATCH(F$13,S.O[#Headers],0)),"")),"") ->  | G32: =IFERROR(IF(Tbl_Orders[[#This Row],[Order Type]]="Purchase",IF(Tbl_Orders[[#This Row],[Order Type]]="Purchase",INDEX(PO_Details[],SMALL(IF(PO_Details[Order Number]=PoNu,ROW(PO_Details[])-ROW(PO_Details[#Headers])),COUNTIF($C$14:$C32,$C32)),MATCH(G$13,PO_Details[#Headers],0)),""),IF(Tbl_Orders[[#This Row],[Order Type]]="Sale",INDEX(S.O[],SMALL(IF(S.O[Order Number]=S.Order,ROW(S.O[])-ROW(S.O[#Headers])),COUNTIF($C$14:$C32,$C32)),MATCH(G$13,S.O[#Headers],0)),"")),"") ->  | H32: =IFERROR(IF(Tbl_Orders[[#This Row],[Order Type]]="Purchase",IF(Tbl_Orders[[#This Row],[Order Type]]="Purchase",INDEX(PO_Details[],SMALL(IF(PO_Details[Order Number]=PoNu,ROW(PO_Details[])-ROW(PO_Details[#Headers])),COUNTIF($C$14:$C32,$C32)),MATCH(H$13,PO_Details[#Headers],0)),""),IF(Tbl_Orders[[#This Row],[Order Type]]="Sale",INDEX(S.O[],SMALL(IF(S.O[Order Number]=S.Order,ROW(S.O[])-ROW(S.O[#Headers])),COUNTIF($C$14:$C32,$C32)),MATCH(H$13,S.O[#Headers],0)),"")),"") ->  | I32: =IFERROR(Tbl_Orders[[#This Row],[Unit Price]]*Tbl_Orders[Quantity],"") ->  | J32: =IF(Tbl_Orders[[#This Row],[Product Name]]="","",IFERROR(INDEX(Tbl_Product[#Data],MATCH(Tbl_Orders[[#This Row],[Product Name]],INDEX(Tbl_Product[#Data],,1),0),3),"")) ->  | K32: =TEXT(Tbl_Orders[[#This Row],[Order Date]],"yyyy-mmm") ->  | L32: =SUMIFS(Tbl_Orders[Quantity],Tbl_Orders[Expected Date],"<="&Tbl_Orders[[#This Row],[Expected Date]],Tbl_Orders[Product Name],Tbl_Orders[[#This Row],[Product Name]],Tbl_Orders[Order Type],"Purchase")-SUMIFS(Tbl_Orders[Quantity],Tbl_Orders[Expected Date],"<="&Tbl_Orders[[#This Row],[Expected Date]],Tbl_Orders[Product Name],Tbl_Orders[[#This Row],[Product Name]],Tbl_Orders[Order Type],"Sale") -> 0
A33: =IFERROR(IF(Tbl_Orders[[#This Row],[Order Type]]="Purchase",IF(Tbl_Orders[[#This Row],[Order Type]]="Purchase",INDEX(PO_Details[],SMALL(IF(PO_Details[Order Number]=PoNu,ROW(PO_Details[])-ROW(PO_Details[#Headers])),COUNTIF($C$14:$C33,$C33)),MATCH(A$13,PO_Details[#Headers],0)),""),IF(Tbl_Orders[[#This Row],[Order Type]]="Sale",INDEX(S.O[],SMALL(IF(S.O[Order Number]=S.Order,ROW(S.O[])-ROW(S.O[#Headers])),COUNTIF($C$14:$C33,$C33)),MATCH(A$13,S.O[#Headers],0)),"")),"") ->  | B33: =IFERROR(IF(Tbl_Orders[[#This Row],[Order Type]]="Purchase",IF(Tbl_Orders[[#This Row],[Order Type]]="Purchase",INDEX(PO_Details[],SMALL(IF(PO_Details[Order Number]=PoNu,ROW(PO_Details[])-ROW(PO_Details[#Headers])),COUNTIF($C$14:$C33,$C33)),MATCH(B$13,PO_Details[#Headers],0)),""),IF(Tbl_Orders[[#This Row],[Order Type]]="Sale",INDEX(S.O[],SMALL(IF(S.O[Order Number]=S.Order,ROW(S.O[])-ROW(S.O[#Headers])),COUNTIF($C$14:$C33,$C33)),MATCH(B$13,S.O[#Headers],0)),"")),"") ->  | D33: 12-31-18 | E33: =IFERROR(IF(Tbl_Orders[[#This Row],[Order Type]]="Purchase",IF(Tbl_Orders[[#This Row],[Order Type]]="Purchase",INDEX(PO_Details[],SMALL(IF(PO_Details[Order Number]=PoNu,ROW(PO_Details[])-ROW(PO_Details[#Headers])),COUNTIF($C$14:$C33,$C33)),MATCH(E$13,PO_Details[#Headers],0)),""),IF(Tbl_Orders[[#This Row],[Order Type]]="Sale",INDEX(S.O[],SMALL(IF(S.O[Order Number]=S.Order,ROW(S.O[])-ROW(S.O[#Headers])),COUNTIF($C$14:$C33,$C33)),MATCH(E$13,S.O[#Headers],0)),"")),"") ->  | F33: =IFERROR(IF(Tbl_Orders[[#This Row],[Order Type]]="Purchase",IF(Tbl_Orders[[#This Row],[Order Type]]="Purchase",INDEX(PO_Details[],SMALL(IF(PO_Details[Order Number]=PoNu,ROW(PO_Details[])-ROW(PO_Details[#Headers])),COUNTIF($C$14:$C33,$C33)),MATCH(F$13,PO_Details[#Headers],0)),""),IF(Tbl_Orders[[#This Row],[Order Type]]="Sale",INDEX(S.O[],SMALL(IF(S.O[Order Number]=S.Order,ROW(S.O[])-ROW(S.O[#Headers])),COUNTIF($C$14:$C33,$C33)),MATCH(F$13,S.O[#Headers],0)),"")),"") ->  | G33: =IFERROR(IF(Tbl_Orders[[#This Row],[Order Type]]="Purchase",IF(Tbl_Orders[[#This Row],[Order Type]]="Purchase",INDEX(PO_Details[],SMALL(IF(PO_Details[Order Number]=PoNu,ROW(PO_Details[])-ROW(PO_Details[#Headers])),COUNTIF($C$14:$C33,$C33)),MATCH(G$13,PO_Details[#Headers],0)),""),IF(Tbl_Orders[[#This Row],[Order Type]]="Sale",INDEX(S.O[],SMALL(IF(S.O[Order Number]=S.Order,ROW(S.O[])-ROW(S.O[#Headers])),COUNTIF($C$14:$C33,$C33)),MATCH(G$13,S.O[#Headers],0)),"")),"") ->  | H33: =IFERROR(IF(Tbl_Orders[[#This Row],[Order Type]]="Purchase",IF(Tbl_Orders[[#This Row],[Order Type]]="Purchase",INDEX(PO_Details[],SMALL(IF(PO_Details[Order Number]=PoNu,ROW(PO_Details[])-ROW(PO_Details[#Headers])),COUNTIF($C$14:$C33,$C33)),MATCH(H$13,PO_Details[#Headers],0)),""),IF(Tbl_Orders[[#This Row],[Order Type]]="Sale",INDEX(S.O[],SMALL(IF(S.O[Order Number]=S.Order,ROW(S.O[])-ROW(S.O[#Headers])),COUNTIF($C$14:$C33,$C33)),MATCH(H$13,S.O[#Headers],0)),"")),"") ->  | I33: =IFERROR(Tbl_Orders[[#This Row],[Unit Price]]*Tbl_Orders[Quantity],"") ->  | J33: =IF(Tbl_Orders[[#This Row],[Product Name]]="","",IFERROR(INDEX(Tbl_Product[#Data],MATCH(Tbl_Orders[[#This Row],[Product Name]],INDEX(Tbl_Product[#Data],,1),0),3),"")) ->  | K33: =TEXT(Tbl_Orders[[#This Row],[Order Date]],"yyyy-mmm") ->  | L33: =SUMIFS(Tbl_Orders[Quantity],Tbl_Orders[Expected Date],"<="&Tbl_Orders[[#This Row],[Expected Date]],Tbl_Orders[Product Name],Tbl_Orders[[#This Row],[Product Name]],Tbl_Orders[Order Type],"Purchase")-SUMIFS(Tbl_Orders[Quantity],Tbl_Orders[Expected Date],"<="&Tbl_Orders[[#This Row],[Expected Date]],Tbl_Orders[Product Name],Tbl_Orders[[#This Row],[Product Name]],Tbl_Orders[Order Type],"Sale") -> 0
A34: =IFERROR(IF(Tbl_Orders[[#This Row],[Order Type]]="Purchase",IF(Tbl_Orders[[#This Row],[Order Type]]="Purchase",INDEX(PO_Details[],SMALL(IF(PO_Details[Order Number]=PoNu,ROW(PO_Details[])-ROW(PO_Details[#Headers])),COUNTIF($C$14:$C34,$C34)),MATCH(A$13,PO_Details[#Headers],0)),""),IF(Tbl_Orders[[#This Row],[Order Type]]="Sale",INDEX(S.O[],SMALL(IF(S.O[Order Number]=S.Order,ROW(S.O[])-ROW(S.O[#Headers])),COUNTIF($C$14:$C34,$C34)),MATCH(A$13,S.O[#Headers],0)),"")),"") ->  | B34: =IFERROR(IF(Tbl_Orders[[#This Row],[Order Type]]="Purchase",IF(Tbl_Orders[[#This Row],[Order Type]]="Purchase",INDEX(PO_Details[],SMALL(IF(PO_Details[Order Number]=PoNu,ROW(PO_Details[])-ROW(PO_Details[#Headers])),COUNTIF($C$14:$C34,$C34)),MATCH(B$13,PO_Details[#Headers],0)),""),IF(Tbl_Orders[[#This Row],[Order Type]]="Sale",INDEX(S.O[],SMALL(IF(S.O[Order Number]=S.Order,ROW(S.O[])-ROW(S.O[#Headers])),COUNTIF($C$14:$C34,$C34)),MATCH(B$13,S.O[#Headers],0)),"")),"") ->  | D34: 12-31-18 | E34: =IFERROR(IF(Tbl_Orders[[#This Row],[Order Type]]="Purchase",IF(Tbl_Orders[[#This Row],[Order Type]]="Purchase",INDEX(PO_Details[],SMALL(IF(PO_Details[Order Number]=PoNu,ROW(PO_Details[])-ROW(PO_Details[#Headers])),COUNTIF($C$14:$C34,$C34)),MATCH(E$13,PO_Details[#Headers],0)),""),IF(Tbl_Orders[[#This Row],[Order Type]]="Sale",INDEX(S.O[],SMALL(IF(S.O[Order Number]=S.Order,ROW(S.O[])-ROW(S.O[#Headers])),COUNTIF($C$14:$C34,$C34)),MATCH(E$13,S.O[#Headers],0)),"")),"") ->  | F34: =IFERROR(IF(Tbl_Orders[[#This Row],[Order Type]]="Purchase",IF(Tbl_Orders[[#This Row],[Order Type]]="Purchase",INDEX(PO_Details[],SMALL(IF(PO_Details[Order Number]=PoNu,ROW(PO_Details[])-ROW(PO_Details[#Headers])),COUNTIF($C$14:$C34,$C34)),MATCH(F$13,PO_Details[#Headers],0)),""),IF(Tbl_Orders[[#This Row],[Order Type]]="Sale",INDEX(S.O[],SMALL(IF(S.O[Order Number]=S.Order,ROW(S.O[])-ROW(S.O[#Headers])),COUNTIF($C$14:$C34,$C34)),MATCH(F$13,S.O[#Headers],0)),"")),"") ->  | G34: =IFERROR(IF(Tbl_Orders[[#This Row],[Order Type]]="Purchase",IF(Tbl_Orders[[#This Row],[Order Type]]="Purchase",INDEX(PO_Details[],SMALL(IF(PO_Details[Order Number]=PoNu,ROW(PO_Details[])-ROW(PO_Details[#Headers])),COUNTIF($C$14:$C34,$C34)),MATCH(G$13,PO_Details[#Headers],0)),""),IF(Tbl_Orders[[#This Row],[Order Type]]="Sale",INDEX(S.O[],SMALL(IF(S.O[Order Number]=S.Order,ROW(S.O[])-ROW(S.O[#Headers])),COUNTIF($C$14:$C34,$C34)),MATCH(G$13,S.O[#Headers],0)),"")),"") ->  | H34: =IFERROR(IF(Tbl_Orders[[#This Row],[Order Type]]="Purchase",IF(Tbl_Orders[[#This Row],[Order Type]]="Purchase",INDEX(PO_Details[],SMALL(IF(PO_Details[Order Number]=PoNu,ROW(PO_Details[])-ROW(PO_Details[#Headers])),COUNTIF($C$14:$C34,$C34)),MATCH(H$13,PO_Details[#Headers],0)),""),IF(Tbl_Orders[[#This Row],[Order Type]]="Sale",INDEX(S.O[],SMALL(IF(S.O[Order Number]=S.Order,ROW(S.O[])-ROW(S.O[#Headers])),COUNTIF($C$14:$C34,$C34)),MATCH(H$13,S.O[#Headers],0)),"")),"") ->  | I34: =IFERROR(Tbl_Orders[[#This Row],[Unit Price]]*Tbl_Orders[Quantity],"") ->  | J34: =IF(Tbl_Orders[[#This Row],[Product Name]]="","",IFERROR(INDEX(Tbl_Product[#Data],MATCH(Tbl_Orders[[#This Row],[Product Name]],INDEX(Tbl_Product[#Data],,1),0),3),"")) ->  | K34: =TEXT(Tbl_Orders[[#This Row],[Order Date]],"yyyy-mmm") ->  | L34: =SUMIFS(Tbl_Orders[Quantity],Tbl_Orders[Expected Date],"<="&Tbl_Orders[[#This Row],[Expected Date]],Tbl_Orders[Product Name],Tbl_Orders[[#This Row],[Product Name]],Tbl_Orders[Order Type],"Purchase")-SUMIFS(Tbl_Orders[Quantity],Tbl_Orders[Expected Date],"<="&Tbl_Orders[[#This Row],[Expected Date]],Tbl_Orders[Product Name],Tbl_Orders[[#This Row],[Product Name]],Tbl_Orders[Order Type],"Sale") -> 0
A35: =IFERROR(IF(Tbl_Orders[[#This Row],[Order Type]]="Purchase",IF(Tbl_Orders[[#This Row],[Order Type]]="Purchase",INDEX(PO_Details[],SMALL(IF(PO_Details[Order Number]=PoNu,ROW(PO_Details[])-ROW(PO_Details[#Headers])),COUNTIF($C$14:$C35,$C35)),MATCH(A$13,PO_Details[#Headers],0)),""),IF(Tbl_Orders[[#This Row],[Order Type]]="Sale",INDEX(S.O[],SMALL(IF(S.O[Order Number]=S.Order,ROW(S.O[])-ROW(S.O[#Headers])),COUNTIF($C$14:$C35,$C35)),MATCH(A$13,S.O[#Headers],0)),"")),"") ->  | B35: =IFERROR(IF(Tbl_Orders[[#This Row],[Order Type]]="Purchase",IF(Tbl_Orders[[#This Row],[Order Type]]="Purchase",INDEX(PO_Details[],SMALL(IF(PO_Details[Order Number]=PoNu,ROW(PO_Details[])-ROW(PO_Details[#Headers])),COUNTIF($C$14:$C35,$C35)),MATCH(B$13,PO_Details[#Headers],0)),""),IF(Tbl_Orders[[#This Row],[Order Type]]="Sale",INDEX(S.O[],SMALL(IF(S.O[Order Number]=S.Order,ROW(S.O[])-ROW(S.O[#Headers])),COUNTIF($C$14:$C35,$C35)),MATCH(B$13,S.O[#Headers],0)),"")),"") ->  | D35: 12-31-18 | E35: =IFERROR(IF(Tbl_Orders[[#This Row],[Order Type]]="Purchase",IF(Tbl_Orders[[#This Row],[Order Type]]="Purchase",INDEX(PO_Details[],SMALL(IF(PO_Details[Order Number]=PoNu,ROW(PO_Details[])-ROW(PO_Details[#Headers])),COUNTIF($C$14:$C35,$C35)),MATCH(E$13,PO_Details[#Headers],0)),""),IF(Tbl_Orders[[#This Row],[Order Type]]="Sale",INDEX(S.O[],SMALL(IF(S.O[Order Number]=S.Order,ROW(S.O[])-ROW(S.O[#Headers])),COUNTIF($C$14:$C35,$C35)),MATCH(E$13,S.O[#Headers],0)),"")),"") ->  | F35: =IFERROR(IF(Tbl_Orders[[#This Row],[Order Type]]="Purchase",IF(Tbl_Orders[[#This Row],[Order Type]]="Purchase",INDEX(PO_Details[],SMALL(IF(PO_Details[Order Number]=PoNu,ROW(PO_Details[])-ROW(PO_Details[#Headers])),COUNTIF($C$14:$C35,$C35)),MATCH(F$13,PO_Details[#Headers],0)),""),IF(Tbl_Orders[[#This Row],[Order Type]]="Sale",INDEX(S.O[],SMALL(IF(S.O[Order Number]=S.Order,ROW(S.O[])-ROW(S.O[#Headers])),COUNTIF($C$14:$C35,$C35)),MATCH(F$13,S.O[#Headers],0)),"")),"") ->  | G35: =IFERROR(IF(Tbl_Orders[[#This Row],[Order Type]]="Purchase",IF(Tbl_Orders[[#This Row],[Order Type]]="Purchase",INDEX(PO_Details[],SMALL(IF(PO_Details[Order Number]=PoNu,ROW(PO_Details[])-ROW(PO_Details[#Headers])),COUNTIF($C$14:$C35,$C35)),MATCH(G$13,PO_Details[#Headers],0)),""),IF(Tbl_Orders[[#This Row],[Order Type]]="Sale",INDEX(S.O[],SMALL(IF(S.O[Order Number]=S.Order,ROW(S.O[])-ROW(S.O[#Headers])),COUNTIF($C$14:$C35,$C35)),MATCH(G$13,S.O[#Headers],0)),"")),"") ->  | H35: =IFERROR(IF(Tbl_Orders[[#This Row],[Order Type]]="Purchase",IF(Tbl_Orders[[#This Row],[Order Type]]="Purchase",INDEX(PO_Details[],SMALL(IF(PO_Details[Order Number]=PoNu,ROW(PO_Details[])-ROW(PO_Details[#Headers])),COUNTIF($C$14:$C35,$C35)),MATCH(H$13,PO_Details[#Headers],0)),""),IF(Tbl_Orders[[#This Row],[Order Type]]="Sale",INDEX(S.O[],SMALL(IF(S.O[Order Number]=S.Order,ROW(S.O[])-ROW(S.O[#Headers])),COUNTIF($C$14:$C35,$C35)),MATCH(H$13,S.O[#Headers],0)),"")),"") ->  | I35: =IFERROR(Tbl_Orders[[#This Row],[Unit Price]]*Tbl_Orders[Quantity],"") ->  | J35: =IF(Tbl_Orders[[#This Row],[Product Name]]="","",IFERROR(INDEX(Tbl_Product[#Data],MATCH(Tbl_Orders[[#This Row],[Product Name]],INDEX(Tbl_Product[#Data],,1),0),3),"")) ->  | K35: =TEXT(Tbl_Orders[[#This Row],[Order Date]],"yyyy-mmm") ->  | L35: =SUMIFS(Tbl_Orders[Quantity],Tbl_Orders[Expected Date],"<="&Tbl_Orders[[#This Row],[Expected Date]],Tbl_Orders[Product Name],Tbl_Orders[[#This Row],[Product Name]],Tbl_Orders[Order Type],"Purchase")-SUMIFS(Tbl_Orders[Quantity],Tbl_Orders[Expected Date],"<="&Tbl_Orders[[#This Row],[Expected Date]],Tbl_Orders[Product Name],Tbl_Orders[[#This Row],[Product Name]],Tbl_Orders[Order Type],"Sale") -> 0
A36: =IFERROR(IF(Tbl_Orders[[#This Row],[Order Type]]="Purchase",IF(Tbl_Orders[[#This Row],[Order Type]]="Purchase",INDEX(PO_Details[],SMALL(IF(PO_Details[Order Number]=PoNu,ROW(PO_Details[])-ROW(PO_Details[#Headers])),COUNTIF($C$14:$C36,$C36)),MATCH(A$13,PO_Details[#Headers],0)),""),IF(Tbl_Orders[[#This Row],[Order Type]]="Sale",INDEX(S.O[],SMALL(IF(S.O[Order Number]=S.Order,ROW(S.O[])-ROW(S.O[#Headers])),COUNTIF($C$14:$C36,$C36)),MATCH(A$13,S.O[#Headers],0)),"")),"") ->  | B36: =IFERROR(IF(Tbl_Orders[[#This Row],[Order Type]]="Purchase",IF(Tbl_Orders[[#This Row],[Order Type]]="Purchase",INDEX(PO_Details[],SMALL(IF(PO_Details[Order Number]=PoNu,ROW(PO_Details[])-ROW(PO_Details[#Headers])),COUNTIF($C$14:$C36,$C36)),MATCH(B$13,PO_Details[#Headers],0)),""),IF(Tbl_Orders[[#This Row],[Order Type]]="Sale",INDEX(S.O[],SMALL(IF(S.O[Order Number]=S.Order,ROW(S.O[])-ROW(S.O[#Headers])),COUNTIF($C$14:$C36,$C36)),MATCH(B$13,S.O[#Headers],0)),"")),"") ->  | D36: 12-31-18 | E36: =IFERROR(IF(Tbl_Orders[[#This Row],[Order Type]]="Purchase",IF(Tbl_Orders[[#This Row],[Order Type]]="Purchase",INDEX(PO_Details[],SMALL(IF(PO_Details[Order Number]=PoNu,ROW(PO_Details[])-ROW(PO_Details[#Headers])),COUNTIF($C$14:$C36,$C36)),MATCH(E$13,PO_Details[#Headers],0)),""),IF(Tbl_Orders[[#This Row],[Order Type]]="Sale",INDEX(S.O[],SMALL(IF(S.O[Order Number]=S.Order,ROW(S.O[])-ROW(S.O[#Headers])),COUNTIF($C$14:$C36,$C36)),MATCH(E$13,S.O[#Headers],0)),"")),"") ->  | F36: =IFERROR(IF(Tbl_Orders[[#This Row],[Order Type]]="Purchase",IF(Tbl_Orders[[#This Row],[Order Type]]="Purchase",INDEX(PO_Details[],SMALL(IF(PO_Details[Order Number]=PoNu,ROW(PO_Details[])-ROW(PO_Details[#Headers])),COUNTIF($C$14:$C36,$C36)),MATCH(F$13,PO_Details[#Headers],0)),""),IF(Tbl_Orders[[#This Row],[Order Type]]="Sale",INDEX(S.O[],SMALL(IF(S.O[Order Number]=S.Order,ROW(S.O[])-ROW(S.O[#Headers])),COUNTIF($C$14:$C36,$C36)),MATCH(F$13,S.O[#Headers],0)),"")),"") ->  | G36: =IFERROR(IF(Tbl_Orders[[#This Row],[Order Type]]="Purchase",IF(Tbl_Orders[[#This Row],[Order Type]]="Purchase",INDEX(PO_Details[],SMALL(IF(PO_Details[Order Number]=PoNu,ROW(PO_Details[])-ROW(PO_Details[#Headers])),COUNTIF($C$14:$C36,$C36)),MATCH(G$13,PO_Details[#Headers],0)),""),IF(Tbl_Orders[[#This Row],[Order Type]]="Sale",INDEX(S.O[],SMALL(IF(S.O[Order Number]=S.Order,ROW(S.O[])-ROW(S.O[#Headers])),COUNTIF($C$14:$C36,$C36)),MATCH(G$13,S.O[#Headers],0)),"")),"") ->  | H36: =IFERROR(IF(Tbl_Orders[[#This Row],[Order Type]]="Purchase",IF(Tbl_Orders[[#This Row],[Order Type]]="Purchase",INDEX(PO_Details[],SMALL(IF(PO_Details[Order Number]=PoNu,ROW(PO_Details[])-ROW(PO_Details[#Headers])),COUNTIF($C$14:$C36,$C36)),MATCH(H$13,PO_Details[#Headers],0)),""),IF(Tbl_Orders[[#This Row],[Order Type]]="Sale",INDEX(S.O[],SMALL(IF(S.O[Order Number]=S.Order,ROW(S.O[])-ROW(S.O[#Headers])),COUNTIF($C$14:$C36,$C36)),MATCH(H$13,S.O[#Headers],0)),"")),"") ->  | I36: =IFERROR(Tbl_Orders[[#This Row],[Unit Price]]*Tbl_Orders[Quantity],"") ->  | J36: =IF(Tbl_Orders[[#This Row],[Product Name]]="","",IFERROR(INDEX(Tbl_Product[#Data],MATCH(Tbl_Orders[[#This Row],[Product Name]],INDEX(Tbl_Product[#Data],,1),0),3),"")) ->  | K36: =TEXT(Tbl_Orders[[#This Row],[Order Date]],"yyyy-mmm") ->  | L36: =SUMIFS(Tbl_Orders[Quantity],Tbl_Orders[Expected Date],"<="&Tbl_Orders[[#This Row],[Expected Date]],Tbl_Orders[Product Name],Tbl_Orders[[#This Row],[Product Name]],Tbl_Orders[Order Type],"Purchase")-SUMIFS(Tbl_Orders[Quantity],Tbl_Orders[Expected Date],"<="&Tbl_Orders[[#This Row],[Expected Date]],Tbl_Orders[Product Name],Tbl_Orders[[#This Row],[Product Name]],Tbl_Orders[Order Type],"Sale") -> 0
A37: =IFERROR(IF(Tbl_Orders[[#This Row],[Order Type]]="Purchase",IF(Tbl_Orders[[#This Row],[Order Type]]="Purchase",INDEX(PO_Details[],SMALL(IF(PO_Details[Order Number]=PoNu,ROW(PO_Details[])-ROW(PO_Details[#Headers])),COUNTIF($C$14:$C37,$C37)),MATCH(A$13,PO_Details[#Headers],0)),""),IF(Tbl_Orders[[#This Row],[Order Type]]="Sale",INDEX(S.O[],SMALL(IF(S.O[Order Number]=S.Order,ROW(S.O[])-ROW(S.O[#Headers])),COUNTIF($C$14:$C37,$C37)),MATCH(A$13,S.O[#Headers],0)),"")),"") ->  | B37: =IFERROR(IF(Tbl_Orders[[#This Row],[Order Type]]="Purchase",IF(Tbl_Orders[[#This Row],[Order Type]]="Purchase",INDEX(PO_Details[],SMALL(IF(PO_Details[Order Number]=PoNu,ROW(PO_Details[])-ROW(PO_Details[#Headers])),COUNTIF($C$14:$C37,$C37)),MATCH(B$13,PO_Details[#Headers],0)),""),IF(Tbl_Orders[[#This Row],[Order Type]]="Sale",INDEX(S.O[],SMALL(IF(S.O[Order Number]=S.Order,ROW(S.O[])-ROW(S.O[#Headers])),COUNTIF($C$14:$C37,$C37)),MATCH(B$13,S.O[#Headers],0)),"")),"") ->  | D37: 12-31-18 | E37: =IFERROR(IF(Tbl_Orders[[#This Row],[Order Type]]="Purchase",IF(Tbl_Orders[[#This Row],[Order Type]]="Purchase",INDEX(PO_Details[],SMALL(IF(PO_Details[Order Number]=PoNu,ROW(PO_Details[])-ROW(PO_Details[#Headers])),COUNTIF($C$14:$C37,$C37)),MATCH(E$13,PO_Details[#Headers],0)),""),IF(Tbl_Orders[[#This Row],[Order Type]]="Sale",INDEX(S.O[],SMALL(IF(S.O[Order Number]=S.Order,ROW(S.O[])-ROW(S.O[#Headers])),COUNTIF($C$14:$C37,$C37)),MATCH(E$13,S.O[#Headers],0)),"")),"") ->  | F37: =IFERROR(IF(Tbl_Orders[[#This Row],[Order Type]]="Purchase",IF(Tbl_Orders[[#This Row],[Order Type]]="Purchase",INDEX(PO_Details[],SMALL(IF(PO_Details[Order Number]=PoNu,ROW(PO_Details[])-ROW(PO_Details[#Headers])),COUNTIF($C$14:$C37,$C37)),MATCH(F$13,PO_Details[#Headers],0)),""),IF(Tbl_Orders[[#This Row],[Order Type]]="Sale",INDEX(S.O[],SMALL(IF(S.O[Order Number]=S.Order,ROW(S.O[])-ROW(S.O[#Headers])),COUNTIF($C$14:$C37,$C37)),MATCH(F$13,S.O[#Headers],0)),"")),"") ->  | G37: =IFERROR(IF(Tbl_Orders[[#This Row],[Order Type]]="Purchase",IF(Tbl_Orders[[#This Row],[Order Type]]="Purchase",INDEX(PO_Details[],SMALL(IF(PO_Details[Order Number]=PoNu,ROW(PO_Details[])-ROW(PO_Details[#Headers])),COUNTIF($C$14:$C37,$C37)),MATCH(G$13,PO_Details[#Headers],0)),""),IF(Tbl_Orders[[#This Row],[Order Type]]="Sale",INDEX(S.O[],SMALL(IF(S.O[Order Number]=S.Order,ROW(S.O[])-ROW(S.O[#Headers])),COUNTIF($C$14:$C37,$C37)),MATCH(G$13,S.O[#Headers],0)),"")),"") ->  | H37: =IFERROR(IF(Tbl_Orders[[#This Row],[Order Type]]="Purchase",IF(Tbl_Orders[[#This Row],[Order Type]]="Purchase",INDEX(PO_Details[],SMALL(IF(PO_Details[Order Number]=PoNu,ROW(PO_Details[])-ROW(PO_Details[#Headers])),COUNTIF($C$14:$C37,$C37)),MATCH(H$13,PO_Details[#Headers],0)),""),IF(Tbl_Orders[[#This Row],[Order Type]]="Sale",INDEX(S.O[],SMALL(IF(S.O[Order Number]=S.Order,ROW(S.O[])-ROW(S.O[#Headers])),COUNTIF($C$14:$C37,$C37)),MATCH(H$13,S.O[#Headers],0)),"")),"") ->  | I37: =IFERROR(Tbl_Orders[[#This Row],[Unit Price]]*Tbl_Orders[Quantity],"") ->  | J37: =IF(Tbl_Orders[[#This Row],[Product Name]]="","",IFERROR(INDEX(Tbl_Product[#Data],MATCH(Tbl_Orders[[#This Row],[Product Name]],INDEX(Tbl_Product[#Data],,1),0),3),"")) ->  | K37: =TEXT(Tbl_Orders[[#This Row],[Order Date]],"yyyy-mmm") ->  | L37: =SUMIFS(Tbl_Orders[Quantity],Tbl_Orders[Expected Date],"<="&Tbl_Orders[[#This Row],[Expected Date]],Tbl_Orders[Product Name],Tbl_Orders[[#This Row],[Product Name]],Tbl_Orders[Order Type],"Purchase")-SUMIFS(Tbl_Orders[Quantity],Tbl_Orders[Expected Date],"<="&Tbl_Orders[[#This Row],[Expected Date]],Tbl_Orders[Product Name],Tbl_Orders[[#This Row],[Product Name]],Tbl_Orders[Order Type],"Sale") -> 0
A38: =IFERROR(IF(Tbl_Orders[[#This Row],[Order Type]]="Purchase",IF(Tbl_Orders[[#This Row],[Order Type]]="Purchase",INDEX(PO_Details[],SMALL(IF(PO_Details[Order Number]=PoNu,ROW(PO_Details[])-ROW(PO_Details[#Headers])),COUNTIF($C$14:$C38,$C38)),MATCH(A$13,PO_Details[#Headers],0)),""),IF(Tbl_Orders[[#This Row],[Order Type]]="Sale",INDEX(S.O[],SMALL(IF(S.O[Order Number]=S.Order,ROW(S.O[])-ROW(S.O[#Headers])),COUNTIF($C$14:$C38,$C38)),MATCH(A$13,S.O[#Headers],0)),"")),"") ->  | B38: =IFERROR(IF(Tbl_Orders[[#This Row],[Order Type]]="Purchase",IF(Tbl_Orders[[#This Row],[Order Type]]="Purchase",INDEX(PO_Details[],SMALL(IF(PO_Details[Order Number]=PoNu,ROW(PO_Details[])-ROW(PO_Details[#Headers])),COUNTIF($C$14:$C38,$C38)),MATCH(B$13,PO_Details[#Headers],0)),""),IF(Tbl_Orders[[#This Row],[Order Type]]="Sale",INDEX(S.O[],SMALL(IF(S.O[Order Number]=S.Order,ROW(S.O[])-ROW(S.O[#Headers])),COUNTIF($C$14:$C38,$C38)),MATCH(B$13,S.O[#Headers],0)),"")),"") ->  | D38: 12-31-18 | E38: =IFERROR(IF(Tbl_Orders[[#This Row],[Order Type]]="Purchase",IF(Tbl_Orders[[#This Row],[Order Type]]="Purchase",INDEX(PO_Details[],SMALL(IF(PO_Details[Order Number]=PoNu,ROW(PO_Details[])-ROW(PO_Details[#Headers])),COUNTIF($C$14:$C38,$C38)),MATCH(E$13,PO_Details[#Headers],0)),""),IF(Tbl_Orders[[#This Row],[Order Type]]="Sale",INDEX(S.O[],SMALL(IF(S.O[Order Number]=S.Order,ROW(S.O[])-ROW(S.O[#Headers])),COUNTIF($C$14:$C38,$C38)),MATCH(E$13,S.O[#Headers],0)),"")),"") ->  | F38: =IFERROR(IF(Tbl_Orders[[#This Row],[Order Type]]="Purchase",IF(Tbl_Orders[[#This Row],[Order Type]]="Purchase",INDEX(PO_Details[],SMALL(IF(PO_Details[Order Number]=PoNu,ROW(PO_Details[])-ROW(PO_Details[#Headers])),COUNTIF($C$14:$C38,$C38)),MATCH(F$13,PO_Details[#Headers],0)),""),IF(Tbl_Orders[[#This Row],[Order Type]]="Sale",INDEX(S.O[],SMALL(IF(S.O[Order Number]=S.Order,ROW(S.O[])-ROW(S.O[#Headers])),COUNTIF($C$14:$C38,$C38)),MATCH(F$13,S.O[#Headers],0)),"")),"") ->  | G38: =IFERROR(IF(Tbl_Orders[[#This Row],[Order Type]]="Purchase",IF(Tbl_Orders[[#This Row],[Order Type]]="Purchase",INDEX(PO_Details[],SMALL(IF(PO_Details[Order Number]=PoNu,ROW(PO_Details[])-ROW(PO_Details[#Headers])),COUNTIF($C$14:$C38,$C38)),MATCH(G$13,PO_Details[#Headers],0)),""),IF(Tbl_Orders[[#This Row],[Order Type]]="Sale",INDEX(S.O[],SMALL(IF(S.O[Order Number]=S.Order,ROW(S.O[])-ROW(S.O[#Headers])),COUNTIF($C$14:$C38,$C38)),MATCH(G$13,S.O[#Headers],0)),"")),"") ->  | H38: =IFERROR(IF(Tbl_Orders[[#This Row],[Order Type]]="Purchase",IF(Tbl_Orders[[#This Row],[Order Type]]="Purchase",INDEX(PO_Details[],SMALL(IF(PO_Details[Order Number]=PoNu,ROW(PO_Details[])-ROW(PO_Details[#Headers])),COUNTIF($C$14:$C38,$C38)),MATCH(H$13,PO_Details[#Headers],0)),""),IF(Tbl_Orders[[#This Row],[Order Type]]="Sale",INDEX(S.O[],SMALL(IF(S.O[Order Number]=S.Order,ROW(S.O[])-ROW(S.O[#Headers])),COUNTIF($C$14:$C38,$C38)),MATCH(H$13,S.O[#Headers],0)),"")),"") ->  | I38: =IFERROR(Tbl_Orders[[#This Row],[Unit Price]]*Tbl_Orders[Quantity],"") ->  | J38: =IF(Tbl_Orders[[#This Row],[Product Name]]="","",IFERROR(INDEX(Tbl_Product[#Data],MATCH(Tbl_Orders[[#This Row],[Product Name]],INDEX(Tbl_Product[#Data],,1),0),3),"")) ->  | K38: =TEXT(Tbl_Orders[[#This Row],[Order Date]],"yyyy-mmm") ->  | L38: =SUMIFS(Tbl_Orders[Quantity],Tbl_Orders[Expected Date],"<="&Tbl_Orders[[#This Row],[Expected Date]],Tbl_Orders[Product Name],Tbl_Orders[[#This Row],[Product Name]],Tbl_Orders[Order Type],"Purchase")-SUMIFS(Tbl_Orders[Quantity],Tbl_Orders[Expected Date],"<="&Tbl_Orders[[#This Row],[Expected Date]],Tbl_Orders[Product Name],Tbl_Orders[[#This Row],[Product Name]],Tbl_Orders[Order Type],"Sale") -> 0
A39: =IFERROR(IF(Tbl_Orders[[#This Row],[Order Type]]="Purchase",IF(Tbl_Orders[[#This Row],[Order Type]]="Purchase",INDEX(PO_Details[],SMALL(IF(PO_Details[Order Number]=PoNu,ROW(PO_Details[])-ROW(PO_Details[#Headers])),COUNTIF($C$14:$C39,$C39)),MATCH(A$13,PO_Details[#Headers],0)),""),IF(Tbl_Orders[[#This Row],[Order Type]]="Sale",INDEX(S.O[],SMALL(IF(S.O[Order Number]=S.Order,ROW(S.O[])-ROW(S.O[#Headers])),COUNTIF($C$14:$C39,$C39)),MATCH(A$13,S.O[#Headers],0)),"")),"") ->  | B39: =IFERROR(IF(Tbl_Orders[[#This Row],[Order Type]]="Purchase",IF(Tbl_Orders[[#This Row],[Order Type]]="Purchase",INDEX(PO_Details[],SMALL(IF(PO_Details[Order Number]=PoNu,ROW(PO_Details[])-ROW(PO_Details[#Headers])),COUNTIF($C$14:$C39,$C39)),MATCH(B$13,PO_Details[#Headers],0)),""),IF(Tbl_Orders[[#This Row],[Order Type]]="Sale",INDEX(S.O[],SMALL(IF(S.O[Order Number]=S.Order,ROW(S.O[])-ROW(S.O[#Headers])),COUNTIF($C$14:$C39,$C39)),MATCH(B$13,S.O[#Headers],0)),"")),"") ->  | D39: 12-31-18 | E39: =IFERROR(IF(Tbl_Orders[[#This Row],[Order Type]]="Purchase",IF(Tbl_Orders[[#This Row],[Order Type]]="Purchase",INDEX(PO_Details[],SMALL(IF(PO_Details[Order Number]=PoNu,ROW(PO_Details[])-ROW(PO_Details[#Headers])),COUNTIF($C$14:$C39,$C39)),MATCH(E$13,PO_Details[#Headers],0)),""),IF(Tbl_Orders[[#This Row],[Order Type]]="Sale",INDEX(S.O[],SMALL(IF(S.O[Order Number]=S.Order,ROW(S.O[])-ROW(S.O[#Headers])),COUNTIF($C$14:$C39,$C39)),MATCH(E$13,S.O[#Headers],0)),"")),"") ->  | F39: =IFERROR(IF(Tbl_Orders[[#This Row],[Order Type]]="Purchase",IF(Tbl_Orders[[#This Row],[Order Type]]="Purchase",INDEX(PO_Details[],SMALL(IF(PO_Details[Order Number]=PoNu,ROW(PO_Details[])-ROW(PO_Details[#Headers])),COUNTIF($C$14:$C39,$C39)),MATCH(F$13,PO_Details[#Headers],0)),""),IF(Tbl_Orders[[#This Row],[Order Type]]="Sale",INDEX(S.O[],SMALL(IF(S.O[Order Number]=S.Order,ROW(S.O[])-ROW(S.O[#Headers])),COUNTIF($C$14:$C39,$C39)),MATCH(F$13,S.O[#Headers],0)),"")),"") ->  | G39: =IFERROR(IF(Tbl_Orders[[#This Row],[Order Type]]="Purchase",IF(Tbl_Orders[[#This Row],[Order Type]]="Purchase",INDEX(PO_Details[],SMALL(IF(PO_Details[Order Number]=PoNu,ROW(PO_Details[])-ROW(PO_Details[#Headers])),COUNTIF($C$14:$C39,$C39)),MATCH(G$13,PO_Details[#Headers],0)),""),IF(Tbl_Orders[[#This Row],[Order Type]]="Sale",INDEX(S.O[],SMALL(IF(S.O[Order Number]=S.Order,ROW(S.O[])-ROW(S.O[#Headers])),COUNTIF($C$14:$C39,$C39)),MATCH(G$13,S.O[#Headers],0)),"")),"") ->  | H39: =IFERROR(IF(Tbl_Orders[[#This Row],[Order Type]]="Purchase",IF(Tbl_Orders[[#This Row],[Order Type]]="Purchase",INDEX(PO_Details[],SMALL(IF(PO_Details[Order Number]=PoNu,ROW(PO_Details[])-ROW(PO_Details[#Headers])),COUNTIF($C$14:$C39,$C39)),MATCH(H$13,PO_Details[#Headers],0)),""),IF(Tbl_Orders[[#This Row],[Order Type]]="Sale",INDEX(S.O[],SMALL(IF(S.O[Order Number]=S.Order,ROW(S.O[])-ROW(S.O[#Headers])),COUNTIF($C$14:$C39,$C39)),MATCH(H$13,S.O[#Headers],0)),"")),"") ->  | I39: =IFERROR(Tbl_Orders[[#This Row],[Unit Price]]*Tbl_Orders[Quantity],"") ->  | J39: =IF(Tbl_Orders[[#This Row],[Product Name]]="","",IFERROR(INDEX(Tbl_Product[#Data],MATCH(Tbl_Orders[[#This Row],[Product Name]],INDEX(Tbl_Product[#Data],,1),0),3),"")) ->  | K39: =TEXT(Tbl_Orders[[#This Row],[Order Date]],"yyyy-mmm") ->  | L39: =SUMIFS(Tbl_Orders[Quantity],Tbl_Orders[Expected Date],"<="&Tbl_Orders[[#This Row],[Expected Date]],Tbl_Orders[Product Name],Tbl_Orders[[#This Row],[Product Name]],Tbl_Orders[Order Type],"Purchase")-SUMIFS(Tbl_Orders[Quantity],Tbl_Orders[Expected Date],"<="&Tbl_Orders[[#This Row],[Expected Date]],Tbl_Orders[Product Name],Tbl_Orders[[#This Row],[Product Name]],Tbl_Orders[Order Type],"Sale") -> 0
A40: =IFERROR(IF(Tbl_Orders[[#This Row],[Order Type]]="Purchase",IF(Tbl_Orders[[#This Row],[Order Type]]="Purchase",INDEX(PO_Details[],SMALL(IF(PO_Details[Order Number]=PoNu,ROW(PO_Details[])-ROW(PO_Details[#Headers])),COUNTIF($C$14:$C40,$C40)),MATCH(A$13,PO_Details[#Headers],0)),""),IF(Tbl_Orders[[#This Row],[Order Type]]="Sale",INDEX(S.O[],SMALL(IF(S.O[Order Number]=S.Order,ROW(S.O[])-ROW(S.O[#Headers])),COUNTIF($C$14:$C40,$C40)),MATCH(A$13,S.O[#Headers],0)),"")),"") ->  | B40: =IFERROR(IF(Tbl_Orders[[#This Row],[Order Type]]="Purchase",IF(Tbl_Orders[[#This Row],[Order Type]]="Purchase",INDEX(PO_Details[],SMALL(IF(PO_Details[Order Number]=PoNu,ROW(PO_Details[])-ROW(PO_Details[#Headers])),COUNTIF($C$14:$C40,$C40)),MATCH(B$13,PO_Details[#Headers],0)),""),IF(Tbl_Orders[[#This Row],[Order Type]]="Sale",INDEX(S.O[],SMALL(IF(S.O[Order Number]=S.Order,ROW(S.O[])-ROW(S.O[#Headers])),COUNTIF($C$14:$C40,$C40)),MATCH(B$13,S.O[#Headers],0)),"")),"") ->  | D40: 12-31-18 | E40: =IFERROR(IF(Tbl_Orders[[#This Row],[Order Type]]="Purchase",IF(Tbl_Orders[[#This Row],[Order Type]]="Purchase",INDEX(PO_Details[],SMALL(IF(PO_Details[Order Number]=PoNu,ROW(PO_Details[])-ROW(PO_Details[#Headers])),COUNTIF($C$14:$C40,$C40)),MATCH(E$13,PO_Details[#Headers],0)),""),IF(Tbl_Orders[[#This Row],[Order Type]]="Sale",INDEX(S.O[],SMALL(IF(S.O[Order Number]=S.Order,ROW(S.O[])-ROW(S.O[#Headers])),COUNTIF($C$14:$C40,$C40)),MATCH(E$13,S.O[#Headers],0)),"")),"") ->  | F40: =IFERROR(IF(Tbl_Orders[[#This Row],[Order Type]]="Purchase",IF(Tbl_Orders[[#This Row],[Order Type]]="Purchase",INDEX(PO_Details[],SMALL(IF(PO_Details[Order Number]=PoNu,ROW(PO_Details[])-ROW(PO_Details[#Headers])),COUNTIF($C$14:$C40,$C40)),MATCH(F$13,PO_Details[#Headers],0)),""),IF(Tbl_Orders[[#This Row],[Order Type]]="Sale",INDEX(S.O[],SMALL(IF(S.O[Order Number]=S.Order,ROW(S.O[])-ROW(S.O[#Headers])),COUNTIF($C$14:$C40,$C40)),MATCH(F$13,S.O[#Headers],0)),"")),"") ->  | G40: =IFERROR(IF(Tbl_Orders[[#This Row],[Order Type]]="Purchase",IF(Tbl_Orders[[#This Row],[Order Type]]="Purchase",INDEX(PO_Details[],SMALL(IF(PO_Details[Order Number]=PoNu,ROW(PO_Details[])-ROW(PO_Details[#Headers])),COUNTIF($C$14:$C40,$C40)),MATCH(G$13,PO_Details[#Headers],0)),""),IF(Tbl_Orders[[#This Row],[Order Type]]="Sale",INDEX(S.O[],SMALL(IF(S.O[Order Number]=S.Order,ROW(S.O[])-ROW(S.O[#Headers])),COUNTIF($C$14:$C40,$C40)),MATCH(G$13,S.O[#Headers],0)),"")),"") ->  | H40: =IFERROR(IF(Tbl_Orders[[#This Row],[Order Type]]="Purchase",IF(Tbl_Orders[[#This Row],[Order Type]]="Purchase",INDEX(PO_Details[],SMALL(IF(PO_Details[Order Number]=PoNu,ROW(PO_Details[])-ROW(PO_Details[#Headers])),COUNTIF($C$14:$C40,$C40)),MATCH(H$13,PO_Details[#Headers],0)),""),IF(Tbl_Orders[[#This Row],[Order Type]]="Sale",INDEX(S.O[],SMALL(IF(S.O[Order Number]=S.Order,ROW(S.O[])-ROW(S.O[#Headers])),COUNTIF($C$14:$C40,$C40)),MATCH(H$13,S.O[#Headers],0)),"")),"") ->  | I40: =IFERROR(Tbl_Orders[[#This Row],[Unit Price]]*Tbl_Orders[Quantity],"") ->  | J40: =IF(Tbl_Orders[[#This Row],[Product Name]]="","",IFERROR(INDEX(Tbl_Product[#Data],MATCH(Tbl_Orders[[#This Row],[Product Name]],INDEX(Tbl_Product[#Data],,1),0),3),"")) ->  | K40: =TEXT(Tbl_Orders[[#This Row],[Order Date]],"yyyy-mmm") ->  | L40: =SUMIFS(Tbl_Orders[Quantity],Tbl_Orders[Expected Date],"<="&Tbl_Orders[[#This Row],[Expected Date]],Tbl_Orders[Product Name],Tbl_Orders[[#This Row],[Product Name]],Tbl_Orders[Order Type],"Purchase")-SUMIFS(Tbl_Orders[Quantity],Tbl_Orders[Expected Date],"<="&Tbl_Orders[[#This Row],[Expected Date]],Tbl_Orders[Product Name],Tbl_Orders[[#This Row],[Product Name]],Tbl_Orders[Order Type],"Sale") -> 0
A41: =IFERROR(IF(Tbl_Orders[[#This Row],[Order Type]]="Purchase",IF(Tbl_Orders[[#This Row],[Order Type]]="Purchase",INDEX(PO_Details[],SMALL(IF(PO_Details[Order Number]=PoNu,ROW(PO_Details[])-ROW(PO_Details[#Headers])),COUNTIF($C$14:$C41,$C41)),MATCH(A$13,PO_Details[#Headers],0)),""),IF(Tbl_Orders[[#This Row],[Order Type]]="Sale",INDEX(S.O[],SMALL(IF(S.O[Order Number]=S.Order,ROW(S.O[])-ROW(S.O[#Headers])),COUNTIF($C$14:$C41,$C41)),MATCH(A$13,S.O[#Headers],0)),"")),"") ->  | B41: =IFERROR(IF(Tbl_Orders[[#This Row],[Order Type]]="Purchase",IF(Tbl_Orders[[#This Row],[Order Type]]="Purchase",INDEX(PO_Details[],SMALL(IF(PO_Details[Order Number]=PoNu,ROW(PO_Details[])-ROW(PO_Details[#Headers])),COUNTIF($C$14:$C41,$C41)),MATCH(B$13,PO_Details[#Headers],0)),""),IF(Tbl_Orders[[#This Row],[Order Type]]="Sale",INDEX(S.O[],SMALL(IF(S.O[Order Number]=S.Order,ROW(S.O[])-ROW(S.O[#Headers])),COUNTIF($C$14:$C41,$C41)),MATCH(B$13,S.O[#Headers],0)),"")),"") ->  | D41: 12-31-18 | E41: =IFERROR(IF(Tbl_Orders[[#This Row],[Order Type]]="Purchase",IF(Tbl_Orders[[#This Row],[Order Type]]="Purchase",INDEX(PO_Details[],SMALL(IF(PO_Details[Order Number]=PoNu,ROW(PO_Details[])-ROW(PO_Details[#Headers])),COUNTIF($C$14:$C41,$C41)),MATCH(E$13,PO_Details[#Headers],0)),""),IF(Tbl_Orders[[#This Row],[Order Type]]="Sale",INDEX(S.O[],SMALL(IF(S.O[Order Number]=S.Order,ROW(S.O[])-ROW(S.O[#Headers])),COUNTIF($C$14:$C41,$C41)),MATCH(E$13,S.O[#Headers],0)),"")),"") ->  | F41: =IFERROR(IF(Tbl_Orders[[#This Row],[Order Type]]="Purchase",IF(Tbl_Orders[[#This Row],[Order Type]]="Purchase",INDEX(PO_Details[],SMALL(IF(PO_Details[Order Number]=PoNu,ROW(PO_Details[])-ROW(PO_Details[#Headers])),COUNTIF($C$14:$C41,$C41)),MATCH(F$13,PO_Details[#Headers],0)),""),IF(Tbl_Orders[[#This Row],[Order Type]]="Sale",INDEX(S.O[],SMALL(IF(S.O[Order Number]=S.Order,ROW(S.O[])-ROW(S.O[#Headers])),COUNTIF($C$14:$C41,$C41)),MATCH(F$13,S.O[#Headers],0)),"")),"") ->  | G41: =IFERROR(IF(Tbl_Orders[[#This Row],[Order Type]]="Purchase",IF(Tbl_Orders[[#This Row],[Order Type]]="Purchase",INDEX(PO_Details[],SMALL(IF(PO_Details[Order Number]=PoNu,ROW(PO_Details[])-ROW(PO_Details[#Headers])),COUNTIF($C$14:$C41,$C41)),MATCH(G$13,PO_Details[#Headers],0)),""),IF(Tbl_Orders[[#This Row],[Order Type]]="Sale",INDEX(S.O[],SMALL(IF(S.O[Order Number]=S.Order,ROW(S.O[])-ROW(S.O[#Headers])),COUNTIF($C$14:$C41,$C41)),MATCH(G$13,S.O[#Headers],0)),"")),"") ->  | H41: =IFERROR(IF(Tbl_Orders[[#This Row],[Order Type]]="Purchase",IF(Tbl_Orders[[#This Row],[Order Type]]="Purchase",INDEX(PO_Details[],SMALL(IF(PO_Details[Order Number]=PoNu,ROW(PO_Details[])-ROW(PO_Details[#Headers])),COUNTIF($C$14:$C41,$C41)),MATCH(H$13,PO_Details[#Headers],0)),""),IF(Tbl_Orders[[#This Row],[Order Type]]="Sale",INDEX(S.O[],SMALL(IF(S.O[Order Number]=S.Order,ROW(S.O[])-ROW(S.O[#Headers])),COUNTIF($C$14:$C41,$C41)),MATCH(H$13,S.O[#Headers],0)),"")),"") ->  | I41: =IFERROR(Tbl_Orders[[#This Row],[Unit Price]]*Tbl_Orders[Quantity],"") ->  | J41: =IF(Tbl_Orders[[#This Row],[Product Name]]="","",IFERROR(INDEX(Tbl_Product[#Data],MATCH(Tbl_Orders[[#This Row],[Product Name]],INDEX(Tbl_Product[#Data],,1),0),3),"")) ->  | K41: =TEXT(Tbl_Orders[[#This Row],[Order Date]],"yyyy-mmm") ->  | L41: =SUMIFS(Tbl_Orders[Quantity],Tbl_Orders[Expected Date],"<="&Tbl_Orders[[#This Row],[Expected Date]],Tbl_Orders[Product Name],Tbl_Orders[[#This Row],[Product Name]],Tbl_Orders[Order Type],"Purchase")-SUMIFS(Tbl_Orders[Quantity],Tbl_Orders[Expected Date],"<="&Tbl_Orders[[#This Row],[Expected Date]],Tbl_Orders[Product Name],Tbl_Orders[[#This Row],[Product Name]],Tbl_Orders[Order Type],"Sale") -> 0
A42: =IFERROR(IF(Tbl_Orders[[#This Row],[Order Type]]="Purchase",IF(Tbl_Orders[[#This Row],[Order Type]]="Purchase",INDEX(PO_Details[],SMALL(IF(PO_Details[Order Number]=PoNu,ROW(PO_Details[])-ROW(PO_Details[#Headers])),COUNTIF($C$14:$C42,$C42)),MATCH(A$13,PO_Details[#Headers],0)),""),IF(Tbl_Orders[[#This Row],[Order Type]]="Sale",INDEX(S.O[],SMALL(IF(S.O[Order Number]=S.Order,ROW(S.O[])-ROW(S.O[#Headers])),COUNTIF($C$14:$C42,$C42)),MATCH(A$13,S.O[#Headers],0)),"")),"") ->  | B42: =IFERROR(IF(Tbl_Orders[[#This Row],[Order Type]]="Purchase",IF(Tbl_Orders[[#This Row],[Order Type]]="Purchase",INDEX(PO_Details[],SMALL(IF(PO_Details[Order Number]=PoNu,ROW(PO_Details[])-ROW(PO_Details[#Headers])),COUNTIF($C$14:$C42,$C42)),MATCH(B$13,PO_Details[#Headers],0)),""),IF(Tbl_Orders[[#This Row],[Order Type]]="Sale",INDEX(S.O[],SMALL(IF(S.O[Order Number]=S.Order,ROW(S.O[])-ROW(S.O[#Headers])),COUNTIF($C$14:$C42,$C42)),MATCH(B$13,S.O[#Headers],0)),"")),"") ->  | D42: 12-31-18 | E42: =IFERROR(IF(Tbl_Orders[[#This Row],[Order Type]]="Purchase",IF(Tbl_Orders[[#This Row],[Order Type]]="Purchase",INDEX(PO_Details[],SMALL(IF(PO_Details[Order Number]=PoNu,ROW(PO_Details[])-ROW(PO_Details[#Headers])),COUNTIF($C$14:$C42,$C42)),MATCH(E$13,PO_Details[#Headers],0)),""),IF(Tbl_Orders[[#This Row],[Order Type]]="Sale",INDEX(S.O[],SMALL(IF(S.O[Order Number]=S.Order,ROW(S.O[])-ROW(S.O[#Headers])),COUNTIF($C$14:$C42,$C42)),MATCH(E$13,S.O[#Headers],0)),"")),"") ->  | F42: =IFERROR(IF(Tbl_Orders[[#This Row],[Order Type]]="Purchase",IF(Tbl_Orders[[#This Row],[Order Type]]="Purchase",INDEX(PO_Details[],SMALL(IF(PO_Details[Order Number]=PoNu,ROW(PO_Details[])-ROW(PO_Details[#Headers])),COUNTIF($C$14:$C42,$C42)),MATCH(F$13,PO_Details[#Headers],0)),""),IF(Tbl_Orders[[#This Row],[Order Type]]="Sale",INDEX(S.O[],SMALL(IF(S.O[Order Number]=S.Order,ROW(S.O[])-ROW(S.O[#Headers])),COUNTIF($C$14:$C42,$C42)),MATCH(F$13,S.O[#Headers],0)),"")),"") ->  | G42: =IFERROR(IF(Tbl_Orders[[#This Row],[Order Type]]="Purchase",IF(Tbl_Orders[[#This Row],[Order Type]]="Purchase",INDEX(PO_Details[],SMALL(IF(PO_Details[Order Number]=PoNu,ROW(PO_Details[])-ROW(PO_Details[#Headers])),COUNTIF($C$14:$C42,$C42)),MATCH(G$13,PO_Details[#Headers],0)),""),IF(Tbl_Orders[[#This Row],[Order Type]]="Sale",INDEX(S.O[],SMALL(IF(S.O[Order Number]=S.Order,ROW(S.O[])-ROW(S.O[#Headers])),COUNTIF($C$14:$C42,$C42)),MATCH(G$13,S.O[#Headers],0)),"")),"") ->  | H42: =IFERROR(IF(Tbl_Orders[[#This Row],[Order Type]]="Purchase",IF(Tbl_Orders[[#This Row],[Order Type]]="Purchase",INDEX(PO_Details[],SMALL(IF(PO_Details[Order Number]=PoNu,ROW(PO_Details[])-ROW(PO_Details[#Headers])),COUNTIF($C$14:$C42,$C42)),MATCH(H$13,PO_Details[#Headers],0)),""),IF(Tbl_Orders[[#This Row],[Order Type]]="Sale",INDEX(S.O[],SMALL(IF(S.O[Order Number]=S.Order,ROW(S.O[])-ROW(S.O[#Headers])),COUNTIF($C$14:$C42,$C42)),MATCH(H$13,S.O[#Headers],0)),"")),"") ->  | I42: =IFERROR(Tbl_Orders[[#This Row],[Unit Price]]*Tbl_Orders[Quantity],"") ->  | J42: =IF(Tbl_Orders[[#This Row],[Product Name]]="","",IFERROR(INDEX(Tbl_Product[#Data],MATCH(Tbl_Orders[[#This Row],[Product Name]],INDEX(Tbl_Product[#Data],,1),0),3),"")) ->  | K42: =TEXT(Tbl_Orders[[#This Row],[Order Date]],"yyyy-mmm") ->  | L42: =SUMIFS(Tbl_Orders[Quantity],Tbl_Orders[Expected Date],"<="&Tbl_Orders[[#This Row],[Expected Date]],Tbl_Orders[Product Name],Tbl_Orders[[#This Row],[Product Name]],Tbl_Orders[Order Type],"Purchase")-SUMIFS(Tbl_Orders[Quantity],Tbl_Orders[Expected Date],"<="&Tbl_Orders[[#This Row],[Expected Date]],Tbl_Orders[Product Name],Tbl_Orders[[#This Row],[Product Name]],Tbl_Orders[Order Type],"Sale") -> 0
A43: =IFERROR(IF(Tbl_Orders[[#This Row],[Order Type]]="Purchase",IF(Tbl_Orders[[#This Row],[Order Type]]="Purchase",INDEX(PO_Details[],SMALL(IF(PO_Details[Order Number]=PoNu,ROW(PO_Details[])-ROW(PO_Details[#Headers])),COUNTIF($C$14:$C43,$C43)),MATCH(A$13,PO_Details[#Headers],0)),""),IF(Tbl_Orders[[#This Row],[Order Type]]="Sale",INDEX(S.O[],SMALL(IF(S.O[Order Number]=S.Order,ROW(S.O[])-ROW(S.O[#Headers])),COUNTIF($C$14:$C43,$C43)),MATCH(A$13,S.O[#Headers],0)),"")),"") ->  | B43: =IFERROR(IF(Tbl_Orders[[#This Row],[Order Type]]="Purchase",IF(Tbl_Orders[[#This Row],[Order Type]]="Purchase",INDEX(PO_Details[],SMALL(IF(PO_Details[Order Number]=PoNu,ROW(PO_Details[])-ROW(PO_Details[#Headers])),COUNTIF($C$14:$C43,$C43)),MATCH(B$13,PO_Details[#Headers],0)),""),IF(Tbl_Orders[[#This Row],[Order Type]]="Sale",INDEX(S.O[],SMALL(IF(S.O[Order Number]=S.Order,ROW(S.O[])-ROW(S.O[#Headers])),COUNTIF($C$14:$C43,$C43)),MATCH(B$13,S.O[#Headers],0)),"")),"") ->  | D43: 12-31-18 | E43: =IFERROR(IF(Tbl_Orders[[#This Row],[Order Type]]="Purchase",IF(Tbl_Orders[[#This Row],[Order Type]]="Purchase",INDEX(PO_Details[],SMALL(IF(PO_Details[Order Number]=PoNu,ROW(PO_Details[])-ROW(PO_Details[#Headers])),COUNTIF($C$14:$C43,$C43)),MATCH(E$13,PO_Details[#Headers],0)),""),IF(Tbl_Orders[[#This Row],[Order Type]]="Sale",INDEX(S.O[],SMALL(IF(S.O[Order Number]=S.Order,ROW(S.O[])-ROW(S.O[#Headers])),COUNTIF($C$14:$C43,$C43)),MATCH(E$13,S.O[#Headers],0)),"")),"") ->  | F43: =IFERROR(IF(Tbl_Orders[[#This Row],[Order Type]]="Purchase",IF(Tbl_Orders[[#This Row],[Order Type]]="Purchase",INDEX(PO_Details[],SMALL(IF(PO_Details[Order Number]=PoNu,ROW(PO_Details[])-ROW(PO_Details[#Headers])),COUNTIF($C$14:$C43,$C43)),MATCH(F$13,PO_Details[#Headers],0)),""),IF(Tbl_Orders[[#This Row],[Order Type]]="Sale",INDEX(S.O[],SMALL(IF(S.O[Order Number]=S.Order,ROW(S.O[])-ROW(S.O[#Headers])),COUNTIF($C$14:$C43,$C43)),MATCH(F$13,S.O[#Headers],0)),"")),"") ->  | G43: =IFERROR(IF(Tbl_Orders[[#This Row],[Order Type]]="Purchase",IF(Tbl_Orders[[#This Row],[Order Type]]="Purchase",INDEX(PO_Details[],SMALL(IF(PO_Details[Order Number]=PoNu,ROW(PO_Details[])-ROW(PO_Details[#Headers])),COUNTIF($C$14:$C43,$C43)),MATCH(G$13,PO_Details[#Headers],0)),""),IF(Tbl_Orders[[#This Row],[Order Type]]="Sale",INDEX(S.O[],SMALL(IF(S.O[Order Number]=S.Order,ROW(S.O[])-ROW(S.O[#Headers])),COUNTIF($C$14:$C43,$C43)),MATCH(G$13,S.O[#Headers],0)),"")),"") ->  | H43: =IFERROR(IF(Tbl_Orders[[#This Row],[Order Type]]="Purchase",IF(Tbl_Orders[[#This Row],[Order Type]]="Purchase",INDEX(PO_Details[],SMALL(IF(PO_Details[Order Number]=PoNu,ROW(PO_Details[])-ROW(PO_Details[#Headers])),COUNTIF($C$14:$C43,$C43)),MATCH(H$13,PO_Details[#Headers],0)),""),IF(Tbl_Orders[[#This Row],[Order Type]]="Sale",INDEX(S.O[],SMALL(IF(S.O[Order Number]=S.Order,ROW(S.O[])-ROW(S.O[#Headers])),COUNTIF($C$14:$C43,$C43)),MATCH(H$13,S.O[#Headers],0)),"")),"") ->  | I43: =IFERROR(Tbl_Orders[[#This Row],[Unit Price]]*Tbl_Orders[Quantity],"") ->  | J43: =IF(Tbl_Orders[[#This Row],[Product Name]]="","",IFERROR(INDEX(Tbl_Product[#Data],MATCH(Tbl_Orders[[#This Row],[Product Name]],INDEX(Tbl_Product[#Data],,1),0),3),"")) ->  | K43: =TEXT(Tbl_Orders[[#This Row],[Order Date]],"yyyy-mmm") ->  | L43: =SUMIFS(Tbl_Orders[Quantity],Tbl_Orders[Expected Date],"<="&Tbl_Orders[[#This Row],[Expected Date]],Tbl_Orders[Product Name],Tbl_Orders[[#This Row],[Product Name]],Tbl_Orders[Order Type],"Purchase")-SUMIFS(Tbl_Orders[Quantity],Tbl_Orders[Expected Date],"<="&Tbl_Orders[[#This Row],[Expected Date]],Tbl_Orders[Product Name],Tbl_Orders[[#This Row],[Product Name]],Tbl_Orders[Order Type],"Sale") -> 0
A44: =IFERROR(IF(Tbl_Orders[[#This Row],[Order Type]]="Purchase",IF(Tbl_Orders[[#This Row],[Order Type]]="Purchase",INDEX(PO_Details[],SMALL(IF(PO_Details[Order Number]=PoNu,ROW(PO_Details[])-ROW(PO_Details[#Headers])),COUNTIF($C$14:$C44,$C44)),MATCH(A$13,PO_Details[#Headers],0)),""),IF(Tbl_Orders[[#This Row],[Order Type]]="Sale",INDEX(S.O[],SMALL(IF(S.O[Order Number]=S.Order,ROW(S.O[])-ROW(S.O[#Headers])),COUNTIF($C$14:$C44,$C44)),MATCH(A$13,S.O[#Headers],0)),"")),"") ->  | B44: =IFERROR(IF(Tbl_Orders[[#This Row],[Order Type]]="Purchase",IF(Tbl_Orders[[#This Row],[Order Type]]="Purchase",INDEX(PO_Details[],SMALL(IF(PO_Details[Order Number]=PoNu,ROW(PO_Details[])-ROW(PO_Details[#Headers])),COUNTIF($C$14:$C44,$C44)),MATCH(B$13,PO_Details[#Headers],0)),""),IF(Tbl_Orders[[#This Row],[Order Type]]="Sale",INDEX(S.O[],SMALL(IF(S.O[Order Number]=S.Order,ROW(S.O[])-ROW(S.O[#Headers])),COUNTIF($C$14:$C44,$C44)),MATCH(B$13,S.O[#Headers],0)),"")),"") ->  | D44: 12-31-18 | E44: =IFERROR(IF(Tbl_Orders[[#This Row],[Order Type]]="Purchase",IF(Tbl_Orders[[#This Row],[Order Type]]="Purchase",INDEX(PO_Details[],SMALL(IF(PO_Details[Order Number]=PoNu,ROW(PO_Details[])-ROW(PO_Details[#Headers])),COUNTIF($C$14:$C44,$C44)),MATCH(E$13,PO_Details[#Headers],0)),""),IF(Tbl_Orders[[#This Row],[Order Type]]="Sale",INDEX(S.O[],SMALL(IF(S.O[Order Number]=S.Order,ROW(S.O[])-ROW(S.O[#Headers])),COUNTIF($C$14:$C44,$C44)),MATCH(E$13,S.O[#Headers],0)),"")),"") ->  | F44: =IFERROR(IF(Tbl_Orders[[#This Row],[Order Type]]="Purchase",IF(Tbl_Orders[[#This Row],[Order Type]]="Purchase",INDEX(PO_Details[],SMALL(IF(PO_Details[Order Number]=PoNu,ROW(PO_Details[])-ROW(PO_Details[#Headers])),COUNTIF($C$14:$C44,$C44)),MATCH(F$13,PO_Details[#Headers],0)),""),IF(Tbl_Orders[[#This Row],[Order Type]]="Sale",INDEX(S.O[],SMALL(IF(S.O[Order Number]=S.Order,ROW(S.O[])-ROW(S.O[#Headers])),COUNTIF($C$14:$C44,$C44)),MATCH(F$13,S.O[#Headers],0)),"")),"") ->  | G44: =IFERROR(IF(Tbl_Orders[[#This Row],[Order Type]]="Purchase",IF(Tbl_Orders[[#This Row],[Order Type]]="Purchase",INDEX(PO_Details[],SMALL(IF(PO_Details[Order Number]=PoNu,ROW(PO_Details[])-ROW(PO_Details[#Headers])),COUNTIF($C$14:$C44,$C44)),MATCH(G$13,PO_Details[#Headers],0)),""),IF(Tbl_Orders[[#This Row],[Order Type]]="Sale",INDEX(S.O[],SMALL(IF(S.O[Order Number]=S.Order,ROW(S.O[])-ROW(S.O[#Headers])),COUNTIF($C$14:$C44,$C44)),MATCH(G$13,S.O[#Headers],0)),"")),"") ->  | H44: =IFERROR(IF(Tbl_Orders[[#This Row],[Order Type]]="Purchase",IF(Tbl_Orders[[#This Row],[Order Type]]="Purchase",INDEX(PO_Details[],SMALL(IF(PO_Details[Order Number]=PoNu,ROW(PO_Details[])-ROW(PO_Details[#Headers])),COUNTIF($C$14:$C44,$C44)),MATCH(H$13,PO_Details[#Headers],0)),""),IF(Tbl_Orders[[#This Row],[Order Type]]="Sale",INDEX(S.O[],SMALL(IF(S.O[Order Number]=S.Order,ROW(S.O[])-ROW(S.O[#Headers])),COUNTIF($C$14:$C44,$C44)),MATCH(H$13,S.O[#Headers],0)),"")),"") ->  | I44: =IFERROR(Tbl_Orders[[#This Row],[Unit Price]]*Tbl_Orders[Quantity],"") ->  | J44: =IF(Tbl_Orders[[#This Row],[Product Name]]="","",IFERROR(INDEX(Tbl_Product[#Data],MATCH(Tbl_Orders[[#This Row],[Product Name]],INDEX(Tbl_Product[#Data],,1),0),3),"")) ->  | K44: =TEXT(Tbl_Orders[[#This Row],[Order Date]],"yyyy-mmm") ->  | L44: =SUMIFS(Tbl_Orders[Quantity],Tbl_Orders[Expected Date],"<="&Tbl_Orders[[#This Row],[Expected Date]],Tbl_Orders[Product Name],Tbl_Orders[[#This Row],[Product Name]],Tbl_Orders[Order Type],"Purchase")-SUMIFS(Tbl_Orders[Quantity],Tbl_Orders[Expected Date],"<="&Tbl_Orders[[#This Row],[Expected Date]],Tbl_Orders[Product Name],Tbl_Orders[[#This Row],[Product Name]],Tbl_Orders[Order Type],"Sale") -> 0
A45: =IFERROR(IF(Tbl_Orders[[#This Row],[Order Type]]="Purchase",IF(Tbl_Orders[[#This Row],[Order Type]]="Purchase",INDEX(PO_Details[],SMALL(IF(PO_Details[Order Number]=PoNu,ROW(PO_Details[])-ROW(PO_Details[#Headers])),COUNTIF($C$14:$C45,$C45)),MATCH(A$13,PO_Details[#Headers],0)),""),IF(Tbl_Orders[[#This Row],[Order Type]]="Sale",INDEX(S.O[],SMALL(IF(S.O[Order Number]=S.Order,ROW(S.O[])-ROW(S.O[#Headers])),COUNTIF($C$14:$C45,$C45)),MATCH(A$13,S.O[#Headers],0)),"")),"") ->  | B45: =IFERROR(IF(Tbl_Orders[[#This Row],[Order Type]]="Purchase",IF(Tbl_Orders[[#This Row],[Order Type]]="Purchase",INDEX(PO_Details[],SMALL(IF(PO_Details[Order Number]=PoNu,ROW(PO_Details[])-ROW(PO_Details[#Headers])),COUNTIF($C$14:$C45,$C45)),MATCH(B$13,PO_Details[#Headers],0)),""),IF(Tbl_Orders[[#This Row],[Order Type]]="Sale",INDEX(S.O[],SMALL(IF(S.O[Order Number]=S.Order,ROW(S.O[])-ROW(S.O[#Headers])),COUNTIF($C$14:$C45,$C45)),MATCH(B$13,S.O[#Headers],0)),"")),"") ->  | D45: 12-31-18 | E45: =IFERROR(IF(Tbl_Orders[[#This Row],[Order Type]]="Purchase",IF(Tbl_Orders[[#This Row],[Order Type]]="Purchase",INDEX(PO_Details[],SMALL(IF(PO_Details[Order Number]=PoNu,ROW(PO_Details[])-ROW(PO_Details[#Headers])),COUNTIF($C$14:$C45,$C45)),MATCH(E$13,PO_Details[#Headers],0)),""),IF(Tbl_Orders[[#This Row],[Order Type]]="Sale",INDEX(S.O[],SMALL(IF(S.O[Order Number]=S.Order,ROW(S.O[])-ROW(S.O[#Headers])),COUNTIF($C$14:$C45,$C45)),MATCH(E$13,S.O[#Headers],0)),"")),"") ->  | F45: =IFERROR(IF(Tbl_Orders[[#This Row],[Order Type]]="Purchase",IF(Tbl_Orders[[#This Row],[Order Type]]="Purchase",INDEX(PO_Details[],SMALL(IF(PO_Details[Order Number]=PoNu,ROW(PO_Details[])-ROW(PO_Details[#Headers])),COUNTIF($C$14:$C45,$C45)),MATCH(F$13,PO_Details[#Headers],0)),""),IF(Tbl_Orders[[#This Row],[Order Type]]="Sale",INDEX(S.O[],SMALL(IF(S.O[Order Number]=S.Order,ROW(S.O[])-ROW(S.O[#Headers])),COUNTIF($C$14:$C45,$C45)),MATCH(F$13,S.O[#Headers],0)),"")),"") ->  | G45: =IFERROR(IF(Tbl_Orders[[#This Row],[Order Type]]="Purchase",IF(Tbl_Orders[[#This Row],[Order Type]]="Purchase",INDEX(PO_Details[],SMALL(IF(PO_Details[Order Number]=PoNu,ROW(PO_Details[])-ROW(PO_Details[#Headers])),COUNTIF($C$14:$C45,$C45)),MATCH(G$13,PO_Details[#Headers],0)),""),IF(Tbl_Orders[[#This Row],[Order Type]]="Sale",INDEX(S.O[],SMALL(IF(S.O[Order Number]=S.Order,ROW(S.O[])-ROW(S.O[#Headers])),COUNTIF($C$14:$C45,$C45)),MATCH(G$13,S.O[#Headers],0)),"")),"") ->  | H45: =IFERROR(IF(Tbl_Orders[[#This Row],[Order Type]]="Purchase",IF(Tbl_Orders[[#This Row],[Order Type]]="Purchase",INDEX(PO_Details[],SMALL(IF(PO_Details[Order Number]=PoNu,ROW(PO_Details[])-ROW(PO_Details[#Headers])),COUNTIF($C$14:$C45,$C45)),MATCH(H$13,PO_Details[#Headers],0)),""),IF(Tbl_Orders[[#This Row],[Order Type]]="Sale",INDEX(S.O[],SMALL(IF(S.O[Order Number]=S.Order,ROW(S.O[])-ROW(S.O[#Headers])),COUNTIF($C$14:$C45,$C45)),MATCH(H$13,S.O[#Headers],0)),"")),"") ->  | I45: =IFERROR(Tbl_Orders[[#This Row],[Unit Price]]*Tbl_Orders[Quantity],"") ->  | J45: =IF(Tbl_Orders[[#This Row],[Product Name]]="","",IFERROR(INDEX(Tbl_Product[#Data],MATCH(Tbl_Orders[[#This Row],[Product Name]],INDEX(Tbl_Product[#Data],,1),0),3),"")) ->  | K45: =TEXT(Tbl_Orders[[#This Row],[Order Date]],"yyyy-mmm") ->  | L45: =SUMIFS(Tbl_Orders[Quantity],Tbl_Orders[Expected Date],"<="&Tbl_Orders[[#This Row],[Expected Date]],Tbl_Orders[Product Name],Tbl_Orders[[#This Row],[Product Name]],Tbl_Orders[Order Type],"Purchase")-SUMIFS(Tbl_Orders[Quantity],Tbl_Orders[Expected Date],"<="&Tbl_Orders[[#This Row],[Expected Date]],Tbl_Orders[Product Name],Tbl_Orders[[#This Row],[Product Name]],Tbl_Orders[Order Type],"Sale") -> 0
A46: =IFERROR(IF(Tbl_Orders[[#This Row],[Order Type]]="Purchase",IF(Tbl_Orders[[#This Row],[Order Type]]="Purchase",INDEX(PO_Details[],SMALL(IF(PO_Details[Order Number]=PoNu,ROW(PO_Details[])-ROW(PO_Details[#Headers])),COUNTIF($C$14:$C46,$C46)),MATCH(A$13,PO_Details[#Headers],0)),""),IF(Tbl_Orders[[#This Row],[Order Type]]="Sale",INDEX(S.O[],SMALL(IF(S.O[Order Number]=S.Order,ROW(S.O[])-ROW(S.O[#Headers])),COUNTIF($C$14:$C46,$C46)),MATCH(A$13,S.O[#Headers],0)),"")),"") ->  | B46: =IFERROR(IF(Tbl_Orders[[#This Row],[Order Type]]="Purchase",IF(Tbl_Orders[[#This Row],[Order Type]]="Purchase",INDEX(PO_Details[],SMALL(IF(PO_Details[Order Number]=PoNu,ROW(PO_Details[])-ROW(PO_Details[#Headers])),COUNTIF($C$14:$C46,$C46)),MATCH(B$13,PO_Details[#Headers],0)),""),IF(Tbl_Orders[[#This Row],[Order Type]]="Sale",INDEX(S.O[],SMALL(IF(S.O[Order Number]=S.Order,ROW(S.O[])-ROW(S.O[#Headers])),COUNTIF($C$14:$C46,$C46)),MATCH(B$13,S.O[#Headers],0)),"")),"") ->  | D46: 12-31-18 | E46: =IFERROR(IF(Tbl_Orders[[#This Row],[Order Type]]="Purchase",IF(Tbl_Orders[[#This Row],[Order Type]]="Purchase",INDEX(PO_Details[],SMALL(IF(PO_Details[Order Number]=PoNu,ROW(PO_Details[])-ROW(PO_Details[#Headers])),COUNTIF($C$14:$C46,$C46)),MATCH(E$13,PO_Details[#Headers],0)),""),IF(Tbl_Orders[[#This Row],[Order Type]]="Sale",INDEX(S.O[],SMALL(IF(S.O[Order Number]=S.Order,ROW(S.O[])-ROW(S.O[#Headers])),COUNTIF($C$14:$C46,$C46)),MATCH(E$13,S.O[#Headers],0)),"")),"") ->  | F46: =IFERROR(IF(Tbl_Orders[[#This Row],[Order Type]]="Purchase",IF(Tbl_Orders[[#This Row],[Order Type]]="Purchase",INDEX(PO_Details[],SMALL(IF(PO_Details[Order Number]=PoNu,ROW(PO_Details[])-ROW(PO_Details[#Headers])),COUNTIF($C$14:$C46,$C46)),MATCH(F$13,PO_Details[#Headers],0)),""),IF(Tbl_Orders[[#This Row],[Order Type]]="Sale",INDEX(S.O[],SMALL(IF(S.O[Order Number]=S.Order,ROW(S.O[])-ROW(S.O[#Headers])),COUNTIF($C$14:$C46,$C46)),MATCH(F$13,S.O[#Headers],0)),"")),"") ->  | G46: =IFERROR(IF(Tbl_Orders[[#This Row],[Order Type]]="Purchase",IF(Tbl_Orders[[#This Row],[Order Type]]="Purchase",INDEX(PO_Details[],SMALL(IF(PO_Details[Order Number]=PoNu,ROW(PO_Details[])-ROW(PO_Details[#Headers])),COUNTIF($C$14:$C46,$C46)),MATCH(G$13,PO_Details[#Headers],0)),""),IF(Tbl_Orders[[#This Row],[Order Type]]="Sale",INDEX(S.O[],SMALL(IF(S.O[Order Number]=S.Order,ROW(S.O[])-ROW(S.O[#Headers])),COUNTIF($C$14:$C46,$C46)),MATCH(G$13,S.O[#Headers],0)),"")),"") ->  | H46: =IFERROR(IF(Tbl_Orders[[#This Row],[Order Type]]="Purchase",IF(Tbl_Orders[[#This Row],[Order Type]]="Purchase",INDEX(PO_Details[],SMALL(IF(PO_Details[Order Number]=PoNu,ROW(PO_Details[])-ROW(PO_Details[#Headers])),COUNTIF($C$14:$C46,$C46)),MATCH(H$13,PO_Details[#Headers],0)),""),IF(Tbl_Orders[[#This Row],[Order Type]]="Sale",INDEX(S.O[],SMALL(IF(S.O[Order Number]=S.Order,ROW(S.O[])-ROW(S.O[#Headers])),COUNTIF($C$14:$C46,$C46)),MATCH(H$13,S.O[#Headers],0)),"")),"") ->  | I46: =IFERROR(Tbl_Orders[[#This Row],[Unit Price]]*Tbl_Orders[Quantity],"") ->  | J46: =IF(Tbl_Orders[[#This Row],[Product Name]]="","",IFERROR(INDEX(Tbl_Product[#Data],MATCH(Tbl_Orders[[#This Row],[Product Name]],INDEX(Tbl_Product[#Data],,1),0),3),"")) ->  | K46: =TEXT(Tbl_Orders[[#This Row],[Order Date]],"yyyy-mmm") ->  | L46: =SUMIFS(Tbl_Orders[Quantity],Tbl_Orders[Expected Date],"<="&Tbl_Orders[[#This Row],[Expected Date]],Tbl_Orders[Product Name],Tbl_Orders[[#This Row],[Product Name]],Tbl_Orders[Order Type],"Purchase")-SUMIFS(Tbl_Orders[Quantity],Tbl_Orders[Expected Date],"<="&Tbl_Orders[[#This Row],[Expected Date]],Tbl_Orders[Product Name],Tbl_Orders[[#This Row],[Product Name]],Tbl_Orders[Order Type],"Sale") -> 0
A47: =IFERROR(IF(Tbl_Orders[[#This Row],[Order Type]]="Purchase",IF(Tbl_Orders[[#This Row],[Order Type]]="Purchase",INDEX(PO_Details[],SMALL(IF(PO_Details[Order Number]=PoNu,ROW(PO_Details[])-ROW(PO_Details[#Headers])),COUNTIF($C$14:$C47,$C47)),MATCH(A$13,PO_Details[#Headers],0)),""),IF(Tbl_Orders[[#This Row],[Order Type]]="Sale",INDEX(S.O[],SMALL(IF(S.O[Order Number]=S.Order,ROW(S.O[])-ROW(S.O[#Headers])),COUNTIF($C$14:$C47,$C47)),MATCH(A$13,S.O[#Headers],0)),"")),"") ->  | B47: =IFERROR(IF(Tbl_Orders[[#This Row],[Order Type]]="Purchase",IF(Tbl_Orders[[#This Row],[Order Type]]="Purchase",INDEX(PO_Details[],SMALL(IF(PO_Details[Order Number]=PoNu,ROW(PO_Details[])-ROW(PO_Details[#Headers])),COUNTIF($C$14:$C47,$C47)),MATCH(B$13,PO_Details[#Headers],0)),""),IF(Tbl_Orders[[#This Row],[Order Type]]="Sale",INDEX(S.O[],SMALL(IF(S.O[Order Number]=S.Order,ROW(S.O[])-ROW(S.O[#Headers])),COUNTIF($C$14:$C47,$C47)),MATCH(B$13,S.O[#Headers],0)),"")),"") ->  | D47: 12-31-18 | E47: =IFERROR(IF(Tbl_Orders[[#This Row],[Order Type]]="Purchase",IF(Tbl_Orders[[#This Row],[Order Type]]="Purchase",INDEX(PO_Details[],SMALL(IF(PO_Details[Order Number]=PoNu,ROW(PO_Details[])-ROW(PO_Details[#Headers])),COUNTIF($C$14:$C47,$C47)),MATCH(E$13,PO_Details[#Headers],0)),""),IF(Tbl_Orders[[#This Row],[Order Type]]="Sale",INDEX(S.O[],SMALL(IF(S.O[Order Number]=S.Order,ROW(S.O[])-ROW(S.O[#Headers])),COUNTIF($C$14:$C47,$C47)),MATCH(E$13,S.O[#Headers],0)),"")),"") ->  | F47: =IFERROR(IF(Tbl_Orders[[#This Row],[Order Type]]="Purchase",IF(Tbl_Orders[[#This Row],[Order Type]]="Purchase",INDEX(PO_Details[],SMALL(IF(PO_Details[Order Number]=PoNu,ROW(PO_Details[])-ROW(PO_Details[#Headers])),COUNTIF($C$14:$C47,$C47)),MATCH(F$13,PO_Details[#Headers],0)),""),IF(Tbl_Orders[[#This Row],[Order Type]]="Sale",INDEX(S.O[],SMALL(IF(S.O[Order Number]=S.Order,ROW(S.O[])-ROW(S.O[#Headers])),COUNTIF($C$14:$C47,$C47)),MATCH(F$13,S.O[#Headers],0)),"")),"") ->  | G47: =IFERROR(IF(Tbl_Orders[[#This Row],[Order Type]]="Purchase",IF(Tbl_Orders[[#This Row],[Order Type]]="Purchase",INDEX(PO_Details[],SMALL(IF(PO_Details[Order Number]=PoNu,ROW(PO_Details[])-ROW(PO_Details[#Headers])),COUNTIF($C$14:$C47,$C47)),MATCH(G$13,PO_Details[#Headers],0)),""),IF(Tbl_Orders[[#This Row],[Order Type]]="Sale",INDEX(S.O[],SMALL(IF(S.O[Order Number]=S.Order,ROW(S.O[])-ROW(S.O[#Headers])),COUNTIF($C$14:$C47,$C47)),MATCH(G$13,S.O[#Headers],0)),"")),"") ->  | H47: =IFERROR(IF(Tbl_Orders[[#This Row],[Order Type]]="Purchase",IF(Tbl_Orders[[#This Row],[Order Type]]="Purchase",INDEX(PO_Details[],SMALL(IF(PO_Details[Order Number]=PoNu,ROW(PO_Details[])-ROW(PO_Details[#Headers])),COUNTIF($C$14:$C47,$C47)),MATCH(H$13,PO_Details[#Headers],0)),""),IF(Tbl_Orders[[#This Row],[Order Type]]="Sale",INDEX(S.O[],SMALL(IF(S.O[Order Number]=S.Order,ROW(S.O[])-ROW(S.O[#Headers])),COUNTIF($C$14:$C47,$C47)),MATCH(H$13,S.O[#Headers],0)),"")),"") ->  | I47: =IFERROR(Tbl_Orders[[#This Row],[Unit Price]]*Tbl_Orders[Quantity],"") ->  | J47: =IF(Tbl_Orders[[#This Row],[Product Name]]="","",IFERROR(INDEX(Tbl_Product[#Data],MATCH(Tbl_Orders[[#This Row],[Product Name]],INDEX(Tbl_Product[#Data],,1),0),3),"")) ->  | K47: =TEXT(Tbl_Orders[[#This Row],[Order Date]],"yyyy-mmm") ->  | L47: =SUMIFS(Tbl_Orders[Quantity],Tbl_Orders[Expected Date],"<="&Tbl_Orders[[#This Row],[Expected Date]],Tbl_Orders[Product Name],Tbl_Orders[[#This Row],[Product Name]],Tbl_Orders[Order Type],"Purchase")-SUMIFS(Tbl_Orders[Quantity],Tbl_Orders[Expected Date],"<="&Tbl_Orders[[#This Row],[Expected Date]],Tbl_Orders[Product Name],Tbl_Orders[[#This Row],[Product Name]],Tbl_Orders[Order Type],"Sale") -> 0
A48: =IFERROR(IF(Tbl_Orders[[#This Row],[Order Type]]="Purchase",IF(Tbl_Orders[[#This Row],[Order Type]]="Purchase",INDEX(PO_Details[],SMALL(IF(PO_Details[Order Number]=PoNu,ROW(PO_Details[])-ROW(PO_Details[#Headers])),COUNTIF($C$14:$C48,$C48)),MATCH(A$13,PO_Details[#Headers],0)),""),IF(Tbl_Orders[[#This Row],[Order Type]]="Sale",INDEX(S.O[],SMALL(IF(S.O[Order Number]=S.Order,ROW(S.O[])-ROW(S.O[#Headers])),COUNTIF($C$14:$C48,$C48)),MATCH(A$13,S.O[#Headers],0)),"")),"") ->  | B48: =IFERROR(IF(Tbl_Orders[[#This Row],[Order Type]]="Purchase",IF(Tbl_Orders[[#This Row],[Order Type]]="Purchase",INDEX(PO_Details[],SMALL(IF(PO_Details[Order Number]=PoNu,ROW(PO_Details[])-ROW(PO_Details[#Headers])),COUNTIF($C$14:$C48,$C48)),MATCH(B$13,PO_Details[#Headers],0)),""),IF(Tbl_Orders[[#This Row],[Order Type]]="Sale",INDEX(S.O[],SMALL(IF(S.O[Order Number]=S.Order,ROW(S.O[])-ROW(S.O[#Headers])),COUNTIF($C$14:$C48,$C48)),MATCH(B$13,S.O[#Headers],0)),"")),"") ->  | D48: 12-31-18 | E48: =IFERROR(IF(Tbl_Orders[[#This Row],[Order Type]]="Purchase",IF(Tbl_Orders[[#This Row],[Order Type]]="Purchase",INDEX(PO_Details[],SMALL(IF(PO_Details[Order Number]=PoNu,ROW(PO_Details[])-ROW(PO_Details[#Headers])),COUNTIF($C$14:$C48,$C48)),MATCH(E$13,PO_Details[#Headers],0)),""),IF(Tbl_Orders[[#This Row],[Order Type]]="Sale",INDEX(S.O[],SMALL(IF(S.O[Order Number]=S.Order,ROW(S.O[])-ROW(S.O[#Headers])),COUNTIF($C$14:$C48,$C48)),MATCH(E$13,S.O[#Headers],0)),"")),"") ->  | F48: =IFERROR(IF(Tbl_Orders[[#This Row],[Order Type]]="Purchase",IF(Tbl_Orders[[#This Row],[Order Type]]="Purchase",INDEX(PO_Details[],SMALL(IF(PO_Details[Order Number]=PoNu,ROW(PO_Details[])-ROW(PO_Details[#Headers])),COUNTIF($C$14:$C48,$C48)),MATCH(F$13,PO_Details[#Headers],0)),""),IF(Tbl_Orders[[#This Row],[Order Type]]="Sale",INDEX(S.O[],SMALL(IF(S.O[Order Number]=S.Order,ROW(S.O[])-ROW(S.O[#Headers])),COUNTIF($C$14:$C48,$C48)),MATCH(F$13,S.O[#Headers],0)),"")),"") ->  | G48: =IFERROR(IF(Tbl_Orders[[#This Row],[Order Type]]="Purchase",IF(Tbl_Orders[[#This Row],[Order Type]]="Purchase",INDEX(PO_Details[],SMALL(IF(PO_Details[Order Number]=PoNu,ROW(PO_Details[])-ROW(PO_Details[#Headers])),COUNTIF($C$14:$C48,$C48)),MATCH(G$13,PO_Details[#Headers],0)),""),IF(Tbl_Orders[[#This Row],[Order Type]]="Sale",INDEX(S.O[],SMALL(IF(S.O[Order Number]=S.Order,ROW(S.O[])-ROW(S.O[#Headers])),COUNTIF($C$14:$C48,$C48)),MATCH(G$13,S.O[#Headers],0)),"")),"") ->  | H48: =IFERROR(IF(Tbl_Orders[[#This Row],[Order Type]]="Purchase",IF(Tbl_Orders[[#This Row],[Order Type]]="Purchase",INDEX(PO_Details[],SMALL(IF(PO_Details[Order Number]=PoNu,ROW(PO_Details[])-ROW(PO_Details[#Headers])),COUNTIF($C$14:$C48,$C48)),MATCH(H$13,PO_Details[#Headers],0)),""),IF(Tbl_Orders[[#This Row],[Order Type]]="Sale",INDEX(S.O[],SMALL(IF(S.O[Order Number]=S.Order,ROW(S.O[])-ROW(S.O[#Headers])),COUNTIF($C$14:$C48,$C48)),MATCH(H$13,S.O[#Headers],0)),"")),"") ->  | I48: =IFERROR(Tbl_Orders[[#This Row],[Unit Price]]*Tbl_Orders[Quantity],"") ->  | J48: =IF(Tbl_Orders[[#This Row],[Product Name]]="","",IFERROR(INDEX(Tbl_Product[#Data],MATCH(Tbl_Orders[[#This Row],[Product Name]],INDEX(Tbl_Product[#Data],,1),0),3),"")) ->  | K48: =TEXT(Tbl_Orders[[#This Row],[Order Date]],"yyyy-mmm") ->  | L48: =SUMIFS(Tbl_Orders[Quantity],Tbl_Orders[Expected Date],"<="&Tbl_Orders[[#This Row],[Expected Date]],Tbl_Orders[Product Name],Tbl_Orders[[#This Row],[Product Name]],Tbl_Orders[Order Type],"Purchase")-SUMIFS(Tbl_Orders[Quantity],Tbl_Orders[Expected Date],"<="&Tbl_Orders[[#This Row],[Expected Date]],Tbl_Orders[Product Name],Tbl_Orders[[#This Row],[Product Name]],Tbl_Orders[Order Type],"Sale") -> 0
A49: =IFERROR(IF(Tbl_Orders[[#This Row],[Order Type]]="Purchase",IF(Tbl_Orders[[#This Row],[Order Type]]="Purchase",INDEX(PO_Details[],SMALL(IF(PO_Details[Order Number]=PoNu,ROW(PO_Details[])-ROW(PO_Details[#Headers])),COUNTIF($C$14:$C49,$C49)),MATCH(A$13,PO_Details[#Headers],0)),""),IF(Tbl_Orders[[#This Row],[Order Type]]="Sale",INDEX(S.O[],SMALL(IF(S.O[Order Number]=S.Order,ROW(S.O[])-ROW(S.O[#Headers])),COUNTIF($C$14:$C49,$C49)),MATCH(A$13,S.O[#Headers],0)),"")),"") ->  | B49: =IFERROR(IF(Tbl_Orders[[#This Row],[Order Type]]="Purchase",IF(Tbl_Orders[[#This Row],[Order Type]]="Purchase",INDEX(PO_Details[],SMALL(IF(PO_Details[Order Number]=PoNu,ROW(PO_Details[])-ROW(PO_Details[#Headers])),COUNTIF($C$14:$C49,$C49)),MATCH(B$13,PO_Details[#Headers],0)),""),IF(Tbl_Orders[[#This Row],[Order Type]]="Sale",INDEX(S.O[],SMALL(IF(S.O[Order Number]=S.Order,ROW(S.O[])-ROW(S.O[#Headers])),COUNTIF($C$14:$C49,$C49)),MATCH(B$13,S.O[#Headers],0)),"")),"") ->  | D49: 12-31-18 | E49: =IFERROR(IF(Tbl_Orders[[#This Row],[Order Type]]="Purchase",IF(Tbl_Orders[[#This Row],[Order Type]]="Purchase",INDEX(PO_Details[],SMALL(IF(PO_Details[Order Number]=PoNu,ROW(PO_Details[])-ROW(PO_Details[#Headers])),COUNTIF($C$14:$C49,$C49)),MATCH(E$13,PO_Details[#Headers],0)),""),IF(Tbl_Orders[[#This Row],[Order Type]]="Sale",INDEX(S.O[],SMALL(IF(S.O[Order Number]=S.Order,ROW(S.O[])-ROW(S.O[#Headers])),COUNTIF($C$14:$C49,$C49)),MATCH(E$13,S.O[#Headers],0)),"")),"") ->  | F49: =IFERROR(IF(Tbl_Orders[[#This Row],[Order Type]]="Purchase",IF(Tbl_Orders[[#This Row],[Order Type]]="Purchase",INDEX(PO_Details[],SMALL(IF(PO_Details[Order Number]=PoNu,ROW(PO_Details[])-ROW(PO_Details[#Headers])),COUNTIF($C$14:$C49,$C49)),MATCH(F$13,PO_Details[#Headers],0)),""),IF(Tbl_Orders[[#This Row],[Order Type]]="Sale",INDEX(S.O[],SMALL(IF(S.O[Order Number]=S.Order,ROW(S.O[])-ROW(S.O[#Headers])),COUNTIF($C$14:$C49,$C49)),MATCH(F$13,S.O[#Headers],0)),"")),"") ->  | G49: =IFERROR(IF(Tbl_Orders[[#This Row],[Order Type]]="Purchase",IF(Tbl_Orders[[#This Row],[Order Type]]="Purchase",INDEX(PO_Details[],SMALL(IF(PO_Details[Order Number]=PoNu,ROW(PO_Details[])-ROW(PO_Details[#Headers])),COUNTIF($C$14:$C49,$C49)),MATCH(G$13,PO_Details[#Headers],0)),""),IF(Tbl_Orders[[#This Row],[Order Type]]="Sale",INDEX(S.O[],SMALL(IF(S.O[Order Number]=S.Order,ROW(S.O[])-ROW(S.O[#Headers])),COUNTIF($C$14:$C49,$C49)),MATCH(G$13,S.O[#Headers],0)),"")),"") ->  | H49: =IFERROR(IF(Tbl_Orders[[#This Row],[Order Type]]="Purchase",IF(Tbl_Orders[[#This Row],[Order Type]]="Purchase",INDEX(PO_Details[],SMALL(IF(PO_Details[Order Number]=PoNu,ROW(PO_Details[])-ROW(PO_Details[#Headers])),COUNTIF($C$14:$C49,$C49)),MATCH(H$13,PO_Details[#Headers],0)),""),IF(Tbl_Orders[[#This Row],[Order Type]]="Sale",INDEX(S.O[],SMALL(IF(S.O[Order Number]=S.Order,ROW(S.O[])-ROW(S.O[#Headers])),COUNTIF($C$14:$C49,$C49)),MATCH(H$13,S.O[#Headers],0)),"")),"") ->  | I49: =IFERROR(Tbl_Orders[[#This Row],[Unit Price]]*Tbl_Orders[Quantity],"") ->  | J49: =IF(Tbl_Orders[[#This Row],[Product Name]]="","",IFERROR(INDEX(Tbl_Product[#Data],MATCH(Tbl_Orders[[#This Row],[Product Name]],INDEX(Tbl_Product[#Data],,1),0),3),"")) ->  | K49: =TEXT(Tbl_Orders[[#This Row],[Order Date]],"yyyy-mmm") ->  | L49: =SUMIFS(Tbl_Orders[Quantity],Tbl_Orders[Expected Date],"<="&Tbl_Orders[[#This Row],[Expected Date]],Tbl_Orders[Product Name],Tbl_Orders[[#This Row],[Product Name]],Tbl_Orders[Order Type],"Purchase")-SUMIFS(Tbl_Orders[Quantity],Tbl_Orders[Expected Date],"<="&Tbl_Orders[[#This Row],[Expected Date]],Tbl_Orders[Product Name],Tbl_Orders[[#This Row],[Product Name]],Tbl_Orders[Order Type],"Sale") -> 0
A50: =IFERROR(IF(Tbl_Orders[[#This Row],[Order Type]]="Purchase",IF(Tbl_Orders[[#This Row],[Order Type]]="Purchase",INDEX(PO_Details[],SMALL(IF(PO_Details[Order Number]=PoNu,ROW(PO_Details[])-ROW(PO_Details[#Headers])),COUNTIF($C$14:$C50,$C50)),MATCH(A$13,PO_Details[#Headers],0)),""),IF(Tbl_Orders[[#This Row],[Order Type]]="Sale",INDEX(S.O[],SMALL(IF(S.O[Order Number]=S.Order,ROW(S.O[])-ROW(S.O[#Headers])),COUNTIF($C$14:$C50,$C50)),MATCH(A$13,S.O[#Headers],0)),"")),"") ->  | B50: =IFERROR(IF(Tbl_Orders[[#This Row],[Order Type]]="Purchase",IF(Tbl_Orders[[#This Row],[Order Type]]="Purchase",INDEX(PO_Details[],SMALL(IF(PO_Details[Order Number]=PoNu,ROW(PO_Details[])-ROW(PO_Details[#Headers])),COUNTIF($C$14:$C50,$C50)),MATCH(B$13,PO_Details[#Headers],0)),""),IF(Tbl_Orders[[#This Row],[Order Type]]="Sale",INDEX(S.O[],SMALL(IF(S.O[Order Number]=S.Order,ROW(S.O[])-ROW(S.O[#Headers])),COUNTIF($C$14:$C50,$C50)),MATCH(B$13,S.O[#Headers],0)),"")),"") ->  | D50: 12-31-18 | E50: =IFERROR(IF(Tbl_Orders[[#This Row],[Order Type]]="Purchase",IF(Tbl_Orders[[#This Row],[Order Type]]="Purchase",INDEX(PO_Details[],SMALL(IF(PO_Details[Order Number]=PoNu,ROW(PO_Details[])-ROW(PO_Details[#Headers])),COUNTIF($C$14:$C50,$C50)),MATCH(E$13,PO_Details[#Headers],0)),""),IF(Tbl_Orders[[#This Row],[Order Type]]="Sale",INDEX(S.O[],SMALL(IF(S.O[Order Number]=S.Order,ROW(S.O[])-ROW(S.O[#Headers])),COUNTIF($C$14:$C50,$C50)),MATCH(E$13,S.O[#Headers],0)),"")),"") ->  | F50: =IFERROR(IF(Tbl_Orders[[#This Row],[Order Type]]="Purchase",IF(Tbl_Orders[[#This Row],[Order Type]]="Purchase",INDEX(PO_Details[],SMALL(IF(PO_Details[Order Number]=PoNu,ROW(PO_Details[])-ROW(PO_Details[#Headers])),COUNTIF($C$14:$C50,$C50)),MATCH(F$13,PO_Details[#Headers],0)),""),IF(Tbl_Orders[[#This Row],[Order Type]]="Sale",INDEX(S.O[],SMALL(IF(S.O[Order Number]=S.Order,ROW(S.O[])-ROW(S.O[#Headers])),COUNTIF($C$14:$C50,$C50)),MATCH(F$13,S.O[#Headers],0)),"")),"") ->  | G50: =IFERROR(IF(Tbl_Orders[[#This Row],[Order Type]]="Purchase",IF(Tbl_Orders[[#This Row],[Order Type]]="Purchase",INDEX(PO_Details[],SMALL(IF(PO_Details[Order Number]=PoNu,ROW(PO_Details[])-ROW(PO_Details[#Headers])),COUNTIF($C$14:$C50,$C50)),MATCH(G$13,PO_Details[#Headers],0)),""),IF(Tbl_Orders[[#This Row],[Order Type]]="Sale",INDEX(S.O[],SMALL(IF(S.O[Order Number]=S.Order,ROW(S.O[])-ROW(S.O[#Headers])),COUNTIF($C$14:$C50,$C50)),MATCH(G$13,S.O[#Headers],0)),"")),"") ->  | H50: =IFERROR(IF(Tbl_Orders[[#This Row],[Order Type]]="Purchase",IF(Tbl_Orders[[#This Row],[Order Type]]="Purchase",INDEX(PO_Details[],SMALL(IF(PO_Details[Order Number]=PoNu,ROW(PO_Details[])-ROW(PO_Details[#Headers])),COUNTIF($C$14:$C50,$C50)),MATCH(H$13,PO_Details[#Headers],0)),""),IF(Tbl_Orders[[#This Row],[Order Type]]="Sale",INDEX(S.O[],SMALL(IF(S.O[Order Number]=S.Order,ROW(S.O[])-ROW(S.O[#Headers])),COUNTIF($C$14:$C50,$C50)),MATCH(H$13,S.O[#Headers],0)),"")),"") ->  | I50: =IFERROR(Tbl_Orders[[#This Row],[Unit Price]]*Tbl_Orders[Quantity],"") ->  | J50: =IF(Tbl_Orders[[#This Row],[Product Name]]="","",IFERROR(INDEX(Tbl_Product[#Data],MATCH(Tbl_Orders[[#This Row],[Product Name]],INDEX(Tbl_Product[#Data],,1),0),3),"")) ->  | K50: =TEXT(Tbl_Orders[[#This Row],[Order Date]],"yyyy-mmm") ->  | L50: =SUMIFS(Tbl_Orders[Quantity],Tbl_Orders[Expected Date],"<="&Tbl_Orders[[#This Row],[Expected Date]],Tbl_Orders[Product Name],Tbl_Orders[[#This Row],[Product Name]],Tbl_Orders[Order Type],"Purchase")-SUMIFS(Tbl_Orders[Quantity],Tbl_Orders[Expected Date],"<="&Tbl_Orders[[#This Row],[Expected Date]],Tbl_Orders[Product Name],Tbl_Orders[[#This Row],[Product Name]],Tbl_Orders[Order Type],"Sale") -> 0
A51: =IFERROR(IF(Tbl_Orders[[#This Row],[Order Type]]="Purchase",IF(Tbl_Orders[[#This Row],[Order Type]]="Purchase",INDEX(PO_Details[],SMALL(IF(PO_Details[Order Number]=PoNu,ROW(PO_Details[])-ROW(PO_Details[#Headers])),COUNTIF($C$14:$C51,$C51)),MATCH(A$13,PO_Details[#Headers],0)),""),IF(Tbl_Orders[[#This Row],[Order Type]]="Sale",INDEX(S.O[],SMALL(IF(S.O[Order Number]=S.Order,ROW(S.O[])-ROW(S.O[#Headers])),COUNTIF($C$14:$C51,$C51)),MATCH(A$13,S.O[#Headers],0)),"")),"") ->  | B51: =IFERROR(IF(Tbl_Orders[[#This Row],[Order Type]]="Purchase",IF(Tbl_Orders[[#This Row],[Order Type]]="Purchase",INDEX(PO_Details[],SMALL(IF(PO_Details[Order Number]=PoNu,ROW(PO_Details[])-ROW(PO_Details[#Headers])),COUNTIF($C$14:$C51,$C51)),MATCH(B$13,PO_Details[#Headers],0)),""),IF(Tbl_Orders[[#This Row],[Order Type]]="Sale",INDEX(S.O[],SMALL(IF(S.O[Order Number]=S.Order,ROW(S.O[])-ROW(S.O[#Headers])),COUNTIF($C$14:$C51,$C51)),MATCH(B$13,S.O[#Headers],0)),"")),"") ->  | D51: 12-31-18 | E51: =IFERROR(IF(Tbl_Orders[[#This Row],[Order Type]]="Purchase",IF(Tbl_Orders[[#This Row],[Order Type]]="Purchase",INDEX(PO_Details[],SMALL(IF(PO_Details[Order Number]=PoNu,ROW(PO_Details[])-ROW(PO_Details[#Headers])),COUNTIF($C$14:$C51,$C51)),MATCH(E$13,PO_Details[#Headers],0)),""),IF(Tbl_Orders[[#This Row],[Order Type]]="Sale",INDEX(S.O[],SMALL(IF(S.O[Order Number]=S.Order,ROW(S.O[])-ROW(S.O[#Headers])),COUNTIF($C$14:$C51,$C51)),MATCH(E$13,S.O[#Headers],0)),"")),"") ->  | F51: =IFERROR(IF(Tbl_Orders[[#This Row],[Order Type]]="Purchase",IF(Tbl_Orders[[#This Row],[Order Type]]="Purchase",INDEX(PO_Details[],SMALL(IF(PO_Details[Order Number]=PoNu,ROW(PO_Details[])-ROW(PO_Details[#Headers])),COUNTIF($C$14:$C51,$C51)),MATCH(F$13,PO_Details[#Headers],0)),""),IF(Tbl_Orders[[#This Row],[Order Type]]="Sale",INDEX(S.O[],SMALL(IF(S.O[Order Number]=S.Order,ROW(S.O[])-ROW(S.O[#Headers])),COUNTIF($C$14:$C51,$C51)),MATCH(F$13,S.O[#Headers],0)),"")),"") ->  | G51: =IFERROR(IF(Tbl_Orders[[#This Row],[Order Type]]="Purchase",IF(Tbl_Orders[[#This Row],[Order Type]]="Purchase",INDEX(PO_Details[],SMALL(IF(PO_Details[Order Number]=PoNu,ROW(PO_Details[])-ROW(PO_Details[#Headers])),COUNTIF($C$14:$C51,$C51)),MATCH(G$13,PO_Details[#Headers],0)),""),IF(Tbl_Orders[[#This Row],[Order Type]]="Sale",INDEX(S.O[],SMALL(IF(S.O[Order Number]=S.Order,ROW(S.O[])-ROW(S.O[#Headers])),COUNTIF($C$14:$C51,$C51)),MATCH(G$13,S.O[#Headers],0)),"")),"") ->  | H51: =IFERROR(IF(Tbl_Orders[[#This Row],[Order Type]]="Purchase",IF(Tbl_Orders[[#This Row],[Order Type]]="Purchase",INDEX(PO_Details[],SMALL(IF(PO_Details[Order Number]=PoNu,ROW(PO_Details[])-ROW(PO_Details[#Headers])),COUNTIF($C$14:$C51,$C51)),MATCH(H$13,PO_Details[#Headers],0)),""),IF(Tbl_Orders[[#This Row],[Order Type]]="Sale",INDEX(S.O[],SMALL(IF(S.O[Order Number]=S.Order,ROW(S.O[])-ROW(S.O[#Headers])),COUNTIF($C$14:$C51,$C51)),MATCH(H$13,S.O[#Headers],0)),"")),"") ->  | I51: =IFERROR(Tbl_Orders[[#This Row],[Unit Price]]*Tbl_Orders[Quantity],"") ->  | J51: =IF(Tbl_Orders[[#This Row],[Product Name]]="","",IFERROR(INDEX(Tbl_Product[#Data],MATCH(Tbl_Orders[[#This Row],[Product Name]],INDEX(Tbl_Product[#Data],,1),0),3),"")) ->  | K51: =TEXT(Tbl_Orders[[#This Row],[Order Date]],"yyyy-mmm") ->  | L51: =SUMIFS(Tbl_Orders[Quantity],Tbl_Orders[Expected Date],"<="&Tbl_Orders[[#This Row],[Expected Date]],Tbl_Orders[Product Name],Tbl_Orders[[#This Row],[Product Name]],Tbl_Orders[Order Type],"Purchase")-SUMIFS(Tbl_Orders[Quantity],Tbl_Orders[Expected Date],"<="&Tbl_Orders[[#This Row],[Expected Date]],Tbl_Orders[Product Name],Tbl_Orders[[#This Row],[Product Name]],Tbl_Orders[Order Type],"Sale") -> 0
A52: =IFERROR(IF(Tbl_Orders[[#This Row],[Order Type]]="Purchase",IF(Tbl_Orders[[#This Row],[Order Type]]="Purchase",INDEX(PO_Details[],SMALL(IF(PO_Details[Order Number]=PoNu,ROW(PO_Details[])-ROW(PO_Details[#Headers])),COUNTIF($C$14:$C52,$C52)),MATCH(A$13,PO_Details[#Headers],0)),""),IF(Tbl_Orders[[#This Row],[Order Type]]="Sale",INDEX(S.O[],SMALL(IF(S.O[Order Number]=S.Order,ROW(S.O[])-ROW(S.O[#Headers])),COUNTIF($C$14:$C52,$C52)),MATCH(A$13,S.O[#Headers],0)),"")),"") ->  | B52: =IFERROR(IF(Tbl_Orders[[#This Row],[Order Type]]="Purchase",IF(Tbl_Orders[[#This Row],[Order Type]]="Purchase",INDEX(PO_Details[],SMALL(IF(PO_Details[Order Number]=PoNu,ROW(PO_Details[])-ROW(PO_Details[#Headers])),COUNTIF($C$14:$C52,$C52)),MATCH(B$13,PO_Details[#Headers],0)),""),IF(Tbl_Orders[[#This Row],[Order Type]]="Sale",INDEX(S.O[],SMALL(IF(S.O[Order Number]=S.Order,ROW(S.O[])-ROW(S.O[#Headers])),COUNTIF($C$14:$C52,$C52)),MATCH(B$13,S.O[#Headers],0)),"")),"") ->  | D52: 12-31-18 | E52: =IFERROR(IF(Tbl_Orders[[#This Row],[Order Type]]="Purchase",IF(Tbl_Orders[[#This Row],[Order Type]]="Purchase",INDEX(PO_Details[],SMALL(IF(PO_Details[Order Number]=PoNu,ROW(PO_Details[])-ROW(PO_Details[#Headers])),COUNTIF($C$14:$C52,$C52)),MATCH(E$13,PO_Details[#Headers],0)),""),IF(Tbl_Orders[[#This Row],[Order Type]]="Sale",INDEX(S.O[],SMALL(IF(S.O[Order Number]=S.Order,ROW(S.O[])-ROW(S.O[#Headers])),COUNTIF($C$14:$C52,$C52)),MATCH(E$13,S.O[#Headers],0)),"")),"") ->  | F52: =IFERROR(IF(Tbl_Orders[[#This Row],[Order Type]]="Purchase",IF(Tbl_Orders[[#This Row],[Order Type]]="Purchase",INDEX(PO_Details[],SMALL(IF(PO_Details[Order Number]=PoNu,ROW(PO_Details[])-ROW(PO_Details[#Headers])),COUNTIF($C$14:$C52,$C52)),MATCH(F$13,PO_Details[#Headers],0)),""),IF(Tbl_Orders[[#This Row],[Order Type]]="Sale",INDEX(S.O[],SMALL(IF(S.O[Order Number]=S.Order,ROW(S.O[])-ROW(S.O[#Headers])),COUNTIF($C$14:$C52,$C52)),MATCH(F$13,S.O[#Headers],0)),"")),"") ->  | G52: =IFERROR(IF(Tbl_Orders[[#This Row],[Order Type]]="Purchase",IF(Tbl_Orders[[#This Row],[Order Type]]="Purchase",INDEX(PO_Details[],SMALL(IF(PO_Details[Order Number]=PoNu,ROW(PO_Details[])-ROW(PO_Details[#Headers])),COUNTIF($C$14:$C52,$C52)),MATCH(G$13,PO_Details[#Headers],0)),""),IF(Tbl_Orders[[#This Row],[Order Type]]="Sale",INDEX(S.O[],SMALL(IF(S.O[Order Number]=S.Order,ROW(S.O[])-ROW(S.O[#Headers])),COUNTIF($C$14:$C52,$C52)),MATCH(G$13,S.O[#Headers],0)),"")),"") ->  | H52: =IFERROR(IF(Tbl_Orders[[#This Row],[Order Type]]="Purchase",IF(Tbl_Orders[[#This Row],[Order Type]]="Purchase",INDEX(PO_Details[],SMALL(IF(PO_Details[Order Number]=PoNu,ROW(PO_Details[])-ROW(PO_Details[#Headers])),COUNTIF($C$14:$C52,$C52)),MATCH(H$13,PO_Details[#Headers],0)),""),IF(Tbl_Orders[[#This Row],[Order Type]]="Sale",INDEX(S.O[],SMALL(IF(S.O[Order Number]=S.Order,ROW(S.O[])-ROW(S.O[#Headers])),COUNTIF($C$14:$C52,$C52)),MATCH(H$13,S.O[#Headers],0)),"")),"") ->  | I52: =IFERROR(Tbl_Orders[[#This Row],[Unit Price]]*Tbl_Orders[Quantity],"") ->  | J52: =IF(Tbl_Orders[[#This Row],[Product Name]]="","",IFERROR(INDEX(Tbl_Product[#Data],MATCH(Tbl_Orders[[#This Row],[Product Name]],INDEX(Tbl_Product[#Data],,1),0),3),"")) ->  | K52: =TEXT(Tbl_Orders[[#This Row],[Order Date]],"yyyy-mmm") ->  | L52: =SUMIFS(Tbl_Orders[Quantity],Tbl_Orders[Expected Date],"<="&Tbl_Orders[[#This Row],[Expected Date]],Tbl_Orders[Product Name],Tbl_Orders[[#This Row],[Product Name]],Tbl_Orders[Order Type],"Purchase")-SUMIFS(Tbl_Orders[Quantity],Tbl_Orders[Expected Date],"<="&Tbl_Orders[[#This Row],[Expected Date]],Tbl_Orders[Product Name],Tbl_Orders[[#This Row],[Product Name]],Tbl_Orders[Order Type],"Sale") -> 0
A53: =IFERROR(IF(Tbl_Orders[[#This Row],[Order Type]]="Purchase",IF(Tbl_Orders[[#This Row],[Order Type]]="Purchase",INDEX(PO_Details[],SMALL(IF(PO_Details[Order Number]=PoNu,ROW(PO_Details[])-ROW(PO_Details[#Headers])),COUNTIF($C$14:$C53,$C53)),MATCH(A$13,PO_Details[#Headers],0)),""),IF(Tbl_Orders[[#This Row],[Order Type]]="Sale",INDEX(S.O[],SMALL(IF(S.O[Order Number]=S.Order,ROW(S.O[])-ROW(S.O[#Headers])),COUNTIF($C$14:$C53,$C53)),MATCH(A$13,S.O[#Headers],0)),"")),"") ->  | B53: =IFERROR(IF(Tbl_Orders[[#This Row],[Order Type]]="Purchase",IF(Tbl_Orders[[#This Row],[Order Type]]="Purchase",INDEX(PO_Details[],SMALL(IF(PO_Details[Order Number]=PoNu,ROW(PO_Details[])-ROW(PO_Details[#Headers])),COUNTIF($C$14:$C53,$C53)),MATCH(B$13,PO_Details[#Headers],0)),""),IF(Tbl_Orders[[#This Row],[Order Type]]="Sale",INDEX(S.O[],SMALL(IF(S.O[Order Number]=S.Order,ROW(S.O[])-ROW(S.O[#Headers])),COUNTIF($C$14:$C53,$C53)),MATCH(B$13,S.O[#Headers],0)),"")),"") ->  | D53: 12-31-18 | E53: =IFERROR(IF(Tbl_Orders[[#This Row],[Order Type]]="Purchase",IF(Tbl_Orders[[#This Row],[Order Type]]="Purchase",INDEX(PO_Details[],SMALL(IF(PO_Details[Order Number]=PoNu,ROW(PO_Details[])-ROW(PO_Details[#Headers])),COUNTIF($C$14:$C53,$C53)),MATCH(E$13,PO_Details[#Headers],0)),""),IF(Tbl_Orders[[#This Row],[Order Type]]="Sale",INDEX(S.O[],SMALL(IF(S.O[Order Number]=S.Order,ROW(S.O[])-ROW(S.O[#Headers])),COUNTIF($C$14:$C53,$C53)),MATCH(E$13,S.O[#Headers],0)),"")),"") ->  | F53: =IFERROR(IF(Tbl_Orders[[#This Row],[Order Type]]="Purchase",IF(Tbl_Orders[[#This Row],[Order Type]]="Purchase",INDEX(PO_Details[],SMALL(IF(PO_Details[Order Number]=PoNu,ROW(PO_Details[])-ROW(PO_Details[#Headers])),COUNTIF($C$14:$C53,$C53)),MATCH(F$13,PO_Details[#Headers],0)),""),IF(Tbl_Orders[[#This Row],[Order Type]]="Sale",INDEX(S.O[],SMALL(IF(S.O[Order Number]=S.Order,ROW(S.O[])-ROW(S.O[#Headers])),COUNTIF($C$14:$C53,$C53)),MATCH(F$13,S.O[#Headers],0)),"")),"") ->  | G53: =IFERROR(IF(Tbl_Orders[[#This Row],[Order Type]]="Purchase",IF(Tbl_Orders[[#This Row],[Order Type]]="Purchase",INDEX(PO_Details[],SMALL(IF(PO_Details[Order Number]=PoNu,ROW(PO_Details[])-ROW(PO_Details[#Headers])),COUNTIF($C$14:$C53,$C53)),MATCH(G$13,PO_Details[#Headers],0)),""),IF(Tbl_Orders[[#This Row],[Order Type]]="Sale",INDEX(S.O[],SMALL(IF(S.O[Order Number]=S.Order,ROW(S.O[])-ROW(S.O[#Headers])),COUNTIF($C$14:$C53,$C53)),MATCH(G$13,S.O[#Headers],0)),"")),"") ->  | H53: =IFERROR(IF(Tbl_Orders[[#This Row],[Order Type]]="Purchase",IF(Tbl_Orders[[#This Row],[Order Type]]="Purchase",INDEX(PO_Details[],SMALL(IF(PO_Details[Order Number]=PoNu,ROW(PO_Details[])-ROW(PO_Details[#Headers])),COUNTIF($C$14:$C53,$C53)),MATCH(H$13,PO_Details[#Headers],0)),""),IF(Tbl_Orders[[#This Row],[Order Type]]="Sale",INDEX(S.O[],SMALL(IF(S.O[Order Number]=S.Order,ROW(S.O[])-ROW(S.O[#Headers])),COUNTIF($C$14:$C53,$C53)),MATCH(H$13,S.O[#Headers],0)),"")),"") ->  | I53: =IFERROR(Tbl_Orders[[#This Row],[Unit Price]]*Tbl_Orders[Quantity],"") ->  | J53: =IF(Tbl_Orders[[#This Row],[Product Name]]="","",IFERROR(INDEX(Tbl_Product[#Data],MATCH(Tbl_Orders[[#This Row],[Product Name]],INDEX(Tbl_Product[#Data],,1),0),3),"")) ->  | K53: =TEXT(Tbl_Orders[[#This Row],[Order Date]],"yyyy-mmm") ->  | L53: =SUMIFS(Tbl_Orders[Quantity],Tbl_Orders[Expected Date],"<="&Tbl_Orders[[#This Row],[Expected Date]],Tbl_Orders[Product Name],Tbl_Orders[[#This Row],[Product Name]],Tbl_Orders[Order Type],"Purchase")-SUMIFS(Tbl_Orders[Quantity],Tbl_Orders[Expected Date],"<="&Tbl_Orders[[#This Row],[Expected Date]],Tbl_Orders[Product Name],Tbl_Orders[[#This Row],[Product Name]],Tbl_Orders[Order Type],"Sale") -> 0
A54: =IFERROR(IF(Tbl_Orders[[#This Row],[Order Type]]="Purchase",IF(Tbl_Orders[[#This Row],[Order Type]]="Purchase",INDEX(PO_Details[],SMALL(IF(PO_Details[Order Number]=PoNu,ROW(PO_Details[])-ROW(PO_Details[#Headers])),COUNTIF($C$14:$C54,$C54)),MATCH(A$13,PO_Details[#Headers],0)),""),IF(Tbl_Orders[[#This Row],[Order Type]]="Sale",INDEX(S.O[],SMALL(IF(S.O[Order Number]=S.Order,ROW(S.O[])-ROW(S.O[#Headers])),COUNTIF($C$14:$C54,$C54)),MATCH(A$13,S.O[#Headers],0)),"")),"") ->  | B54: =IFERROR(IF(Tbl_Orders[[#This Row],[Order Type]]="Purchase",IF(Tbl_Orders[[#This Row],[Order Type]]="Purchase",INDEX(PO_Details[],SMALL(IF(PO_Details[Order Number]=PoNu,ROW(PO_Details[])-ROW(PO_Details[#Headers])),COUNTIF($C$14:$C54,$C54)),MATCH(B$13,PO_Details[#Headers],0)),""),IF(Tbl_Orders[[#This Row],[Order Type]]="Sale",INDEX(S.O[],SMALL(IF(S.O[Order Number]=S.Order,ROW(S.O[])-ROW(S.O[#Headers])),COUNTIF($C$14:$C54,$C54)),MATCH(B$13,S.O[#Headers],0)),"")),"") ->  | D54: 12-31-18 | E54: =IFERROR(IF(Tbl_Orders[[#This Row],[Order Type]]="Purchase",IF(Tbl_Orders[[#This Row],[Order Type]]="Purchase",INDEX(PO_Details[],SMALL(IF(PO_Details[Order Number]=PoNu,ROW(PO_Details[])-ROW(PO_Details[#Headers])),COUNTIF($C$14:$C54,$C54)),MATCH(E$13,PO_Details[#Headers],0)),""),IF(Tbl_Orders[[#This Row],[Order Type]]="Sale",INDEX(S.O[],SMALL(IF(S.O[Order Number]=S.Order,ROW(S.O[])-ROW(S.O[#Headers])),COUNTIF($C$14:$C54,$C54)),MATCH(E$13,S.O[#Headers],0)),"")),"") ->  | F54: =IFERROR(IF(Tbl_Orders[[#This Row],[Order Type]]="Purchase",IF(Tbl_Orders[[#This Row],[Order Type]]="Purchase",INDEX(PO_Details[],SMALL(IF(PO_Details[Order Number]=PoNu,ROW(PO_Details[])-ROW(PO_Details[#Headers])),COUNTIF($C$14:$C54,$C54)),MATCH(F$13,PO_Details[#Headers],0)),""),IF(Tbl_Orders[[#This Row],[Order Type]]="Sale",INDEX(S.O[],SMALL(IF(S.O[Order Number]=S.Order,ROW(S.O[])-ROW(S.O[#Headers])),COUNTIF($C$14:$C54,$C54)),MATCH(F$13,S.O[#Headers],0)),"")),"") ->  | G54: =IFERROR(IF(Tbl_Orders[[#This Row],[Order Type]]="Purchase",IF(Tbl_Orders[[#This Row],[Order Type]]="Purchase",INDEX(PO_Details[],SMALL(IF(PO_Details[Order Number]=PoNu,ROW(PO_Details[])-ROW(PO_Details[#Headers])),COUNTIF($C$14:$C54,$C54)),MATCH(G$13,PO_Details[#Headers],0)),""),IF(Tbl_Orders[[#This Row],[Order Type]]="Sale",INDEX(S.O[],SMALL(IF(S.O[Order Number]=S.Order,ROW(S.O[])-ROW(S.O[#Headers])),COUNTIF($C$14:$C54,$C54)),MATCH(G$13,S.O[#Headers],0)),"")),"") ->  | H54: =IFERROR(IF(Tbl_Orders[[#This Row],[Order Type]]="Purchase",IF(Tbl_Orders[[#This Row],[Order Type]]="Purchase",INDEX(PO_Details[],SMALL(IF(PO_Details[Order Number]=PoNu,ROW(PO_Details[])-ROW(PO_Details[#Headers])),COUNTIF($C$14:$C54,$C54)),MATCH(H$13,PO_Details[#Headers],0)),""),IF(Tbl_Orders[[#This Row],[Order Type]]="Sale",INDEX(S.O[],SMALL(IF(S.O[Order Number]=S.Order,ROW(S.O[])-ROW(S.O[#Headers])),COUNTIF($C$14:$C54,$C54)),MATCH(H$13,S.O[#Headers],0)),"")),"") ->  | I54: =IFERROR(Tbl_Orders[[#This Row],[Unit Price]]*Tbl_Orders[Quantity],"") ->  | J54: =IF(Tbl_Orders[[#This Row],[Product Name]]="","",IFERROR(INDEX(Tbl_Product[#Data],MATCH(Tbl_Orders[[#This Row],[Product Name]],INDEX(Tbl_Product[#Data],,1),0),3),"")) ->  | K54: =TEXT(Tbl_Orders[[#This Row],[Order Date]],"yyyy-mmm") ->  | L54: =SUMIFS(Tbl_Orders[Quantity],Tbl_Orders[Expected Date],"<="&Tbl_Orders[[#This Row],[Expected Date]],Tbl_Orders[Product Name],Tbl_Orders[[#This Row],[Product Name]],Tbl_Orders[Order Type],"Purchase")-SUMIFS(Tbl_Orders[Quantity],Tbl_Orders[Expected Date],"<="&Tbl_Orders[[#This Row],[Expected Date]],Tbl_Orders[Product Name],Tbl_Orders[[#This Row],[Product Name]],Tbl_Orders[Order Type],"Sale") -> 0
A55: =IFERROR(IF(Tbl_Orders[[#This Row],[Order Type]]="Purchase",IF(Tbl_Orders[[#This Row],[Order Type]]="Purchase",INDEX(PO_Details[],SMALL(IF(PO_Details[Order Number]=PoNu,ROW(PO_Details[])-ROW(PO_Details[#Headers])),COUNTIF($C$14:$C55,$C55)),MATCH(A$13,PO_Details[#Headers],0)),""),IF(Tbl_Orders[[#This Row],[Order Type]]="Sale",INDEX(S.O[],SMALL(IF(S.O[Order Number]=S.Order,ROW(S.O[])-ROW(S.O[#Headers])),COUNTIF($C$14:$C55,$C55)),MATCH(A$13,S.O[#Headers],0)),"")),"") ->  | B55: =IFERROR(IF(Tbl_Orders[[#This Row],[Order Type]]="Purchase",IF(Tbl_Orders[[#This Row],[Order Type]]="Purchase",INDEX(PO_Details[],SMALL(IF(PO_Details[Order Number]=PoNu,ROW(PO_Details[])-ROW(PO_Details[#Headers])),COUNTIF($C$14:$C55,$C55)),MATCH(B$13,PO_Details[#Headers],0)),""),IF(Tbl_Orders[[#This Row],[Order Type]]="Sale",INDEX(S.O[],SMALL(IF(S.O[Order Number]=S.Order,ROW(S.O[])-ROW(S.O[#Headers])),COUNTIF($C$14:$C55,$C55)),MATCH(B$13,S.O[#Headers],0)),"")),"") ->  | D55: 12-31-18 | E55: =IFERROR(IF(Tbl_Orders[[#This Row],[Order Type]]="Purchase",IF(Tbl_Orders[[#This Row],[Order Type]]="Purchase",INDEX(PO_Details[],SMALL(IF(PO_Details[Order Number]=PoNu,ROW(PO_Details[])-ROW(PO_Details[#Headers])),COUNTIF($C$14:$C55,$C55)),MATCH(E$13,PO_Details[#Headers],0)),""),IF(Tbl_Orders[[#This Row],[Order Type]]="Sale",INDEX(S.O[],SMALL(IF(S.O[Order Number]=S.Order,ROW(S.O[])-ROW(S.O[#Headers])),COUNTIF($C$14:$C55,$C55)),MATCH(E$13,S.O[#Headers],0)),"")),"") ->  | F55: =IFERROR(IF(Tbl_Orders[[#This Row],[Order Type]]="Purchase",IF(Tbl_Orders[[#This Row],[Order Type]]="Purchase",INDEX(PO_Details[],SMALL(IF(PO_Details[Order Number]=PoNu,ROW(PO_Details[])-ROW(PO_Details[#Headers])),COUNTIF($C$14:$C55,$C55)),MATCH(F$13,PO_Details[#Headers],0)),""),IF(Tbl_Orders[[#This Row],[Order Type]]="Sale",INDEX(S.O[],SMALL(IF(S.O[Order Number]=S.Order,ROW(S.O[])-ROW(S.O[#Headers])),COUNTIF($C$14:$C55,$C55)),MATCH(F$13,S.O[#Headers],0)),"")),"") ->  | G55: =IFERROR(IF(Tbl_Orders[[#This Row],[Order Type]]="Purchase",IF(Tbl_Orders[[#This Row],[Order Type]]="Purchase",INDEX(PO_Details[],SMALL(IF(PO_Details[Order Number]=PoNu,ROW(PO_Details[])-ROW(PO_Details[#Headers])),COUNTIF($C$14:$C55,$C55)),MATCH(G$13,PO_Details[#Headers],0)),""),IF(Tbl_Orders[[#This Row],[Order Type]]="Sale",INDEX(S.O[],SMALL(IF(S.O[Order Number]=S.Order,ROW(S.O[])-ROW(S.O[#Headers])),COUNTIF($C$14:$C55,$C55)),MATCH(G$13,S.O[#Headers],0)),"")),"") ->  | H55: =IFERROR(IF(Tbl_Orders[[#This Row],[Order Type]]="Purchase",IF(Tbl_Orders[[#This Row],[Order Type]]="Purchase",INDEX(PO_Details[],SMALL(IF(PO_Details[Order Number]=PoNu,ROW(PO_Details[])-ROW(PO_Details[#Headers])),COUNTIF($C$14:$C55,$C55)),MATCH(H$13,PO_Details[#Headers],0)),""),IF(Tbl_Orders[[#This Row],[Order Type]]="Sale",INDEX(S.O[],SMALL(IF(S.O[Order Number]=S.Order,ROW(S.O[])-ROW(S.O[#Headers])),COUNTIF($C$14:$C55,$C55)),MATCH(H$13,S.O[#Headers],0)),"")),"") ->  | I55: =IFERROR(Tbl_Orders[[#This Row],[Unit Price]]*Tbl_Orders[Quantity],"") ->  | J55: =IF(Tbl_Orders[[#This Row],[Product Name]]="","",IFERROR(INDEX(Tbl_Product[#Data],MATCH(Tbl_Orders[[#This Row],[Product Name]],INDEX(Tbl_Product[#Data],,1),0),3),"")) ->  | K55: =TEXT(Tbl_Orders[[#This Row],[Order Date]],"yyyy-mmm") ->  | L55: =SUMIFS(Tbl_Orders[Quantity],Tbl_Orders[Expected Date],"<="&Tbl_Orders[[#This Row],[Expected Date]],Tbl_Orders[Product Name],Tbl_Orders[[#This Row],[Product Name]],Tbl_Orders[Order Type],"Purchase")-SUMIFS(Tbl_Orders[Quantity],Tbl_Orders[Expected Date],"<="&Tbl_Orders[[#This Row],[Expected Date]],Tbl_Orders[Product Name],Tbl_Orders[[#This Row],[Product Name]],Tbl_Orders[Order Type],"Sale") -> 0
A56: =IFERROR(IF(Tbl_Orders[[#This Row],[Order Type]]="Purchase",IF(Tbl_Orders[[#This Row],[Order Type]]="Purchase",INDEX(PO_Details[],SMALL(IF(PO_Details[Order Number]=PoNu,ROW(PO_Details[])-ROW(PO_Details[#Headers])),COUNTIF($C$14:$C56,$C56)),MATCH(A$13,PO_Details[#Headers],0)),""),IF(Tbl_Orders[[#This Row],[Order Type]]="Sale",INDEX(S.O[],SMALL(IF(S.O[Order Number]=S.Order,ROW(S.O[])-ROW(S.O[#Headers])),COUNTIF($C$14:$C56,$C56)),MATCH(A$13,S.O[#Headers],0)),"")),"") ->  | B56: =IFERROR(IF(Tbl_Orders[[#This Row],[Order Type]]="Purchase",IF(Tbl_Orders[[#This Row],[Order Type]]="Purchase",INDEX(PO_Details[],SMALL(IF(PO_Details[Order Number]=PoNu,ROW(PO_Details[])-ROW(PO_Details[#Headers])),COUNTIF($C$14:$C56,$C56)),MATCH(B$13,PO_Details[#Headers],0)),""),IF(Tbl_Orders[[#This Row],[Order Type]]="Sale",INDEX(S.O[],SMALL(IF(S.O[Order Number]=S.Order,ROW(S.O[])-ROW(S.O[#Headers])),COUNTIF($C$14:$C56,$C56)),MATCH(B$13,S.O[#Headers],0)),"")),"") ->  | D56: 12-31-18 | E56: =IFERROR(IF(Tbl_Orders[[#This Row],[Order Type]]="Purchase",IF(Tbl_Orders[[#This Row],[Order Type]]="Purchase",INDEX(PO_Details[],SMALL(IF(PO_Details[Order Number]=PoNu,ROW(PO_Details[])-ROW(PO_Details[#Headers])),COUNTIF($C$14:$C56,$C56)),MATCH(E$13,PO_Details[#Headers],0)),""),IF(Tbl_Orders[[#This Row],[Order Type]]="Sale",INDEX(S.O[],SMALL(IF(S.O[Order Number]=S.Order,ROW(S.O[])-ROW(S.O[#Headers])),COUNTIF($C$14:$C56,$C56)),MATCH(E$13,S.O[#Headers],0)),"")),"") ->  | F56: =IFERROR(IF(Tbl_Orders[[#This Row],[Order Type]]="Purchase",IF(Tbl_Orders[[#This Row],[Order Type]]="Purchase",INDEX(PO_Details[],SMALL(IF(PO_Details[Order Number]=PoNu,ROW(PO_Details[])-ROW(PO_Details[#Headers])),COUNTIF($C$14:$C56,$C56)),MATCH(F$13,PO_Details[#Headers],0)),""),IF(Tbl_Orders[[#This Row],[Order Type]]="Sale",INDEX(S.O[],SMALL(IF(S.O[Order Number]=S.Order,ROW(S.O[])-ROW(S.O[#Headers])),COUNTIF($C$14:$C56,$C56)),MATCH(F$13,S.O[#Headers],0)),"")),"") ->  | G56: =IFERROR(IF(Tbl_Orders[[#This Row],[Order Type]]="Purchase",IF(Tbl_Orders[[#This Row],[Order Type]]="Purchase",INDEX(PO_Details[],SMALL(IF(PO_Details[Order Number]=PoNu,ROW(PO_Details[])-ROW(PO_Details[#Headers])),COUNTIF($C$14:$C56,$C56)),MATCH(G$13,PO_Details[#Headers],0)),""),IF(Tbl_Orders[[#This Row],[Order Type]]="Sale",INDEX(S.O[],SMALL(IF(S.O[Order Number]=S.Order,ROW(S.O[])-ROW(S.O[#Headers])),COUNTIF($C$14:$C56,$C56)),MATCH(G$13,S.O[#Headers],0)),"")),"") ->  | H56: =IFERROR(IF(Tbl_Orders[[#This Row],[Order Type]]="Purchase",IF(Tbl_Orders[[#This Row],[Order Type]]="Purchase",INDEX(PO_Details[],SMALL(IF(PO_Details[Order Number]=PoNu,ROW(PO_Details[])-ROW(PO_Details[#Headers])),COUNTIF($C$14:$C56,$C56)),MATCH(H$13,PO_Details[#Headers],0)),""),IF(Tbl_Orders[[#This Row],[Order Type]]="Sale",INDEX(S.O[],SMALL(IF(S.O[Order Number]=S.Order,ROW(S.O[])-ROW(S.O[#Headers])),COUNTIF($C$14:$C56,$C56)),MATCH(H$13,S.O[#Headers],0)),"")),"") ->  | I56: =IFERROR(Tbl_Orders[[#This Row],[Unit Price]]*Tbl_Orders[Quantity],"") ->  | J56: =IF(Tbl_Orders[[#This Row],[Product Name]]="","",IFERROR(INDEX(Tbl_Product[#Data],MATCH(Tbl_Orders[[#This Row],[Product Name]],INDEX(Tbl_Product[#Data],,1),0),3),"")) ->  | K56: =TEXT(Tbl_Orders[[#This Row],[Order Date]],"yyyy-mmm") ->  | L56: =SUMIFS(Tbl_Orders[Quantity],Tbl_Orders[Expected Date],"<="&Tbl_Orders[[#This Row],[Expected Date]],Tbl_Orders[Product Name],Tbl_Orders[[#This Row],[Product Name]],Tbl_Orders[Order Type],"Purchase")-SUMIFS(Tbl_Orders[Quantity],Tbl_Orders[Expected Date],"<="&Tbl_Orders[[#This Row],[Expected Date]],Tbl_Orders[Product Name],Tbl_Orders[[#This Row],[Product Name]],Tbl_Orders[Order Type],"Sale") -> 0
A57: =IFERROR(IF(Tbl_Orders[[#This Row],[Order Type]]="Purchase",IF(Tbl_Orders[[#This Row],[Order Type]]="Purchase",INDEX(PO_Details[],SMALL(IF(PO_Details[Order Number]=PoNu,ROW(PO_Details[])-ROW(PO_Details[#Headers])),COUNTIF($C$14:$C57,$C57)),MATCH(A$13,PO_Details[#Headers],0)),""),IF(Tbl_Orders[[#This Row],[Order Type]]="Sale",INDEX(S.O[],SMALL(IF(S.O[Order Number]=S.Order,ROW(S.O[])-ROW(S.O[#Headers])),COUNTIF($C$14:$C57,$C57)),MATCH(A$13,S.O[#Headers],0)),"")),"") ->  | B57: =IFERROR(IF(Tbl_Orders[[#This Row],[Order Type]]="Purchase",IF(Tbl_Orders[[#This Row],[Order Type]]="Purchase",INDEX(PO_Details[],SMALL(IF(PO_Details[Order Number]=PoNu,ROW(PO_Details[])-ROW(PO_Details[#Headers])),COUNTIF($C$14:$C57,$C57)),MATCH(B$13,PO_Details[#Headers],0)),""),IF(Tbl_Orders[[#This Row],[Order Type]]="Sale",INDEX(S.O[],SMALL(IF(S.O[Order Number]=S.Order,ROW(S.O[])-ROW(S.O[#Headers])),COUNTIF($C$14:$C57,$C57)),MATCH(B$13,S.O[#Headers],0)),"")),"") ->  | D57: 12-31-18 | E57: =IFERROR(IF(Tbl_Orders[[#This Row],[Order Type]]="Purchase",IF(Tbl_Orders[[#This Row],[Order Type]]="Purchase",INDEX(PO_Details[],SMALL(IF(PO_Details[Order Number]=PoNu,ROW(PO_Details[])-ROW(PO_Details[#Headers])),COUNTIF($C$14:$C57,$C57)),MATCH(E$13,PO_Details[#Headers],0)),""),IF(Tbl_Orders[[#This Row],[Order Type]]="Sale",INDEX(S.O[],SMALL(IF(S.O[Order Number]=S.Order,ROW(S.O[])-ROW(S.O[#Headers])),COUNTIF($C$14:$C57,$C57)),MATCH(E$13,S.O[#Headers],0)),"")),"") ->  | F57: =IFERROR(IF(Tbl_Orders[[#This Row],[Order Type]]="Purchase",IF(Tbl_Orders[[#This Row],[Order Type]]="Purchase",INDEX(PO_Details[],SMALL(IF(PO_Details[Order Number]=PoNu,ROW(PO_Details[])-ROW(PO_Details[#Headers])),COUNTIF($C$14:$C57,$C57)),MATCH(F$13,PO_Details[#Headers],0)),""),IF(Tbl_Orders[[#This Row],[Order Type]]="Sale",INDEX(S.O[],SMALL(IF(S.O[Order Number]=S.Order,ROW(S.O[])-ROW(S.O[#Headers])),COUNTIF($C$14:$C57,$C57)),MATCH(F$13,S.O[#Headers],0)),"")),"") ->  | G57: =IFERROR(IF(Tbl_Orders[[#This Row],[Order Type]]="Purchase",IF(Tbl_Orders[[#This Row],[Order Type]]="Purchase",INDEX(PO_Details[],SMALL(IF(PO_Details[Order Number]=PoNu,ROW(PO_Details[])-ROW(PO_Details[#Headers])),COUNTIF($C$14:$C57,$C57)),MATCH(G$13,PO_Details[#Headers],0)),""),IF(Tbl_Orders[[#This Row],[Order Type]]="Sale",INDEX(S.O[],SMALL(IF(S.O[Order Number]=S.Order,ROW(S.O[])-ROW(S.O[#Headers])),COUNTIF($C$14:$C57,$C57)),MATCH(G$13,S.O[#Headers],0)),"")),"") ->  | H57: =IFERROR(IF(Tbl_Orders[[#This Row],[Order Type]]="Purchase",IF(Tbl_Orders[[#This Row],[Order Type]]="Purchase",INDEX(PO_Details[],SMALL(IF(PO_Details[Order Number]=PoNu,ROW(PO_Details[])-ROW(PO_Details[#Headers])),COUNTIF($C$14:$C57,$C57)),MATCH(H$13,PO_Details[#Headers],0)),""),IF(Tbl_Orders[[#This Row],[Order Type]]="Sale",INDEX(S.O[],SMALL(IF(S.O[Order Number]=S.Order,ROW(S.O[])-ROW(S.O[#Headers])),COUNTIF($C$14:$C57,$C57)),MATCH(H$13,S.O[#Headers],0)),"")),"") ->  | I57: =IFERROR(Tbl_Orders[[#This Row],[Unit Price]]*Tbl_Orders[Quantity],"") ->  | J57: =IF(Tbl_Orders[[#This Row],[Product Name]]="","",IFERROR(INDEX(Tbl_Product[#Data],MATCH(Tbl_Orders[[#This Row],[Product Name]],INDEX(Tbl_Product[#Data],,1),0),3),"")) ->  | K57: =TEXT(Tbl_Orders[[#This Row],[Order Date]],"yyyy-mmm") ->  | L57: =SUMIFS(Tbl_Orders[Quantity],Tbl_Orders[Expected Date],"<="&Tbl_Orders[[#This Row],[Expected Date]],Tbl_Orders[Product Name],Tbl_Orders[[#This Row],[Product Name]],Tbl_Orders[Order Type],"Purchase")-SUMIFS(Tbl_Orders[Quantity],Tbl_Orders[Expected Date],"<="&Tbl_Orders[[#This Row],[Expected Date]],Tbl_Orders[Product Name],Tbl_Orders[[#This Row],[Product Name]],Tbl_Orders[Order Type],"Sale") -> 0
A58: =IFERROR(IF(Tbl_Orders[[#This Row],[Order Type]]="Purchase",IF(Tbl_Orders[[#This Row],[Order Type]]="Purchase",INDEX(PO_Details[],SMALL(IF(PO_Details[Order Number]=PoNu,ROW(PO_Details[])-ROW(PO_Details[#Headers])),COUNTIF($C$14:$C58,$C58)),MATCH(A$13,PO_Details[#Headers],0)),""),IF(Tbl_Orders[[#This Row],[Order Type]]="Sale",INDEX(S.O[],SMALL(IF(S.O[Order Number]=S.Order,ROW(S.O[])-ROW(S.O[#Headers])),COUNTIF($C$14:$C58,$C58)),MATCH(A$13,S.O[#Headers],0)),"")),"") ->  | B58: =IFERROR(IF(Tbl_Orders[[#This Row],[Order Type]]="Purchase",IF(Tbl_Orders[[#This Row],[Order Type]]="Purchase",INDEX(PO_Details[],SMALL(IF(PO_Details[Order Number]=PoNu,ROW(PO_Details[])-ROW(PO_Details[#Headers])),COUNTIF($C$14:$C58,$C58)),MATCH(B$13,PO_Details[#Headers],0)),""),IF(Tbl_Orders[[#This Row],[Order Type]]="Sale",INDEX(S.O[],SMALL(IF(S.O[Order Number]=S.Order,ROW(S.O[])-ROW(S.O[#Headers])),COUNTIF($C$14:$C58,$C58)),MATCH(B$13,S.O[#Headers],0)),"")),"") ->  | D58: 12-31-18 | E58: =IFERROR(IF(Tbl_Orders[[#This Row],[Order Type]]="Purchase",IF(Tbl_Orders[[#This Row],[Order Type]]="Purchase",INDEX(PO_Details[],SMALL(IF(PO_Details[Order Number]=PoNu,ROW(PO_Details[])-ROW(PO_Details[#Headers])),COUNTIF($C$14:$C58,$C58)),MATCH(E$13,PO_Details[#Headers],0)),""),IF(Tbl_Orders[[#This Row],[Order Type]]="Sale",INDEX(S.O[],SMALL(IF(S.O[Order Number]=S.Order,ROW(S.O[])-ROW(S.O[#Headers])),COUNTIF($C$14:$C58,$C58)),MATCH(E$13,S.O[#Headers],0)),"")),"") ->  | F58: =IFERROR(IF(Tbl_Orders[[#This Row],[Order Type]]="Purchase",IF(Tbl_Orders[[#This Row],[Order Type]]="Purchase",INDEX(PO_Details[],SMALL(IF(PO_Details[Order Number]=PoNu,ROW(PO_Details[])-ROW(PO_Details[#Headers])),COUNTIF($C$14:$C58,$C58)),MATCH(F$13,PO_Details[#Headers],0)),""),IF(Tbl_Orders[[#This Row],[Order Type]]="Sale",INDEX(S.O[],SMALL(IF(S.O[Order Number]=S.Order,ROW(S.O[])-ROW(S.O[#Headers])),COUNTIF($C$14:$C58,$C58)),MATCH(F$13,S.O[#Headers],0)),"")),"") ->  | G58: =IFERROR(IF(Tbl_Orders[[#This Row],[Order Type]]="Purchase",IF(Tbl_Orders[[#This Row],[Order Type]]="Purchase",INDEX(PO_Details[],SMALL(IF(PO_Details[Order Number]=PoNu,ROW(PO_Details[])-ROW(PO_Details[#Headers])),COUNTIF($C$14:$C58,$C58)),MATCH(G$13,PO_Details[#Headers],0)),""),IF(Tbl_Orders[[#This Row],[Order Type]]="Sale",INDEX(S.O[],SMALL(IF(S.O[Order Number]=S.Order,ROW(S.O[])-ROW(S.O[#Headers])),COUNTIF($C$14:$C58,$C58)),MATCH(G$13,S.O[#Headers],0)),"")),"") ->  | H58: =IFERROR(IF(Tbl_Orders[[#This Row],[Order Type]]="Purchase",IF(Tbl_Orders[[#This Row],[Order Type]]="Purchase",INDEX(PO_Details[],SMALL(IF(PO_Details[Order Number]=PoNu,ROW(PO_Details[])-ROW(PO_Details[#Headers])),COUNTIF($C$14:$C58,$C58)),MATCH(H$13,PO_Details[#Headers],0)),""),IF(Tbl_Orders[[#This Row],[Order Type]]="Sale",INDEX(S.O[],SMALL(IF(S.O[Order Number]=S.Order,ROW(S.O[])-ROW(S.O[#Headers])),COUNTIF($C$14:$C58,$C58)),MATCH(H$13,S.O[#Headers],0)),"")),"") ->  | I58: =IFERROR(Tbl_Orders[[#This Row],[Unit Price]]*Tbl_Orders[Quantity],"") ->  | J58: =IF(Tbl_Orders[[#This Row],[Product Name]]="","",IFERROR(INDEX(Tbl_Product[#Data],MATCH(Tbl_Orders[[#This Row],[Product Name]],INDEX(Tbl_Product[#Data],,1),0),3),"")) ->  | K58: =TEXT(Tbl_Orders[[#This Row],[Order Date]],"yyyy-mmm") ->  | L58: =SUMIFS(Tbl_Orders[Quantity],Tbl_Orders[Expected Date],"<="&Tbl_Orders[[#This Row],[Expected Date]],Tbl_Orders[Product Name],Tbl_Orders[[#This Row],[Product Name]],Tbl_Orders[Order Type],"Purchase")-SUMIFS(Tbl_Orders[Quantity],Tbl_Orders[Expected Date],"<="&Tbl_Orders[[#This Row],[Expected Date]],Tbl_Orders[Product Name],Tbl_Orders[[#This Row],[Product Name]],Tbl_Orders[Order Type],"Sale") -> 0
A59: =IFERROR(IF(Tbl_Orders[[#This Row],[Order Type]]="Purchase",IF(Tbl_Orders[[#This Row],[Order Type]]="Purchase",INDEX(PO_Details[],SMALL(IF(PO_Details[Order Number]=PoNu,ROW(PO_Details[])-ROW(PO_Details[#Headers])),COUNTIF($C$14:$C59,$C59)),MATCH(A$13,PO_Details[#Headers],0)),""),IF(Tbl_Orders[[#This Row],[Order Type]]="Sale",INDEX(S.O[],SMALL(IF(S.O[Order Number]=S.Order,ROW(S.O[])-ROW(S.O[#Headers])),COUNTIF($C$14:$C59,$C59)),MATCH(A$13,S.O[#Headers],0)),"")),"") ->  | B59: =IFERROR(IF(Tbl_Orders[[#This Row],[Order Type]]="Purchase",IF(Tbl_Orders[[#This Row],[Order Type]]="Purchase",INDEX(PO_Details[],SMALL(IF(PO_Details[Order Number]=PoNu,ROW(PO_Details[])-ROW(PO_Details[#Headers])),COUNTIF($C$14:$C59,$C59)),MATCH(B$13,PO_Details[#Headers],0)),""),IF(Tbl_Orders[[#This Row],[Order Type]]="Sale",INDEX(S.O[],SMALL(IF(S.O[Order Number]=S.Order,ROW(S.O[])-ROW(S.O[#Headers])),COUNTIF($C$14:$C59,$C59)),MATCH(B$13,S.O[#Headers],0)),"")),"") ->  | D59: 12-31-18 | E59: =IFERROR(IF(Tbl_Orders[[#This Row],[Order Type]]="Purchase",IF(Tbl_Orders[[#This Row],[Order Type]]="Purchase",INDEX(PO_Details[],SMALL(IF(PO_Details[Order Number]=PoNu,ROW(PO_Details[])-ROW(PO_Details[#Headers])),COUNTIF($C$14:$C59,$C59)),MATCH(E$13,PO_Details[#Headers],0)),""),IF(Tbl_Orders[[#This Row],[Order Type]]="Sale",INDEX(S.O[],SMALL(IF(S.O[Order Number]=S.Order,ROW(S.O[])-ROW(S.O[#Headers])),COUNTIF($C$14:$C59,$C59)),MATCH(E$13,S.O[#Headers],0)),"")),"") ->  | F59: =IFERROR(IF(Tbl_Orders[[#This Row],[Order Type]]="Purchase",IF(Tbl_Orders[[#This Row],[Order Type]]="Purchase",INDEX(PO_Details[],SMALL(IF(PO_Details[Order Number]=PoNu,ROW(PO_Details[])-ROW(PO_Details[#Headers])),COUNTIF($C$14:$C59,$C59)),MATCH(F$13,PO_Details[#Headers],0)),""),IF(Tbl_Orders[[#This Row],[Order Type]]="Sale",INDEX(S.O[],SMALL(IF(S.O[Order Number]=S.Order,ROW(S.O[])-ROW(S.O[#Headers])),COUNTIF($C$14:$C59,$C59)),MATCH(F$13,S.O[#Headers],0)),"")),"") ->  | G59: =IFERROR(IF(Tbl_Orders[[#This Row],[Order Type]]="Purchase",IF(Tbl_Orders[[#This Row],[Order Type]]="Purchase",INDEX(PO_Details[],SMALL(IF(PO_Details[Order Number]=PoNu,ROW(PO_Details[])-ROW(PO_Details[#Headers])),COUNTIF($C$14:$C59,$C59)),MATCH(G$13,PO_Details[#Headers],0)),""),IF(Tbl_Orders[[#This Row],[Order Type]]="Sale",INDEX(S.O[],SMALL(IF(S.O[Order Number]=S.Order,ROW(S.O[])-ROW(S.O[#Headers])),COUNTIF($C$14:$C59,$C59)),MATCH(G$13,S.O[#Headers],0)),"")),"") ->  | H59: =IFERROR(IF(Tbl_Orders[[#This Row],[Order Type]]="Purchase",IF(Tbl_Orders[[#This Row],[Order Type]]="Purchase",INDEX(PO_Details[],SMALL(IF(PO_Details[Order Number]=PoNu,ROW(PO_Details[])-ROW(PO_Details[#Headers])),COUNTIF($C$14:$C59,$C59)),MATCH(H$13,PO_Details[#Headers],0)),""),IF(Tbl_Orders[[#This Row],[Order Type]]="Sale",INDEX(S.O[],SMALL(IF(S.O[Order Number]=S.Order,ROW(S.O[])-ROW(S.O[#Headers])),COUNTIF($C$14:$C59,$C59)),MATCH(H$13,S.O[#Headers],0)),"")),"") ->  | I59: =IFERROR(Tbl_Orders[[#This Row],[Unit Price]]*Tbl_Orders[Quantity],"") ->  | J59: =IF(Tbl_Orders[[#This Row],[Product Name]]="","",IFERROR(INDEX(Tbl_Product[#Data],MATCH(Tbl_Orders[[#This Row],[Product Name]],INDEX(Tbl_Product[#Data],,1),0),3),"")) ->  | K59: =TEXT(Tbl_Orders[[#This Row],[Order Date]],"yyyy-mmm") ->  | L59: =SUMIFS(Tbl_Orders[Quantity],Tbl_Orders[Expected Date],"<="&Tbl_Orders[[#This Row],[Expected Date]],Tbl_Orders[Product Name],Tbl_Orders[[#This Row],[Product Name]],Tbl_Orders[Order Type],"Purchase")-SUMIFS(Tbl_Orders[Quantity],Tbl_Orders[Expected Date],"<="&Tbl_Orders[[#This Row],[Expected Date]],Tbl_Orders[Product Name],Tbl_Orders[[#This Row],[Product Name]],Tbl_Orders[Order Type],"Sale") -> 0
A60: =IFERROR(IF(Tbl_Orders[[#This Row],[Order Type]]="Purchase",IF(Tbl_Orders[[#This Row],[Order Type]]="Purchase",INDEX(PO_Details[],SMALL(IF(PO_Details[Order Number]=PoNu,ROW(PO_Details[])-ROW(PO_Details[#Headers])),COUNTIF($C$14:$C60,$C60)),MATCH(A$13,PO_Details[#Headers],0)),""),IF(Tbl_Orders[[#This Row],[Order Type]]="Sale",INDEX(S.O[],SMALL(IF(S.O[Order Number]=S.Order,ROW(S.O[])-ROW(S.O[#Headers])),COUNTIF($C$14:$C60,$C60)),MATCH(A$13,S.O[#Headers],0)),"")),"") ->  | B60: =IFERROR(IF(Tbl_Orders[[#This Row],[Order Type]]="Purchase",IF(Tbl_Orders[[#This Row],[Order Type]]="Purchase",INDEX(PO_Details[],SMALL(IF(PO_Details[Order Number]=PoNu,ROW(PO_Details[])-ROW(PO_Details[#Headers])),COUNTIF($C$14:$C60,$C60)),MATCH(B$13,PO_Details[#Headers],0)),""),IF(Tbl_Orders[[#This Row],[Order Type]]="Sale",INDEX(S.O[],SMALL(IF(S.O[Order Number]=S.Order,ROW(S.O[])-ROW(S.O[#Headers])),COUNTIF($C$14:$C60,$C60)),MATCH(B$13,S.O[#Headers],0)),"")),"") ->  | D60: 12-31-18 | E60: =IFERROR(IF(Tbl_Orders[[#This Row],[Order Type]]="Purchase",IF(Tbl_Orders[[#This Row],[Order Type]]="Purchase",INDEX(PO_Details[],SMALL(IF(PO_Details[Order Number]=PoNu,ROW(PO_Details[])-ROW(PO_Details[#Headers])),COUNTIF($C$14:$C60,$C60)),MATCH(E$13,PO_Details[#Headers],0)),""),IF(Tbl_Orders[[#This Row],[Order Type]]="Sale",INDEX(S.O[],SMALL(IF(S.O[Order Number]=S.Order,ROW(S.O[])-ROW(S.O[#Headers])),COUNTIF($C$14:$C60,$C60)),MATCH(E$13,S.O[#Headers],0)),"")),"") ->  | F60: =IFERROR(IF(Tbl_Orders[[#This Row],[Order Type]]="Purchase",IF(Tbl_Orders[[#This Row],[Order Type]]="Purchase",INDEX(PO_Details[],SMALL(IF(PO_Details[Order Number]=PoNu,ROW(PO_Details[])-ROW(PO_Details[#Headers])),COUNTIF($C$14:$C60,$C60)),MATCH(F$13,PO_Details[#Headers],0)),""),IF(Tbl_Orders[[#This Row],[Order Type]]="Sale",INDEX(S.O[],SMALL(IF(S.O[Order Number]=S.Order,ROW(S.O[])-ROW(S.O[#Headers])),COUNTIF($C$14:$C60,$C60)),MATCH(F$13,S.O[#Headers],0)),"")),"") ->  | G60: =IFERROR(IF(Tbl_Orders[[#This Row],[Order Type]]="Purchase",IF(Tbl_Orders[[#This Row],[Order Type]]="Purchase",INDEX(PO_Details[],SMALL(IF(PO_Details[Order Number]=PoNu,ROW(PO_Details[])-ROW(PO_Details[#Headers])),COUNTIF($C$14:$C60,$C60)),MATCH(G$13,PO_Details[#Headers],0)),""),IF(Tbl_Orders[[#This Row],[Order Type]]="Sale",INDEX(S.O[],SMALL(IF(S.O[Order Number]=S.Order,ROW(S.O[])-ROW(S.O[#Headers])),COUNTIF($C$14:$C60,$C60)),MATCH(G$13,S.O[#Headers],0)),"")),"") ->  | H60: =IFERROR(IF(Tbl_Orders[[#This Row],[Order Type]]="Purchase",IF(Tbl_Orders[[#This Row],[Order Type]]="Purchase",INDEX(PO_Details[],SMALL(IF(PO_Details[Order Number]=PoNu,ROW(PO_Details[])-ROW(PO_Details[#Headers])),COUNTIF($C$14:$C60,$C60)),MATCH(H$13,PO_Details[#Headers],0)),""),IF(Tbl_Orders[[#This Row],[Order Type]]="Sale",INDEX(S.O[],SMALL(IF(S.O[Order Number]=S.Order,ROW(S.O[])-ROW(S.O[#Headers])),COUNTIF($C$14:$C60,$C60)),MATCH(H$13,S.O[#Headers],0)),"")),"") ->  | I60: =IFERROR(Tbl_Orders[[#This Row],[Unit Price]]*Tbl_Orders[Quantity],"") ->  | J60: =IF(Tbl_Orders[[#This Row],[Product Name]]="","",IFERROR(INDEX(Tbl_Product[#Data],MATCH(Tbl_Orders[[#This Row],[Product Name]],INDEX(Tbl_Product[#Data],,1),0),3),"")) ->  | K60: =TEXT(Tbl_Orders[[#This Row],[Order Date]],"yyyy-mmm") ->  | L60: =SUMIFS(Tbl_Orders[Quantity],Tbl_Orders[Expected Date],"<="&Tbl_Orders[[#This Row],[Expected Date]],Tbl_Orders[Product Name],Tbl_Orders[[#This Row],[Product Name]],Tbl_Orders[Order Type],"Purchase")-SUMIFS(Tbl_Orders[Quantity],Tbl_Orders[Expected Date],"<="&Tbl_Orders[[#This Row],[Expected Date]],Tbl_Orders[Product Name],Tbl_Orders[[#This Row],[Product Name]],Tbl_Orders[Order Type],"Sale") -> 0
A61: =IFERROR(IF(Tbl_Orders[[#This Row],[Order Type]]="Purchase",IF(Tbl_Orders[[#This Row],[Order Type]]="Purchase",INDEX(PO_Details[],SMALL(IF(PO_Details[Order Number]=PoNu,ROW(PO_Details[])-ROW(PO_Details[#Headers])),COUNTIF($C$14:$C61,$C61)),MATCH(A$13,PO_Details[#Headers],0)),""),IF(Tbl_Orders[[#This Row],[Order Type]]="Sale",INDEX(S.O[],SMALL(IF(S.O[Order Number]=S.Order,ROW(S.O[])-ROW(S.O[#Headers])),COUNTIF($C$14:$C61,$C61)),MATCH(A$13,S.O[#Headers],0)),"")),"") ->  | B61: =IFERROR(IF(Tbl_Orders[[#This Row],[Order Type]]="Purchase",IF(Tbl_Orders[[#This Row],[Order Type]]="Purchase",INDEX(PO_Details[],SMALL(IF(PO_Details[Order Number]=PoNu,ROW(PO_Details[])-ROW(PO_Details[#Headers])),COUNTIF($C$14:$C61,$C61)),MATCH(B$13,PO_Details[#Headers],0)),""),IF(Tbl_Orders[[#This Row],[Order Type]]="Sale",INDEX(S.O[],SMALL(IF(S.O[Order Number]=S.Order,ROW(S.O[])-ROW(S.O[#Headers])),COUNTIF($C$14:$C61,$C61)),MATCH(B$13,S.O[#Headers],0)),"")),"") ->  | D61: 12-31-18 | E61: =IFERROR(IF(Tbl_Orders[[#This Row],[Order Type]]="Purchase",IF(Tbl_Orders[[#This Row],[Order Type]]="Purchase",INDEX(PO_Details[],SMALL(IF(PO_Details[Order Number]=PoNu,ROW(PO_Details[])-ROW(PO_Details[#Headers])),COUNTIF($C$14:$C61,$C61)),MATCH(E$13,PO_Details[#Headers],0)),""),IF(Tbl_Orders[[#This Row],[Order Type]]="Sale",INDEX(S.O[],SMALL(IF(S.O[Order Number]=S.Order,ROW(S.O[])-ROW(S.O[#Headers])),COUNTIF($C$14:$C61,$C61)),MATCH(E$13,S.O[#Headers],0)),"")),"") ->  | F61: =IFERROR(IF(Tbl_Orders[[#This Row],[Order Type]]="Purchase",IF(Tbl_Orders[[#This Row],[Order Type]]="Purchase",INDEX(PO_Details[],SMALL(IF(PO_Details[Order Number]=PoNu,ROW(PO_Details[])-ROW(PO_Details[#Headers])),COUNTIF($C$14:$C61,$C61)),MATCH(F$13,PO_Details[#Headers],0)),""),IF(Tbl_Orders[[#This Row],[Order Type]]="Sale",INDEX(S.O[],SMALL(IF(S.O[Order Number]=S.Order,ROW(S.O[])-ROW(S.O[#Headers])),COUNTIF($C$14:$C61,$C61)),MATCH(F$13,S.O[#Headers],0)),"")),"") ->  | G61: =IFERROR(IF(Tbl_Orders[[#This Row],[Order Type]]="Purchase",IF(Tbl_Orders[[#This Row],[Order Type]]="Purchase",INDEX(PO_Details[],SMALL(IF(PO_Details[Order Number]=PoNu,ROW(PO_Details[])-ROW(PO_Details[#Headers])),COUNTIF($C$14:$C61,$C61)),MATCH(G$13,PO_Details[#Headers],0)),""),IF(Tbl_Orders[[#This Row],[Order Type]]="Sale",INDEX(S.O[],SMALL(IF(S.O[Order Number]=S.Order,ROW(S.O[])-ROW(S.O[#Headers])),COUNTIF($C$14:$C61,$C61)),MATCH(G$13,S.O[#Headers],0)),"")),"") ->  | H61: =IFERROR(IF(Tbl_Orders[[#This Row],[Order Type]]="Purchase",IF(Tbl_Orders[[#This Row],[Order Type]]="Purchase",INDEX(PO_Details[],SMALL(IF(PO_Details[Order Number]=PoNu,ROW(PO_Details[])-ROW(PO_Details[#Headers])),COUNTIF($C$14:$C61,$C61)),MATCH(H$13,PO_Details[#Headers],0)),""),IF(Tbl_Orders[[#This Row],[Order Type]]="Sale",INDEX(S.O[],SMALL(IF(S.O[Order Number]=S.Order,ROW(S.O[])-ROW(S.O[#Headers])),COUNTIF($C$14:$C61,$C61)),MATCH(H$13,S.O[#Headers],0)),"")),"") ->  | I61: =IFERROR(Tbl_Orders[[#This Row],[Unit Price]]*Tbl_Orders[Quantity],"") ->  | J61: =IF(Tbl_Orders[[#This Row],[Product Name]]="","",IFERROR(INDEX(Tbl_Product[#Data],MATCH(Tbl_Orders[[#This Row],[Product Name]],INDEX(Tbl_Product[#Data],,1),0),3),"")) ->  | K61: =TEXT(Tbl_Orders[[#This Row],[Order Date]],"yyyy-mmm") ->  | L61: =SUMIFS(Tbl_Orders[Quantity],Tbl_Orders[Expected Date],"<="&Tbl_Orders[[#This Row],[Expected Date]],Tbl_Orders[Product Name],Tbl_Orders[[#This Row],[Product Name]],Tbl_Orders[Order Type],"Purchase")-SUMIFS(Tbl_Orders[Quantity],Tbl_Orders[Expected Date],"<="&Tbl_Orders[[#This Row],[Expected Date]],Tbl_Orders[Product Name],Tbl_Orders[[#This Row],[Product Name]],Tbl_Orders[Order Type],"Sale") -> 0
A62: =IFERROR(IF(Tbl_Orders[[#This Row],[Order Type]]="Purchase",IF(Tbl_Orders[[#This Row],[Order Type]]="Purchase",INDEX(PO_Details[],SMALL(IF(PO_Details[Order Number]=PoNu,ROW(PO_Details[])-ROW(PO_Details[#Headers])),COUNTIF($C$14:$C62,$C62)),MATCH(A$13,PO_Details[#Headers],0)),""),IF(Tbl_Orders[[#This Row],[Order Type]]="Sale",INDEX(S.O[],SMALL(IF(S.O[Order Number]=S.Order,ROW(S.O[])-ROW(S.O[#Headers])),COUNTIF($C$14:$C62,$C62)),MATCH(A$13,S.O[#Headers],0)),"")),"") ->  | B62: =IFERROR(IF(Tbl_Orders[[#This Row],[Order Type]]="Purchase",IF(Tbl_Orders[[#This Row],[Order Type]]="Purchase",INDEX(PO_Details[],SMALL(IF(PO_Details[Order Number]=PoNu,ROW(PO_Details[])-ROW(PO_Details[#Headers])),COUNTIF($C$14:$C62,$C62)),MATCH(B$13,PO_Details[#Headers],0)),""),IF(Tbl_Orders[[#This Row],[Order Type]]="Sale",INDEX(S.O[],SMALL(IF(S.O[Order Number]=S.Order,ROW(S.O[])-ROW(S.O[#Headers])),COUNTIF($C$14:$C62,$C62)),MATCH(B$13,S.O[#Headers],0)),"")),"") ->  | D62: 12-31-18 | E62: =IFERROR(IF(Tbl_Orders[[#This Row],[Order Type]]="Purchase",IF(Tbl_Orders[[#This Row],[Order Type]]="Purchase",INDEX(PO_Details[],SMALL(IF(PO_Details[Order Number]=PoNu,ROW(PO_Details[])-ROW(PO_Details[#Headers])),COUNTIF($C$14:$C62,$C62)),MATCH(E$13,PO_Details[#Headers],0)),""),IF(Tbl_Orders[[#This Row],[Order Type]]="Sale",INDEX(S.O[],SMALL(IF(S.O[Order Number]=S.Order,ROW(S.O[])-ROW(S.O[#Headers])),COUNTIF($C$14:$C62,$C62)),MATCH(E$13,S.O[#Headers],0)),"")),"") ->  | F62: =IFERROR(IF(Tbl_Orders[[#This Row],[Order Type]]="Purchase",IF(Tbl_Orders[[#This Row],[Order Type]]="Purchase",INDEX(PO_Details[],SMALL(IF(PO_Details[Order Number]=PoNu,ROW(PO_Details[])-ROW(PO_Details[#Headers])),COUNTIF($C$14:$C62,$C62)),MATCH(F$13,PO_Details[#Headers],0)),""),IF(Tbl_Orders[[#This Row],[Order Type]]="Sale",INDEX(S.O[],SMALL(IF(S.O[Order Number]=S.Order,ROW(S.O[])-ROW(S.O[#Headers])),COUNTIF($C$14:$C62,$C62)),MATCH(F$13,S.O[#Headers],0)),"")),"") ->  | G62: =IFERROR(IF(Tbl_Orders[[#This Row],[Order Type]]="Purchase",IF(Tbl_Orders[[#This Row],[Order Type]]="Purchase",INDEX(PO_Details[],SMALL(IF(PO_Details[Order Number]=PoNu,ROW(PO_Details[])-ROW(PO_Details[#Headers])),COUNTIF($C$14:$C62,$C62)),MATCH(G$13,PO_Details[#Headers],0)),""),IF(Tbl_Orders[[#This Row],[Order Type]]="Sale",INDEX(S.O[],SMALL(IF(S.O[Order Number]=S.Order,ROW(S.O[])-ROW(S.O[#Headers])),COUNTIF($C$14:$C62,$C62)),MATCH(G$13,S.O[#Headers],0)),"")),"") ->  | H62: =IFERROR(IF(Tbl_Orders[[#This Row],[Order Type]]="Purchase",IF(Tbl_Orders[[#This Row],[Order Type]]="Purchase",INDEX(PO_Details[],SMALL(IF(PO_Details[Order Number]=PoNu,ROW(PO_Details[])-ROW(PO_Details[#Headers])),COUNTIF($C$14:$C62,$C62)),MATCH(H$13,PO_Details[#Headers],0)),""),IF(Tbl_Orders[[#This Row],[Order Type]]="Sale",INDEX(S.O[],SMALL(IF(S.O[Order Number]=S.Order,ROW(S.O[])-ROW(S.O[#Headers])),COUNTIF($C$14:$C62,$C62)),MATCH(H$13,S.O[#Headers],0)),"")),"") ->  | I62: =IFERROR(Tbl_Orders[[#This Row],[Unit Price]]*Tbl_Orders[Quantity],"") ->  | J62: =IF(Tbl_Orders[[#This Row],[Product Name]]="","",IFERROR(INDEX(Tbl_Product[#Data],MATCH(Tbl_Orders[[#This Row],[Product Name]],INDEX(Tbl_Product[#Data],,1),0),3),"")) ->  | K62: =TEXT(Tbl_Orders[[#This Row],[Order Date]],"yyyy-mmm") ->  | L62: =SUMIFS(Tbl_Orders[Quantity],Tbl_Orders[Expected Date],"<="&Tbl_Orders[[#This Row],[Expected Date]],Tbl_Orders[Product Name],Tbl_Orders[[#This Row],[Product Name]],Tbl_Orders[Order Type],"Purchase")-SUMIFS(Tbl_Orders[Quantity],Tbl_Orders[Expected Date],"<="&Tbl_Orders[[#This Row],[Expected Date]],Tbl_Orders[Product Name],Tbl_Orders[[#This Row],[Product Name]],Tbl_Orders[Order Type],"Sale") -> 0
A63: =IFERROR(IF(Tbl_Orders[[#This Row],[Order Type]]="Purchase",IF(Tbl_Orders[[#This Row],[Order Type]]="Purchase",INDEX(PO_Details[],SMALL(IF(PO_Details[Order Number]=PoNu,ROW(PO_Details[])-ROW(PO_Details[#Headers])),COUNTIF($C$14:$C63,$C63)),MATCH(A$13,PO_Details[#Headers],0)),""),IF(Tbl_Orders[[#This Row],[Order Type]]="Sale",INDEX(S.O[],SMALL(IF(S.O[Order Number]=S.Order,ROW(S.O[])-ROW(S.O[#Headers])),COUNTIF($C$14:$C63,$C63)),MATCH(A$13,S.O[#Headers],0)),"")),"") ->  | B63: =IFERROR(IF(Tbl_Orders[[#This Row],[Order Type]]="Purchase",IF(Tbl_Orders[[#This Row],[Order Type]]="Purchase",INDEX(PO_Details[],SMALL(IF(PO_Details[Order Number]=PoNu,ROW(PO_Details[])-ROW(PO_Details[#Headers])),COUNTIF($C$14:$C63,$C63)),MATCH(B$13,PO_Details[#Headers],0)),""),IF(Tbl_Orders[[#This Row],[Order Type]]="Sale",INDEX(S.O[],SMALL(IF(S.O[Order Number]=S.Order,ROW(S.O[])-ROW(S.O[#Headers])),COUNTIF($C$14:$C63,$C63)),MATCH(B$13,S.O[#Headers],0)),"")),"") ->  | D63: 12-31-18 | E63: =IFERROR(IF(Tbl_Orders[[#This Row],[Order Type]]="Purchase",IF(Tbl_Orders[[#This Row],[Order Type]]="Purchase",INDEX(PO_Details[],SMALL(IF(PO_Details[Order Number]=PoNu,ROW(PO_Details[])-ROW(PO_Details[#Headers])),COUNTIF($C$14:$C63,$C63)),MATCH(E$13,PO_Details[#Headers],0)),""),IF(Tbl_Orders[[#This Row],[Order Type]]="Sale",INDEX(S.O[],SMALL(IF(S.O[Order Number]=S.Order,ROW(S.O[])-ROW(S.O[#Headers])),COUNTIF($C$14:$C63,$C63)),MATCH(E$13,S.O[#Headers],0)),"")),"") ->  | F63: =IFERROR(IF(Tbl_Orders[[#This Row],[Order Type]]="Purchase",IF(Tbl_Orders[[#This Row],[Order Type]]="Purchase",INDEX(PO_Details[],SMALL(IF(PO_Details[Order Number]=PoNu,ROW(PO_Details[])-ROW(PO_Details[#Headers])),COUNTIF($C$14:$C63,$C63)),MATCH(F$13,PO_Details[#Headers],0)),""),IF(Tbl_Orders[[#This Row],[Order Type]]="Sale",INDEX(S.O[],SMALL(IF(S.O[Order Number]=S.Order,ROW(S.O[])-ROW(S.O[#Headers])),COUNTIF($C$14:$C63,$C63)),MATCH(F$13,S.O[#Headers],0)),"")),"") ->  | G63: =IFERROR(IF(Tbl_Orders[[#This Row],[Order Type]]="Purchase",IF(Tbl_Orders[[#This Row],[Order Type]]="Purchase",INDEX(PO_Details[],SMALL(IF(PO_Details[Order Number]=PoNu,ROW(PO_Details[])-ROW(PO_Details[#Headers])),COUNTIF($C$14:$C63,$C63)),MATCH(G$13,PO_Details[#Headers],0)),""),IF(Tbl_Orders[[#This Row],[Order Type]]="Sale",INDEX(S.O[],SMALL(IF(S.O[Order Number]=S.Order,ROW(S.O[])-ROW(S.O[#Headers])),COUNTIF($C$14:$C63,$C63)),MATCH(G$13,S.O[#Headers],0)),"")),"") ->  | H63: =IFERROR(IF(Tbl_Orders[[#This Row],[Order Type]]="Purchase",IF(Tbl_Orders[[#This Row],[Order Type]]="Purchase",INDEX(PO_Details[],SMALL(IF(PO_Details[Order Number]=PoNu,ROW(PO_Details[])-ROW(PO_Details[#Headers])),COUNTIF($C$14:$C63,$C63)),MATCH(H$13,PO_Details[#Headers],0)),""),IF(Tbl_Orders[[#This Row],[Order Type]]="Sale",INDEX(S.O[],SMALL(IF(S.O[Order Number]=S.Order,ROW(S.O[])-ROW(S.O[#Headers])),COUNTIF($C$14:$C63,$C63)),MATCH(H$13,S.O[#Headers],0)),"")),"") ->  | I63: =IFERROR(Tbl_Orders[[#This Row],[Unit Price]]*Tbl_Orders[Quantity],"") ->  | J63: =IF(Tbl_Orders[[#This Row],[Product Name]]="","",IFERROR(INDEX(Tbl_Product[#Data],MATCH(Tbl_Orders[[#This Row],[Product Name]],INDEX(Tbl_Product[#Data],,1),0),3),"")) ->  | K63: =TEXT(Tbl_Orders[[#This Row],[Order Date]],"yyyy-mmm") ->  | L63: =SUMIFS(Tbl_Orders[Quantity],Tbl_Orders[Expected Date],"<="&Tbl_Orders[[#This Row],[Expected Date]],Tbl_Orders[Product Name],Tbl_Orders[[#This Row],[Product Name]],Tbl_Orders[Order Type],"Purchase")-SUMIFS(Tbl_Orders[Quantity],Tbl_Orders[Expected Date],"<="&Tbl_Orders[[#This Row],[Expected Date]],Tbl_Orders[Product Name],Tbl_Orders[[#This Row],[Product Name]],Tbl_Orders[Order Type],"Sale") -> 0
A64: =IFERROR(IF(Tbl_Orders[[#This Row],[Order Type]]="Purchase",IF(Tbl_Orders[[#This Row],[Order Type]]="Purchase",INDEX(PO_Details[],SMALL(IF(PO_Details[Order Number]=PoNu,ROW(PO_Details[])-ROW(PO_Details[#Headers])),COUNTIF($C$14:$C64,$C64)),MATCH(A$13,PO_Details[#Headers],0)),""),IF(Tbl_Orders[[#This Row],[Order Type]]="Sale",INDEX(S.O[],SMALL(IF(S.O[Order Number]=S.Order,ROW(S.O[])-ROW(S.O[#Headers])),COUNTIF($C$14:$C64,$C64)),MATCH(A$13,S.O[#Headers],0)),"")),"") ->  | B64: =IFERROR(IF(Tbl_Orders[[#This Row],[Order Type]]="Purchase",IF(Tbl_Orders[[#This Row],[Order Type]]="Purchase",INDEX(PO_Details[],SMALL(IF(PO_Details[Order Number]=PoNu,ROW(PO_Details[])-ROW(PO_Details[#Headers])),COUNTIF($C$14:$C64,$C64)),MATCH(B$13,PO_Details[#Headers],0)),""),IF(Tbl_Orders[[#This Row],[Order Type]]="Sale",INDEX(S.O[],SMALL(IF(S.O[Order Number]=S.Order,ROW(S.O[])-ROW(S.O[#Headers])),COUNTIF($C$14:$C64,$C64)),MATCH(B$13,S.O[#Headers],0)),"")),"") ->  | D64: 12-31-18 | E64: =IFERROR(IF(Tbl_Orders[[#This Row],[Order Type]]="Purchase",IF(Tbl_Orders[[#This Row],[Order Type]]="Purchase",INDEX(PO_Details[],SMALL(IF(PO_Details[Order Number]=PoNu,ROW(PO_Details[])-ROW(PO_Details[#Headers])),COUNTIF($C$14:$C64,$C64)),MATCH(E$13,PO_Details[#Headers],0)),""),IF(Tbl_Orders[[#This Row],[Order Type]]="Sale",INDEX(S.O[],SMALL(IF(S.O[Order Number]=S.Order,ROW(S.O[])-ROW(S.O[#Headers])),COUNTIF($C$14:$C64,$C64)),MATCH(E$13,S.O[#Headers],0)),"")),"") ->  | F64: =IFERROR(IF(Tbl_Orders[[#This Row],[Order Type]]="Purchase",IF(Tbl_Orders[[#This Row],[Order Type]]="Purchase",INDEX(PO_Details[],SMALL(IF(PO_Details[Order Number]=PoNu,ROW(PO_Details[])-ROW(PO_Details[#Headers])),COUNTIF($C$14:$C64,$C64)),MATCH(F$13,PO_Details[#Headers],0)),""),IF(Tbl_Orders[[#This Row],[Order Type]]="Sale",INDEX(S.O[],SMALL(IF(S.O[Order Number]=S.Order,ROW(S.O[])-ROW(S.O[#Headers])),COUNTIF($C$14:$C64,$C64)),MATCH(F$13,S.O[#Headers],0)),"")),"") ->  | G64: =IFERROR(IF(Tbl_Orders[[#This Row],[Order Type]]="Purchase",IF(Tbl_Orders[[#This Row],[Order Type]]="Purchase",INDEX(PO_Details[],SMALL(IF(PO_Details[Order Number]=PoNu,ROW(PO_Details[])-ROW(PO_Details[#Headers])),COUNTIF($C$14:$C64,$C64)),MATCH(G$13,PO_Details[#Headers],0)),""),IF(Tbl_Orders[[#This Row],[Order Type]]="Sale",INDEX(S.O[],SMALL(IF(S.O[Order Number]=S.Order,ROW(S.O[])-ROW(S.O[#Headers])),COUNTIF($C$14:$C64,$C64)),MATCH(G$13,S.O[#Headers],0)),"")),"") ->  | H64: =IFERROR(IF(Tbl_Orders[[#This Row],[Order Type]]="Purchase",IF(Tbl_Orders[[#This Row],[Order Type]]="Purchase",INDEX(PO_Details[],SMALL(IF(PO_Details[Order Number]=PoNu,ROW(PO_Details[])-ROW(PO_Details[#Headers])),COUNTIF($C$14:$C64,$C64)),MATCH(H$13,PO_Details[#Headers],0)),""),IF(Tbl_Orders[[#This Row],[Order Type]]="Sale",INDEX(S.O[],SMALL(IF(S.O[Order Number]=S.Order,ROW(S.O[])-ROW(S.O[#Headers])),COUNTIF($C$14:$C64,$C64)),MATCH(H$13,S.O[#Headers],0)),"")),"") ->  | I64: =IFERROR(Tbl_Orders[[#This Row],[Unit Price]]*Tbl_Orders[Quantity],"") ->  | J64: =IF(Tbl_Orders[[#This Row],[Product Name]]="","",IFERROR(INDEX(Tbl_Product[#Data],MATCH(Tbl_Orders[[#This Row],[Product Name]],INDEX(Tbl_Product[#Data],,1),0),3),"")) ->  | K64: =TEXT(Tbl_Orders[[#This Row],[Order Date]],"yyyy-mmm") ->  | L64: =SUMIFS(Tbl_Orders[Quantity],Tbl_Orders[Expected Date],"<="&Tbl_Orders[[#This Row],[Expected Date]],Tbl_Orders[Product Name],Tbl_Orders[[#This Row],[Product Name]],Tbl_Orders[Order Type],"Purchase")-SUMIFS(Tbl_Orders[Quantity],Tbl_Orders[Expected Date],"<="&Tbl_Orders[[#This Row],[Expected Date]],Tbl_Orders[Product Name],Tbl_Orders[[#This Row],[Product Name]],Tbl_Orders[Order Type],"Sale") -> 0
A65: =IFERROR(IF(Tbl_Orders[[#This Row],[Order Type]]="Purchase",IF(Tbl_Orders[[#This Row],[Order Type]]="Purchase",INDEX(PO_Details[],SMALL(IF(PO_Details[Order Number]=PoNu,ROW(PO_Details[])-ROW(PO_Details[#Headers])),COUNTIF($C$14:$C65,$C65)),MATCH(A$13,PO_Details[#Headers],0)),""),IF(Tbl_Orders[[#This Row],[Order Type]]="Sale",INDEX(S.O[],SMALL(IF(S.O[Order Number]=S.Order,ROW(S.O[])-ROW(S.O[#Headers])),COUNTIF($C$14:$C65,$C65)),MATCH(A$13,S.O[#Headers],0)),"")),"") ->  | B65: =IFERROR(IF(Tbl_Orders[[#This Row],[Order Type]]="Purchase",IF(Tbl_Orders[[#This Row],[Order Type]]="Purchase",INDEX(PO_Details[],SMALL(IF(PO_Details[Order Number]=PoNu,ROW(PO_Details[])-ROW(PO_Details[#Headers])),COUNTIF($C$14:$C65,$C65)),MATCH(B$13,PO_Details[#Headers],0)),""),IF(Tbl_Orders[[#This Row],[Order Type]]="Sale",INDEX(S.O[],SMALL(IF(S.O[Order Number]=S.Order,ROW(S.O[])-ROW(S.O[#Headers])),COUNTIF($C$14:$C65,$C65)),MATCH(B$13,S.O[#Headers],0)),"")),"") ->  | D65: 12-31-18 | E65: =IFERROR(IF(Tbl_Orders[[#This Row],[Order Type]]="Purchase",IF(Tbl_Orders[[#This Row],[Order Type]]="Purchase",INDEX(PO_Details[],SMALL(IF(PO_Details[Order Number]=PoNu,ROW(PO_Details[])-ROW(PO_Details[#Headers])),COUNTIF($C$14:$C65,$C65)),MATCH(E$13,PO_Details[#Headers],0)),""),IF(Tbl_Orders[[#This Row],[Order Type]]="Sale",INDEX(S.O[],SMALL(IF(S.O[Order Number]=S.Order,ROW(S.O[])-ROW(S.O[#Headers])),COUNTIF($C$14:$C65,$C65)),MATCH(E$13,S.O[#Headers],0)),"")),"") ->  | F65: =IFERROR(IF(Tbl_Orders[[#This Row],[Order Type]]="Purchase",IF(Tbl_Orders[[#This Row],[Order Type]]="Purchase",INDEX(PO_Details[],SMALL(IF(PO_Details[Order Number]=PoNu,ROW(PO_Details[])-ROW(PO_Details[#Headers])),COUNTIF($C$14:$C65,$C65)),MATCH(F$13,PO_Details[#Headers],0)),""),IF(Tbl_Orders[[#This Row],[Order Type]]="Sale",INDEX(S.O[],SMALL(IF(S.O[Order Number]=S.Order,ROW(S.O[])-ROW(S.O[#Headers])),COUNTIF($C$14:$C65,$C65)),MATCH(F$13,S.O[#Headers],0)),"")),"") ->  | G65: =IFERROR(IF(Tbl_Orders[[#This Row],[Order Type]]="Purchase",IF(Tbl_Orders[[#This Row],[Order Type]]="Purchase",INDEX(PO_Details[],SMALL(IF(PO_Details[Order Number]=PoNu,ROW(PO_Details[])-ROW(PO_Details[#Headers])),COUNTIF($C$14:$C65,$C65)),MATCH(G$13,PO_Details[#Headers],0)),""),IF(Tbl_Orders[[#This Row],[Order Type]]="Sale",INDEX(S.O[],SMALL(IF(S.O[Order Number]=S.Order,ROW(S.O[])-ROW(S.O[#Headers])),COUNTIF($C$14:$C65,$C65)),MATCH(G$13,S.O[#Headers],0)),"")),"") ->  | H65: =IFERROR(IF(Tbl_Orders[[#This Row],[Order Type]]="Purchase",IF(Tbl_Orders[[#This Row],[Order Type]]="Purchase",INDEX(PO_Details[],SMALL(IF(PO_Details[Order Number]=PoNu,ROW(PO_Details[])-ROW(PO_Details[#Headers])),COUNTIF($C$14:$C65,$C65)),MATCH(H$13,PO_Details[#Headers],0)),""),IF(Tbl_Orders[[#This Row],[Order Type]]="Sale",INDEX(S.O[],SMALL(IF(S.O[Order Number]=S.Order,ROW(S.O[])-ROW(S.O[#Headers])),COUNTIF($C$14:$C65,$C65)),MATCH(H$13,S.O[#Headers],0)),"")),"") ->  | I65: =IFERROR(Tbl_Orders[[#This Row],[Unit Price]]*Tbl_Orders[Quantity],"") ->  | J65: =IF(Tbl_Orders[[#This Row],[Product Name]]="","",IFERROR(INDEX(Tbl_Product[#Data],MATCH(Tbl_Orders[[#This Row],[Product Name]],INDEX(Tbl_Product[#Data],,1),0),3),"")) ->  | K65: =TEXT(Tbl_Orders[[#This Row],[Order Date]],"yyyy-mmm") ->  | L65: =SUMIFS(Tbl_Orders[Quantity],Tbl_Orders[Expected Date],"<="&Tbl_Orders[[#This Row],[Expected Date]],Tbl_Orders[Product Name],Tbl_Orders[[#This Row],[Product Name]],Tbl_Orders[Order Type],"Purchase")-SUMIFS(Tbl_Orders[Quantity],Tbl_Orders[Expected Date],"<="&Tbl_Orders[[#This Row],[Expected Date]],Tbl_Orders[Product Name],Tbl_Orders[[#This Row],[Product Name]],Tbl_Orders[Order Type],"Sale") -> 0
A66: =IFERROR(IF(Tbl_Orders[[#This Row],[Order Type]]="Purchase",IF(Tbl_Orders[[#This Row],[Order Type]]="Purchase",INDEX(PO_Details[],SMALL(IF(PO_Details[Order Number]=PoNu,ROW(PO_Details[])-ROW(PO_Details[#Headers])),COUNTIF($C$14:$C66,$C66)),MATCH(A$13,PO_Details[#Headers],0)),""),IF(Tbl_Orders[[#This Row],[Order Type]]="Sale",INDEX(S.O[],SMALL(IF(S.O[Order Number]=S.Order,ROW(S.O[])-ROW(S.O[#Headers])),COUNTIF($C$14:$C66,$C66)),MATCH(A$13,S.O[#Headers],0)),"")),"") ->  | B66: =IFERROR(IF(Tbl_Orders[[#This Row],[Order Type]]="Purchase",IF(Tbl_Orders[[#This Row],[Order Type]]="Purchase",INDEX(PO_Details[],SMALL(IF(PO_Details[Order Number]=PoNu,ROW(PO_Details[])-ROW(PO_Details[#Headers])),COUNTIF($C$14:$C66,$C66)),MATCH(B$13,PO_Details[#Headers],0)),""),IF(Tbl_Orders[[#This Row],[Order Type]]="Sale",INDEX(S.O[],SMALL(IF(S.O[Order Number]=S.Order,ROW(S.O[])-ROW(S.O[#Headers])),COUNTIF($C$14:$C66,$C66)),MATCH(B$13,S.O[#Headers],0)),"")),"") ->  | D66: 12-31-18 | E66: =IFERROR(IF(Tbl_Orders[[#This Row],[Order Type]]="Purchase",IF(Tbl_Orders[[#This Row],[Order Type]]="Purchase",INDEX(PO_Details[],SMALL(IF(PO_Details[Order Number]=PoNu,ROW(PO_Details[])-ROW(PO_Details[#Headers])),COUNTIF($C$14:$C66,$C66)),MATCH(E$13,PO_Details[#Headers],0)),""),IF(Tbl_Orders[[#This Row],[Order Type]]="Sale",INDEX(S.O[],SMALL(IF(S.O[Order Number]=S.Order,ROW(S.O[])-ROW(S.O[#Headers])),COUNTIF($C$14:$C66,$C66)),MATCH(E$13,S.O[#Headers],0)),"")),"") ->  | F66: =IFERROR(IF(Tbl_Orders[[#This Row],[Order Type]]="Purchase",IF(Tbl_Orders[[#This Row],[Order Type]]="Purchase",INDEX(PO_Details[],SMALL(IF(PO_Details[Order Number]=PoNu,ROW(PO_Details[])-ROW(PO_Details[#Headers])),COUNTIF($C$14:$C66,$C66)),MATCH(F$13,PO_Details[#Headers],0)),""),IF(Tbl_Orders[[#This Row],[Order Type]]="Sale",INDEX(S.O[],SMALL(IF(S.O[Order Number]=S.Order,ROW(S.O[])-ROW(S.O[#Headers])),COUNTIF($C$14:$C66,$C66)),MATCH(F$13,S.O[#Headers],0)),"")),"") ->  | G66: =IFERROR(IF(Tbl_Orders[[#This Row],[Order Type]]="Purchase",IF(Tbl_Orders[[#This Row],[Order Type]]="Purchase",INDEX(PO_Details[],SMALL(IF(PO_Details[Order Number]=PoNu,ROW(PO_Details[])-ROW(PO_Details[#Headers])),COUNTIF($C$14:$C66,$C66)),MATCH(G$13,PO_Details[#Headers],0)),""),IF(Tbl_Orders[[#This Row],[Order Type]]="Sale",INDEX(S.O[],SMALL(IF(S.O[Order Number]=S.Order,ROW(S.O[])-ROW(S.O[#Headers])),COUNTIF($C$14:$C66,$C66)),MATCH(G$13,S.O[#Headers],0)),"")),"") ->  | H66: =IFERROR(IF(Tbl_Orders[[#This Row],[Order Type]]="Purchase",IF(Tbl_Orders[[#This Row],[Order Type]]="Purchase",INDEX(PO_Details[],SMALL(IF(PO_Details[Order Number]=PoNu,ROW(PO_Details[])-ROW(PO_Details[#Headers])),COUNTIF($C$14:$C66,$C66)),MATCH(H$13,PO_Details[#Headers],0)),""),IF(Tbl_Orders[[#This Row],[Order Type]]="Sale",INDEX(S.O[],SMALL(IF(S.O[Order Number]=S.Order,ROW(S.O[])-ROW(S.O[#Headers])),COUNTIF($C$14:$C66,$C66)),MATCH(H$13,S.O[#Headers],0)),"")),"") ->  | I66: =IFERROR(Tbl_Orders[[#This Row],[Unit Price]]*Tbl_Orders[Quantity],"") ->  | J66: =IF(Tbl_Orders[[#This Row],[Product Name]]="","",IFERROR(INDEX(Tbl_Product[#Data],MATCH(Tbl_Orders[[#This Row],[Product Name]],INDEX(Tbl_Product[#Data],,1),0),3),"")) ->  | K66: =TEXT(Tbl_Orders[[#This Row],[Order Date]],"yyyy-mmm") ->  | L66: =SUMIFS(Tbl_Orders[Quantity],Tbl_Orders[Expected Date],"<="&Tbl_Orders[[#This Row],[Expected Date]],Tbl_Orders[Product Name],Tbl_Orders[[#This Row],[Product Name]],Tbl_Orders[Order Type],"Purchase")-SUMIFS(Tbl_Orders[Quantity],Tbl_Orders[Expected Date],"<="&Tbl_Orders[[#This Row],[Expected Date]],Tbl_Orders[Product Name],Tbl_Orders[[#This Row],[Product Name]],Tbl_Orders[Order Type],"Sale") -> 0
A67: =IFERROR(IF(Tbl_Orders[[#This Row],[Order Type]]="Purchase",IF(Tbl_Orders[[#This Row],[Order Type]]="Purchase",INDEX(PO_Details[],SMALL(IF(PO_Details[Order Number]=PoNu,ROW(PO_Details[])-ROW(PO_Details[#Headers])),COUNTIF($C$14:$C67,$C67)),MATCH(A$13,PO_Details[#Headers],0)),""),IF(Tbl_Orders[[#This Row],[Order Type]]="Sale",INDEX(S.O[],SMALL(IF(S.O[Order Number]=S.Order,ROW(S.O[])-ROW(S.O[#Headers])),COUNTIF($C$14:$C67,$C67)),MATCH(A$13,S.O[#Headers],0)),"")),"") ->  | B67: =IFERROR(IF(Tbl_Orders[[#This Row],[Order Type]]="Purchase",IF(Tbl_Orders[[#This Row],[Order Type]]="Purchase",INDEX(PO_Details[],SMALL(IF(PO_Details[Order Number]=PoNu,ROW(PO_Details[])-ROW(PO_Details[#Headers])),COUNTIF($C$14:$C67,$C67)),MATCH(B$13,PO_Details[#Headers],0)),""),IF(Tbl_Orders[[#This Row],[Order Type]]="Sale",INDEX(S.O[],SMALL(IF(S.O[Order Number]=S.Order,ROW(S.O[])-ROW(S.O[#Headers])),COUNTIF($C$14:$C67,$C67)),MATCH(B$13,S.O[#Headers],0)),"")),"") ->  | D67: 12-31-18 | E67: =IFERROR(IF(Tbl_Orders[[#This Row],[Order Type]]="Purchase",IF(Tbl_Orders[[#This Row],[Order Type]]="Purchase",INDEX(PO_Details[],SMALL(IF(PO_Details[Order Number]=PoNu,ROW(PO_Details[])-ROW(PO_Details[#Headers])),COUNTIF($C$14:$C67,$C67)),MATCH(E$13,PO_Details[#Headers],0)),""),IF(Tbl_Orders[[#This Row],[Order Type]]="Sale",INDEX(S.O[],SMALL(IF(S.O[Order Number]=S.Order,ROW(S.O[])-ROW(S.O[#Headers])),COUNTIF($C$14:$C67,$C67)),MATCH(E$13,S.O[#Headers],0)),"")),"") ->  | F67: =IFERROR(IF(Tbl_Orders[[#This Row],[Order Type]]="Purchase",IF(Tbl_Orders[[#This Row],[Order Type]]="Purchase",INDEX(PO_Details[],SMALL(IF(PO_Details[Order Number]=PoNu,ROW(PO_Details[])-ROW(PO_Details[#Headers])),COUNTIF($C$14:$C67,$C67)),MATCH(F$13,PO_Details[#Headers],0)),""),IF(Tbl_Orders[[#This Row],[Order Type]]="Sale",INDEX(S.O[],SMALL(IF(S.O[Order Number]=S.Order,ROW(S.O[])-ROW(S.O[#Headers])),COUNTIF($C$14:$C67,$C67)),MATCH(F$13,S.O[#Headers],0)),"")),"") ->  | G67: =IFERROR(IF(Tbl_Orders[[#This Row],[Order Type]]="Purchase",IF(Tbl_Orders[[#This Row],[Order Type]]="Purchase",INDEX(PO_Details[],SMALL(IF(PO_Details[Order Number]=PoNu,ROW(PO_Details[])-ROW(PO_Details[#Headers])),COUNTIF($C$14:$C67,$C67)),MATCH(G$13,PO_Details[#Headers],0)),""),IF(Tbl_Orders[[#This Row],[Order Type]]="Sale",INDEX(S.O[],SMALL(IF(S.O[Order Number]=S.Order,ROW(S.O[])-ROW(S.O[#Headers])),COUNTIF($C$14:$C67,$C67)),MATCH(G$13,S.O[#Headers],0)),"")),"") ->  | H67: =IFERROR(IF(Tbl_Orders[[#This Row],[Order Type]]="Purchase",IF(Tbl_Orders[[#This Row],[Order Type]]="Purchase",INDEX(PO_Details[],SMALL(IF(PO_Details[Order Number]=PoNu,ROW(PO_Details[])-ROW(PO_Details[#Headers])),COUNTIF($C$14:$C67,$C67)),MATCH(H$13,PO_Details[#Headers],0)),""),IF(Tbl_Orders[[#This Row],[Order Type]]="Sale",INDEX(S.O[],SMALL(IF(S.O[Order Number]=S.Order,ROW(S.O[])-ROW(S.O[#Headers])),COUNTIF($C$14:$C67,$C67)),MATCH(H$13,S.O[#Headers],0)),"")),"") ->  | I67: =IFERROR(Tbl_Orders[[#This Row],[Unit Price]]*Tbl_Orders[Quantity],"") ->  | J67: =IF(Tbl_Orders[[#This Row],[Product Name]]="","",IFERROR(INDEX(Tbl_Product[#Data],MATCH(Tbl_Orders[[#This Row],[Product Name]],INDEX(Tbl_Product[#Data],,1),0),3),"")) ->  | K67: =TEXT(Tbl_Orders[[#This Row],[Order Date]],"yyyy-mmm") ->  | L67: =SUMIFS(Tbl_Orders[Quantity],Tbl_Orders[Expected Date],"<="&Tbl_Orders[[#This Row],[Expected Date]],Tbl_Orders[Product Name],Tbl_Orders[[#This Row],[Product Name]],Tbl_Orders[Order Type],"Purchase")-SUMIFS(Tbl_Orders[Quantity],Tbl_Orders[Expected Date],"<="&Tbl_Orders[[#This Row],[Expected Date]],Tbl_Orders[Product Name],Tbl_Orders[[#This Row],[Product Name]],Tbl_Orders[Order Type],"Sale") -> 0
A68: =IFERROR(IF(Tbl_Orders[[#This Row],[Order Type]]="Purchase",IF(Tbl_Orders[[#This Row],[Order Type]]="Purchase",INDEX(PO_Details[],SMALL(IF(PO_Details[Order Number]=PoNu,ROW(PO_Details[])-ROW(PO_Details[#Headers])),COUNTIF($C$14:$C68,$C68)),MATCH(A$13,PO_Details[#Headers],0)),""),IF(Tbl_Orders[[#This Row],[Order Type]]="Sale",INDEX(S.O[],SMALL(IF(S.O[Order Number]=S.Order,ROW(S.O[])-ROW(S.O[#Headers])),COUNTIF($C$14:$C68,$C68)),MATCH(A$13,S.O[#Headers],0)),"")),"") ->  | B68: =IFERROR(IF(Tbl_Orders[[#This Row],[Order Type]]="Purchase",IF(Tbl_Orders[[#This Row],[Order Type]]="Purchase",INDEX(PO_Details[],SMALL(IF(PO_Details[Order Number]=PoNu,ROW(PO_Details[])-ROW(PO_Details[#Headers])),COUNTIF($C$14:$C68,$C68)),MATCH(B$13,PO_Details[#Headers],0)),""),IF(Tbl_Orders[[#This Row],[Order Type]]="Sale",INDEX(S.O[],SMALL(IF(S.O[Order Number]=S.Order,ROW(S.O[])-ROW(S.O[#Headers])),COUNTIF($C$14:$C68,$C68)),MATCH(B$13,S.O[#Headers],0)),"")),"") ->  | D68: 12-31-18 | E68: =IFERROR(IF(Tbl_Orders[[#This Row],[Order Type]]="Purchase",IF(Tbl_Orders[[#This Row],[Order Type]]="Purchase",INDEX(PO_Details[],SMALL(IF(PO_Details[Order Number]=PoNu,ROW(PO_Details[])-ROW(PO_Details[#Headers])),COUNTIF($C$14:$C68,$C68)),MATCH(E$13,PO_Details[#Headers],0)),""),IF(Tbl_Orders[[#This Row],[Order Type]]="Sale",INDEX(S.O[],SMALL(IF(S.O[Order Number]=S.Order,ROW(S.O[])-ROW(S.O[#Headers])),COUNTIF($C$14:$C68,$C68)),MATCH(E$13,S.O[#Headers],0)),"")),"") ->  | F68: =IFERROR(IF(Tbl_Orders[[#This Row],[Order Type]]="Purchase",IF(Tbl_Orders[[#This Row],[Order Type]]="Purchase",INDEX(PO_Details[],SMALL(IF(PO_Details[Order Number]=PoNu,ROW(PO_Details[])-ROW(PO_Details[#Headers])),COUNTIF($C$14:$C68,$C68)),MATCH(F$13,PO_Details[#Headers],0)),""),IF(Tbl_Orders[[#This Row],[Order Type]]="Sale",INDEX(S.O[],SMALL(IF(S.O[Order Number]=S.Order,ROW(S.O[])-ROW(S.O[#Headers])),COUNTIF($C$14:$C68,$C68)),MATCH(F$13,S.O[#Headers],0)),"")),"") ->  | G68: =IFERROR(IF(Tbl_Orders[[#This Row],[Order Type]]="Purchase",IF(Tbl_Orders[[#This Row],[Order Type]]="Purchase",INDEX(PO_Details[],SMALL(IF(PO_Details[Order Number]=PoNu,ROW(PO_Details[])-ROW(PO_Details[#Headers])),COUNTIF($C$14:$C68,$C68)),MATCH(G$13,PO_Details[#Headers],0)),""),IF(Tbl_Orders[[#This Row],[Order Type]]="Sale",INDEX(S.O[],SMALL(IF(S.O[Order Number]=S.Order,ROW(S.O[])-ROW(S.O[#Headers])),COUNTIF($C$14:$C68,$C68)),MATCH(G$13,S.O[#Headers],0)),"")),"") ->  | H68: =IFERROR(IF(Tbl_Orders[[#This Row],[Order Type]]="Purchase",IF(Tbl_Orders[[#This Row],[Order Type]]="Purchase",INDEX(PO_Details[],SMALL(IF(PO_Details[Order Number]=PoNu,ROW(PO_Details[])-ROW(PO_Details[#Headers])),COUNTIF($C$14:$C68,$C68)),MATCH(H$13,PO_Details[#Headers],0)),""),IF(Tbl_Orders[[#This Row],[Order Type]]="Sale",INDEX(S.O[],SMALL(IF(S.O[Order Number]=S.Order,ROW(S.O[])-ROW(S.O[#Headers])),COUNTIF($C$14:$C68,$C68)),MATCH(H$13,S.O[#Headers],0)),"")),"") ->  | I68: =IFERROR(Tbl_Orders[[#This Row],[Unit Price]]*Tbl_Orders[Quantity],"") ->  | J68: =IF(Tbl_Orders[[#This Row],[Product Name]]="","",IFERROR(INDEX(Tbl_Product[#Data],MATCH(Tbl_Orders[[#This Row],[Product Name]],INDEX(Tbl_Product[#Data],,1),0),3),"")) ->  | K68: =TEXT(Tbl_Orders[[#This Row],[Order Date]],"yyyy-mmm") ->  | L68: =SUMIFS(Tbl_Orders[Quantity],Tbl_Orders[Expected Date],"<="&Tbl_Orders[[#This Row],[Expected Date]],Tbl_Orders[Product Name],Tbl_Orders[[#This Row],[Product Name]],Tbl_Orders[Order Type],"Purchase")-SUMIFS(Tbl_Orders[Quantity],Tbl_Orders[Expected Date],"<="&Tbl_Orders[[#This Row],[Expected Date]],Tbl_Orders[Product Name],Tbl_Orders[[#This Row],[Product Name]],Tbl_Orders[Order Type],"Sale") -> 0
A69: =IFERROR(IF(Tbl_Orders[[#This Row],[Order Type]]="Purchase",IF(Tbl_Orders[[#This Row],[Order Type]]="Purchase",INDEX(PO_Details[],SMALL(IF(PO_Details[Order Number]=PoNu,ROW(PO_Details[])-ROW(PO_Details[#Headers])),COUNTIF($C$14:$C69,$C69)),MATCH(A$13,PO_Details[#Headers],0)),""),IF(Tbl_Orders[[#This Row],[Order Type]]="Sale",INDEX(S.O[],SMALL(IF(S.O[Order Number]=S.Order,ROW(S.O[])-ROW(S.O[#Headers])),COUNTIF($C$14:$C69,$C69)),MATCH(A$13,S.O[#Headers],0)),"")),"") ->  | B69: =IFERROR(IF(Tbl_Orders[[#This Row],[Order Type]]="Purchase",IF(Tbl_Orders[[#This Row],[Order Type]]="Purchase",INDEX(PO_Details[],SMALL(IF(PO_Details[Order Number]=PoNu,ROW(PO_Details[])-ROW(PO_Details[#Headers])),COUNTIF($C$14:$C69,$C69)),MATCH(B$13,PO_Details[#Headers],0)),""),IF(Tbl_Orders[[#This Row],[Order Type]]="Sale",INDEX(S.O[],SMALL(IF(S.O[Order Number]=S.Order,ROW(S.O[])-ROW(S.O[#Headers])),COUNTIF($C$14:$C69,$C69)),MATCH(B$13,S.O[#Headers],0)),"")),"") ->  | D69: 12-31-18 | E69: =IFERROR(IF(Tbl_Orders[[#This Row],[Order Type]]="Purchase",IF(Tbl_Orders[[#This Row],[Order Type]]="Purchase",INDEX(PO_Details[],SMALL(IF(PO_Details[Order Number]=PoNu,ROW(PO_Details[])-ROW(PO_Details[#Headers])),COUNTIF($C$14:$C69,$C69)),MATCH(E$13,PO_Details[#Headers],0)),""),IF(Tbl_Orders[[#This Row],[Order Type]]="Sale",INDEX(S.O[],SMALL(IF(S.O[Order Number]=S.Order,ROW(S.O[])-ROW(S.O[#Headers])),COUNTIF($C$14:$C69,$C69)),MATCH(E$13,S.O[#Headers],0)),"")),"") ->  | F69: =IFERROR(IF(Tbl_Orders[[#This Row],[Order Type]]="Purchase",IF(Tbl_Orders[[#This Row],[Order Type]]="Purchase",INDEX(PO_Details[],SMALL(IF(PO_Details[Order Number]=PoNu,ROW(PO_Details[])-ROW(PO_Details[#Headers])),COUNTIF($C$14:$C69,$C69)),MATCH(F$13,PO_Details[#Headers],0)),""),IF(Tbl_Orders[[#This Row],[Order Type]]="Sale",INDEX(S.O[],SMALL(IF(S.O[Order Number]=S.Order,ROW(S.O[])-ROW(S.O[#Headers])),COUNTIF($C$14:$C69,$C69)),MATCH(F$13,S.O[#Headers],0)),"")),"") ->  | G69: =IFERROR(IF(Tbl_Orders[[#This Row],[Order Type]]="Purchase",IF(Tbl_Orders[[#This Row],[Order Type]]="Purchase",INDEX(PO_Details[],SMALL(IF(PO_Details[Order Number]=PoNu,ROW(PO_Details[])-ROW(PO_Details[#Headers])),COUNTIF($C$14:$C69,$C69)),MATCH(G$13,PO_Details[#Headers],0)),""),IF(Tbl_Orders[[#This Row],[Order Type]]="Sale",INDEX(S.O[],SMALL(IF(S.O[Order Number]=S.Order,ROW(S.O[])-ROW(S.O[#Headers])),COUNTIF($C$14:$C69,$C69)),MATCH(G$13,S.O[#Headers],0)),"")),"") ->  | H69: =IFERROR(IF(Tbl_Orders[[#This Row],[Order Type]]="Purchase",IF(Tbl_Orders[[#This Row],[Order Type]]="Purchase",INDEX(PO_Details[],SMALL(IF(PO_Details[Order Number]=PoNu,ROW(PO_Details[])-ROW(PO_Details[#Headers])),COUNTIF($C$14:$C69,$C69)),MATCH(H$13,PO_Details[#Headers],0)),""),IF(Tbl_Orders[[#This Row],[Order Type]]="Sale",INDEX(S.O[],SMALL(IF(S.O[Order Number]=S.Order,ROW(S.O[])-ROW(S.O[#Headers])),COUNTIF($C$14:$C69,$C69)),MATCH(H$13,S.O[#Headers],0)),"")),"") ->  | I69: =IFERROR(Tbl_Orders[[#This Row],[Unit Price]]*Tbl_Orders[Quantity],"") ->  | J69: =IF(Tbl_Orders[[#This Row],[Product Name]]="","",IFERROR(INDEX(Tbl_Product[#Data],MATCH(Tbl_Orders[[#This Row],[Product Name]],INDEX(Tbl_Product[#Data],,1),0),3),"")) ->  | K69: =TEXT(Tbl_Orders[[#This Row],[Order Date]],"yyyy-mmm") ->  | L69: =SUMIFS(Tbl_Orders[Quantity],Tbl_Orders[Expected Date],"<="&Tbl_Orders[[#This Row],[Expected Date]],Tbl_Orders[Product Name],Tbl_Orders[[#This Row],[Product Name]],Tbl_Orders[Order Type],"Purchase")-SUMIFS(Tbl_Orders[Quantity],Tbl_Orders[Expected Date],"<="&Tbl_Orders[[#This Row],[Expected Date]],Tbl_Orders[Product Name],Tbl_Orders[[#This Row],[Product Name]],Tbl_Orders[Order Type],"Sale") -> 0
A70: =IFERROR(IF(Tbl_Orders[[#This Row],[Order Type]]="Purchase",IF(Tbl_Orders[[#This Row],[Order Type]]="Purchase",INDEX(PO_Details[],SMALL(IF(PO_Details[Order Number]=PoNu,ROW(PO_Details[])-ROW(PO_Details[#Headers])),COUNTIF($C$14:$C70,$C70)),MATCH(A$13,PO_Details[#Headers],0)),""),IF(Tbl_Orders[[#This Row],[Order Type]]="Sale",INDEX(S.O[],SMALL(IF(S.O[Order Number]=S.Order,ROW(S.O[])-ROW(S.O[#Headers])),COUNTIF($C$14:$C70,$C70)),MATCH(A$13,S.O[#Headers],0)),"")),"") ->  | B70: =IFERROR(IF(Tbl_Orders[[#This Row],[Order Type]]="Purchase",IF(Tbl_Orders[[#This Row],[Order Type]]="Purchase",INDEX(PO_Details[],SMALL(IF(PO_Details[Order Number]=PoNu,ROW(PO_Details[])-ROW(PO_Details[#Headers])),COUNTIF($C$14:$C70,$C70)),MATCH(B$13,PO_Details[#Headers],0)),""),IF(Tbl_Orders[[#This Row],[Order Type]]="Sale",INDEX(S.O[],SMALL(IF(S.O[Order Number]=S.Order,ROW(S.O[])-ROW(S.O[#Headers])),COUNTIF($C$14:$C70,$C70)),MATCH(B$13,S.O[#Headers],0)),"")),"") ->  | D70: 12-31-18 | E70: =IFERROR(IF(Tbl_Orders[[#This Row],[Order Type]]="Purchase",IF(Tbl_Orders[[#This Row],[Order Type]]="Purchase",INDEX(PO_Details[],SMALL(IF(PO_Details[Order Number]=PoNu,ROW(PO_Details[])-ROW(PO_Details[#Headers])),COUNTIF($C$14:$C70,$C70)),MATCH(E$13,PO_Details[#Headers],0)),""),IF(Tbl_Orders[[#This Row],[Order Type]]="Sale",INDEX(S.O[],SMALL(IF(S.O[Order Number]=S.Order,ROW(S.O[])-ROW(S.O[#Headers])),COUNTIF($C$14:$C70,$C70)),MATCH(E$13,S.O[#Headers],0)),"")),"") ->  | F70: =IFERROR(IF(Tbl_Orders[[#This Row],[Order Type]]="Purchase",IF(Tbl_Orders[[#This Row],[Order Type]]="Purchase",INDEX(PO_Details[],SMALL(IF(PO_Details[Order Number]=PoNu,ROW(PO_Details[])-ROW(PO_Details[#Headers])),COUNTIF($C$14:$C70,$C70)),MATCH(F$13,PO_Details[#Headers],0)),""),IF(Tbl_Orders[[#This Row],[Order Type]]="Sale",INDEX(S.O[],SMALL(IF(S.O[Order Number]=S.Order,ROW(S.O[])-ROW(S.O[#Headers])),COUNTIF($C$14:$C70,$C70)),MATCH(F$13,S.O[#Headers],0)),"")),"") ->  | G70: =IFERROR(IF(Tbl_Orders[[#This Row],[Order Type]]="Purchase",IF(Tbl_Orders[[#This Row],[Order Type]]="Purchase",INDEX(PO_Details[],SMALL(IF(PO_Details[Order Number]=PoNu,ROW(PO_Details[])-ROW(PO_Details[#Headers])),COUNTIF($C$14:$C70,$C70)),MATCH(G$13,PO_Details[#Headers],0)),""),IF(Tbl_Orders[[#This Row],[Order Type]]="Sale",INDEX(S.O[],SMALL(IF(S.O[Order Number]=S.Order,ROW(S.O[])-ROW(S.O[#Headers])),COUNTIF($C$14:$C70,$C70)),MATCH(G$13,S.O[#Headers],0)),"")),"") ->  | H70: =IFERROR(IF(Tbl_Orders[[#This Row],[Order Type]]="Purchase",IF(Tbl_Orders[[#This Row],[Order Type]]="Purchase",INDEX(PO_Details[],SMALL(IF(PO_Details[Order Number]=PoNu,ROW(PO_Details[])-ROW(PO_Details[#Headers])),COUNTIF($C$14:$C70,$C70)),MATCH(H$13,PO_Details[#Headers],0)),""),IF(Tbl_Orders[[#This Row],[Order Type]]="Sale",INDEX(S.O[],SMALL(IF(S.O[Order Number]=S.Order,ROW(S.O[])-ROW(S.O[#Headers])),COUNTIF($C$14:$C70,$C70)),MATCH(H$13,S.O[#Headers],0)),"")),"") ->  | I70: =IFERROR(Tbl_Orders[[#This Row],[Unit Price]]*Tbl_Orders[Quantity],"") ->  | J70: =IF(Tbl_Orders[[#This Row],[Product Name]]="","",IFERROR(INDEX(Tbl_Product[#Data],MATCH(Tbl_Orders[[#This Row],[Product Name]],INDEX(Tbl_Product[#Data],,1),0),3),"")) ->  | K70: =TEXT(Tbl_Orders[[#This Row],[Order Date]],"yyyy-mmm") ->  | L70: =SUMIFS(Tbl_Orders[Quantity],Tbl_Orders[Expected Date],"<="&Tbl_Orders[[#This Row],[Expected Date]],Tbl_Orders[Product Name],Tbl_Orders[[#This Row],[Product Name]],Tbl_Orders[Order Type],"Purchase")-SUMIFS(Tbl_Orders[Quantity],Tbl_Orders[Expected Date],"<="&Tbl_Orders[[#This Row],[Expected Date]],Tbl_Orders[Product Name],Tbl_Orders[[#This Row],[Product Name]],Tbl_Orders[Order Type],"Sale") -> 0
A71: =IFERROR(IF(Tbl_Orders[[#This Row],[Order Type]]="Purchase",IF(Tbl_Orders[[#This Row],[Order Type]]="Purchase",INDEX(PO_Details[],SMALL(IF(PO_Details[Order Number]=PoNu,ROW(PO_Details[])-ROW(PO_Details[#Headers])),COUNTIF($C$14:$C71,$C71)),MATCH(A$13,PO_Details[#Headers],0)),""),IF(Tbl_Orders[[#This Row],[Order Type]]="Sale",INDEX(S.O[],SMALL(IF(S.O[Order Number]=S.Order,ROW(S.O[])-ROW(S.O[#Headers])),COUNTIF($C$14:$C71,$C71)),MATCH(A$13,S.O[#Headers],0)),"")),"") ->  | B71: =IFERROR(IF(Tbl_Orders[[#This Row],[Order Type]]="Purchase",IF(Tbl_Orders[[#This Row],[Order Type]]="Purchase",INDEX(PO_Details[],SMALL(IF(PO_Details[Order Number]=PoNu,ROW(PO_Details[])-ROW(PO_Details[#Headers])),COUNTIF($C$14:$C71,$C71)),MATCH(B$13,PO_Details[#Headers],0)),""),IF(Tbl_Orders[[#This Row],[Order Type]]="Sale",INDEX(S.O[],SMALL(IF(S.O[Order Number]=S.Order,ROW(S.O[])-ROW(S.O[#Headers])),COUNTIF($C$14:$C71,$C71)),MATCH(B$13,S.O[#Headers],0)),"")),"") ->  | D71: 12-31-18 | E71: =IFERROR(IF(Tbl_Orders[[#This Row],[Order Type]]="Purchase",IF(Tbl_Orders[[#This Row],[Order Type]]="Purchase",INDEX(PO_Details[],SMALL(IF(PO_Details[Order Number]=PoNu,ROW(PO_Details[])-ROW(PO_Details[#Headers])),COUNTIF($C$14:$C71,$C71)),MATCH(E$13,PO_Details[#Headers],0)),""),IF(Tbl_Orders[[#This Row],[Order Type]]="Sale",INDEX(S.O[],SMALL(IF(S.O[Order Number]=S.Order,ROW(S.O[])-ROW(S.O[#Headers])),COUNTIF($C$14:$C71,$C71)),MATCH(E$13,S.O[#Headers],0)),"")),"") ->  | F71: =IFERROR(IF(Tbl_Orders[[#This Row],[Order Type]]="Purchase",IF(Tbl_Orders[[#This Row],[Order Type]]="Purchase",INDEX(PO_Details[],SMALL(IF(PO_Details[Order Number]=PoNu,ROW(PO_Details[])-ROW(PO_Details[#Headers])),COUNTIF($C$14:$C71,$C71)),MATCH(F$13,PO_Details[#Headers],0)),""),IF(Tbl_Orders[[#This Row],[Order Type]]="Sale",INDEX(S.O[],SMALL(IF(S.O[Order Number]=S.Order,ROW(S.O[])-ROW(S.O[#Headers])),COUNTIF($C$14:$C71,$C71)),MATCH(F$13,S.O[#Headers],0)),"")),"") ->  | G71: =IFERROR(IF(Tbl_Orders[[#This Row],[Order Type]]="Purchase",IF(Tbl_Orders[[#This Row],[Order Type]]="Purchase",INDEX(PO_Details[],SMALL(IF(PO_Details[Order Number]=PoNu,ROW(PO_Details[])-ROW(PO_Details[#Headers])),COUNTIF($C$14:$C71,$C71)),MATCH(G$13,PO_Details[#Headers],0)),""),IF(Tbl_Orders[[#This Row],[Order Type]]="Sale",INDEX(S.O[],SMALL(IF(S.O[Order Number]=S.Order,ROW(S.O[])-ROW(S.O[#Headers])),COUNTIF($C$14:$C71,$C71)),MATCH(G$13,S.O[#Headers],0)),"")),"") ->  | H71: =IFERROR(IF(Tbl_Orders[[#This Row],[Order Type]]="Purchase",IF(Tbl_Orders[[#This Row],[Order Type]]="Purchase",INDEX(PO_Details[],SMALL(IF(PO_Details[Order Number]=PoNu,ROW(PO_Details[])-ROW(PO_Details[#Headers])),COUNTIF($C$14:$C71,$C71)),MATCH(H$13,PO_Details[#Headers],0)),""),IF(Tbl_Orders[[#This Row],[Order Type]]="Sale",INDEX(S.O[],SMALL(IF(S.O[Order Number]=S.Order,ROW(S.O[])-ROW(S.O[#Headers])),COUNTIF($C$14:$C71,$C71)),MATCH(H$13,S.O[#Headers],0)),"")),"") ->  | I71: =IFERROR(Tbl_Orders[[#This Row],[Unit Price]]*Tbl_Orders[Quantity],"") ->  | J71: =IF(Tbl_Orders[[#This Row],[Product Name]]="","",IFERROR(INDEX(Tbl_Product[#Data],MATCH(Tbl_Orders[[#This Row],[Product Name]],INDEX(Tbl_Product[#Data],,1),0),3),"")) ->  | K71: =TEXT(Tbl_Orders[[#This Row],[Order Date]],"yyyy-mmm") ->  | L71: =SUMIFS(Tbl_Orders[Quantity],Tbl_Orders[Expected Date],"<="&Tbl_Orders[[#This Row],[Expected Date]],Tbl_Orders[Product Name],Tbl_Orders[[#This Row],[Product Name]],Tbl_Orders[Order Type],"Purchase")-SUMIFS(Tbl_Orders[Quantity],Tbl_Orders[Expected Date],"<="&Tbl_Orders[[#This Row],[Expected Date]],Tbl_Orders[Product Name],Tbl_Orders[[#This Row],[Product Name]],Tbl_Orders[Order Type],"Sale") -> 0
A72: =IFERROR(IF(Tbl_Orders[[#This Row],[Order Type]]="Purchase",IF(Tbl_Orders[[#This Row],[Order Type]]="Purchase",INDEX(PO_Details[],SMALL(IF(PO_Details[Order Number]=PoNu,ROW(PO_Details[])-ROW(PO_Details[#Headers])),COUNTIF($C$14:$C72,$C72)),MATCH(A$13,PO_Details[#Headers],0)),""),IF(Tbl_Orders[[#This Row],[Order Type]]="Sale",INDEX(S.O[],SMALL(IF(S.O[Order Number]=S.Order,ROW(S.O[])-ROW(S.O[#Headers])),COUNTIF($C$14:$C72,$C72)),MATCH(A$13,S.O[#Headers],0)),"")),"") ->  | B72: =IFERROR(IF(Tbl_Orders[[#This Row],[Order Type]]="Purchase",IF(Tbl_Orders[[#This Row],[Order Type]]="Purchase",INDEX(PO_Details[],SMALL(IF(PO_Details[Order Number]=PoNu,ROW(PO_Details[])-ROW(PO_Details[#Headers])),COUNTIF($C$14:$C72,$C72)),MATCH(B$13,PO_Details[#Headers],0)),""),IF(Tbl_Orders[[#This Row],[Order Type]]="Sale",INDEX(S.O[],SMALL(IF(S.O[Order Number]=S.Order,ROW(S.O[])-ROW(S.O[#Headers])),COUNTIF($C$14:$C72,$C72)),MATCH(B$13,S.O[#Headers],0)),"")),"") ->  | D72: 12-31-18 | E72: =IFERROR(IF(Tbl_Orders[[#This Row],[Order Type]]="Purchase",IF(Tbl_Orders[[#This Row],[Order Type]]="Purchase",INDEX(PO_Details[],SMALL(IF(PO_Details[Order Number]=PoNu,ROW(PO_Details[])-ROW(PO_Details[#Headers])),COUNTIF($C$14:$C72,$C72)),MATCH(E$13,PO_Details[#Headers],0)),""),IF(Tbl_Orders[[#This Row],[Order Type]]="Sale",INDEX(S.O[],SMALL(IF(S.O[Order Number]=S.Order,ROW(S.O[])-ROW(S.O[#Headers])),COUNTIF($C$14:$C72,$C72)),MATCH(E$13,S.O[#Headers],0)),"")),"") ->  | F72: =IFERROR(IF(Tbl_Orders[[#This Row],[Order Type]]="Purchase",IF(Tbl_Orders[[#This Row],[Order Type]]="Purchase",INDEX(PO_Details[],SMALL(IF(PO_Details[Order Number]=PoNu,ROW(PO_Details[])-ROW(PO_Details[#Headers])),COUNTIF($C$14:$C72,$C72)),MATCH(F$13,PO_Details[#Headers],0)),""),IF(Tbl_Orders[[#This Row],[Order Type]]="Sale",INDEX(S.O[],SMALL(IF(S.O[Order Number]=S.Order,ROW(S.O[])-ROW(S.O[#Headers])),COUNTIF($C$14:$C72,$C72)),MATCH(F$13,S.O[#Headers],0)),"")),"") ->  | G72: =IFERROR(IF(Tbl_Orders[[#This Row],[Order Type]]="Purchase",IF(Tbl_Orders[[#This Row],[Order Type]]="Purchase",INDEX(PO_Details[],SMALL(IF(PO_Details[Order Number]=PoNu,ROW(PO_Details[])-ROW(PO_Details[#Headers])),COUNTIF($C$14:$C72,$C72)),MATCH(G$13,PO_Details[#Headers],0)),""),IF(Tbl_Orders[[#This Row],[Order Type]]="Sale",INDEX(S.O[],SMALL(IF(S.O[Order Number]=S.Order,ROW(S.O[])-ROW(S.O[#Headers])),COUNTIF($C$14:$C72,$C72)),MATCH(G$13,S.O[#Headers],0)),"")),"") ->  | H72: =IFERROR(IF(Tbl_Orders[[#This Row],[Order Type]]="Purchase",IF(Tbl_Orders[[#This Row],[Order Type]]="Purchase",INDEX(PO_Details[],SMALL(IF(PO_Details[Order Number]=PoNu,ROW(PO_Details[])-ROW(PO_Details[#Headers])),COUNTIF($C$14:$C72,$C72)),MATCH(H$13,PO_Details[#Headers],0)),""),IF(Tbl_Orders[[#This Row],[Order Type]]="Sale",INDEX(S.O[],SMALL(IF(S.O[Order Number]=S.Order,ROW(S.O[])-ROW(S.O[#Headers])),COUNTIF($C$14:$C72,$C72)),MATCH(H$13,S.O[#Headers],0)),"")),"") ->  | I72: =IFERROR(Tbl_Orders[[#This Row],[Unit Price]]*Tbl_Orders[Quantity],"") ->  | J72: =IF(Tbl_Orders[[#This Row],[Product Name]]="","",IFERROR(INDEX(Tbl_Product[#Data],MATCH(Tbl_Orders[[#This Row],[Product Name]],INDEX(Tbl_Product[#Data],,1),0),3),"")) ->  | K72: =TEXT(Tbl_Orders[[#This Row],[Order Date]],"yyyy-mmm") ->  | L72: =SUMIFS(Tbl_Orders[Quantity],Tbl_Orders[Expected Date],"<="&Tbl_Orders[[#This Row],[Expected Date]],Tbl_Orders[Product Name],Tbl_Orders[[#This Row],[Product Name]],Tbl_Orders[Order Type],"Purchase")-SUMIFS(Tbl_Orders[Quantity],Tbl_Orders[Expected Date],"<="&Tbl_Orders[[#This Row],[Expected Date]],Tbl_Orders[Product Name],Tbl_Orders[[#This Row],[Product Name]],Tbl_Orders[Order Type],"Sale") -> 0
A73: =IFERROR(IF(Tbl_Orders[[#This Row],[Order Type]]="Purchase",IF(Tbl_Orders[[#This Row],[Order Type]]="Purchase",INDEX(PO_Details[],SMALL(IF(PO_Details[Order Number]=PoNu,ROW(PO_Details[])-ROW(PO_Details[#Headers])),COUNTIF($C$14:$C73,$C73)),MATCH(A$13,PO_Details[#Headers],0)),""),IF(Tbl_Orders[[#This Row],[Order Type]]="Sale",INDEX(S.O[],SMALL(IF(S.O[Order Number]=S.Order,ROW(S.O[])-ROW(S.O[#Headers])),COUNTIF($C$14:$C73,$C73)),MATCH(A$13,S.O[#Headers],0)),"")),"") ->  | B73: =IFERROR(IF(Tbl_Orders[[#This Row],[Order Type]]="Purchase",IF(Tbl_Orders[[#This Row],[Order Type]]="Purchase",INDEX(PO_Details[],SMALL(IF(PO_Details[Order Number]=PoNu,ROW(PO_Details[])-ROW(PO_Details[#Headers])),COUNTIF($C$14:$C73,$C73)),MATCH(B$13,PO_Details[#Headers],0)),""),IF(Tbl_Orders[[#This Row],[Order Type]]="Sale",INDEX(S.O[],SMALL(IF(S.O[Order Number]=S.Order,ROW(S.O[])-ROW(S.O[#Headers])),COUNTIF($C$14:$C73,$C73)),MATCH(B$13,S.O[#Headers],0)),"")),"") ->  | D73: 12-31-18 | E73: =IFERROR(IF(Tbl_Orders[[#This Row],[Order Type]]="Purchase",IF(Tbl_Orders[[#This Row],[Order Type]]="Purchase",INDEX(PO_Details[],SMALL(IF(PO_Details[Order Number]=PoNu,ROW(PO_Details[])-ROW(PO_Details[#Headers])),COUNTIF($C$14:$C73,$C73)),MATCH(E$13,PO_Details[#Headers],0)),""),IF(Tbl_Orders[[#This Row],[Order Type]]="Sale",INDEX(S.O[],SMALL(IF(S.O[Order Number]=S.Order,ROW(S.O[])-ROW(S.O[#Headers])),COUNTIF($C$14:$C73,$C73)),MATCH(E$13,S.O[#Headers],0)),"")),"") ->  | F73: =IFERROR(IF(Tbl_Orders[[#This Row],[Order Type]]="Purchase",IF(Tbl_Orders[[#This Row],[Order Type]]="Purchase",INDEX(PO_Details[],SMALL(IF(PO_Details[Order Number]=PoNu,ROW(PO_Details[])-ROW(PO_Details[#Headers])),COUNTIF($C$14:$C73,$C73)),MATCH(F$13,PO_Details[#Headers],0)),""),IF(Tbl_Orders[[#This Row],[Order Type]]="Sale",INDEX(S.O[],SMALL(IF(S.O[Order Number]=S.Order,ROW(S.O[])-ROW(S.O[#Headers])),COUNTIF($C$14:$C73,$C73)),MATCH(F$13,S.O[#Headers],0)),"")),"") ->  | G73: =IFERROR(IF(Tbl_Orders[[#This Row],[Order Type]]="Purchase",IF(Tbl_Orders[[#This Row],[Order Type]]="Purchase",INDEX(PO_Details[],SMALL(IF(PO_Details[Order Number]=PoNu,ROW(PO_Details[])-ROW(PO_Details[#Headers])),COUNTIF($C$14:$C73,$C73)),MATCH(G$13,PO_Details[#Headers],0)),""),IF(Tbl_Orders[[#This Row],[Order Type]]="Sale",INDEX(S.O[],SMALL(IF(S.O[Order Number]=S.Order,ROW(S.O[])-ROW(S.O[#Headers])),COUNTIF($C$14:$C73,$C73)),MATCH(G$13,S.O[#Headers],0)),"")),"") ->  | H73: =IFERROR(IF(Tbl_Orders[[#This Row],[Order Type]]="Purchase",IF(Tbl_Orders[[#This Row],[Order Type]]="Purchase",INDEX(PO_Details[],SMALL(IF(PO_Details[Order Number]=PoNu,ROW(PO_Details[])-ROW(PO_Details[#Headers])),COUNTIF($C$14:$C73,$C73)),MATCH(H$13,PO_Details[#Headers],0)),""),IF(Tbl_Orders[[#This Row],[Order Type]]="Sale",INDEX(S.O[],SMALL(IF(S.O[Order Number]=S.Order,ROW(S.O[])-ROW(S.O[#Headers])),COUNTIF($C$14:$C73,$C73)),MATCH(H$13,S.O[#Headers],0)),"")),"") ->  | I73: =IFERROR(Tbl_Orders[[#This Row],[Unit Price]]*Tbl_Orders[Quantity],"") ->  | J73: =IF(Tbl_Orders[[#This Row],[Product Name]]="","",IFERROR(INDEX(Tbl_Product[#Data],MATCH(Tbl_Orders[[#This Row],[Product Name]],INDEX(Tbl_Product[#Data],,1),0),3),"")) ->  | K73: =TEXT(Tbl_Orders[[#This Row],[Order Date]],"yyyy-mmm") ->  | L73: =SUMIFS(Tbl_Orders[Quantity],Tbl_Orders[Expected Date],"<="&Tbl_Orders[[#This Row],[Expected Date]],Tbl_Orders[Product Name],Tbl_Orders[[#This Row],[Product Name]],Tbl_Orders[Order Type],"Purchase")-SUMIFS(Tbl_Orders[Quantity],Tbl_Orders[Expected Date],"<="&Tbl_Orders[[#This Row],[Expected Date]],Tbl_Orders[Product Name],Tbl_Orders[[#This Row],[Product Name]],Tbl_Orders[Order Type],"Sale") -> 0
A74: =IFERROR(IF(Tbl_Orders[[#This Row],[Order Type]]="Purchase",IF(Tbl_Orders[[#This Row],[Order Type]]="Purchase",INDEX(PO_Details[],SMALL(IF(PO_Details[Order Number]=PoNu,ROW(PO_Details[])-ROW(PO_Details[#Headers])),COUNTIF($C$14:$C74,$C74)),MATCH(A$13,PO_Details[#Headers],0)),""),IF(Tbl_Orders[[#This Row],[Order Type]]="Sale",INDEX(S.O[],SMALL(IF(S.O[Order Number]=S.Order,ROW(S.O[])-ROW(S.O[#Headers])),COUNTIF($C$14:$C74,$C74)),MATCH(A$13,S.O[#Headers],0)),"")),"") ->  | B74: =IFERROR(IF(Tbl_Orders[[#This Row],[Order Type]]="Purchase",IF(Tbl_Orders[[#This Row],[Order Type]]="Purchase",INDEX(PO_Details[],SMALL(IF(PO_Details[Order Number]=PoNu,ROW(PO_Details[])-ROW(PO_Details[#Headers])),COUNTIF($C$14:$C74,$C74)),MATCH(B$13,PO_Details[#Headers],0)),""),IF(Tbl_Orders[[#This Row],[Order Type]]="Sale",INDEX(S.O[],SMALL(IF(S.O[Order Number]=S.Order,ROW(S.O[])-ROW(S.O[#Headers])),COUNTIF($C$14:$C74,$C74)),MATCH(B$13,S.O[#Headers],0)),"")),"") ->  | D74: 12-31-18 | E74: =IFERROR(IF(Tbl_Orders[[#This Row],[Order Type]]="Purchase",IF(Tbl_Orders[[#This Row],[Order Type]]="Purchase",INDEX(PO_Details[],SMALL(IF(PO_Details[Order Number]=PoNu,ROW(PO_Details[])-ROW(PO_Details[#Headers])),COUNTIF($C$14:$C74,$C74)),MATCH(E$13,PO_Details[#Headers],0)),""),IF(Tbl_Orders[[#This Row],[Order Type]]="Sale",INDEX(S.O[],SMALL(IF(S.O[Order Number]=S.Order,ROW(S.O[])-ROW(S.O[#Headers])),COUNTIF($C$14:$C74,$C74)),MATCH(E$13,S.O[#Headers],0)),"")),"") ->  | F74: =IFERROR(IF(Tbl_Orders[[#This Row],[Order Type]]="Purchase",IF(Tbl_Orders[[#This Row],[Order Type]]="Purchase",INDEX(PO_Details[],SMALL(IF(PO_Details[Order Number]=PoNu,ROW(PO_Details[])-ROW(PO_Details[#Headers])),COUNTIF($C$14:$C74,$C74)),MATCH(F$13,PO_Details[#Headers],0)),""),IF(Tbl_Orders[[#This Row],[Order Type]]="Sale",INDEX(S.O[],SMALL(IF(S.O[Order Number]=S.Order,ROW(S.O[])-ROW(S.O[#Headers])),COUNTIF($C$14:$C74,$C74)),MATCH(F$13,S.O[#Headers],0)),"")),"") ->  | G74: =IFERROR(IF(Tbl_Orders[[#This Row],[Order Type]]="Purchase",IF(Tbl_Orders[[#This Row],[Order Type]]="Purchase",INDEX(PO_Details[],SMALL(IF(PO_Details[Order Number]=PoNu,ROW(PO_Details[])-ROW(PO_Details[#Headers])),COUNTIF($C$14:$C74,$C74)),MATCH(G$13,PO_Details[#Headers],0)),""),IF(Tbl_Orders[[#This Row],[Order Type]]="Sale",INDEX(S.O[],SMALL(IF(S.O[Order Number]=S.Order,ROW(S.O[])-ROW(S.O[#Headers])),COUNTIF($C$14:$C74,$C74)),MATCH(G$13,S.O[#Headers],0)),"")),"") ->  | H74: =IFERROR(IF(Tbl_Orders[[#This Row],[Order Type]]="Purchase",IF(Tbl_Orders[[#This Row],[Order Type]]="Purchase",INDEX(PO_Details[],SMALL(IF(PO_Details[Order Number]=PoNu,ROW(PO_Details[])-ROW(PO_Details[#Headers])),COUNTIF($C$14:$C74,$C74)),MATCH(H$13,PO_Details[#Headers],0)),""),IF(Tbl_Orders[[#This Row],[Order Type]]="Sale",INDEX(S.O[],SMALL(IF(S.O[Order Number]=S.Order,ROW(S.O[])-ROW(S.O[#Headers])),COUNTIF($C$14:$C74,$C74)),MATCH(H$13,S.O[#Headers],0)),"")),"") ->  | I74: =IFERROR(Tbl_Orders[[#This Row],[Unit Price]]*Tbl_Orders[Quantity],"") ->  | J74: =IF(Tbl_Orders[[#This Row],[Product Name]]="","",IFERROR(INDEX(Tbl_Product[#Data],MATCH(Tbl_Orders[[#This Row],[Product Name]],INDEX(Tbl_Product[#Data],,1),0),3),"")) ->  | K74: =TEXT(Tbl_Orders[[#This Row],[Order Date]],"yyyy-mmm") ->  | L74: =SUMIFS(Tbl_Orders[Quantity],Tbl_Orders[Expected Date],"<="&Tbl_Orders[[#This Row],[Expected Date]],Tbl_Orders[Product Name],Tbl_Orders[[#This Row],[Product Name]],Tbl_Orders[Order Type],"Purchase")-SUMIFS(Tbl_Orders[Quantity],Tbl_Orders[Expected Date],"<="&Tbl_Orders[[#This Row],[Expected Date]],Tbl_Orders[Product Name],Tbl_Orders[[#This Row],[Product Name]],Tbl_Orders[Order Type],"Sale") -> 0
A75: =IFERROR(IF(Tbl_Orders[[#This Row],[Order Type]]="Purchase",IF(Tbl_Orders[[#This Row],[Order Type]]="Purchase",INDEX(PO_Details[],SMALL(IF(PO_Details[Order Number]=PoNu,ROW(PO_Details[])-ROW(PO_Details[#Headers])),COUNTIF($C$14:$C75,$C75)),MATCH(A$13,PO_Details[#Headers],0)),""),IF(Tbl_Orders[[#This Row],[Order Type]]="Sale",INDEX(S.O[],SMALL(IF(S.O[Order Number]=S.Order,ROW(S.O[])-ROW(S.O[#Headers])),COUNTIF($C$14:$C75,$C75)),MATCH(A$13,S.O[#Headers],0)),"")),"") ->  | B75: =IFERROR(IF(Tbl_Orders[[#This Row],[Order Type]]="Purchase",IF(Tbl_Orders[[#This Row],[Order Type]]="Purchase",INDEX(PO_Details[],SMALL(IF(PO_Details[Order Number]=PoNu,ROW(PO_Details[])-ROW(PO_Details[#Headers])),COUNTIF($C$14:$C75,$C75)),MATCH(B$13,PO_Details[#Headers],0)),""),IF(Tbl_Orders[[#This Row],[Order Type]]="Sale",INDEX(S.O[],SMALL(IF(S.O[Order Number]=S.Order,ROW(S.O[])-ROW(S.O[#Headers])),COUNTIF($C$14:$C75,$C75)),MATCH(B$13,S.O[#Headers],0)),"")),"") ->  | D75: 12-31-18 | E75: =IFERROR(IF(Tbl_Orders[[#This Row],[Order Type]]="Purchase",IF(Tbl_Orders[[#This Row],[Order Type]]="Purchase",INDEX(PO_Details[],SMALL(IF(PO_Details[Order Number]=PoNu,ROW(PO_Details[])-ROW(PO_Details[#Headers])),COUNTIF($C$14:$C75,$C75)),MATCH(E$13,PO_Details[#Headers],0)),""),IF(Tbl_Orders[[#This Row],[Order Type]]="Sale",INDEX(S.O[],SMALL(IF(S.O[Order Number]=S.Order,ROW(S.O[])-ROW(S.O[#Headers])),COUNTIF($C$14:$C75,$C75)),MATCH(E$13,S.O[#Headers],0)),"")),"") ->  | F75: =IFERROR(IF(Tbl_Orders[[#This Row],[Order Type]]="Purchase",IF(Tbl_Orders[[#This Row],[Order Type]]="Purchase",INDEX(PO_Details[],SMALL(IF(PO_Details[Order Number]=PoNu,ROW(PO_Details[])-ROW(PO_Details[#Headers])),COUNTIF($C$14:$C75,$C75)),MATCH(F$13,PO_Details[#Headers],0)),""),IF(Tbl_Orders[[#This Row],[Order Type]]="Sale",INDEX(S.O[],SMALL(IF(S.O[Order Number]=S.Order,ROW(S.O[])-ROW(S.O[#Headers])),COUNTIF($C$14:$C75,$C75)),MATCH(F$13,S.O[#Headers],0)),"")),"") ->  | G75: =IFERROR(IF(Tbl_Orders[[#This Row],[Order Type]]="Purchase",IF(Tbl_Orders[[#This Row],[Order Type]]="Purchase",INDEX(PO_Details[],SMALL(IF(PO_Details[Order Number]=PoNu,ROW(PO_Details[])-ROW(PO_Details[#Headers])),COUNTIF($C$14:$C75,$C75)),MATCH(G$13,PO_Details[#Headers],0)),""),IF(Tbl_Orders[[#This Row],[Order Type]]="Sale",INDEX(S.O[],SMALL(IF(S.O[Order Number]=S.Order,ROW(S.O[])-ROW(S.O[#Headers])),COUNTIF($C$14:$C75,$C75)),MATCH(G$13,S.O[#Headers],0)),"")),"") ->  | H75: =IFERROR(IF(Tbl_Orders[[#This Row],[Order Type]]="Purchase",IF(Tbl_Orders[[#This Row],[Order Type]]="Purchase",INDEX(PO_Details[],SMALL(IF(PO_Details[Order Number]=PoNu,ROW(PO_Details[])-ROW(PO_Details[#Headers])),COUNTIF($C$14:$C75,$C75)),MATCH(H$13,PO_Details[#Headers],0)),""),IF(Tbl_Orders[[#This Row],[Order Type]]="Sale",INDEX(S.O[],SMALL(IF(S.O[Order Number]=S.Order,ROW(S.O[])-ROW(S.O[#Headers])),COUNTIF($C$14:$C75,$C75)),MATCH(H$13,S.O[#Headers],0)),"")),"") ->  | I75: =IFERROR(Tbl_Orders[[#This Row],[Unit Price]]*Tbl_Orders[Quantity],"") ->  | J75: =IF(Tbl_Orders[[#This Row],[Product Name]]="","",IFERROR(INDEX(Tbl_Product[#Data],MATCH(Tbl_Orders[[#This Row],[Product Name]],INDEX(Tbl_Product[#Data],,1),0),3),"")) ->  | K75: =TEXT(Tbl_Orders[[#This Row],[Order Date]],"yyyy-mmm") ->  | L75: =SUMIFS(Tbl_Orders[Quantity],Tbl_Orders[Expected Date],"<="&Tbl_Orders[[#This Row],[Expected Date]],Tbl_Orders[Product Name],Tbl_Orders[[#This Row],[Product Name]],Tbl_Orders[Order Type],"Purchase")-SUMIFS(Tbl_Orders[Quantity],Tbl_Orders[Expected Date],"<="&Tbl_Orders[[#This Row],[Expected Date]],Tbl_Orders[Product Name],Tbl_Orders[[#This Row],[Product Name]],Tbl_Orders[Order Type],"Sale") -> 0
A76: =IFERROR(IF(Tbl_Orders[[#This Row],[Order Type]]="Purchase",IF(Tbl_Orders[[#This Row],[Order Type]]="Purchase",INDEX(PO_Details[],SMALL(IF(PO_Details[Order Number]=PoNu,ROW(PO_Details[])-ROW(PO_Details[#Headers])),COUNTIF($C$14:$C76,$C76)),MATCH(A$13,PO_Details[#Headers],0)),""),IF(Tbl_Orders[[#This Row],[Order Type]]="Sale",INDEX(S.O[],SMALL(IF(S.O[Order Number]=S.Order,ROW(S.O[])-ROW(S.O[#Headers])),COUNTIF($C$14:$C76,$C76)),MATCH(A$13,S.O[#Headers],0)),"")),"") ->  | B76: =IFERROR(IF(Tbl_Orders[[#This Row],[Order Type]]="Purchase",IF(Tbl_Orders[[#This Row],[Order Type]]="Purchase",INDEX(PO_Details[],SMALL(IF(PO_Details[Order Number]=PoNu,ROW(PO_Details[])-ROW(PO_Details[#Headers])),COUNTIF($C$14:$C76,$C76)),MATCH(B$13,PO_Details[#Headers],0)),""),IF(Tbl_Orders[[#This Row],[Order Type]]="Sale",INDEX(S.O[],SMALL(IF(S.O[Order Number]=S.Order,ROW(S.O[])-ROW(S.O[#Headers])),COUNTIF($C$14:$C76,$C76)),MATCH(B$13,S.O[#Headers],0)),"")),"") ->  | D76: 12-31-18 | E76: =IFERROR(IF(Tbl_Orders[[#This Row],[Order Type]]="Purchase",IF(Tbl_Orders[[#This Row],[Order Type]]="Purchase",INDEX(PO_Details[],SMALL(IF(PO_Details[Order Number]=PoNu,ROW(PO_Details[])-ROW(PO_Details[#Headers])),COUNTIF($C$14:$C76,$C76)),MATCH(E$13,PO_Details[#Headers],0)),""),IF(Tbl_Orders[[#This Row],[Order Type]]="Sale",INDEX(S.O[],SMALL(IF(S.O[Order Number]=S.Order,ROW(S.O[])-ROW(S.O[#Headers])),COUNTIF($C$14:$C76,$C76)),MATCH(E$13,S.O[#Headers],0)),"")),"") ->  | F76: =IFERROR(IF(Tbl_Orders[[#This Row],[Order Type]]="Purchase",IF(Tbl_Orders[[#This Row],[Order Type]]="Purchase",INDEX(PO_Details[],SMALL(IF(PO_Details[Order Number]=PoNu,ROW(PO_Details[])-ROW(PO_Details[#Headers])),COUNTIF($C$14:$C76,$C76)),MATCH(F$13,PO_Details[#Headers],0)),""),IF(Tbl_Orders[[#This Row],[Order Type]]="Sale",INDEX(S.O[],SMALL(IF(S.O[Order Number]=S.Order,ROW(S.O[])-ROW(S.O[#Headers])),COUNTIF($C$14:$C76,$C76)),MATCH(F$13,S.O[#Headers],0)),"")),"") ->  | G76: =IFERROR(IF(Tbl_Orders[[#This Row],[Order Type]]="Purchase",IF(Tbl_Orders[[#This Row],[Order Type]]="Purchase",INDEX(PO_Details[],SMALL(IF(PO_Details[Order Number]=PoNu,ROW(PO_Details[])-ROW(PO_Details[#Headers])),COUNTIF($C$14:$C76,$C76)),MATCH(G$13,PO_Details[#Headers],0)),""),IF(Tbl_Orders[[#This Row],[Order Type]]="Sale",INDEX(S.O[],SMALL(IF(S.O[Order Number]=S.Order,ROW(S.O[])-ROW(S.O[#Headers])),COUNTIF($C$14:$C76,$C76)),MATCH(G$13,S.O[#Headers],0)),"")),"") ->  | H76: =IFERROR(IF(Tbl_Orders[[#This Row],[Order Type]]="Purchase",IF(Tbl_Orders[[#This Row],[Order Type]]="Purchase",INDEX(PO_Details[],SMALL(IF(PO_Details[Order Number]=PoNu,ROW(PO_Details[])-ROW(PO_Details[#Headers])),COUNTIF($C$14:$C76,$C76)),MATCH(H$13,PO_Details[#Headers],0)),""),IF(Tbl_Orders[[#This Row],[Order Type]]="Sale",INDEX(S.O[],SMALL(IF(S.O[Order Number]=S.Order,ROW(S.O[])-ROW(S.O[#Headers])),COUNTIF($C$14:$C76,$C76)),MATCH(H$13,S.O[#Headers],0)),"")),"") ->  | I76: =IFERROR(Tbl_Orders[[#This Row],[Unit Price]]*Tbl_Orders[Quantity],"") ->  | J76: =IF(Tbl_Orders[[#This Row],[Product Name]]="","",IFERROR(INDEX(Tbl_Product[#Data],MATCH(Tbl_Orders[[#This Row],[Product Name]],INDEX(Tbl_Product[#Data],,1),0),3),"")) ->  | K76: =TEXT(Tbl_Orders[[#This Row],[Order Date]],"yyyy-mmm") ->  | L76: =SUMIFS(Tbl_Orders[Quantity],Tbl_Orders[Expected Date],"<="&Tbl_Orders[[#This Row],[Expected Date]],Tbl_Orders[Product Name],Tbl_Orders[[#This Row],[Product Name]],Tbl_Orders[Order Type],"Purchase")-SUMIFS(Tbl_Orders[Quantity],Tbl_Orders[Expected Date],"<="&Tbl_Orders[[#This Row],[Expected Date]],Tbl_Orders[Product Name],Tbl_Orders[[#This Row],[Product Name]],Tbl_Orders[Order Type],"Sale") -> 0
A77: =IFERROR(IF(Tbl_Orders[[#This Row],[Order Type]]="Purchase",IF(Tbl_Orders[[#This Row],[Order Type]]="Purchase",INDEX(PO_Details[],SMALL(IF(PO_Details[Order Number]=PoNu,ROW(PO_Details[])-ROW(PO_Details[#Headers])),COUNTIF($C$14:$C77,$C77)),MATCH(A$13,PO_Details[#Headers],0)),""),IF(Tbl_Orders[[#This Row],[Order Type]]="Sale",INDEX(S.O[],SMALL(IF(S.O[Order Number]=S.Order,ROW(S.O[])-ROW(S.O[#Headers])),COUNTIF($C$14:$C77,$C77)),MATCH(A$13,S.O[#Headers],0)),"")),"") ->  | B77: =IFERROR(IF(Tbl_Orders[[#This Row],[Order Type]]="Purchase",IF(Tbl_Orders[[#This Row],[Order Type]]="Purchase",INDEX(PO_Details[],SMALL(IF(PO_Details[Order Number]=PoNu,ROW(PO_Details[])-ROW(PO_Details[#Headers])),COUNTIF($C$14:$C77,$C77)),MATCH(B$13,PO_Details[#Headers],0)),""),IF(Tbl_Orders[[#This Row],[Order Type]]="Sale",INDEX(S.O[],SMALL(IF(S.O[Order Number]=S.Order,ROW(S.O[])-ROW(S.O[#Headers])),COUNTIF($C$14:$C77,$C77)),MATCH(B$13,S.O[#Headers],0)),"")),"") ->  | D77: 12-31-18 | E77: =IFERROR(IF(Tbl_Orders[[#This Row],[Order Type]]="Purchase",IF(Tbl_Orders[[#This Row],[Order Type]]="Purchase",INDEX(PO_Details[],SMALL(IF(PO_Details[Order Number]=PoNu,ROW(PO_Details[])-ROW(PO_Details[#Headers])),COUNTIF($C$14:$C77,$C77)),MATCH(E$13,PO_Details[#Headers],0)),""),IF(Tbl_Orders[[#This Row],[Order Type]]="Sale",INDEX(S.O[],SMALL(IF(S.O[Order Number]=S.Order,ROW(S.O[])-ROW(S.O[#Headers])),COUNTIF($C$14:$C77,$C77)),MATCH(E$13,S.O[#Headers],0)),"")),"") ->  | F77: =IFERROR(IF(Tbl_Orders[[#This Row],[Order Type]]="Purchase",IF(Tbl_Orders[[#This Row],[Order Type]]="Purchase",INDEX(PO_Details[],SMALL(IF(PO_Details[Order Number]=PoNu,ROW(PO_Details[])-ROW(PO_Details[#Headers])),COUNTIF($C$14:$C77,$C77)),MATCH(F$13,PO_Details[#Headers],0)),""),IF(Tbl_Orders[[#This Row],[Order Type]]="Sale",INDEX(S.O[],SMALL(IF(S.O[Order Number]=S.Order,ROW(S.O[])-ROW(S.O[#Headers])),COUNTIF($C$14:$C77,$C77)),MATCH(F$13,S.O[#Headers],0)),"")),"") ->  | G77: =IFERROR(IF(Tbl_Orders[[#This Row],[Order Type]]="Purchase",IF(Tbl_Orders[[#This Row],[Order Type]]="Purchase",INDEX(PO_Details[],SMALL(IF(PO_Details[Order Number]=PoNu,ROW(PO_Details[])-ROW(PO_Details[#Headers])),COUNTIF($C$14:$C77,$C77)),MATCH(G$13,PO_Details[#Headers],0)),""),IF(Tbl_Orders[[#This Row],[Order Type]]="Sale",INDEX(S.O[],SMALL(IF(S.O[Order Number]=S.Order,ROW(S.O[])-ROW(S.O[#Headers])),COUNTIF($C$14:$C77,$C77)),MATCH(G$13,S.O[#Headers],0)),"")),"") ->  | H77: =IFERROR(IF(Tbl_Orders[[#This Row],[Order Type]]="Purchase",IF(Tbl_Orders[[#This Row],[Order Type]]="Purchase",INDEX(PO_Details[],SMALL(IF(PO_Details[Order Number]=PoNu,ROW(PO_Details[])-ROW(PO_Details[#Headers])),COUNTIF($C$14:$C77,$C77)),MATCH(H$13,PO_Details[#Headers],0)),""),IF(Tbl_Orders[[#This Row],[Order Type]]="Sale",INDEX(S.O[],SMALL(IF(S.O[Order Number]=S.Order,ROW(S.O[])-ROW(S.O[#Headers])),COUNTIF($C$14:$C77,$C77)),MATCH(H$13,S.O[#Headers],0)),"")),"") ->  | I77: =IFERROR(Tbl_Orders[[#This Row],[Unit Price]]*Tbl_Orders[Quantity],"") ->  | J77: =IF(Tbl_Orders[[#This Row],[Product Name]]="","",IFERROR(INDEX(Tbl_Product[#Data],MATCH(Tbl_Orders[[#This Row],[Product Name]],INDEX(Tbl_Product[#Data],,1),0),3),"")) ->  | K77: =TEXT(Tbl_Orders[[#This Row],[Order Date]],"yyyy-mmm") ->  | L77: =SUMIFS(Tbl_Orders[Quantity],Tbl_Orders[Expected Date],"<="&Tbl_Orders[[#This Row],[Expected Date]],Tbl_Orders[Product Name],Tbl_Orders[[#This Row],[Product Name]],Tbl_Orders[Order Type],"Purchase")-SUMIFS(Tbl_Orders[Quantity],Tbl_Orders[Expected Date],"<="&Tbl_Orders[[#This Row],[Expected Date]],Tbl_Orders[Product Name],Tbl_Orders[[#This Row],[Product Name]],Tbl_Orders[Order Type],"Sale") -> 0
A78: =IFERROR(IF(Tbl_Orders[[#This Row],[Order Type]]="Purchase",IF(Tbl_Orders[[#This Row],[Order Type]]="Purchase",INDEX(PO_Details[],SMALL(IF(PO_Details[Order Number]=PoNu,ROW(PO_Details[])-ROW(PO_Details[#Headers])),COUNTIF($C$14:$C78,$C78)),MATCH(A$13,PO_Details[#Headers],0)),""),IF(Tbl_Orders[[#This Row],[Order Type]]="Sale",INDEX(S.O[],SMALL(IF(S.O[Order Number]=S.Order,ROW(S.O[])-ROW(S.O[#Headers])),COUNTIF($C$14:$C78,$C78)),MATCH(A$13,S.O[#Headers],0)),"")),"") ->  | B78: =IFERROR(IF(Tbl_Orders[[#This Row],[Order Type]]="Purchase",IF(Tbl_Orders[[#This Row],[Order Type]]="Purchase",INDEX(PO_Details[],SMALL(IF(PO_Details[Order Number]=PoNu,ROW(PO_Details[])-ROW(PO_Details[#Headers])),COUNTIF($C$14:$C78,$C78)),MATCH(B$13,PO_Details[#Headers],0)),""),IF(Tbl_Orders[[#This Row],[Order Type]]="Sale",INDEX(S.O[],SMALL(IF(S.O[Order Number]=S.Order,ROW(S.O[])-ROW(S.O[#Headers])),COUNTIF($C$14:$C78,$C78)),MATCH(B$13,S.O[#Headers],0)),"")),"") ->  | D78: 12-31-18 | E78: =IFERROR(IF(Tbl_Orders[[#This Row],[Order Type]]="Purchase",IF(Tbl_Orders[[#This Row],[Order Type]]="Purchase",INDEX(PO_Details[],SMALL(IF(PO_Details[Order Number]=PoNu,ROW(PO_Details[])-ROW(PO_Details[#Headers])),COUNTIF($C$14:$C78,$C78)),MATCH(E$13,PO_Details[#Headers],0)),""),IF(Tbl_Orders[[#This Row],[Order Type]]="Sale",INDEX(S.O[],SMALL(IF(S.O[Order Number]=S.Order,ROW(S.O[])-ROW(S.O[#Headers])),COUNTIF($C$14:$C78,$C78)),MATCH(E$13,S.O[#Headers],0)),"")),"") ->  | F78: =IFERROR(IF(Tbl_Orders[[#This Row],[Order Type]]="Purchase",IF(Tbl_Orders[[#This Row],[Order Type]]="Purchase",INDEX(PO_Details[],SMALL(IF(PO_Details[Order Number]=PoNu,ROW(PO_Details[])-ROW(PO_Details[#Headers])),COUNTIF($C$14:$C78,$C78)),MATCH(F$13,PO_Details[#Headers],0)),""),IF(Tbl_Orders[[#This Row],[Order Type]]="Sale",INDEX(S.O[],SMALL(IF(S.O[Order Number]=S.Order,ROW(S.O[])-ROW(S.O[#Headers])),COUNTIF($C$14:$C78,$C78)),MATCH(F$13,S.O[#Headers],0)),"")),"") ->  | G78: =IFERROR(IF(Tbl_Orders[[#This Row],[Order Type]]="Purchase",IF(Tbl_Orders[[#This Row],[Order Type]]="Purchase",INDEX(PO_Details[],SMALL(IF(PO_Details[Order Number]=PoNu,ROW(PO_Details[])-ROW(PO_Details[#Headers])),COUNTIF($C$14:$C78,$C78)),MATCH(G$13,PO_Details[#Headers],0)),""),IF(Tbl_Orders[[#This Row],[Order Type]]="Sale",INDEX(S.O[],SMALL(IF(S.O[Order Number]=S.Order,ROW(S.O[])-ROW(S.O[#Headers])),COUNTIF($C$14:$C78,$C78)),MATCH(G$13,S.O[#Headers],0)),"")),"") ->  | H78: =IFERROR(IF(Tbl_Orders[[#This Row],[Order Type]]="Purchase",IF(Tbl_Orders[[#This Row],[Order Type]]="Purchase",INDEX(PO_Details[],SMALL(IF(PO_Details[Order Number]=PoNu,ROW(PO_Details[])-ROW(PO_Details[#Headers])),COUNTIF($C$14:$C78,$C78)),MATCH(H$13,PO_Details[#Headers],0)),""),IF(Tbl_Orders[[#This Row],[Order Type]]="Sale",INDEX(S.O[],SMALL(IF(S.O[Order Number]=S.Order,ROW(S.O[])-ROW(S.O[#Headers])),COUNTIF($C$14:$C78,$C78)),MATCH(H$13,S.O[#Headers],0)),"")),"") ->  | I78: =IFERROR(Tbl_Orders[[#This Row],[Unit Price]]*Tbl_Orders[Quantity],"") ->  | J78: =IF(Tbl_Orders[[#This Row],[Product Name]]="","",IFERROR(INDEX(Tbl_Product[#Data],MATCH(Tbl_Orders[[#This Row],[Product Name]],INDEX(Tbl_Product[#Data],,1),0),3),"")) ->  | K78: =TEXT(Tbl_Orders[[#This Row],[Order Date]],"yyyy-mmm") ->  | L78: =SUMIFS(Tbl_Orders[Quantity],Tbl_Orders[Expected Date],"<="&Tbl_Orders[[#This Row],[Expected Date]],Tbl_Orders[Product Name],Tbl_Orders[[#This Row],[Product Name]],Tbl_Orders[Order Type],"Purchase")-SUMIFS(Tbl_Orders[Quantity],Tbl_Orders[Expected Date],"<="&Tbl_Orders[[#This Row],[Expected Date]],Tbl_Orders[Product Name],Tbl_Orders[[#This Row],[Product Name]],Tbl_Orders[Order Type],"Sale") -> 0
A79: =IFERROR(IF(Tbl_Orders[[#This Row],[Order Type]]="Purchase",IF(Tbl_Orders[[#This Row],[Order Type]]="Purchase",INDEX(PO_Details[],SMALL(IF(PO_Details[Order Number]=PoNu,ROW(PO_Details[])-ROW(PO_Details[#Headers])),COUNTIF($C$14:$C79,$C79)),MATCH(A$13,PO_Details[#Headers],0)),""),IF(Tbl_Orders[[#This Row],[Order Type]]="Sale",INDEX(S.O[],SMALL(IF(S.O[Order Number]=S.Order,ROW(S.O[])-ROW(S.O[#Headers])),COUNTIF($C$14:$C79,$C79)),MATCH(A$13,S.O[#Headers],0)),"")),"") ->  | B79: =IFERROR(IF(Tbl_Orders[[#This Row],[Order Type]]="Purchase",IF(Tbl_Orders[[#This Row],[Order Type]]="Purchase",INDEX(PO_Details[],SMALL(IF(PO_Details[Order Number]=PoNu,ROW(PO_Details[])-ROW(PO_Details[#Headers])),COUNTIF($C$14:$C79,$C79)),MATCH(B$13,PO_Details[#Headers],0)),""),IF(Tbl_Orders[[#This Row],[Order Type]]="Sale",INDEX(S.O[],SMALL(IF(S.O[Order Number]=S.Order,ROW(S.O[])-ROW(S.O[#Headers])),COUNTIF($C$14:$C79,$C79)),MATCH(B$13,S.O[#Headers],0)),"")),"") ->  | D79: 12-31-18 | E79: =IFERROR(IF(Tbl_Orders[[#This Row],[Order Type]]="Purchase",IF(Tbl_Orders[[#This Row],[Order Type]]="Purchase",INDEX(PO_Details[],SMALL(IF(PO_Details[Order Number]=PoNu,ROW(PO_Details[])-ROW(PO_Details[#Headers])),COUNTIF($C$14:$C79,$C79)),MATCH(E$13,PO_Details[#Headers],0)),""),IF(Tbl_Orders[[#This Row],[Order Type]]="Sale",INDEX(S.O[],SMALL(IF(S.O[Order Number]=S.Order,ROW(S.O[])-ROW(S.O[#Headers])),COUNTIF($C$14:$C79,$C79)),MATCH(E$13,S.O[#Headers],0)),"")),"") ->  | F79: =IFERROR(IF(Tbl_Orders[[#This Row],[Order Type]]="Purchase",IF(Tbl_Orders[[#This Row],[Order Type]]="Purchase",INDEX(PO_Details[],SMALL(IF(PO_Details[Order Number]=PoNu,ROW(PO_Details[])-ROW(PO_Details[#Headers])),COUNTIF($C$14:$C79,$C79)),MATCH(F$13,PO_Details[#Headers],0)),""),IF(Tbl_Orders[[#This Row],[Order Type]]="Sale",INDEX(S.O[],SMALL(IF(S.O[Order Number]=S.Order,ROW(S.O[])-ROW(S.O[#Headers])),COUNTIF($C$14:$C79,$C79)),MATCH(F$13,S.O[#Headers],0)),"")),"") ->  | G79: =IFERROR(IF(Tbl_Orders[[#This Row],[Order Type]]="Purchase",IF(Tbl_Orders[[#This Row],[Order Type]]="Purchase",INDEX(PO_Details[],SMALL(IF(PO_Details[Order Number]=PoNu,ROW(PO_Details[])-ROW(PO_Details[#Headers])),COUNTIF($C$14:$C79,$C79)),MATCH(G$13,PO_Details[#Headers],0)),""),IF(Tbl_Orders[[#This Row],[Order Type]]="Sale",INDEX(S.O[],SMALL(IF(S.O[Order Number]=S.Order,ROW(S.O[])-ROW(S.O[#Headers])),COUNTIF($C$14:$C79,$C79)),MATCH(G$13,S.O[#Headers],0)),"")),"") ->  | H79: =IFERROR(IF(Tbl_Orders[[#This Row],[Order Type]]="Purchase",IF(Tbl_Orders[[#This Row],[Order Type]]="Purchase",INDEX(PO_Details[],SMALL(IF(PO_Details[Order Number]=PoNu,ROW(PO_Details[])-ROW(PO_Details[#Headers])),COUNTIF($C$14:$C79,$C79)),MATCH(H$13,PO_Details[#Headers],0)),""),IF(Tbl_Orders[[#This Row],[Order Type]]="Sale",INDEX(S.O[],SMALL(IF(S.O[Order Number]=S.Order,ROW(S.O[])-ROW(S.O[#Headers])),COUNTIF($C$14:$C79,$C79)),MATCH(H$13,S.O[#Headers],0)),"")),"") ->  | I79: =IFERROR(Tbl_Orders[[#This Row],[Unit Price]]*Tbl_Orders[Quantity],"") ->  | J79: =IF(Tbl_Orders[[#This Row],[Product Name]]="","",IFERROR(INDEX(Tbl_Product[#Data],MATCH(Tbl_Orders[[#This Row],[Product Name]],INDEX(Tbl_Product[#Data],,1),0),3),"")) ->  | K79: =TEXT(Tbl_Orders[[#This Row],[Order Date]],"yyyy-mmm") ->  | L79: =SUMIFS(Tbl_Orders[Quantity],Tbl_Orders[Expected Date],"<="&Tbl_Orders[[#This Row],[Expected Date]],Tbl_Orders[Product Name],Tbl_Orders[[#This Row],[Product Name]],Tbl_Orders[Order Type],"Purchase")-SUMIFS(Tbl_Orders[Quantity],Tbl_Orders[Expected Date],"<="&Tbl_Orders[[#This Row],[Expected Date]],Tbl_Orders[Product Name],Tbl_Orders[[#This Row],[Product Name]],Tbl_Orders[Order Type],"Sale") -> 0
A80: =IFERROR(IF(Tbl_Orders[[#This Row],[Order Type]]="Purchase",IF(Tbl_Orders[[#This Row],[Order Type]]="Purchase",INDEX(PO_Details[],SMALL(IF(PO_Details[Order Number]=PoNu,ROW(PO_Details[])-ROW(PO_Details[#Headers])),COUNTIF($C$14:$C80,$C80)),MATCH(A$13,PO_Details[#Headers],0)),""),IF(Tbl_Orders[[#This Row],[Order Type]]="Sale",INDEX(S.O[],SMALL(IF(S.O[Order Number]=S.Order,ROW(S.O[])-ROW(S.O[#Headers])),COUNTIF($C$14:$C80,$C80)),MATCH(A$13,S.O[#Headers],0)),"")),"") ->  | B80: =IFERROR(IF(Tbl_Orders[[#This Row],[Order Type]]="Purchase",IF(Tbl_Orders[[#This Row],[Order Type]]="Purchase",INDEX(PO_Details[],SMALL(IF(PO_Details[Order Number]=PoNu,ROW(PO_Details[])-ROW(PO_Details[#Headers])),COUNTIF($C$14:$C80,$C80)),MATCH(B$13,PO_Details[#Headers],0)),""),IF(Tbl_Orders[[#This Row],[Order Type]]="Sale",INDEX(S.O[],SMALL(IF(S.O[Order Number]=S.Order,ROW(S.O[])-ROW(S.O[#Headers])),COUNTIF($C$14:$C80,$C80)),MATCH(B$13,S.O[#Headers],0)),"")),"") ->  | D80: 12-31-18 | E80: =IFERROR(IF(Tbl_Orders[[#This Row],[Order Type]]="Purchase",IF(Tbl_Orders[[#This Row],[Order Type]]="Purchase",INDEX(PO_Details[],SMALL(IF(PO_Details[Order Number]=PoNu,ROW(PO_Details[])-ROW(PO_Details[#Headers])),COUNTIF($C$14:$C80,$C80)),MATCH(E$13,PO_Details[#Headers],0)),""),IF(Tbl_Orders[[#This Row],[Order Type]]="Sale",INDEX(S.O[],SMALL(IF(S.O[Order Number]=S.Order,ROW(S.O[])-ROW(S.O[#Headers])),COUNTIF($C$14:$C80,$C80)),MATCH(E$13,S.O[#Headers],0)),"")),"") ->  | F80: =IFERROR(IF(Tbl_Orders[[#This Row],[Order Type]]="Purchase",IF(Tbl_Orders[[#This Row],[Order Type]]="Purchase",INDEX(PO_Details[],SMALL(IF(PO_Details[Order Number]=PoNu,ROW(PO_Details[])-ROW(PO_Details[#Headers])),COUNTIF($C$14:$C80,$C80)),MATCH(F$13,PO_Details[#Headers],0)),""),IF(Tbl_Orders[[#This Row],[Order Type]]="Sale",INDEX(S.O[],SMALL(IF(S.O[Order Number]=S.Order,ROW(S.O[])-ROW(S.O[#Headers])),COUNTIF($C$14:$C80,$C80)),MATCH(F$13,S.O[#Headers],0)),"")),"") ->  | G80: =IFERROR(IF(Tbl_Orders[[#This Row],[Order Type]]="Purchase",IF(Tbl_Orders[[#This Row],[Order Type]]="Purchase",INDEX(PO_Details[],SMALL(IF(PO_Details[Order Number]=PoNu,ROW(PO_Details[])-ROW(PO_Details[#Headers])),COUNTIF($C$14:$C80,$C80)),MATCH(G$13,PO_Details[#Headers],0)),""),IF(Tbl_Orders[[#This Row],[Order Type]]="Sale",INDEX(S.O[],SMALL(IF(S.O[Order Number]=S.Order,ROW(S.O[])-ROW(S.O[#Headers])),COUNTIF($C$14:$C80,$C80)),MATCH(G$13,S.O[#Headers],0)),"")),"") ->  | H80: =IFERROR(IF(Tbl_Orders[[#This Row],[Order Type]]="Purchase",IF(Tbl_Orders[[#This Row],[Order Type]]="Purchase",INDEX(PO_Details[],SMALL(IF(PO_Details[Order Number]=PoNu,ROW(PO_Details[])-ROW(PO_Details[#Headers])),COUNTIF($C$14:$C80,$C80)),MATCH(H$13,PO_Details[#Headers],0)),""),IF(Tbl_Orders[[#This Row],[Order Type]]="Sale",INDEX(S.O[],SMALL(IF(S.O[Order Number]=S.Order,ROW(S.O[])-ROW(S.O[#Headers])),COUNTIF($C$14:$C80,$C80)),MATCH(H$13,S.O[#Headers],0)),"")),"") ->  | I80: =IFERROR(Tbl_Orders[[#This Row],[Unit Price]]*Tbl_Orders[Quantity],"") ->  | J80: =IF(Tbl_Orders[[#This Row],[Product Name]]="","",IFERROR(INDEX(Tbl_Product[#Data],MATCH(Tbl_Orders[[#This Row],[Product Name]],INDEX(Tbl_Product[#Data],,1),0),3),"")) ->  | K80: =TEXT(Tbl_Orders[[#This Row],[Order Date]],"yyyy-mmm") ->  | L80: =SUMIFS(Tbl_Orders[Quantity],Tbl_Orders[Expected Date],"<="&Tbl_Orders[[#This Row],[Expected Date]],Tbl_Orders[Product Name],Tbl_Orders[[#This Row],[Product Name]],Tbl_Orders[Order Type],"Purchase")-SUMIFS(Tbl_Orders[Quantity],Tbl_Orders[Expected Date],"<="&Tbl_Orders[[#This Row],[Expected Date]],Tbl_Orders[Product Name],Tbl_Orders[[#This Row],[Product Name]],Tbl_Orders[Order Type],"Sale") -> 0
A81: =IFERROR(IF(Tbl_Orders[[#This Row],[Order Type]]="Purchase",IF(Tbl_Orders[[#This Row],[Order Type]]="Purchase",INDEX(PO_Details[],SMALL(IF(PO_Details[Order Number]=PoNu,ROW(PO_Details[])-ROW(PO_Details[#Headers])),COUNTIF($C$14:$C81,$C81)),MATCH(A$13,PO_Details[#Headers],0)),""),IF(Tbl_Orders[[#This Row],[Order Type]]="Sale",INDEX(S.O[],SMALL(IF(S.O[Order Number]=S.Order,ROW(S.O[])-ROW(S.O[#Headers])),COUNTIF($C$14:$C81,$C81)),MATCH(A$13,S.O[#Headers],0)),"")),"") ->  | B81: =IFERROR(IF(Tbl_Orders[[#This Row],[Order Type]]="Purchase",IF(Tbl_Orders[[#This Row],[Order Type]]="Purchase",INDEX(PO_Details[],SMALL(IF(PO_Details[Order Number]=PoNu,ROW(PO_Details[])-ROW(PO_Details[#Headers])),COUNTIF($C$14:$C81,$C81)),MATCH(B$13,PO_Details[#Headers],0)),""),IF(Tbl_Orders[[#This Row],[Order Type]]="Sale",INDEX(S.O[],SMALL(IF(S.O[Order Number]=S.Order,ROW(S.O[])-ROW(S.O[#Headers])),COUNTIF($C$14:$C81,$C81)),MATCH(B$13,S.O[#Headers],0)),"")),"") ->  | D81: 12-31-18 | E81: =IFERROR(IF(Tbl_Orders[[#This Row],[Order Type]]="Purchase",IF(Tbl_Orders[[#This Row],[Order Type]]="Purchase",INDEX(PO_Details[],SMALL(IF(PO_Details[Order Number]=PoNu,ROW(PO_Details[])-ROW(PO_Details[#Headers])),COUNTIF($C$14:$C81,$C81)),MATCH(E$13,PO_Details[#Headers],0)),""),IF(Tbl_Orders[[#This Row],[Order Type]]="Sale",INDEX(S.O[],SMALL(IF(S.O[Order Number]=S.Order,ROW(S.O[])-ROW(S.O[#Headers])),COUNTIF($C$14:$C81,$C81)),MATCH(E$13,S.O[#Headers],0)),"")),"") ->  | F81: =IFERROR(IF(Tbl_Orders[[#This Row],[Order Type]]="Purchase",IF(Tbl_Orders[[#This Row],[Order Type]]="Purchase",INDEX(PO_Details[],SMALL(IF(PO_Details[Order Number]=PoNu,ROW(PO_Details[])-ROW(PO_Details[#Headers])),COUNTIF($C$14:$C81,$C81)),MATCH(F$13,PO_Details[#Headers],0)),""),IF(Tbl_Orders[[#This Row],[Order Type]]="Sale",INDEX(S.O[],SMALL(IF(S.O[Order Number]=S.Order,ROW(S.O[])-ROW(S.O[#Headers])),COUNTIF($C$14:$C81,$C81)),MATCH(F$13,S.O[#Headers],0)),"")),"") ->  | G81: =IFERROR(IF(Tbl_Orders[[#This Row],[Order Type]]="Purchase",IF(Tbl_Orders[[#This Row],[Order Type]]="Purchase",INDEX(PO_Details[],SMALL(IF(PO_Details[Order Number]=PoNu,ROW(PO_Details[])-ROW(PO_Details[#Headers])),COUNTIF($C$14:$C81,$C81)),MATCH(G$13,PO_Details[#Headers],0)),""),IF(Tbl_Orders[[#This Row],[Order Type]]="Sale",INDEX(S.O[],SMALL(IF(S.O[Order Number]=S.Order,ROW(S.O[])-ROW(S.O[#Headers])),COUNTIF($C$14:$C81,$C81)),MATCH(G$13,S.O[#Headers],0)),"")),"") ->  | H81: =IFERROR(IF(Tbl_Orders[[#This Row],[Order Type]]="Purchase",IF(Tbl_Orders[[#This Row],[Order Type]]="Purchase",INDEX(PO_Details[],SMALL(IF(PO_Details[Order Number]=PoNu,ROW(PO_Details[])-ROW(PO_Details[#Headers])),COUNTIF($C$14:$C81,$C81)),MATCH(H$13,PO_Details[#Headers],0)),""),IF(Tbl_Orders[[#This Row],[Order Type]]="Sale",INDEX(S.O[],SMALL(IF(S.O[Order Number]=S.Order,ROW(S.O[])-ROW(S.O[#Headers])),COUNTIF($C$14:$C81,$C81)),MATCH(H$13,S.O[#Headers],0)),"")),"") ->  | I81: =IFERROR(Tbl_Orders[[#This Row],[Unit Price]]*Tbl_Orders[Quantity],"") ->  | J81: =IF(Tbl_Orders[[#This Row],[Product Name]]="","",IFERROR(INDEX(Tbl_Product[#Data],MATCH(Tbl_Orders[[#This Row],[Product Name]],INDEX(Tbl_Product[#Data],,1),0),3),"")) ->  | K81: =TEXT(Tbl_Orders[[#This Row],[Order Date]],"yyyy-mmm") ->  | L81: =SUMIFS(Tbl_Orders[Quantity],Tbl_Orders[Expected Date],"<="&Tbl_Orders[[#This Row],[Expected Date]],Tbl_Orders[Product Name],Tbl_Orders[[#This Row],[Product Name]],Tbl_Orders[Order Type],"Purchase")-SUMIFS(Tbl_Orders[Quantity],Tbl_Orders[Expected Date],"<="&Tbl_Orders[[#This Row],[Expected Date]],Tbl_Orders[Product Name],Tbl_Orders[[#This Row],[Product Name]],Tbl_Orders[Order Type],"Sale") -> 0
A82: =IFERROR(IF(Tbl_Orders[[#This Row],[Order Type]]="Purchase",IF(Tbl_Orders[[#This Row],[Order Type]]="Purchase",INDEX(PO_Details[],SMALL(IF(PO_Details[Order Number]=PoNu,ROW(PO_Details[])-ROW(PO_Details[#Headers])),COUNTIF($C$14:$C82,$C82)),MATCH(A$13,PO_Details[#Headers],0)),""),IF(Tbl_Orders[[#This Row],[Order Type]]="Sale",INDEX(S.O[],SMALL(IF(S.O[Order Number]=S.Order,ROW(S.O[])-ROW(S.O[#Headers])),COUNTIF($C$14:$C82,$C82)),MATCH(A$13,S.O[#Headers],0)),"")),"") ->  | B82: =IFERROR(IF(Tbl_Orders[[#This Row],[Order Type]]="Purchase",IF(Tbl_Orders[[#This Row],[Order Type]]="Purchase",INDEX(PO_Details[],SMALL(IF(PO_Details[Order Number]=PoNu,ROW(PO_Details[])-ROW(PO_Details[#Headers])),COUNTIF($C$14:$C82,$C82)),MATCH(B$13,PO_Details[#Headers],0)),""),IF(Tbl_Orders[[#This Row],[Order Type]]="Sale",INDEX(S.O[],SMALL(IF(S.O[Order Number]=S.Order,ROW(S.O[])-ROW(S.O[#Headers])),COUNTIF($C$14:$C82,$C82)),MATCH(B$13,S.O[#Headers],0)),"")),"") ->  | D82: 12-31-18 | E82: =IFERROR(IF(Tbl_Orders[[#This Row],[Order Type]]="Purchase",IF(Tbl_Orders[[#This Row],[Order Type]]="Purchase",INDEX(PO_Details[],SMALL(IF(PO_Details[Order Number]=PoNu,ROW(PO_Details[])-ROW(PO_Details[#Headers])),COUNTIF($C$14:$C82,$C82)),MATCH(E$13,PO_Details[#Headers],0)),""),IF(Tbl_Orders[[#This Row],[Order Type]]="Sale",INDEX(S.O[],SMALL(IF(S.O[Order Number]=S.Order,ROW(S.O[])-ROW(S.O[#Headers])),COUNTIF($C$14:$C82,$C82)),MATCH(E$13,S.O[#Headers],0)),"")),"") ->  | F82: =IFERROR(IF(Tbl_Orders[[#This Row],[Order Type]]="Purchase",IF(Tbl_Orders[[#This Row],[Order Type]]="Purchase",INDEX(PO_Details[],SMALL(IF(PO_Details[Order Number]=PoNu,ROW(PO_Details[])-ROW(PO_Details[#Headers])),COUNTIF($C$14:$C82,$C82)),MATCH(F$13,PO_Details[#Headers],0)),""),IF(Tbl_Orders[[#This Row],[Order Type]]="Sale",INDEX(S.O[],SMALL(IF(S.O[Order Number]=S.Order,ROW(S.O[])-ROW(S.O[#Headers])),COUNTIF($C$14:$C82,$C82)),MATCH(F$13,S.O[#Headers],0)),"")),"") ->  | G82: =IFERROR(IF(Tbl_Orders[[#This Row],[Order Type]]="Purchase",IF(Tbl_Orders[[#This Row],[Order Type]]="Purchase",INDEX(PO_Details[],SMALL(IF(PO_Details[Order Number]=PoNu,ROW(PO_Details[])-ROW(PO_Details[#Headers])),COUNTIF($C$14:$C82,$C82)),MATCH(G$13,PO_Details[#Headers],0)),""),IF(Tbl_Orders[[#This Row],[Order Type]]="Sale",INDEX(S.O[],SMALL(IF(S.O[Order Number]=S.Order,ROW(S.O[])-ROW(S.O[#Headers])),COUNTIF($C$14:$C82,$C82)),MATCH(G$13,S.O[#Headers],0)),"")),"") ->  | H82: =IFERROR(IF(Tbl_Orders[[#This Row],[Order Type]]="Purchase",IF(Tbl_Orders[[#This Row],[Order Type]]="Purchase",INDEX(PO_Details[],SMALL(IF(PO_Details[Order Number]=PoNu,ROW(PO_Details[])-ROW(PO_Details[#Headers])),COUNTIF($C$14:$C82,$C82)),MATCH(H$13,PO_Details[#Headers],0)),""),IF(Tbl_Orders[[#This Row],[Order Type]]="Sale",INDEX(S.O[],SMALL(IF(S.O[Order Number]=S.Order,ROW(S.O[])-ROW(S.O[#Headers])),COUNTIF($C$14:$C82,$C82)),MATCH(H$13,S.O[#Headers],0)),"")),"") ->  | I82: =IFERROR(Tbl_Orders[[#This Row],[Unit Price]]*Tbl_Orders[Quantity],"") ->  | J82: =IF(Tbl_Orders[[#This Row],[Product Name]]="","",IFERROR(INDEX(Tbl_Product[#Data],MATCH(Tbl_Orders[[#This Row],[Product Name]],INDEX(Tbl_Product[#Data],,1),0),3),"")) ->  | K82: =TEXT(Tbl_Orders[[#This Row],[Order Date]],"yyyy-mmm") ->  | L82: =SUMIFS(Tbl_Orders[Quantity],Tbl_Orders[Expected Date],"<="&Tbl_Orders[[#This Row],[Expected Date]],Tbl_Orders[Product Name],Tbl_Orders[[#This Row],[Product Name]],Tbl_Orders[Order Type],"Purchase")-SUMIFS(Tbl_Orders[Quantity],Tbl_Orders[Expected Date],"<="&Tbl_Orders[[#This Row],[Expected Date]],Tbl_Orders[Product Name],Tbl_Orders[[#This Row],[Product Name]],Tbl_Orders[Order Type],"Sale") -> 0
A83: =IFERROR(IF(Tbl_Orders[[#This Row],[Order Type]]="Purchase",IF(Tbl_Orders[[#This Row],[Order Type]]="Purchase",INDEX(PO_Details[],SMALL(IF(PO_Details[Order Number]=PoNu,ROW(PO_Details[])-ROW(PO_Details[#Headers])),COUNTIF($C$14:$C83,$C83)),MATCH(A$13,PO_Details[#Headers],0)),""),IF(Tbl_Orders[[#This Row],[Order Type]]="Sale",INDEX(S.O[],SMALL(IF(S.O[Order Number]=S.Order,ROW(S.O[])-ROW(S.O[#Headers])),COUNTIF($C$14:$C83,$C83)),MATCH(A$13,S.O[#Headers],0)),"")),"") ->  | B83: =IFERROR(IF(Tbl_Orders[[#This Row],[Order Type]]="Purchase",IF(Tbl_Orders[[#This Row],[Order Type]]="Purchase",INDEX(PO_Details[],SMALL(IF(PO_Details[Order Number]=PoNu,ROW(PO_Details[])-ROW(PO_Details[#Headers])),COUNTIF($C$14:$C83,$C83)),MATCH(B$13,PO_Details[#Headers],0)),""),IF(Tbl_Orders[[#This Row],[Order Type]]="Sale",INDEX(S.O[],SMALL(IF(S.O[Order Number]=S.Order,ROW(S.O[])-ROW(S.O[#Headers])),COUNTIF($C$14:$C83,$C83)),MATCH(B$13,S.O[#Headers],0)),"")),"") ->  | D83: 12-31-18 | E83: =IFERROR(IF(Tbl_Orders[[#This Row],[Order Type]]="Purchase",IF(Tbl_Orders[[#This Row],[Order Type]]="Purchase",INDEX(PO_Details[],SMALL(IF(PO_Details[Order Number]=PoNu,ROW(PO_Details[])-ROW(PO_Details[#Headers])),COUNTIF($C$14:$C83,$C83)),MATCH(E$13,PO_Details[#Headers],0)),""),IF(Tbl_Orders[[#This Row],[Order Type]]="Sale",INDEX(S.O[],SMALL(IF(S.O[Order Number]=S.Order,ROW(S.O[])-ROW(S.O[#Headers])),COUNTIF($C$14:$C83,$C83)),MATCH(E$13,S.O[#Headers],0)),"")),"") ->  | F83: =IFERROR(IF(Tbl_Orders[[#This Row],[Order Type]]="Purchase",IF(Tbl_Orders[[#This Row],[Order Type]]="Purchase",INDEX(PO_Details[],SMALL(IF(PO_Details[Order Number]=PoNu,ROW(PO_Details[])-ROW(PO_Details[#Headers])),COUNTIF($C$14:$C83,$C83)),MATCH(F$13,PO_Details[#Headers],0)),""),IF(Tbl_Orders[[#This Row],[Order Type]]="Sale",INDEX(S.O[],SMALL(IF(S.O[Order Number]=S.Order,ROW(S.O[])-ROW(S.O[#Headers])),COUNTIF($C$14:$C83,$C83)),MATCH(F$13,S.O[#Headers],0)),"")),"") ->  | G83: =IFERROR(IF(Tbl_Orders[[#This Row],[Order Type]]="Purchase",IF(Tbl_Orders[[#This Row],[Order Type]]="Purchase",INDEX(PO_Details[],SMALL(IF(PO_Details[Order Number]=PoNu,ROW(PO_Details[])-ROW(PO_Details[#Headers])),COUNTIF($C$14:$C83,$C83)),MATCH(G$13,PO_Details[#Headers],0)),""),IF(Tbl_Orders[[#This Row],[Order Type]]="Sale",INDEX(S.O[],SMALL(IF(S.O[Order Number]=S.Order,ROW(S.O[])-ROW(S.O[#Headers])),COUNTIF($C$14:$C83,$C83)),MATCH(G$13,S.O[#Headers],0)),"")),"") ->  | H83: =IFERROR(IF(Tbl_Orders[[#This Row],[Order Type]]="Purchase",IF(Tbl_Orders[[#This Row],[Order Type]]="Purchase",INDEX(PO_Details[],SMALL(IF(PO_Details[Order Number]=PoNu,ROW(PO_Details[])-ROW(PO_Details[#Headers])),COUNTIF($C$14:$C83,$C83)),MATCH(H$13,PO_Details[#Headers],0)),""),IF(Tbl_Orders[[#This Row],[Order Type]]="Sale",INDEX(S.O[],SMALL(IF(S.O[Order Number]=S.Order,ROW(S.O[])-ROW(S.O[#Headers])),COUNTIF($C$14:$C83,$C83)),MATCH(H$13,S.O[#Headers],0)),"")),"") ->  | I83: =IFERROR(Tbl_Orders[[#This Row],[Unit Price]]*Tbl_Orders[Quantity],"") ->  | J83: =IF(Tbl_Orders[[#This Row],[Product Name]]="","",IFERROR(INDEX(Tbl_Product[#Data],MATCH(Tbl_Orders[[#This Row],[Product Name]],INDEX(Tbl_Product[#Data],,1),0),3),"")) ->  | K83: =TEXT(Tbl_Orders[[#This Row],[Order Date]],"yyyy-mmm") ->  | L83: =SUMIFS(Tbl_Orders[Quantity],Tbl_Orders[Expected Date],"<="&Tbl_Orders[[#This Row],[Expected Date]],Tbl_Orders[Product Name],Tbl_Orders[[#This Row],[Product Name]],Tbl_Orders[Order Type],"Purchase")-SUMIFS(Tbl_Orders[Quantity],Tbl_Orders[Expected Date],"<="&Tbl_Orders[[#This Row],[Expected Date]],Tbl_Orders[Product Name],Tbl_Orders[[#This Row],[Product Name]],Tbl_Orders[Order Type],"Sale") -> 0
A84: =IFERROR(IF(Tbl_Orders[[#This Row],[Order Type]]="Purchase",IF(Tbl_Orders[[#This Row],[Order Type]]="Purchase",INDEX(PO_Details[],SMALL(IF(PO_Details[Order Number]=PoNu,ROW(PO_Details[])-ROW(PO_Details[#Headers])),COUNTIF($C$14:$C84,$C84)),MATCH(A$13,PO_Details[#Headers],0)),""),IF(Tbl_Orders[[#This Row],[Order Type]]="Sale",INDEX(S.O[],SMALL(IF(S.O[Order Number]=S.Order,ROW(S.O[])-ROW(S.O[#Headers])),COUNTIF($C$14:$C84,$C84)),MATCH(A$13,S.O[#Headers],0)),"")),"") ->  | B84: =IFERROR(IF(Tbl_Orders[[#This Row],[Order Type]]="Purchase",IF(Tbl_Orders[[#This Row],[Order Type]]="Purchase",INDEX(PO_Details[],SMALL(IF(PO_Details[Order Number]=PoNu,ROW(PO_Details[])-ROW(PO_Details[#Headers])),COUNTIF($C$14:$C84,$C84)),MATCH(B$13,PO_Details[#Headers],0)),""),IF(Tbl_Orders[[#This Row],[Order Type]]="Sale",INDEX(S.O[],SMALL(IF(S.O[Order Number]=S.Order,ROW(S.O[])-ROW(S.O[#Headers])),COUNTIF($C$14:$C84,$C84)),MATCH(B$13,S.O[#Headers],0)),"")),"") ->  | D84: 12-31-18 | E84: =IFERROR(IF(Tbl_Orders[[#This Row],[Order Type]]="Purchase",IF(Tbl_Orders[[#This Row],[Order Type]]="Purchase",INDEX(PO_Details[],SMALL(IF(PO_Details[Order Number]=PoNu,ROW(PO_Details[])-ROW(PO_Details[#Headers])),COUNTIF($C$14:$C84,$C84)),MATCH(E$13,PO_Details[#Headers],0)),""),IF(Tbl_Orders[[#This Row],[Order Type]]="Sale",INDEX(S.O[],SMALL(IF(S.O[Order Number]=S.Order,ROW(S.O[])-ROW(S.O[#Headers])),COUNTIF($C$14:$C84,$C84)),MATCH(E$13,S.O[#Headers],0)),"")),"") ->  | F84: =IFERROR(IF(Tbl_Orders[[#This Row],[Order Type]]="Purchase",IF(Tbl_Orders[[#This Row],[Order Type]]="Purchase",INDEX(PO_Details[],SMALL(IF(PO_Details[Order Number]=PoNu,ROW(PO_Details[])-ROW(PO_Details[#Headers])),COUNTIF($C$14:$C84,$C84)),MATCH(F$13,PO_Details[#Headers],0)),""),IF(Tbl_Orders[[#This Row],[Order Type]]="Sale",INDEX(S.O[],SMALL(IF(S.O[Order Number]=S.Order,ROW(S.O[])-ROW(S.O[#Headers])),COUNTIF($C$14:$C84,$C84)),MATCH(F$13,S.O[#Headers],0)),"")),"") ->  | G84: =IFERROR(IF(Tbl_Orders[[#This Row],[Order Type]]="Purchase",IF(Tbl_Orders[[#This Row],[Order Type]]="Purchase",INDEX(PO_Details[],SMALL(IF(PO_Details[Order Number]=PoNu,ROW(PO_Details[])-ROW(PO_Details[#Headers])),COUNTIF($C$14:$C84,$C84)),MATCH(G$13,PO_Details[#Headers],0)),""),IF(Tbl_Orders[[#This Row],[Order Type]]="Sale",INDEX(S.O[],SMALL(IF(S.O[Order Number]=S.Order,ROW(S.O[])-ROW(S.O[#Headers])),COUNTIF($C$14:$C84,$C84)),MATCH(G$13,S.O[#Headers],0)),"")),"") ->  | H84: =IFERROR(IF(Tbl_Orders[[#This Row],[Order Type]]="Purchase",IF(Tbl_Orders[[#This Row],[Order Type]]="Purchase",INDEX(PO_Details[],SMALL(IF(PO_Details[Order Number]=PoNu,ROW(PO_Details[])-ROW(PO_Details[#Headers])),COUNTIF($C$14:$C84,$C84)),MATCH(H$13,PO_Details[#Headers],0)),""),IF(Tbl_Orders[[#This Row],[Order Type]]="Sale",INDEX(S.O[],SMALL(IF(S.O[Order Number]=S.Order,ROW(S.O[])-ROW(S.O[#Headers])),COUNTIF($C$14:$C84,$C84)),MATCH(H$13,S.O[#Headers],0)),"")),"") ->  | I84: =IFERROR(Tbl_Orders[[#This Row],[Unit Price]]*Tbl_Orders[Quantity],"") ->  | J84: =IF(Tbl_Orders[[#This Row],[Product Name]]="","",IFERROR(INDEX(Tbl_Product[#Data],MATCH(Tbl_Orders[[#This Row],[Product Name]],INDEX(Tbl_Product[#Data],,1),0),3),"")) ->  | K84: =TEXT(Tbl_Orders[[#This Row],[Order Date]],"yyyy-mmm") ->  | L84: =SUMIFS(Tbl_Orders[Quantity],Tbl_Orders[Expected Date],"<="&Tbl_Orders[[#This Row],[Expected Date]],Tbl_Orders[Product Name],Tbl_Orders[[#This Row],[Product Name]],Tbl_Orders[Order Type],"Purchase")-SUMIFS(Tbl_Orders[Quantity],Tbl_Orders[Expected Date],"<="&Tbl_Orders[[#This Row],[Expected Date]],Tbl_Orders[Product Name],Tbl_Orders[[#This Row],[Product Name]],Tbl_Orders[Order Type],"Sale") -> 0
A85: =IFERROR(IF(Tbl_Orders[[#This Row],[Order Type]]="Purchase",IF(Tbl_Orders[[#This Row],[Order Type]]="Purchase",INDEX(PO_Details[],SMALL(IF(PO_Details[Order Number]=PoNu,ROW(PO_Details[])-ROW(PO_Details[#Headers])),COUNTIF($C$14:$C85,$C85)),MATCH(A$13,PO_Details[#Headers],0)),""),IF(Tbl_Orders[[#This Row],[Order Type]]="Sale",INDEX(S.O[],SMALL(IF(S.O[Order Number]=S.Order,ROW(S.O[])-ROW(S.O[#Headers])),COUNTIF($C$14:$C85,$C85)),MATCH(A$13,S.O[#Headers],0)),"")),"") ->  | B85: =IFERROR(IF(Tbl_Orders[[#This Row],[Order Type]]="Purchase",IF(Tbl_Orders[[#This Row],[Order Type]]="Purchase",INDEX(PO_Details[],SMALL(IF(PO_Details[Order Number]=PoNu,ROW(PO_Details[])-ROW(PO_Details[#Headers])),COUNTIF($C$14:$C85,$C85)),MATCH(B$13,PO_Details[#Headers],0)),""),IF(Tbl_Orders[[#This Row],[Order Type]]="Sale",INDEX(S.O[],SMALL(IF(S.O[Order Number]=S.Order,ROW(S.O[])-ROW(S.O[#Headers])),COUNTIF($C$14:$C85,$C85)),MATCH(B$13,S.O[#Headers],0)),"")),"") ->  | D85: 12-31-18 | E85: =IFERROR(IF(Tbl_Orders[[#This Row],[Order Type]]="Purchase",IF(Tbl_Orders[[#This Row],[Order Type]]="Purchase",INDEX(PO_Details[],SMALL(IF(PO_Details[Order Number]=PoNu,ROW(PO_Details[])-ROW(PO_Details[#Headers])),COUNTIF($C$14:$C85,$C85)),MATCH(E$13,PO_Details[#Headers],0)),""),IF(Tbl_Orders[[#This Row],[Order Type]]="Sale",INDEX(S.O[],SMALL(IF(S.O[Order Number]=S.Order,ROW(S.O[])-ROW(S.O[#Headers])),COUNTIF($C$14:$C85,$C85)),MATCH(E$13,S.O[#Headers],0)),"")),"") ->  | F85: =IFERROR(IF(Tbl_Orders[[#This Row],[Order Type]]="Purchase",IF(Tbl_Orders[[#This Row],[Order Type]]="Purchase",INDEX(PO_Details[],SMALL(IF(PO_Details[Order Number]=PoNu,ROW(PO_Details[])-ROW(PO_Details[#Headers])),COUNTIF($C$14:$C85,$C85)),MATCH(F$13,PO_Details[#Headers],0)),""),IF(Tbl_Orders[[#This Row],[Order Type]]="Sale",INDEX(S.O[],SMALL(IF(S.O[Order Number]=S.Order,ROW(S.O[])-ROW(S.O[#Headers])),COUNTIF($C$14:$C85,$C85)),MATCH(F$13,S.O[#Headers],0)),"")),"") ->  | G85: =IFERROR(IF(Tbl_Orders[[#This Row],[Order Type]]="Purchase",IF(Tbl_Orders[[#This Row],[Order Type]]="Purchase",INDEX(PO_Details[],SMALL(IF(PO_Details[Order Number]=PoNu,ROW(PO_Details[])-ROW(PO_Details[#Headers])),COUNTIF($C$14:$C85,$C85)),MATCH(G$13,PO_Details[#Headers],0)),""),IF(Tbl_Orders[[#This Row],[Order Type]]="Sale",INDEX(S.O[],SMALL(IF(S.O[Order Number]=S.Order,ROW(S.O[])-ROW(S.O[#Headers])),COUNTIF($C$14:$C85,$C85)),MATCH(G$13,S.O[#Headers],0)),"")),"") ->  | H85: =IFERROR(IF(Tbl_Orders[[#This Row],[Order Type]]="Purchase",IF(Tbl_Orders[[#This Row],[Order Type]]="Purchase",INDEX(PO_Details[],SMALL(IF(PO_Details[Order Number]=PoNu,ROW(PO_Details[])-ROW(PO_Details[#Headers])),COUNTIF($C$14:$C85,$C85)),MATCH(H$13,PO_Details[#Headers],0)),""),IF(Tbl_Orders[[#This Row],[Order Type]]="Sale",INDEX(S.O[],SMALL(IF(S.O[Order Number]=S.Order,ROW(S.O[])-ROW(S.O[#Headers])),COUNTIF($C$14:$C85,$C85)),MATCH(H$13,S.O[#Headers],0)),"")),"") ->  | I85: =IFERROR(Tbl_Orders[[#This Row],[Unit Price]]*Tbl_Orders[Quantity],"") ->  | J85: =IF(Tbl_Orders[[#This Row],[Product Name]]="","",IFERROR(INDEX(Tbl_Product[#Data],MATCH(Tbl_Orders[[#This Row],[Product Name]],INDEX(Tbl_Product[#Data],,1),0),3),"")) ->  | K85: =TEXT(Tbl_Orders[[#This Row],[Order Date]],"yyyy-mmm") ->  | L85: =SUMIFS(Tbl_Orders[Quantity],Tbl_Orders[Expected Date],"<="&Tbl_Orders[[#This Row],[Expected Date]],Tbl_Orders[Product Name],Tbl_Orders[[#This Row],[Product Name]],Tbl_Orders[Order Type],"Purchase")-SUMIFS(Tbl_Orders[Quantity],Tbl_Orders[Expected Date],"<="&Tbl_Orders[[#This Row],[Expected Date]],Tbl_Orders[Product Name],Tbl_Orders[[#This Row],[Product Name]],Tbl_Orders[Order Type],"Sale") -> 0
